Workbook

Sheet Cover Page
B2: PUBLIC RELEASE DRAFT
B3: November 2024
B5: Draft Air Releases (NEI 2020) for 1,3-Butadiene
B8: CASRN: 106-99-0

Sheet Read Me
A1: Description of this spreadsheet
A2: This spreadsheet contains a summary of stack and fugitive air emissions for each occupational exposure scenario (OES) in the 1,3-Butadiene Risk Evaluation.
A3: NEI Data in this spreadsheet are for the 2020 reporting year.
A5: Worksheet | B5: Description
A6: Overall Release Summary | B6: Summary of the stack and fugitive releases from 2017 and 2020 NEI
A7: OES Summary | B7: Summary of OES and assumed # of release days.
A8: 2020 Summary_Point | B8: Summary of the annual and daily average stack and fugitive air releases for each OES/Facility in 2020 NEI
A9: 2020 Point Sources | B9: Raw annual stack and fugitive air release data from 2020 NEI

Sheet Overall Release Summary
B1: Annual Releases (kg/yr)
B2: 2020 NEI
A3: Stack | B3: =CONVERT(SUMIFS('2020 Point Sources'!BH:BH, '2020 Point Sources'!AY:AY, 2)+SUMIFS('2020 Point Sources'!BH:BH, '2020 Point Sources'!AY:AY, 3)+SUMIFS('2020 Point Sources'!BH:BH, '2020 Point Sources'!AY:AY, 4)+SUMIFS('2020 Point Sources'!BH:BH, '2020 Point Sources'!AY:AY, 5)+SUMIFS('2020 Point Sources'!BH:BH, '2020 Point Sources'!AY:AY, 6)++SUMIFS('2020 Point Sources'!BH:BH, '2020 Point Sources'!AY:AY, 8)+SUMIFS('2020 Point Sources'!BH:BH, '2020 Point Sources'!AY:AY, 99), "ton", "kg") -> 281,506
A4: Fugitive | B4: =CONVERT(SUMIFS('2020 Point Sources'!BH:BH, '2020 Point Sources'!AY:AY, 1)+SUMIFS('2020 Point Sources'!BH:BH, '2020 Point Sources'!AY:AY, 7)+SUMIFS('2020 Point Sources'!BH:BH, '2020 Point Sources'!AY:AY, 9), "ton", "kg") -> 168,920

Sheet OES Summary
E1: 2020 NEI
A2: OES | B2: Release duration | C2: Release Days | D2: Release pattern | E2: # of Point Sources | F2: # of NEI Facilities with Stack | G2: # of NEI Facilities with Fugitive | H2: Notes
A3: Manufacturing | B3: unknown | C3: 350 | D3: unknown - see notes for number of release days | E3: =COUNTIF('2020 Summary_Point'!B:B, $A3) -> 38 | F3: =COUNTIFS('2020 Summary_Point'!B:B,$A3,'2020 Summary_Point'!O:O, ">0") -> 30 | G3: =COUNTIFS('2020 Summary_Point'!B:B,$A3,'2020 Summary_Point'!M:M, ">0") -> 33 | H3: Assumes facility operates 7 days/week and 50 weeks/yr (with two weeks down for turnaround) and that the facility is producing and releasing the chemical daily during operation.
A4: Repackaging | B4: unknown | C4: 350 | D4: unknown - see notes for number of release days | E4: =COUNTIF('2020 Summary_Point'!B:B, $A4) -> 70 | F4: =COUNTIFS('2020 Summary_Point'!B:B,$A4,'2020 Summary_Point'!O:O, ">0") -> 42 | G4: =COUNTIFS('2020 Summary_Point'!B:B,$A4,'2020 Summary_Point'!M:M, ">0") -> 55 | H4: Assumes repackaging occurs 7 days/week and 50 weeks/yr (with two weeks down for turnaround).
A5: Processing as a Reactant | B5: unknown | C5: 350 | D5: unknown - see notes for number of release days | E5: =COUNTIF('2020 Summary_Point'!B:B, $A5) -> 61 | F5: =COUNTIFS('2020 Summary_Point'!B:B,$A5,'2020 Summary_Point'!O:O, ">0") -> 43 | G5: =COUNTIFS('2020 Summary_Point'!B:B,$A5,'2020 Summary_Point'!M:M, ">0") -> 47 | H5: Assumes facility operates 7 days/week and 50 weeks/yr (with two weeks down for turnaround) and that the facility is producing and releasing the chemical daily during operation.
A6: Processing - Incorporation into formulation, mixture, or reaction product | B6: unknown | C6: 250 | D6: unknown - see notes for number of release days | E6: =COUNTIF('2020 Summary_Point'!B:B, $A6) -> 125 | F6: =COUNTIFS('2020 Summary_Point'!B:B,$A6,'2020 Summary_Point'!O:O, ">0") -> 86 | G6: =COUNTIFS('2020 Summary_Point'!B:B,$A6,'2020 Summary_Point'!M:M, ">0") -> 88 | H6: The ESD on Formulation of Radiation Curable Coatings, Inks and Adhesives estimates 250 operating days/yr {OECD, 2010, 3840003}.
A7: Plastics and Rubber Compounding | B7: unknown | C7: 300 | D7: unknown - see notes for number of release days | E7: =COUNTIF('2020 Summary_Point'!B:B, $A7) -> 59 | F7: =COUNTIFS('2020 Summary_Point'!B:B,$A7,'2020 Summary_Point'!O:O, ">0") -> 53 | G7: =COUNTIFS('2020 Summary_Point'!B:B,$A7,'2020 Summary_Point'!M:M, ">0") -> 40 | H7: The ESD on Plastic Additives references European technical guidance, which estimates up to 300 operating days/yr for the polymers industry {OECD, 2009, 5079084}.
A8: Plastics and Rubber Converting | B8: unknown | C8: 300 | D8: unknown - see notes for number of release days | E8: =COUNTIF('2020 Summary_Point'!B:B, $A8) -> 52 | F8: =COUNTIFS('2020 Summary_Point'!B:B,$A8,'2020 Summary_Point'!O:O, ">0") -> 37 | G8: =COUNTIFS('2020 Summary_Point'!B:B,$A8,'2020 Summary_Point'!M:M, ">0") -> 33 | H8: The ESD on Plastic Additives references European technical guidance, which estimates up to 300 operating days/yr for the polymers industry {OECD, 2009, 5079084}.
A9: Distribution in Commerce | B9: unknown | C9: 365 | D9: unknown - see notes for number of release days | E9: =COUNTIF('2020 Summary_Point'!B:B, $A9) -> 0 | F9: =COUNTIFS('2020 Summary_Point'!B:B,$A9,'2020 Summary_Point'!O:O, ">0") -> 0 | G9: =COUNTIFS('2020 Summary_Point'!B:B,$A9,'2020 Summary_Point'!M:M, ">0") -> 0 | H9: Assumes distribution occurs year round.
A10: Use of Laboratory Chemicals | B10: unknown | C10: 250 | D10: unknown - see notes for number of release days | E10: =COUNTIF('2020 Summary_Point'!B:B, $A10) -> 5 | F10: =COUNTIFS('2020 Summary_Point'!B:B,$A10,'2020 Summary_Point'!O:O, ">0") -> 1 | G10: =COUNTIFS('2020 Summary_Point'!B:B,$A10,'2020 Summary_Point'!M:M, ">0") -> 4 | H10: Assumes operation 5 days/week for 50 weeks/yr.
A11: Use of Paints and Coatings | B11: unknown | C11: 250 | D11: unknown - see notes for number of release days | E11: =COUNTIF('2020 Summary_Point'!B:B, $A11) -> 14 | F11: =COUNTIFS('2020 Summary_Point'!B:B,$A11,'2020 Summary_Point'!O:O, ">0") -> 10 | G11: =COUNTIFS('2020 Summary_Point'!B:B,$A11,'2020 Summary_Point'!M:M, ">0") -> 7 | H11: The ESD on the Application of Radiation Curable Coatings, Inks, and Adhesives provides an estimate of 250 operating days/yr {OECD, 2011, 6568745}.
A12: Use of Adhesives and Sealants | B12: unknown | C12: 250 | D12: unknown - see notes for number of release days | E12: =COUNTIF('2020 Summary_Point'!B:B, $A12) -> 1 | F12: =COUNTIFS('2020 Summary_Point'!B:B,$A12,'2020 Summary_Point'!O:O, ">0") -> 1 | G12: =COUNTIFS('2020 Summary_Point'!B:B,$A12,'2020 Summary_Point'!M:M, ">0") -> 0 | H12: The ESD on the Application of Radiation Curable Coatings, Inks, and Adhesives provides an estimate of 250 operating days/yr {OECD, 2011, 6568745}.
A13: Use of Lubricants and Greases | B13: unknown | C13: 256 | D13: unknown - see notes for number of release days | E13: =COUNTIF('2020 Summary_Point'!B:B, $A13) -> 0 | F13: =COUNTIFS('2020 Summary_Point'!B:B,$A13,'2020 Summary_Point'!O:O, ">0") -> 0 | G13: =COUNTIFS('2020 Summary_Point'!B:B,$A13,'2020 Summary_Point'!M:M, ">0") -> 0 | H13: The ESD on Chemical Additives in Automotive Lubricants provides an estimate of 256 operating days/yr {OECD, 2020, 6385735}.
A14: Use of Hydraulic Fracturing Fluids | B14: unknown | C14: 350 | D14: unknown - see notes for number of release days | E14: =COUNTIF('2020 Summary_Point'!B:B, $A14) -> 0 | F14: =COUNTIFS('2020 Summary_Point'!B:B,$A14,'2020 Summary_Point'!O:O, ">0") -> 0 | G14: =COUNTIFS('2020 Summary_Point'!B:B,$A14,'2020 Summary_Point'!M:M, ">0") -> 0 | H14: The ESD on Chemicals Used in Oil Well Production indicates that oil wells are expected to produce 350 days/yr {OECD, 2012, 6387322}.
A15: Use in Fuels and Related Products | B15: unknown | C15: 250 | D15: unknown - see notes for number of release days | E15: =COUNTIF('2020 Summary_Point'!B:B, $A15) -> 1 | F15: =COUNTIFS('2020 Summary_Point'!B:B,$A15,'2020 Summary_Point'!O:O, ">0") -> 0 | G15: =COUNTIFS('2020 Summary_Point'!B:B,$A15,'2020 Summary_Point'!M:M, ">0") -> 1 | H15: Assumes operation 5 days/week for 50 weeks/yr.
A16: Use of Plastics and Rubber Products | B16: unknown | C16: 350 | D16: unknown - see notes for number of release days | E16: =COUNTIF('2020 Summary_Point'!B:B, $A16) -> 0 | F16: =COUNTIFS('2020 Summary_Point'!B:B,$A16,'2020 Summary_Point'!O:O, ">0") -> 0 | G16: =COUNTIFS('2020 Summary_Point'!B:B,$A16,'2020 Summary_Point'!M:M, ">0") -> 0 | H16: Assumes facility operates 7 days/week and 50 weeks/yr (with two weeks down for turnaround)
A17: Use of Automotive Care Products | B17: unknown | D17: unknown - see notes for number of release days | E17: =COUNTIF('2020 Summary_Point'!B:B, $A17) -> 0 | F17: =COUNTIFS('2020 Summary_Point'!B:B,$A17,'2020 Summary_Point'!O:O, ">0") -> 0 | G17: =COUNTIFS('2020 Summary_Point'!B:B,$A17,'2020 Summary_Point'!M:M, ">0") -> 0
A18: Recycling | B18: unknown | C18: 350 | D18: unknown - see notes for number of release days | E18: =COUNTIF('2020 Summary_Point'!B:B, $A18) -> 7 | F18: =COUNTIFS('2020 Summary_Point'!B:B,$A18,'2020 Summary_Point'!O:O, ">0") -> 5 | G18: =COUNTIFS('2020 Summary_Point'!B:B,$A18,'2020 Summary_Point'!M:M, ">0") -> 4 | H18: Assumes facility operates 7 days/week and 50 weeks/yr (with two weeks down for turnaround)
A19: Waste Handling, Disposal, Treatment, and Recycling | B19: unknown | C19: 250 | D19: unknown - see notes for number of release days | E19: =COUNTIF('2020 Summary_Point'!B:B, $A19) -> 266 | F19: =COUNTIFS('2020 Summary_Point'!B:B,$A19,'2020 Summary_Point'!O:O, ">0") -> 239 | G19: =COUNTIFS('2020 Summary_Point'!B:B,$A19,'2020 Summary_Point'!M:M, ">0") -> 37 | H19: Assumes operation 5 days/week for 50 weeks/yr.
E20: =COUNTIF('2020 Summary_Point'!B:B, $A20) -> 0 | F20: =COUNTIFS('2020 Summary_Point'!B:B,$A20,'2020 Summary_Point'!O:O, ">0") -> 0 | G20: =COUNTIFS('2020 Summary_Point'!B:B,$A20,'2020 Summary_Point'!M:M, ">0") -> 0
A21: Unknown | B21: unknown | C21: 250 | D21: unknown - see notes for number of release days | E21: =COUNTIF('2020 Summary_Point'!B:B, $A21) -> 15 | F21: =COUNTIFS('2020 Summary_Point'!B:B,$A21,'2020 Summary_Point'!O:O, ">0") -> 9 | G21: =COUNTIFS('2020 Summary_Point'!B:B,$A21,'2020 Summary_Point'!M:M, ">0") -> 7 | H21: Assumes operation 5 days/week for 50 weeks/yr.
A22: # of Mapped Facilities | E22: =SUM(E3:E19) -> 699
A23: # of Total Facilities | E23: =COUNTA('2020 Summary_Point'!C2:C715) -> 714

Sheet 2020 Summary_Point
A1: EIS Facility Identifier | B1: OES | C1: Facility Name | D1: City | E1: State | F1: County | G1: Zip | H1: NAICS Primary | I1: NAICS Description | J1: SCC | K1: SCC Description | L1: Sector | M1: NEI Annual Fugitive Emissions (kg/yr) | N1: NEI Daily Fugitive Emissions (kg/day) | O1: NEI Annual Stack Emissions (kg/yr) | P1: NEI Daily Stack Emissions (kg/day) | Q1: Operating Hours (hrs/day) | R1: Operating Days (days/yr) | S1: NEI Hours per year | T1: NEI Hours per day | U1: NEI Days per week | V1: NEI Weeks per year | W1: Count of NEI entries | X1: Count of NEI Fugitive Entries | Y1: Count of NEI Stack Entries
A2: 3687011 | B2: =VLOOKUP($A2, '2020 Point Sources'!$I:$AO, 32, FALSE) -> Use of adhesives and sealants | C2: =VLOOKUP($A2,'2020 Point Sources'!$I:$J, 2, FALSE) -> ACME WALLBOARD PLANT | D2: =VLOOKUP($A2,'2020 Point Sources'!$I:$CD, 73, FALSE) -> QUANAH | E2: =VLOOKUP($A2,'2020 Point Sources'!$A:$E, 5, FALSE) -> TX | F2: =VLOOKUP($A2,'2020 Point Sources'!$A:$F, 6, FALSE) -> Hardeman | G2: =VLOOKUP($A2,'2020 Point Sources'!$I:$CD, 74, FALSE) -> 79252 | H2: =VLOOKUP($A2,'2020 Point Sources'!$I:$T, 12, FALSE) -> Gypsum Product Manufacturing | I2: =VLOOKUP($A2,'2020 Point Sources'!$I:$T, 11, FALSE) -> 327420 | J2: =VLOOKUP($A2,'2020 Point Sources'!$I:$AM, 25, FALSE) -> 30501504 | K2: =VLOOKUP($A2,'2020 Point Sources'!$I:$AM, 26, FALSE) -> Industrial Processes Mineral Products Gypsum Manufacture Conveying | L2: =VLOOKUP($A2,'2020 Point Sources'!$I:$AM, 31, FALSE) -> Industrial Processes - Storage and Transfer | M2: =IF(X2>0, CONVERT((SUMIFS('2020 Point Sources'!BH:BH, '2020 Point Sources'!I:I, A2, '2020 Point Sources'!AY:AY, 1)+SUMIFS('2020 Point Sources'!BH:BH, '2020 Point Sources'!I:I, A2, '2020 Point Sources'!AY:AY, 7)+SUMIFS('2020 Point Sources'!BH:BH, '2020 Point Sources'!I:I, A2, '2020 Point Sources'!AY:AY, 9)), "ton", "g")/1000, "n/a") -> n/a | N2: =IF(M2<>"n/a", M2/R2, "n/a") -> n/a | O2: =IF(Y2>0, CONVERT((SUMIFS('2020 Point Sources'!BH:BH, '2020 Point Sources'!I:I, A2, '2020 Point Sources'!AY:AY, 2)+SUMIFS('2020 Point Sources'!BH:BH, '2020 Point Sources'!I:I, A2, '2020 Point Sources'!AY:AY, 3)+SUMIFS('2020 Point Sources'!BH:BH, '2020 Point Sources'!I:I, A2, '2020 Point Sources'!AY:AY, 4)+SUMIFS('2020 Point Sources'!BH:BH, '2020 Point Sources'!I:I, A2, '2020 Point Sources'!AY:AY, 5)+SUMIFS('2020 Point Sources'!BH:BH, '2020 Point Sources'!I:I, A2, '2020 Point Sources'!AY:AY, 6)++SUMIFS('2020 Point Sources'!BH:BH, '2020 Point Sources'!I:I, A2, '2020 Point Sources'!AY:AY, 8)++SUMIFS('2020 Point Sources'!BH:BH, '2020 Point Sources'!I:I, A2, '2020 Point Sources'!AY:AY, 99)), "ton", "g")/1000, "n/a") -> 1.08E+02 | P2: =IF(O2<>"n/a", O2/R2, "n/a") -> 3.829E-01 | Q2: =IF(T2=0, 24, T2) -> 24 | R2: =IF(AND(S2>0, T2>0), IF(S2/T2 > 365, 365, S2/T2), INDEX('OES Summary'!C:C, MATCH(B2, 'OES Summary'!A:A, 0))) -> 282 | S2: =_xlfn.MAXIFS('2020 Point Sources'!CY:CY,'2020 Point Sources'!A:A, A2) -> 6767 | T2: =_xlfn.MAXIFS('2020 Point Sources'!CZ:CZ,'2020 Point Sources'!A:A, A2) -> 24 | U2: =_xlfn.MAXIFS('2020 Point Sources'!DA:DA,'2020 Point Sources'!A:A, A2) -> 6 | V2: =_xlfn.MAXIFS('2020 Point Sources'!DB:DB,'2020 Point Sources'!A:A, A2) -> 50 | W2: =COUNTIF('2020 Point Sources'!A:A, A2) -> 1 | X2: =COUNTIFS('2020 Point Sources'!AY:AY, 1,'2020 Point Sources'!A:A, A2)+COUNTIFS('2020 Point Sources'!AY:AY, 7,'2020 Point Sources'!A:A, A2)+COUNTIFS('2020 Point Sources'!AY:AY, 9,'2020 Point Sources'!A:A, A2) -> 0 | Y2: =COUNTIFS('2020 Point Sources'!AY:AY, 2,'2020 Point Sources'!A:A, A2)+COUNTIFS('2020 Point Sources'!AY:AY, 3,'2020 Point Sources'!A:A, A2)+COUNTIFS('2020 Point Sources'!AY:AY, 4,'2020 Point Sources'!A:A, A2)+COUNTIFS('2020 Point Sources'!AY:AY, 5,'2020 Point Sources'!A:A, A2)+COUNTIFS('2020 Point Sources'!AY:AY, 6,'2020 Point Sources'!A:A, A2)+COUNTIFS('2020 Point Sources'!AY:AY, 8,'2020 Point Sources'!A:A, A2)+COUNTIFS('2020 Point Sources'!AY:AY, 99,'2020 Point Sources'!A:A, A2) -> 1
A3: 4839611 | B3: =VLOOKUP($A3, '2020 Point Sources'!$I:$AO, 32, FALSE) -> Use in Fuels and Related Products | C3: =VLOOKUP($A3,'2020 Point Sources'!$I:$J, 2, FALSE) -> FONTANA PAPER MILLS INC | D3: =VLOOKUP($A3,'2020 Point Sources'!$I:$CD, 73, FALSE) -> FONTANA | E3: =VLOOKUP($A3,'2020 Point Sources'!$A:$E, 5, FALSE) -> CA | F3: =VLOOKUP($A3,'2020 Point Sources'!$A:$F, 6, FALSE) -> San Bernardino | G3: =VLOOKUP($A3,'2020 Point Sources'!$I:$CD, 74, FALSE) -> 92335 | H3: =VLOOKUP($A3,'2020 Point Sources'!$I:$T, 12, FALSE) -> Asphalt Shingle and Coating Materials Manufacturing | I3: =VLOOKUP($A3,'2020 Point Sources'!$I:$T, 11, FALSE) -> 324122 | J3: =VLOOKUP($A3,'2020 Point Sources'!$I:$AM, 25, FALSE) -> 20201001 | K3: =VLOOKUP($A3,'2020 Point Sources'!$I:$AM, 26, FALSE) -> Internal Combustion Engines Industrial Liquified Petroleum Gas (LPG) Propane: Reciprocating | L3: =VLOOKUP($A3,'2020 Point Sources'!$I:$AM, 31, FALSE) -> Fuel Comb - Industrial Boilers, ICEs - Other | M3: =IF(X3>0, CONVERT((SUMIFS('2020 Point Sources'!BH:BH, '2020 Point Sources'!I:I, A3, '2020 Point Sources'!AY:AY, 1)+SUMIFS('2020 Point Sources'!BH:BH, '2020 Point Sources'!I:I, A3, '2020 Point Sources'!AY:AY, 7)+SUMIFS('2020 Point Sources'!BH:BH, '2020 Point Sources'!I:I, A3, '2020 Point Sources'!AY:AY, 9)), "ton", "g")/1000, "n/a") -> 2.87E-02 | N3: 7.90E-05 | O3: =IF(Y3>0, CONVERT((SUMIFS('2020 Point Sources'!BH:BH, '2020 Point Sources'!I:I, A3, '2020 Point Sources'!AY:AY, 2)+SUMIFS('2020 Point Sources'!BH:BH, '2020 Point Sources'!I:I, A3, '2020 Point Sources'!AY:AY, 3)+SUMIFS('2020 Point Sources'!BH:BH, '2020 Point Sources'!I:I, A3, '2020 Point Sources'!AY:AY, 4)+SUMIFS('2020 Point Sources'!BH:BH, '2020 Point Sources'!I:I, A3, '2020 Point Sources'!AY:AY, 5)+SUMIFS('2020 Point Sources'!BH:BH, '2020 Point Sources'!I:I, A3, '2020 Point Sources'!AY:AY, 6)++SUMIFS('2020 Point Sources'!BH:BH, '2020 Point Sources'!I:I, A3, '2020 Point Sources'!AY:AY, 8)++SUMIFS('2020 Point Sources'!BH:BH, '2020 Point Sources'!I:I, A3, '2020 Point Sources'!AY:AY, 99)), "ton", "g")/1000, "n/a") -> n/a | P3: n/a | Q3: 24 | R3: =IF(AND(S3>0, T3>0), IF(S3/T3 > 365, 365, S3/T3), INDEX('OES Summary'!C:C, MATCH(B3, 'OES Summary'!A:A, 0))) -> 364 | S3: =_xlfn.MAXIFS('2020 Point Sources'!CY:CY,'2020 Point Sources'!A:A, A3) -> 8736 | T3: =_xlfn.MAXIFS('2020 Point Sources'!CZ:CZ,'2020 Point Sources'!A:A, A3) -> 24 | U3: =_xlfn.MAXIFS('2020 Point Sources'!DA:DA,'2020 Point Sources'!A:A, A3) -> 7 | V3: =_xlfn.MAXIFS('2020 Point Sources'!DB:DB,'2020 Point Sources'!A:A, A3) -> 52 | W3: =COUNTIF('2020 Point Sources'!A:A, A3) -> 2 | X3: =COUNTIFS('2020 Point Sources'!AY:AY, 1,'2020 Point Sources'!A:A, A3)+COUNTIFS('2020 Point Sources'!AY:AY, 7,'2020 Point Sources'!A:A, A3)+COUNTIFS('2020 Point Sources'!AY:AY, 9,'2020 Point Sources'!A:A, A3) -> 2 | Y3: =COUNTIFS('2020 Point Sources'!AY:AY, 2,'2020 Point Sources'!A:A, A3)+COUNTIFS('2020 Point Sources'!AY:AY, 3,'2020 Point Sources'!A:A, A3)+COUNTIFS('2020 Point Sources'!AY:AY, 4,'2020 Point Sources'!A:A, A3)+COUNTIFS('2020 Point Sources'!AY:AY, 5,'2020 Point Sources'!A:A, A3)+COUNTIFS('2020 Point Sources'!AY:AY, 6,'2020 Point Sources'!A:A, A3)+COUNTIFS('2020 Point Sources'!AY:AY, 8,'2020 Point Sources'!A:A, A3)+COUNTIFS('2020 Point Sources'!AY:AY, 99,'2020 Point Sources'!A:A, A3) -> 0
A4: 7488711 | B4: =VLOOKUP($A4, '2020 Point Sources'!$I:$AO, 32, FALSE) -> Use of Paints and Coatings | C4: =VLOOKUP($A4,'2020 Point Sources'!$I:$J, 2, FALSE) -> 3M - R&D Facility | D4: =VLOOKUP($A4,'2020 Point Sources'!$I:$CD, 73, FALSE) -> Maplewood | E4: =VLOOKUP($A4,'2020 Point Sources'!$A:$E, 5, FALSE) -> MN | F4: =VLOOKUP($A4,'2020 Point Sources'!$A:$F, 6, FALSE) -> Ramsey | G4: =VLOOKUP($A4,'2020 Point Sources'!$I:$CD, 74, FALSE) -> 55144 | H4: =VLOOKUP($A4,'2020 Point Sources'!$I:$T, 12, FALSE) -> Paper Bag and Coated and Treated Paper Manufacturing | I4: =VLOOKUP($A4,'2020 Point Sources'!$I:$T, 11, FALSE) -> 322220 | J4: =VLOOKUP($A4,'2020 Point Sources'!$I:$AM, 25, FALSE) -> 40200901 | K4: =VLOOKUP($A4,'2020 Point Sources'!$I:$AM, 26, FALSE) -> Chemical Evaporation Surface Coating Operations Thinning Solvents - General General | L4: =VLOOKUP($A4,'2020 Point Sources'!$I:$AM, 31, FALSE) -> Solvent - Industrial Surface Coating & Solvent Use | M4: =IF(X4>0, CONVERT((SUMIFS('2020 Point Sources'!BH:BH, '2020 Point Sources'!I:I, A4, '2020 Point Sources'!AY:AY, 1)+SUMIFS('2020 Point Sources'!BH:BH, '2020 Point Sources'!I:I, A4, '2020 Point Sources'!AY:AY, 7)+SUMIFS('2020 Point Sources'!BH:BH, '2020 Point Sources'!I:I, A4, '2020 Point Sources'!AY:AY, 9)), "ton", "g")/1000, "n/a") -> n/a | N4: n/a | O4: =IF(Y4>0, CONVERT((SUMIFS('2020 Point Sources'!BH:BH, '2020 Point Sources'!I:I, A4, '2020 Point Sources'!AY:AY, 2)+SUMIFS('2020 Point Sources'!BH:BH, '2020 Point Sources'!I:I, A4, '2020 Point Sources'!AY:AY, 3)+SUMIFS('2020 Point Sources'!BH:BH, '2020 Point Sources'!I:I, A4, '2020 Point Sources'!AY:AY, 4)+SUMIFS('2020 Point Sources'!BH:BH, '2020 Point Sources'!I:I, A4, '2020 Point Sources'!AY:AY, 5)+SUMIFS('2020 Point Sources'!BH:BH, '2020 Point Sources'!I:I, A4, '2020 Point Sources'!AY:AY, 6)++SUMIFS('2020 Point Sources'!BH:BH, '2020 Point Sources'!I:I, A4, '2020 Point Sources'!AY:AY, 8)++SUMIFS('2020 Point Sources'!BH:BH, '2020 Point Sources'!I:I, A4, '2020 Point Sources'!AY:AY, 99)), "ton", "g")/1000, "n/a") -> 1.54E+01 | P4: 6.169E-02 | Q4: 24 | R4: =IF(AND(S4>0, T4>0), IF(S4/T4 > 365, 365, S4/T4), INDEX('OES Summary'!C:C, MATCH(B4, 'OES Summary'!A:A, 0))) -> 250 | S4: =_xlfn.MAXIFS('2020 Point Sources'!CY:CY,'2020 Point Sources'!A:A, A4) -> 0 | T4: =_xlfn.MAXIFS('2020 Point Sources'!CZ:CZ,'2020 Point Sources'!A:A, A4) -> 0 | U4: =_xlfn.MAXIFS('2020 Point Sources'!DA:DA,'2020 Point Sources'!A:A, A4) -> 0 | V4: =_xlfn.MAXIFS('2020 Point Sources'!DB:DB,'2020 Point Sources'!A:A, A4) -> 0 | W4: =COUNTIF('2020 Point Sources'!A:A, A4) -> 1 | X4: =COUNTIFS('2020 Point Sources'!AY:AY, 1,'2020 Point Sources'!A:A, A4)+COUNTIFS('2020 Point Sources'!AY:AY, 7,'2020 Point Sources'!A:A, A4)+COUNTIFS('2020 Point Sources'!AY:AY, 9,'2020 Point Sources'!A:A, A4) -> 0 | Y4: =COUNTIFS('2020 Point Sources'!AY:AY, 2,'2020 Point Sources'!A:A, A4)+COUNTIFS('2020 Point Sources'!AY:AY, 3,'2020 Point Sources'!A:A, A4)+COUNTIFS('2020 Point Sources'!AY:AY, 4,'2020 Point Sources'!A:A, A4)+COUNTIFS('2020 Point Sources'!AY:AY, 5,'2020 Point Sources'!A:A, A4)+COUNTIFS('2020 Point Sources'!AY:AY, 6,'2020 Point Sources'!A:A, A4)+COUNTIFS('2020 Point Sources'!AY:AY, 8,'2020 Point Sources'!A:A, A4)+COUNTIFS('2020 Point Sources'!AY:AY, 99,'2020 Point Sources'!A:A, A4) -> 1
A5: 3670011 | B5: =VLOOKUP($A5, '2020 Point Sources'!$I:$AO, 32, FALSE) -> Use of Paints and Coatings | C5: =VLOOKUP($A5,'2020 Point Sources'!$I:$J, 2, FALSE) -> ARI RAILCAR SERVICES LONGVIEW | D5: =VLOOKUP($A5,'2020 Point Sources'!$I:$CD, 73, FALSE) -> LONGVIEW | E5: =VLOOKUP($A5,'2020 Point Sources'!$A:$E, 5, FALSE) -> TX | F5: =VLOOKUP($A5,'2020 Point Sources'!$A:$F, 6, FALSE) -> Gregg | G5: =VLOOKUP($A5,'2020 Point Sources'!$I:$CD, 74, FALSE) -> 75601 | H5: =VLOOKUP($A5,'2020 Point Sources'!$I:$T, 12, FALSE) -> All Other Support Activities for Transportation | I5: =VLOOKUP($A5,'2020 Point Sources'!$I:$T, 11, FALSE) -> 488999 | J5: =VLOOKUP($A5,'2020 Point Sources'!$I:$AM, 25, FALSE) -> 49000399 | K5: =VLOOKUP($A5,'2020 Point Sources'!$I:$AM, 26, FALSE) -> Chemical Evaporation Organic Solvent Evaporation Rail Car Cleaning Other Not Classified | L5: =VLOOKUP($A5,'2020 Point Sources'!$I:$AM, 31, FALSE) -> Solvent - Industrial Surface Coating & Solvent Use | M5: =IF(X5>0, CONVERT((SUMIFS('2020 Point Sources'!BH:BH, '2020 Point Sources'!I:I, A5, '2020 Point Sources'!AY:AY, 1)+SUMIFS('2020 Point Sources'!BH:BH, '2020 Point Sources'!I:I, A5, '2020 Point Sources'!AY:AY, 7)+SUMIFS('2020 Point Sources'!BH:BH, '2020 Point Sources'!I:I, A5, '2020 Point Sources'!AY:AY, 9)), "ton", "g")/1000, "n/a") -> n/a | N5: n/a | O5: =IF(Y5>0, CONVERT((SUMIFS('2020 Point Sources'!BH:BH, '2020 Point Sources'!I:I, A5, '2020 Point Sources'!AY:AY, 2)+SUMIFS('2020 Point Sources'!BH:BH, '2020 Point Sources'!I:I, A5, '2020 Point Sources'!AY:AY, 3)+SUMIFS('2020 Point Sources'!BH:BH, '2020 Point Sources'!I:I, A5, '2020 Point Sources'!AY:AY, 4)+SUMIFS('2020 Point Sources'!BH:BH, '2020 Point Sources'!I:I, A5, '2020 Point Sources'!AY:AY, 5)+SUMIFS('2020 Point Sources'!BH:BH, '2020 Point Sources'!I:I, A5, '2020 Point Sources'!AY:AY, 6)++SUMIFS('2020 Point Sources'!BH:BH, '2020 Point Sources'!I:I, A5, '2020 Point Sources'!AY:AY, 8)++SUMIFS('2020 Point Sources'!BH:BH, '2020 Point Sources'!I:I, A5, '2020 Point Sources'!AY:AY, 99)), "ton", "g")/1000, "n/a") -> 1.78E+02 | P5: 4.871E-01 | Q5: 8 | R5: =IF(AND(S5>0, T5>0), IF(S5/T5 > 365, 365, S5/T5), INDEX('OES Summary'!C:C, MATCH(B5, 'OES Summary'!A:A, 0))) -> 365 | S5: =_xlfn.MAXIFS('2020 Point Sources'!CY:CY,'2020 Point Sources'!A:A, A5) -> 8760 | T5: =_xlfn.MAXIFS('2020 Point Sources'!CZ:CZ,'2020 Point Sources'!A:A, A5) -> 8 | U5: =_xlfn.MAXIFS('2020 Point Sources'!DA:DA,'2020 Point Sources'!A:A, A5) -> 6 | V5: =_xlfn.MAXIFS('2020 Point Sources'!DB:DB,'2020 Point Sources'!A:A, A5) -> 50 | W5: =COUNTIF('2020 Point Sources'!A:A, A5) -> 1 | X5: =COUNTIFS('2020 Point Sources'!AY:AY, 1,'2020 Point Sources'!A:A, A5)+COUNTIFS('2020 Point Sources'!AY:AY, 7,'2020 Point Sources'!A:A, A5)+COUNTIFS('2020 Point Sources'!AY:AY, 9,'2020 Point Sources'!A:A, A5) -> 0 | Y5: =COUNTIFS('2020 Point Sources'!AY:AY, 2,'2020 Point Sources'!A:A, A5)+COUNTIFS('2020 Point Sources'!AY:AY, 3,'2020 Point Sources'!A:A, A5)+COUNTIFS('2020 Point Sources'!AY:AY, 4,'2020 Point Sources'!A:A, A5)+COUNTIFS('2020 Point Sources'!AY:AY, 5,'2020 Point Sources'!A:A, A5)+COUNTIFS('2020 Point Sources'!AY:AY, 6,'2020 Point Sources'!A:A, A5)+COUNTIFS('2020 Point Sources'!AY:AY, 8,'2020 Point Sources'!A:A, A5)+COUNTIFS('2020 Point Sources'!AY:AY, 99,'2020 Point Sources'!A:A, A5) -> 1
A6: 19209511 | B6: =VLOOKUP($A6, '2020 Point Sources'!$I:$AO, 32, FALSE) -> Use of Paints and Coatings | C6: =VLOOKUP($A6,'2020 Point Sources'!$I:$J, 2, FALSE) -> ATK Launch Systems - Promontory | D6: =VLOOKUP($A6,'2020 Point Sources'!$I:$CD, 73, FALSE) -> Promontory | E6: =VLOOKUP($A6,'2020 Point Sources'!$A:$E, 5, FALSE) -> UT | F6: =VLOOKUP($A6,'2020 Point Sources'!$A:$F, 6, FALSE) -> Box Elder | G6: =VLOOKUP($A6,'2020 Point Sources'!$I:$CD, 74, FALSE) -> 84302 | H6: =VLOOKUP($A6,'2020 Point Sources'!$I:$T, 12, FALSE) -> Guided Missile and Space Vehicle Manufacturing | I6: =VLOOKUP($A6,'2020 Point Sources'!$I:$T, 11, FALSE) -> 336414 | J6: =VLOOKUP($A6,'2020 Point Sources'!$I:$AM, 25, FALSE) -> 40202502 | K6: =VLOOKUP($A6,'2020 Point Sources'!$I:$AM, 26, FALSE) -> Chemical Evaporation Surface Coating Operations Miscellaneous Metal Parts Cleaning/Pretreatment | L6: =VLOOKUP($A6,'2020 Point Sources'!$I:$AM, 31, FALSE) -> Solvent - Industrial Surface Coating & Solvent Use | M6: =IF(X6>0, CONVERT((SUMIFS('2020 Point Sources'!BH:BH, '2020 Point Sources'!I:I, A6, '2020 Point Sources'!AY:AY, 1)+SUMIFS('2020 Point Sources'!BH:BH, '2020 Point Sources'!I:I, A6, '2020 Point Sources'!AY:AY, 7)+SUMIFS('2020 Point Sources'!BH:BH, '2020 Point Sources'!I:I, A6, '2020 Point Sources'!AY:AY, 9)), "ton", "g")/1000, "n/a") -> 9.07E-02 | N6: 3.63E-04 | O6: =IF(Y6>0, CONVERT((SUMIFS('2020 Point Sources'!BH:BH, '2020 Point Sources'!I:I, A6, '2020 Point Sources'!AY:AY, 2)+SUMIFS('2020 Point Sources'!BH:BH, '2020 Point Sources'!I:I, A6, '2020 Point Sources'!AY:AY, 3)+SUMIFS('2020 Point Sources'!BH:BH, '2020 Point Sources'!I:I, A6, '2020 Point Sources'!AY:AY, 4)+SUMIFS('2020 Point Sources'!BH:BH, '2020 Point Sources'!I:I, A6, '2020 Point Sources'!AY:AY, 5)+SUMIFS('2020 Point Sources'!BH:BH, '2020 Point Sources'!I:I, A6, '2020 Point Sources'!AY:AY, 6)++SUMIFS('2020 Point Sources'!BH:BH, '2020 Point Sources'!I:I, A6, '2020 Point Sources'!AY:AY, 8)++SUMIFS('2020 Point Sources'!BH:BH, '2020 Point Sources'!I:I, A6, '2020 Point Sources'!AY:AY, 99)), "ton", "g")/1000, "n/a") -> n/a | P6: n/a | Q6: 8 | R6: =IF(AND(S6>0, T6>0), IF(S6/T6 > 365, 365, S6/T6), INDEX('OES Summary'!C:C, MATCH(B6, 'OES Summary'!A:A, 0))) -> 250 | S6: =_xlfn.MAXIFS('2020 Point Sources'!CY:CY,'2020 Point Sources'!A:A, A6) -> 2000 | T6: =_xlfn.MAXIFS('2020 Point Sources'!CZ:CZ,'2020 Point Sources'!A:A, A6) -> 8 | U6: =_xlfn.MAXIFS('2020 Point Sources'!DA:DA,'2020 Point Sources'!A:A, A6) -> 5 | V6: =_xlfn.MAXIFS('2020 Point Sources'!DB:DB,'2020 Point Sources'!A:A, A6) -> 50 | W6: =COUNTIF('2020 Point Sources'!A:A, A6) -> 1 | X6: =COUNTIFS('2020 Point Sources'!AY:AY, 1,'2020 Point Sources'!A:A, A6)+COUNTIFS('2020 Point Sources'!AY:AY, 7,'2020 Point Sources'!A:A, A6)+COUNTIFS('2020 Point Sources'!AY:AY, 9,'2020 Point Sources'!A:A, A6) -> 1 | Y6: =COUNTIFS('2020 Point Sources'!AY:AY, 2,'2020 Point Sources'!A:A, A6)+COUNTIFS('2020 Point Sources'!AY:AY, 3,'2020 Point Sources'!A:A, A6)+COUNTIFS('2020 Point Sources'!AY:AY, 4,'2020 Point Sources'!A:A, A6)+COUNTIFS('2020 Point Sources'!AY:AY, 5,'2020 Point Sources'!A:A, A6)+COUNTIFS('2020 Point Sources'!AY:AY, 6,'2020 Point Sources'!A:A, A6)+COUNTIFS('2020 Point Sources'!AY:AY, 8,'2020 Point Sources'!A:A, A6)+COUNTIFS('2020 Point Sources'!AY:AY, 99,'2020 Point Sources'!A:A, A6) -> 0
A7: 18897811 | B7: =VLOOKUP($A7, '2020 Point Sources'!$I:$AO, 32, FALSE) -> Use of Paints and Coatings | C7: =VLOOKUP($A7,'2020 Point Sources'!$I:$J, 2, FALSE) -> ENTERPRISE TRANSPORTATION BAYTOWN FACILITY | D7: =VLOOKUP($A7,'2020 Point Sources'!$I:$CD, 73, FALSE) -> BAYTOWN | E7: =VLOOKUP($A7,'2020 Point Sources'!$A:$E, 5, FALSE) -> TX | F7: =VLOOKUP($A7,'2020 Point Sources'!$A:$F, 6, FALSE) -> Harris | G7: =VLOOKUP($A7,'2020 Point Sources'!$I:$CD, 74, FALSE) -> 77520 | H7: =VLOOKUP($A7,'2020 Point Sources'!$I:$T, 12, FALSE) -> Other Support Activities for Road Transportation | I7: =VLOOKUP($A7,'2020 Point Sources'!$I:$T, 11, FALSE) -> 488490 | J7: =VLOOKUP($A7,'2020 Point Sources'!$I:$AM, 25, FALSE) -> 49000499 | K7: =VLOOKUP($A7,'2020 Point Sources'!$I:$AM, 26, FALSE) -> Chemical Evaporation Organic Solvent Evaporation Tank Truck Cleaning Other Not Classified | L7: =VLOOKUP($A7,'2020 Point Sources'!$I:$AM, 31, FALSE) -> Solvent - Industrial Surface Coating & Solvent Use | M7: =IF(X7>0, CONVERT((SUMIFS('2020 Point Sources'!BH:BH, '2020 Point Sources'!I:I, A7, '2020 Point Sources'!AY:AY, 1)+SUMIFS('2020 Point Sources'!BH:BH, '2020 Point Sources'!I:I, A7, '2020 Point Sources'!AY:AY, 7)+SUMIFS('2020 Point Sources'!BH:BH, '2020 Point Sources'!I:I, A7, '2020 Point Sources'!AY:AY, 9)), "ton", "g")/1000, "n/a") -> n/a | N7: n/a | O7: =IF(Y7>0, CONVERT((SUMIFS('2020 Point Sources'!BH:BH, '2020 Point Sources'!I:I, A7, '2020 Point Sources'!AY:AY, 2)+SUMIFS('2020 Point Sources'!BH:BH, '2020 Point Sources'!I:I, A7, '2020 Point Sources'!AY:AY, 3)+SUMIFS('2020 Point Sources'!BH:BH, '2020 Point Sources'!I:I, A7, '2020 Point Sources'!AY:AY, 4)+SUMIFS('2020 Point Sources'!BH:BH, '2020 Point Sources'!I:I, A7, '2020 Point Sources'!AY:AY, 5)+SUMIFS('2020 Point Sources'!BH:BH, '2020 Point Sources'!I:I, A7, '2020 Point Sources'!AY:AY, 6)++SUMIFS('2020 Point Sources'!BH:BH, '2020 Point Sources'!I:I, A7, '2020 Point Sources'!AY:AY, 8)++SUMIFS('2020 Point Sources'!BH:BH, '2020 Point Sources'!I:I, A7, '2020 Point Sources'!AY:AY, 99)), "ton", "g")/1000, "n/a") -> 4.27E+02 | P7: 1.170E+00 | Q7: 24 | R7: =IF(AND(S7>0, T7>0), IF(S7/T7 > 365, 365, S7/T7), INDEX('OES Summary'!C:C, MATCH(B7, 'OES Summary'!A:A, 0))) -> 365 | S7: =_xlfn.MAXIFS('2020 Point Sources'!CY:CY,'2020 Point Sources'!A:A, A7) -> 8760 | T7: =_xlfn.MAXIFS('2020 Point Sources'!CZ:CZ,'2020 Point Sources'!A:A, A7) -> 24 | U7: =_xlfn.MAXIFS('2020 Point Sources'!DA:DA,'2020 Point Sources'!A:A, A7) -> 7 | V7: =_xlfn.MAXIFS('2020 Point Sources'!DB:DB,'2020 Point Sources'!A:A, A7) -> 52 | W7: =COUNTIF('2020 Point Sources'!A:A, A7) -> 1 | X7: =COUNTIFS('2020 Point Sources'!AY:AY, 1,'2020 Point Sources'!A:A, A7)+COUNTIFS('2020 Point Sources'!AY:AY, 7,'2020 Point Sources'!A:A, A7)+COUNTIFS('2020 Point Sources'!AY:AY, 9,'2020 Point Sources'!A:A, A7) -> 0 | Y7: =COUNTIFS('2020 Point Sources'!AY:AY, 2,'2020 Point Sources'!A:A, A7)+COUNTIFS('2020 Point Sources'!AY:AY, 3,'2020 Point Sources'!A:A, A7)+COUNTIFS('2020 Point Sources'!AY:AY, 4,'2020 Point Sources'!A:A, A7)+COUNTIFS('2020 Point Sources'!AY:AY, 5,'2020 Point Sources'!A:A, A7)+COUNTIFS('2020 Point Sources'!AY:AY, 6,'2020 Point Sources'!A:A, A7)+COUNTIFS('2020 Point Sources'!AY:AY, 8,'2020 Point Sources'!A:A, A7)+COUNTIFS('2020 Point Sources'!AY:AY, 99,'2020 Point Sources'!A:A, A7) -> 1
A8: 5698911 | B8: =VLOOKUP($A8, '2020 Point Sources'!$I:$AO, 32, FALSE) -> Use of Paints and Coatings | C8: =VLOOKUP($A8,'2020 Point Sources'!$I:$J, 2, FALSE) -> Federal-Mogul Motorparts | D8: =VLOOKUP($A8,'2020 Point Sources'!$I:$CD, 73, FALSE) -> SMITHVILLE | E8: =VLOOKUP($A8,'2020 Point Sources'!$A:$E, 5, FALSE) -> TN | F8: =VLOOKUP($A8,'2020 Point Sources'!$A:$F, 6, FALSE) -> DeKalb | G8: =VLOOKUP($A8,'2020 Point Sources'!$I:$CD, 74, FALSE) -> 37166-2810 | H8: =VLOOKUP($A8,'2020 Point Sources'!$I:$T, 12, FALSE) -> Other Motor Vehicle Parts ManufacturingT | I8: =VLOOKUP($A8,'2020 Point Sources'!$I:$T, 11, FALSE) -> 33639 | J8: =VLOOKUP($A8,'2020 Point Sources'!$I:$AM, 25, FALSE) -> 39999999 | K8: =VLOOKUP($A8,'2020 Point Sources'!$I:$AM, 26, FALSE) -> Industrial Processes Miscellaneous Manufacturing Industries Miscellaneous Industrial Processes Other Not Elsewhere Classified | L8: =VLOOKUP($A8,'2020 Point Sources'!$I:$AM, 31, FALSE) -> Industrial Processes - NEC | M8: =IF(X8>0, CONVERT((SUMIFS('2020 Point Sources'!BH:BH, '2020 Point Sources'!I:I, A8, '2020 Point Sources'!AY:AY, 1)+SUMIFS('2020 Point Sources'!BH:BH, '2020 Point Sources'!I:I, A8, '2020 Point Sources'!AY:AY, 7)+SUMIFS('2020 Point Sources'!BH:BH, '2020 Point Sources'!I:I, A8, '2020 Point Sources'!AY:AY, 9)), "ton", "g")/1000, "n/a") -> 3.31E+00 | N8: 1.33E-02 | O8: =IF(Y8>0, CONVERT((SUMIFS('2020 Point Sources'!BH:BH, '2020 Point Sources'!I:I, A8, '2020 Point Sources'!AY:AY, 2)+SUMIFS('2020 Point Sources'!BH:BH, '2020 Point Sources'!I:I, A8, '2020 Point Sources'!AY:AY, 3)+SUMIFS('2020 Point Sources'!BH:BH, '2020 Point Sources'!I:I, A8, '2020 Point Sources'!AY:AY, 4)+SUMIFS('2020 Point Sources'!BH:BH, '2020 Point Sources'!I:I, A8, '2020 Point Sources'!AY:AY, 5)+SUMIFS('2020 Point Sources'!BH:BH, '2020 Point Sources'!I:I, A8, '2020 Point Sources'!AY:AY, 6)++SUMIFS('2020 Point Sources'!BH:BH, '2020 Point Sources'!I:I, A8, '2020 Point Sources'!AY:AY, 8)++SUMIFS('2020 Point Sources'!BH:BH, '2020 Point Sources'!I:I, A8, '2020 Point Sources'!AY:AY, 99)), "ton", "g")/1000, "n/a") -> 1.37E+01 | P8: 5.487E-02 | Q8: 24 | R8: =IF(AND(S8>0, T8>0), IF(S8/T8 > 365, 365, S8/T8), INDEX('OES Summary'!C:C, MATCH(B8, 'OES Summary'!A:A, 0))) -> 250 | S8: =_xlfn.MAXIFS('2020 Point Sources'!CY:CY,'2020 Point Sources'!A:A, A8) -> 0 | T8: =_xlfn.MAXIFS('2020 Point Sources'!CZ:CZ,'2020 Point Sources'!A:A, A8) -> 0 | U8: =_xlfn.MAXIFS('2020 Point Sources'!DA:DA,'2020 Point Sources'!A:A, A8) -> 0 | V8: =_xlfn.MAXIFS('2020 Point Sources'!DB:DB,'2020 Point Sources'!A:A, A8) -> 0 | W8: =COUNTIF('2020 Point Sources'!A:A, A8) -> 15 | X8: =COUNTIFS('2020 Point Sources'!AY:AY, 1,'2020 Point Sources'!A:A, A8)+COUNTIFS('2020 Point Sources'!AY:AY, 7,'2020 Point Sources'!A:A, A8)+COUNTIFS('2020 Point Sources'!AY:AY, 9,'2020 Point Sources'!A:A, A8) -> 4 | Y8: =COUNTIFS('2020 Point Sources'!AY:AY, 2,'2020 Point Sources'!A:A, A8)+COUNTIFS('2020 Point Sources'!AY:AY, 3,'2020 Point Sources'!A:A, A8)+COUNTIFS('2020 Point Sources'!AY:AY, 4,'2020 Point Sources'!A:A, A8)+COUNTIFS('2020 Point Sources'!AY:AY, 5,'2020 Point Sources'!A:A, A8)+COUNTIFS('2020 Point Sources'!AY:AY, 6,'2020 Point Sources'!A:A, A8)+COUNTIFS('2020 Point Sources'!AY:AY, 8,'2020 Point Sources'!A:A, A8)+COUNTIFS('2020 Point Sources'!AY:AY, 99,'2020 Point Sources'!A:A, A8) -> 11
A9: 5616211 | B9: =VLOOKUP($A9, '2020 Point Sources'!$I:$AO, 32, FALSE) -> Use of Paints and Coatings | C9: =VLOOKUP($A9,'2020 Point Sources'!$I:$J, 2, FALSE) -> FORT HOOD | D9: =VLOOKUP($A9,'2020 Point Sources'!$I:$CD, 73, FALSE) -> FORT HOOD | E9: =VLOOKUP($A9,'2020 Point Sources'!$A:$E, 5, FALSE) -> TX | F9: =VLOOKUP($A9,'2020 Point Sources'!$A:$F, 6, FALSE) -> Bell | G9: =VLOOKUP($A9,'2020 Point Sources'!$I:$CD, 74, FALSE) -> 76544 | H9: =VLOOKUP($A9,'2020 Point Sources'!$I:$T, 12, FALSE) -> National Security | I9: =VLOOKUP($A9,'2020 Point Sources'!$I:$T, 11, FALSE) -> 928110 | J9: =VLOOKUP($A9,'2020 Point Sources'!$I:$AM, 25, FALSE) -> 40200101 | K9: =VLOOKUP($A9,'2020 Point Sources'!$I:$AM, 26, FALSE) -> Chemical Evaporation Surface Coating Operations Surface Coating Application - General Paint: Solvent-base | L9: =VLOOKUP($A9,'2020 Point Sources'!$I:$AM, 31, FALSE) -> Solvent - Industrial Surface Coating & Solvent Use | M9: =IF(X9>0, CONVERT((SUMIFS('2020 Point Sources'!BH:BH, '2020 Point Sources'!I:I, A9, '2020 Point Sources'!AY:AY, 1)+SUMIFS('2020 Point Sources'!BH:BH, '2020 Point Sources'!I:I, A9, '2020 Point Sources'!AY:AY, 7)+SUMIFS('2020 Point Sources'!BH:BH, '2020 Point Sources'!I:I, A9, '2020 Point Sources'!AY:AY, 9)), "ton", "g")/1000, "n/a") -> 6.35E-01 | N9: 1.74E-03 | O9: =IF(Y9>0, CONVERT((SUMIFS('2020 Point Sources'!BH:BH, '2020 Point Sources'!I:I, A9, '2020 Point Sources'!AY:AY, 2)+SUMIFS('2020 Point Sources'!BH:BH, '2020 Point Sources'!I:I, A9, '2020 Point Sources'!AY:AY, 3)+SUMIFS('2020 Point Sources'!BH:BH, '2020 Point Sources'!I:I, A9, '2020 Point Sources'!AY:AY, 4)+SUMIFS('2020 Point Sources'!BH:BH, '2020 Point Sources'!I:I, A9, '2020 Point Sources'!AY:AY, 5)+SUMIFS('2020 Point Sources'!BH:BH, '2020 Point Sources'!I:I, A9, '2020 Point Sources'!AY:AY, 6)++SUMIFS('2020 Point Sources'!BH:BH, '2020 Point Sources'!I:I, A9, '2020 Point Sources'!AY:AY, 8)++SUMIFS('2020 Point Sources'!BH:BH, '2020 Point Sources'!I:I, A9, '2020 Point Sources'!AY:AY, 99)), "ton", "g")/1000, "n/a") -> n/a | P9: n/a | Q9: 24 | R9: =IF(AND(S9>0, T9>0), IF(S9/T9 > 365, 365, S9/T9), INDEX('OES Summary'!C:C, MATCH(B9, 'OES Summary'!A:A, 0))) -> 365 | S9: =_xlfn.MAXIFS('2020 Point Sources'!CY:CY,'2020 Point Sources'!A:A, A9) -> 8760 | T9: =_xlfn.MAXIFS('2020 Point Sources'!CZ:CZ,'2020 Point Sources'!A:A, A9) -> 24 | U9: =_xlfn.MAXIFS('2020 Point Sources'!DA:DA,'2020 Point Sources'!A:A, A9) -> 7 | V9: =_xlfn.MAXIFS('2020 Point Sources'!DB:DB,'2020 Point Sources'!A:A, A9) -> 52 | W9: =COUNTIF('2020 Point Sources'!A:A, A9) -> 2 | X9: =COUNTIFS('2020 Point Sources'!AY:AY, 1,'2020 Point Sources'!A:A, A9)+COUNTIFS('2020 Point Sources'!AY:AY, 7,'2020 Point Sources'!A:A, A9)+COUNTIFS('2020 Point Sources'!AY:AY, 9,'2020 Point Sources'!A:A, A9) -> 2 | Y9: =COUNTIFS('2020 Point Sources'!AY:AY, 2,'2020 Point Sources'!A:A, A9)+COUNTIFS('2020 Point Sources'!AY:AY, 3,'2020 Point Sources'!A:A, A9)+COUNTIFS('2020 Point Sources'!AY:AY, 4,'2020 Point Sources'!A:A, A9)+COUNTIFS('2020 Point Sources'!AY:AY, 5,'2020 Point Sources'!A:A, A9)+COUNTIFS('2020 Point Sources'!AY:AY, 6,'2020 Point Sources'!A:A, A9)+COUNTIFS('2020 Point Sources'!AY:AY, 8,'2020 Point Sources'!A:A, A9)+COUNTIFS('2020 Point Sources'!AY:AY, 99,'2020 Point Sources'!A:A, A9) -> 0
A10: 18782011 | B10: =VLOOKUP($A10, '2020 Point Sources'!$I:$AO, 32, FALSE) -> Use of Paints and Coatings | C10: =VLOOKUP($A10,'2020 Point Sources'!$I:$J, 2, FALSE) -> G A AERONAUTICAL SYS - ADELANTO YUCCA | D10: =VLOOKUP($A10,'2020 Point Sources'!$I:$CD, 73, FALSE) -> ADELANTO | E10: =VLOOKUP($A10,'2020 Point Sources'!$A:$E, 5, FALSE) -> CA | F10: =VLOOKUP($A10,'2020 Point Sources'!$A:$F, 6, FALSE) -> San Bernardino | G10: =VLOOKUP($A10,'2020 Point Sources'!$I:$CD, 74, FALSE) -> 92301 | H10: =VLOOKUP($A10,'2020 Point Sources'!$I:$T, 12, FALSE) -> Aircraft Manufacturing | I10: =VLOOKUP($A10,'2020 Point Sources'!$I:$T, 11, FALSE) -> 336411 | J10: =VLOOKUP($A10,'2020 Point Sources'!$I:$AM, 25, FALSE) -> 40200710 | K10: =VLOOKUP($A10,'2020 Point Sources'!$I:$AM, 26, FALSE) -> Chemical Evaporation Surface Coating Operations Surface Coating Application - General Adhesive: General | L10: =VLOOKUP($A10,'2020 Point Sources'!$I:$AM, 31, FALSE) -> Solvent - Industrial Surface Coating & Solvent Use | M10: =IF(X10>0, CONVERT((SUMIFS('2020 Point Sources'!BH:BH, '2020 Point Sources'!I:I, A10, '2020 Point Sources'!AY:AY, 1)+SUMIFS('2020 Point Sources'!BH:BH, '2020 Point Sources'!I:I, A10, '2020 Point Sources'!AY:AY, 7)+SUMIFS('2020 Point Sources'!BH:BH, '2020 Point Sources'!I:I, A10, '2020 Point Sources'!AY:AY, 9)), "ton", "g")/1000, "n/a") -> n/a | N10: n/a | O10: =IF(Y10>0, CONVERT((SUMIFS('2020 Point Sources'!BH:BH, '2020 Point Sources'!I:I, A10, '2020 Point Sources'!AY:AY, 2)+SUMIFS('2020 Point Sources'!BH:BH, '2020 Point Sources'!I:I, A10, '2020 Point Sources'!AY:AY, 3)+SUMIFS('2020 Point Sources'!BH:BH, '2020 Point Sources'!I:I, A10, '2020 Point Sources'!AY:AY, 4)+SUMIFS('2020 Point Sources'!BH:BH, '2020 Point Sources'!I:I, A10, '2020 Point Sources'!AY:AY, 5)+SUMIFS('2020 Point Sources'!BH:BH, '2020 Point Sources'!I:I, A10, '2020 Point Sources'!AY:AY, 6)++SUMIFS('2020 Point Sources'!BH:BH, '2020 Point Sources'!I:I, A10, '2020 Point Sources'!AY:AY, 8)++SUMIFS('2020 Point Sources'!BH:BH, '2020 Point Sources'!I:I, A10, '2020 Point Sources'!AY:AY, 99)), "ton", "g")/1000, "n/a") -> 2.03E-01 | P10: 5.571E-04 | Q10: 24 | R10: =IF(AND(S10>0, T10>0), IF(S10/T10 > 365, 365, S10/T10), INDEX('OES Summary'!C:C, MATCH(B10, 'OES Summary'!A:A, 0))) -> 364 | S10: =_xlfn.MAXIFS('2020 Point Sources'!CY:CY,'2020 Point Sources'!A:A, A10) -> 8736 | T10: =_xlfn.MAXIFS('2020 Point Sources'!CZ:CZ,'2020 Point Sources'!A:A, A10) -> 24 | U10: =_xlfn.MAXIFS('2020 Point Sources'!DA:DA,'2020 Point Sources'!A:A, A10) -> 7 | V10: =_xlfn.MAXIFS('2020 Point Sources'!DB:DB,'2020 Point Sources'!A:A, A10) -> 52 | W10: =COUNTIF('2020 Point Sources'!A:A, A10) -> 3 | X10: =COUNTIFS('2020 Point Sources'!AY:AY, 1,'2020 Point Sources'!A:A, A10)+COUNTIFS('2020 Point Sources'!AY:AY, 7,'2020 Point Sources'!A:A, A10)+COUNTIFS('2020 Point Sources'!AY:AY, 9,'2020 Point Sources'!A:A, A10) -> 0 | Y10: =COUNTIFS('2020 Point Sources'!AY:AY, 2,'2020 Point Sources'!A:A, A10)+COUNTIFS('2020 Point Sources'!AY:AY, 3,'2020 Point Sources'!A:A, A10)+COUNTIFS('2020 Point Sources'!AY:AY, 4,'2020 Point Sources'!A:A, A10)+COUNTIFS('2020 Point Sources'!AY:AY, 5,'2020 Point Sources'!A:A, A10)+COUNTIFS('2020 Point Sources'!AY:AY, 6,'2020 Point Sources'!A:A, A10)+COUNTIFS('2020 Point Sources'!AY:AY, 8,'2020 Point Sources'!A:A, A10)+COUNTIFS('2020 Point Sources'!AY:AY, 99,'2020 Point Sources'!A:A, A10) -> 3
A11: 7301511 | B11: =VLOOKUP($A11, '2020 Point Sources'!$I:$AO, 32, FALSE) -> Use of Paints and Coatings | C11: =VLOOKUP($A11,'2020 Point Sources'!$I:$J, 2, FALSE) -> Hill Air Force Base- Main Base | D11: =VLOOKUP($A11,'2020 Point Sources'!$I:$CD, 73, FALSE) -> Hill Air Force Base | E11: =VLOOKUP($A11,'2020 Point Sources'!$A:$E, 5, FALSE) -> UT | F11: =VLOOKUP($A11,'2020 Point Sources'!$A:$F, 6, FALSE) -> Davis | G11: =VLOOKUP($A11,'2020 Point Sources'!$I:$CD, 74, FALSE) -> 84056-5003 | H11: =VLOOKUP($A11,'2020 Point Sources'!$I:$T, 12, FALSE) -> National Security | I11: =VLOOKUP($A11,'2020 Point Sources'!$I:$T, 11, FALSE) -> 928110 | J11: =VLOOKUP($A11,'2020 Point Sources'!$I:$AM, 25, FALSE) -> 40299998 | K11: =VLOOKUP($A11,'2020 Point Sources'!$I:$AM, 26, FALSE) -> Chemical Evaporation Surface Coating Operations Miscellaneous Miscellaneous | L11: =VLOOKUP($A11,'2020 Point Sources'!$I:$AM, 31, FALSE) -> Solvent - Industrial Surface Coating & Solvent Use | M11: =IF(X11>0, CONVERT((SUMIFS('2020 Point Sources'!BH:BH, '2020 Point Sources'!I:I, A11, '2020 Point Sources'!AY:AY, 1)+SUMIFS('2020 Point Sources'!BH:BH, '2020 Point Sources'!I:I, A11, '2020 Point Sources'!AY:AY, 7)+SUMIFS('2020 Point Sources'!BH:BH, '2020 Point Sources'!I:I, A11, '2020 Point Sources'!AY:AY, 9)), "ton", "g")/1000, "n/a") -> 2.81E+01 | N11: 1.08E-01 | O11: =IF(Y11>0, CONVERT((SUMIFS('2020 Point Sources'!BH:BH, '2020 Point Sources'!I:I, A11, '2020 Point Sources'!AY:AY, 2)+SUMIFS('2020 Point Sources'!BH:BH, '2020 Point Sources'!I:I, A11, '2020 Point Sources'!AY:AY, 3)+SUMIFS('2020 Point Sources'!BH:BH, '2020 Point Sources'!I:I, A11, '2020 Point Sources'!AY:AY, 4)+SUMIFS('2020 Point Sources'!BH:BH, '2020 Point Sources'!I:I, A11, '2020 Point Sources'!AY:AY, 5)+SUMIFS('2020 Point Sources'!BH:BH, '2020 Point Sources'!I:I, A11, '2020 Point Sources'!AY:AY, 6)++SUMIFS('2020 Point Sources'!BH:BH, '2020 Point Sources'!I:I, A11, '2020 Point Sources'!AY:AY, 8)++SUMIFS('2020 Point Sources'!BH:BH, '2020 Point Sources'!I:I, A11, '2020 Point Sources'!AY:AY, 99)), "ton", "g")/1000, "n/a") -> n/a | P11: n/a | Q11: 8 | R11: =IF(AND(S11>0, T11>0), IF(S11/T11 > 365, 365, S11/T11), INDEX('OES Summary'!C:C, MATCH(B11, 'OES Summary'!A:A, 0))) -> 260 | S11: =_xlfn.MAXIFS('2020 Point Sources'!CY:CY,'2020 Point Sources'!A:A, A11) -> 2080 | T11: =_xlfn.MAXIFS('2020 Point Sources'!CZ:CZ,'2020 Point Sources'!A:A, A11) -> 8 | U11: =_xlfn.MAXIFS('2020 Point Sources'!DA:DA,'2020 Point Sources'!A:A, A11) -> 5 | V11: =_xlfn.MAXIFS('2020 Point Sources'!DB:DB,'2020 Point Sources'!A:A, A11) -> 52 | W11: =COUNTIF('2020 Point Sources'!A:A, A11) -> 1 | X11: =COUNTIFS('2020 Point Sources'!AY:AY, 1,'2020 Point Sources'!A:A, A11)+COUNTIFS('2020 Point Sources'!AY:AY, 7,'2020 Point Sources'!A:A, A11)+COUNTIFS('2020 Point Sources'!AY:AY, 9,'2020 Point Sources'!A:A, A11) -> 1 | Y11: =COUNTIFS('2020 Point Sources'!AY:AY, 2,'2020 Point Sources'!A:A, A11)+COUNTIFS('2020 Point Sources'!AY:AY, 3,'2020 Point Sources'!A:A, A11)+COUNTIFS('2020 Point Sources'!AY:AY, 4,'2020 Point Sources'!A:A, A11)+COUNTIFS('2020 Point Sources'!AY:AY, 5,'2020 Point Sources'!A:A, A11)+COUNTIFS('2020 Point Sources'!AY:AY, 6,'2020 Point Sources'!A:A, A11)+COUNTIFS('2020 Point Sources'!AY:AY, 8,'2020 Point Sources'!A:A, A11)+COUNTIFS('2020 Point Sources'!AY:AY, 99,'2020 Point Sources'!A:A, A11) -> 0
A12: 6252911 | B12: =VLOOKUP($A12, '2020 Point Sources'!$I:$AO, 32, FALSE) -> Use of Paints and Coatings | C12: =VLOOKUP($A12,'2020 Point Sources'!$I:$J, 2, FALSE) -> INTERNATIONAL CONVERTER | D12: =VLOOKUP($A12,'2020 Point Sources'!$I:$CD, 73, FALSE) -> IUKA | E12: =VLOOKUP($A12,'2020 Point Sources'!$A:$E, 5, FALSE) -> MS | F12: =VLOOKUP($A12,'2020 Point Sources'!$A:$F, 6, FALSE) -> Tishomingo | G12: =VLOOKUP($A12,'2020 Point Sources'!$I:$CD, 74, FALSE) -> 38852 | H12: =VLOOKUP($A12,'2020 Point Sources'!$I:$T, 12, FALSE) -> Paper Bag and Coated and Treated Paper Manufacturing | I12: =VLOOKUP($A12,'2020 Point Sources'!$I:$T, 11, FALSE) -> 322220 | J12: =VLOOKUP($A12,'2020 Point Sources'!$I:$AM, 25, FALSE) -> 40201301 | K12: =VLOOKUP($A12,'2020 Point Sources'!$I:$AM, 26, FALSE) -> Chemical Evaporation Surface Coating Operations Paper Coating Coating Operation | L12: =VLOOKUP($A12,'2020 Point Sources'!$I:$AM, 31, FALSE) -> Solvent - Industrial Surface Coating & Solvent Use | M12: =IF(X12>0, CONVERT((SUMIFS('2020 Point Sources'!BH:BH, '2020 Point Sources'!I:I, A12, '2020 Point Sources'!AY:AY, 1)+SUMIFS('2020 Point Sources'!BH:BH, '2020 Point Sources'!I:I, A12, '2020 Point Sources'!AY:AY, 7)+SUMIFS('2020 Point Sources'!BH:BH, '2020 Point Sources'!I:I, A12, '2020 Point Sources'!AY:AY, 9)), "ton", "g")/1000, "n/a") -> 3.97E+01 | N12: 1.59E-01 | O12: =IF(Y12>0, CONVERT((SUMIFS('2020 Point Sources'!BH:BH, '2020 Point Sources'!I:I, A12, '2020 Point Sources'!AY:AY, 2)+SUMIFS('2020 Point Sources'!BH:BH, '2020 Point Sources'!I:I, A12, '2020 Point Sources'!AY:AY, 3)+SUMIFS('2020 Point Sources'!BH:BH, '2020 Point Sources'!I:I, A12, '2020 Point Sources'!AY:AY, 4)+SUMIFS('2020 Point Sources'!BH:BH, '2020 Point Sources'!I:I, A12, '2020 Point Sources'!AY:AY, 5)+SUMIFS('2020 Point Sources'!BH:BH, '2020 Point Sources'!I:I, A12, '2020 Point Sources'!AY:AY, 6)++SUMIFS('2020 Point Sources'!BH:BH, '2020 Point Sources'!I:I, A12, '2020 Point Sources'!AY:AY, 8)++SUMIFS('2020 Point Sources'!BH:BH, '2020 Point Sources'!I:I, A12, '2020 Point Sources'!AY:AY, 99)), "ton", "g")/1000, "n/a") -> 5.02E+01 | P12: 2.007E-01 | Q12: 24 | R12: =IF(AND(S12>0, T12>0), IF(S12/T12 > 365, 365, S12/T12), INDEX('OES Summary'!C:C, MATCH(B12, 'OES Summary'!A:A, 0))) -> 250 | S12: =_xlfn.MAXIFS('2020 Point Sources'!CY:CY,'2020 Point Sources'!A:A, A12) -> 8784 | T12: =_xlfn.MAXIFS('2020 Point Sources'!CZ:CZ,'2020 Point Sources'!A:A, A12) -> 0 | U12: =_xlfn.MAXIFS('2020 Point Sources'!DA:DA,'2020 Point Sources'!A:A, A12) -> 0 | V12: =_xlfn.MAXIFS('2020 Point Sources'!DB:DB,'2020 Point Sources'!A:A, A12) -> 0 | W12: =COUNTIF('2020 Point Sources'!A:A, A12) -> 4 | X12: =COUNTIFS('2020 Point Sources'!AY:AY, 1,'2020 Point Sources'!A:A, A12)+COUNTIFS('2020 Point Sources'!AY:AY, 7,'2020 Point Sources'!A:A, A12)+COUNTIFS('2020 Point Sources'!AY:AY, 9,'2020 Point Sources'!A:A, A12) -> 1 | Y12: =COUNTIFS('2020 Point Sources'!AY:AY, 2,'2020 Point Sources'!A:A, A12)+COUNTIFS('2020 Point Sources'!AY:AY, 3,'2020 Point Sources'!A:A, A12)+COUNTIFS('2020 Point Sources'!AY:AY, 4,'2020 Point Sources'!A:A, A12)+COUNTIFS('2020 Point Sources'!AY:AY, 5,'2020 Point Sources'!A:A, A12)+COUNTIFS('2020 Point Sources'!AY:AY, 6,'2020 Point Sources'!A:A, A12)+COUNTIFS('2020 Point Sources'!AY:AY, 8,'2020 Point Sources'!A:A, A12)+COUNTIFS('2020 Point Sources'!AY:AY, 99,'2020 Point Sources'!A:A, A12) -> 3
A13: 5163911 | B13: =VLOOKUP($A13, '2020 Point Sources'!$I:$AO, 32, FALSE) -> Use of Paints and Coatings | C13: =VLOOKUP($A13,'2020 Point Sources'!$I:$J, 2, FALSE) -> Quality Manufacturing Inc | D13: =VLOOKUP($A13,'2020 Point Sources'!$I:$CD, 73, FALSE) -> Winchester | E13: =VLOOKUP($A13,'2020 Point Sources'!$A:$E, 5, FALSE) -> KY | F13: =VLOOKUP($A13,'2020 Point Sources'!$A:$F, 6, FALSE) -> Clark | G13: =VLOOKUP($A13,'2020 Point Sources'!$I:$CD, 74, FALSE) -> 40391 | H13: =VLOOKUP($A13,'2020 Point Sources'!$I:$T, 12, FALSE) -> Commercial and Service Industry Machinery Manufacturing | I13: =VLOOKUP($A13,'2020 Point Sources'!$I:$T, 11, FALSE) -> 333310 | J13: =VLOOKUP($A13,'2020 Point Sources'!$I:$AM, 25, FALSE) -> 40200801 | K13: =VLOOKUP($A13,'2020 Point Sources'!$I:$AM, 26, FALSE) -> Chemical Evaporation Surface Coating Operations Coating Oven - General General | L13: =VLOOKUP($A13,'2020 Point Sources'!$I:$AM, 31, FALSE) -> Solvent - Industrial Surface Coating & Solvent Use | M13: =IF(X13>0, CONVERT((SUMIFS('2020 Point Sources'!BH:BH, '2020 Point Sources'!I:I, A13, '2020 Point Sources'!AY:AY, 1)+SUMIFS('2020 Point Sources'!BH:BH, '2020 Point Sources'!I:I, A13, '2020 Point Sources'!AY:AY, 7)+SUMIFS('2020 Point Sources'!BH:BH, '2020 Point Sources'!I:I, A13, '2020 Point Sources'!AY:AY, 9)), "ton", "g")/1000, "n/a") -> n/a | N13: n/a | O13: =IF(Y13>0, CONVERT((SUMIFS('2020 Point Sources'!BH:BH, '2020 Point Sources'!I:I, A13, '2020 Point Sources'!AY:AY, 2)+SUMIFS('2020 Point Sources'!BH:BH, '2020 Point Sources'!I:I, A13, '2020 Point Sources'!AY:AY, 3)+SUMIFS('2020 Point Sources'!BH:BH, '2020 Point Sources'!I:I, A13, '2020 Point Sources'!AY:AY, 4)+SUMIFS('2020 Point Sources'!BH:BH, '2020 Point Sources'!I:I, A13, '2020 Point Sources'!AY:AY, 5)+SUMIFS('2020 Point Sources'!BH:BH, '2020 Point Sources'!I:I, A13, '2020 Point Sources'!AY:AY, 6)++SUMIFS('2020 Point Sources'!BH:BH, '2020 Point Sources'!I:I, A13, '2020 Point Sources'!AY:AY, 8)++SUMIFS('2020 Point Sources'!BH:BH, '2020 Point Sources'!I:I, A13, '2020 Point Sources'!AY:AY, 99)), "ton", "g")/1000, "n/a") -> 9.11E-01 | P13: 3.644E-03 | Q13: 24 | R13: =IF(AND(S13>0, T13>0), IF(S13/T13 > 365, 365, S13/T13), INDEX('OES Summary'!C:C, MATCH(B13, 'OES Summary'!A:A, 0))) -> 250 | S13: =_xlfn.MAXIFS('2020 Point Sources'!CY:CY,'2020 Point Sources'!A:A, A13) -> 0 | T13: =_xlfn.MAXIFS('2020 Point Sources'!CZ:CZ,'2020 Point Sources'!A:A, A13) -> 0 | U13: =_xlfn.MAXIFS('2020 Point Sources'!DA:DA,'2020 Point Sources'!A:A, A13) -> 0 | V13: =_xlfn.MAXIFS('2020 Point Sources'!DB:DB,'2020 Point Sources'!A:A, A13) -> 0 | W13: =COUNTIF('2020 Point Sources'!A:A, A13) -> 2 | X13: =COUNTIFS('2020 Point Sources'!AY:AY, 1,'2020 Point Sources'!A:A, A13)+COUNTIFS('2020 Point Sources'!AY:AY, 7,'2020 Point Sources'!A:A, A13)+COUNTIFS('2020 Point Sources'!AY:AY, 9,'2020 Point Sources'!A:A, A13) -> 0 | Y13: =COUNTIFS('2020 Point Sources'!AY:AY, 2,'2020 Point Sources'!A:A, A13)+COUNTIFS('2020 Point Sources'!AY:AY, 3,'2020 Point Sources'!A:A, A13)+COUNTIFS('2020 Point Sources'!AY:AY, 4,'2020 Point Sources'!A:A, A13)+COUNTIFS('2020 Point Sources'!AY:AY, 5,'2020 Point Sources'!A:A, A13)+COUNTIFS('2020 Point Sources'!AY:AY, 6,'2020 Point Sources'!A:A, A13)+COUNTIFS('2020 Point Sources'!AY:AY, 8,'2020 Point Sources'!A:A, A13)+COUNTIFS('2020 Point Sources'!AY:AY, 99,'2020 Point Sources'!A:A, A13) -> 2
A14: 8327511 | B14: =VLOOKUP($A14, '2020 Point Sources'!$I:$AO, 32, FALSE) -> Use of Paints and Coatings | C14: =VLOOKUP($A14,'2020 Point Sources'!$I:$J, 2, FALSE) -> Shurtape Technologies - Hickory/Highland Plant | D14: =VLOOKUP($A14,'2020 Point Sources'!$I:$CD, 73, FALSE) -> Hickory | E14: =VLOOKUP($A14,'2020 Point Sources'!$A:$E, 5, FALSE) -> NC | F14: =VLOOKUP($A14,'2020 Point Sources'!$A:$F, 6, FALSE) -> Catawba | G14: =VLOOKUP($A14,'2020 Point Sources'!$I:$CD, 74, FALSE) -> 28601 | H14: =VLOOKUP($A14,'2020 Point Sources'!$I:$T, 12, FALSE) -> Paper Bag and Coated and Treated Paper Manufacturing | I14: =VLOOKUP($A14,'2020 Point Sources'!$I:$T, 11, FALSE) -> 322220 | J14: =VLOOKUP($A14,'2020 Point Sources'!$I:$AM, 25, FALSE) -> 40201399 | K14: =VLOOKUP($A14,'2020 Point Sources'!$I:$AM, 26, FALSE) -> Chemical Evaporation Surface Coating Operations Paper Coating Other Not Classified | L14: =VLOOKUP($A14,'2020 Point Sources'!$I:$AM, 31, FALSE) -> Solvent - Industrial Surface Coating & Solvent Use | M14: =IF(X14>0, CONVERT((SUMIFS('2020 Point Sources'!BH:BH, '2020 Point Sources'!I:I, A14, '2020 Point Sources'!AY:AY, 1)+SUMIFS('2020 Point Sources'!BH:BH, '2020 Point Sources'!I:I, A14, '2020 Point Sources'!AY:AY, 7)+SUMIFS('2020 Point Sources'!BH:BH, '2020 Point Sources'!I:I, A14, '2020 Point Sources'!AY:AY, 9)), "ton", "g")/1000, "n/a") -> 1.27E-01 | N14: 3.57E-04 | O14: =IF(Y14>0, CONVERT((SUMIFS('2020 Point Sources'!BH:BH, '2020 Point Sources'!I:I, A14, '2020 Point Sources'!AY:AY, 2)+SUMIFS('2020 Point Sources'!BH:BH, '2020 Point Sources'!I:I, A14, '2020 Point Sources'!AY:AY, 3)+SUMIFS('2020 Point Sources'!BH:BH, '2020 Point Sources'!I:I, A14, '2020 Point Sources'!AY:AY, 4)+SUMIFS('2020 Point Sources'!BH:BH, '2020 Point Sources'!I:I, A14, '2020 Point Sources'!AY:AY, 5)+SUMIFS('2020 Point Sources'!BH:BH, '2020 Point Sources'!I:I, A14, '2020 Point Sources'!AY:AY, 6)++SUMIFS('2020 Point Sources'!BH:BH, '2020 Point Sources'!I:I, A14, '2020 Point Sources'!AY:AY, 8)++SUMIFS('2020 Point Sources'!BH:BH, '2020 Point Sources'!I:I, A14, '2020 Point Sources'!AY:AY, 99)), "ton", "g")/1000, "n/a") -> 2.30E+00 | P14: 6.446E-03 | Q14: 24 | R14: =IF(AND(S14>0, T14>0), IF(S14/T14 > 365, 365, S14/T14), INDEX('OES Summary'!C:C, MATCH(B14, 'OES Summary'!A:A, 0))) -> 357 | S14: =_xlfn.MAXIFS('2020 Point Sources'!CY:CY,'2020 Point Sources'!A:A, A14) -> 8568 | T14: =_xlfn.MAXIFS('2020 Point Sources'!CZ:CZ,'2020 Point Sources'!A:A, A14) -> 24 | U14: =_xlfn.MAXIFS('2020 Point Sources'!DA:DA,'2020 Point Sources'!A:A, A14) -> 7 | V14: =_xlfn.MAXIFS('2020 Point Sources'!DB:DB,'2020 Point Sources'!A:A, A14) -> 51 | W14: =COUNTIF('2020 Point Sources'!A:A, A14) -> 6 | X14: =COUNTIFS('2020 Point Sources'!AY:AY, 1,'2020 Point Sources'!A:A, A14)+COUNTIFS('2020 Point Sources'!AY:AY, 7,'2020 Point Sources'!A:A, A14)+COUNTIFS('2020 Point Sources'!AY:AY, 9,'2020 Point Sources'!A:A, A14) -> 2 | Y14: =COUNTIFS('2020 Point Sources'!AY:AY, 2,'2020 Point Sources'!A:A, A14)+COUNTIFS('2020 Point Sources'!AY:AY, 3,'2020 Point Sources'!A:A, A14)+COUNTIFS('2020 Point Sources'!AY:AY, 4,'2020 Point Sources'!A:A, A14)+COUNTIFS('2020 Point Sources'!AY:AY, 5,'2020 Point Sources'!A:A, A14)+COUNTIFS('2020 Point Sources'!AY:AY, 6,'2020 Point Sources'!A:A, A14)+COUNTIFS('2020 Point Sources'!AY:AY, 8,'2020 Point Sources'!A:A, A14)+COUNTIFS('2020 Point Sources'!AY:AY, 99,'2020 Point Sources'!A:A, A14) -> 4
A15: 19535411 | B15: =VLOOKUP($A15, '2020 Point Sources'!$I:$AO, 32, FALSE) -> Use of Paints and Coatings | C15: =VLOOKUP($A15,'2020 Point Sources'!$I:$J, 2, FALSE) -> SNOWLINE ENGINEERING | D15: =VLOOKUP($A15,'2020 Point Sources'!$I:$CD, 73, FALSE) -> SHINGLE SPRINGS | E15: =VLOOKUP($A15,'2020 Point Sources'!$A:$E, 5, FALSE) -> CA | F15: =VLOOKUP($A15,'2020 Point Sources'!$A:$F, 6, FALSE) -> El Dorado | G15: =VLOOKUP($A15,'2020 Point Sources'!$I:$CD, 74, FALSE) -> 95682 | H15: =VLOOKUP($A15,'2020 Point Sources'!$I:$T, 12, FALSE) -> Sheet Metal Work Manufacturing | I15: =VLOOKUP($A15,'2020 Point Sources'!$I:$T, 11, FALSE) -> 332322 | J15: =VLOOKUP($A15,'2020 Point Sources'!$I:$AM, 25, FALSE) -> 40201101 | K15: =VLOOKUP($A15,'2020 Point Sources'!$I:$AM, 26, FALSE) -> Chemical Evaporation Surface Coating Operations Fabric Coating/Printing Coating Operation (Also See Specific Coating Method Codes 4-02-04X) | L15: =VLOOKUP($A15,'2020 Point Sources'!$I:$AM, 31, FALSE) -> Solvent - Industrial Surface Coating & Solvent Use | M15: =IF(X15>0, CONVERT((SUMIFS('2020 Point Sources'!BH:BH, '2020 Point Sources'!I:I, A15, '2020 Point Sources'!AY:AY, 1)+SUMIFS('2020 Point Sources'!BH:BH, '2020 Point Sources'!I:I, A15, '2020 Point Sources'!AY:AY, 7)+SUMIFS('2020 Point Sources'!BH:BH, '2020 Point Sources'!I:I, A15, '2020 Point Sources'!AY:AY, 9)), "ton", "g")/1000, "n/a") -> 5.62E-03 | N15: 2.25E-05 | O15: =IF(Y15>0, CONVERT((SUMIFS('2020 Point Sources'!BH:BH, '2020 Point Sources'!I:I, A15, '2020 Point Sources'!AY:AY, 2)+SUMIFS('2020 Point Sources'!BH:BH, '2020 Point Sources'!I:I, A15, '2020 Point Sources'!AY:AY, 3)+SUMIFS('2020 Point Sources'!BH:BH, '2020 Point Sources'!I:I, A15, '2020 Point Sources'!AY:AY, 4)+SUMIFS('2020 Point Sources'!BH:BH, '2020 Point Sources'!I:I, A15, '2020 Point Sources'!AY:AY, 5)+SUMIFS('2020 Point Sources'!BH:BH, '2020 Point Sources'!I:I, A15, '2020 Point Sources'!AY:AY, 6)++SUMIFS('2020 Point Sources'!BH:BH, '2020 Point Sources'!I:I, A15, '2020 Point Sources'!AY:AY, 8)++SUMIFS('2020 Point Sources'!BH:BH, '2020 Point Sources'!I:I, A15, '2020 Point Sources'!AY:AY, 99)), "ton", "g")/1000, "n/a") -> n/a | P15: n/a | Q15: 24 | R15: =IF(AND(S15>0, T15>0), IF(S15/T15 > 365, 365, S15/T15), INDEX('OES Summary'!C:C, MATCH(B15, 'OES Summary'!A:A, 0))) -> 250 | S15: =_xlfn.MAXIFS('2020 Point Sources'!CY:CY,'2020 Point Sources'!A:A, A15) -> 0 | T15: =_xlfn.MAXIFS('2020 Point Sources'!CZ:CZ,'2020 Point Sources'!A:A, A15) -> 0 | U15: =_xlfn.MAXIFS('2020 Point Sources'!DA:DA,'2020 Point Sources'!A:A, A15) -> 0 | V15: =_xlfn.MAXIFS('2020 Point Sources'!DB:DB,'2020 Point Sources'!A:A, A15) -> 0 | W15: =COUNTIF('2020 Point Sources'!A:A, A15) -> 1 | X15: =COUNTIFS('2020 Point Sources'!AY:AY, 1,'2020 Point Sources'!A:A, A15)+COUNTIFS('2020 Point Sources'!AY:AY, 7,'2020 Point Sources'!A:A, A15)+COUNTIFS('2020 Point Sources'!AY:AY, 9,'2020 Point Sources'!A:A, A15) -> 1 | Y15: =COUNTIFS('2020 Point Sources'!AY:AY, 2,'2020 Point Sources'!A:A, A15)+COUNTIFS('2020 Point Sources'!AY:AY, 3,'2020 Point Sources'!A:A, A15)+COUNTIFS('2020 Point Sources'!AY:AY, 4,'2020 Point Sources'!A:A, A15)+COUNTIFS('2020 Point Sources'!AY:AY, 5,'2020 Point Sources'!A:A, A15)+COUNTIFS('2020 Point Sources'!AY:AY, 6,'2020 Point Sources'!A:A, A15)+COUNTIFS('2020 Point Sources'!AY:AY, 8,'2020 Point Sources'!A:A, A15)+COUNTIFS('2020 Point Sources'!AY:AY, 99,'2020 Point Sources'!A:A, A15) -> 0
A16: 7790311 | B16: =VLOOKUP($A16, '2020 Point Sources'!$I:$AO, 32, FALSE) -> Use of Paints and Coatings | C16: =VLOOKUP($A16,'2020 Point Sources'!$I:$J, 2, FALSE) -> TEX-TECH COATINGS, LLC (formerly Highland) | D16: =VLOOKUP($A16,'2020 Point Sources'!$I:$CD, 73, FALSE) -> KERNERSVILLE | E16: =VLOOKUP($A16,'2020 Point Sources'!$A:$E, 5, FALSE) -> NC | F16: =VLOOKUP($A16,'2020 Point Sources'!$A:$F, 6, FALSE) -> Forsyth | G16: =VLOOKUP($A16,'2020 Point Sources'!$I:$CD, 74, FALSE) -> 27284 | H16: =VLOOKUP($A16,'2020 Point Sources'!$I:$T, 12, FALSE) -> Textile and Fabric Finishing and Fabric Coating MillsT | I16: =VLOOKUP($A16,'2020 Point Sources'!$I:$T, 11, FALSE) -> 3133 | J16: =VLOOKUP($A16,'2020 Point Sources'!$I:$AM, 25, FALSE) -> 40799999 | K16: =VLOOKUP($A16,'2020 Point Sources'!$I:$AM, 26, FALSE) -> Chemical Evaporation Organic Chemical Storage Miscellaneous Chemicals Other Not Classified | L16: =VLOOKUP($A16,'2020 Point Sources'!$I:$AM, 31, FALSE) -> Industrial Processes - Storage and Transfer | M16: =IF(X16>0, CONVERT((SUMIFS('2020 Point Sources'!BH:BH, '2020 Point Sources'!I:I, A16, '2020 Point Sources'!AY:AY, 1)+SUMIFS('2020 Point Sources'!BH:BH, '2020 Point Sources'!I:I, A16, '2020 Point Sources'!AY:AY, 7)+SUMIFS('2020 Point Sources'!BH:BH, '2020 Point Sources'!I:I, A16, '2020 Point Sources'!AY:AY, 9)), "ton", "g")/1000, "n/a") -> n/a | N16: n/a | O16: =IF(Y16>0, CONVERT((SUMIFS('2020 Point Sources'!BH:BH, '2020 Point Sources'!I:I, A16, '2020 Point Sources'!AY:AY, 2)+SUMIFS('2020 Point Sources'!BH:BH, '2020 Point Sources'!I:I, A16, '2020 Point Sources'!AY:AY, 3)+SUMIFS('2020 Point Sources'!BH:BH, '2020 Point Sources'!I:I, A16, '2020 Point Sources'!AY:AY, 4)+SUMIFS('2020 Point Sources'!BH:BH, '2020 Point Sources'!I:I, A16, '2020 Point Sources'!AY:AY, 5)+SUMIFS('2020 Point Sources'!BH:BH, '2020 Point Sources'!I:I, A16, '2020 Point Sources'!AY:AY, 6)++SUMIFS('2020 Point Sources'!BH:BH, '2020 Point Sources'!I:I, A16, '2020 Point Sources'!AY:AY, 8)++SUMIFS('2020 Point Sources'!BH:BH, '2020 Point Sources'!I:I, A16, '2020 Point Sources'!AY:AY, 99)), "ton", "g")/1000, "n/a") -> 5.97E+00 | P16: 2.387E-02 | Q16: 24 | R16: =IF(AND(S16>0, T16>0), IF(S16/T16 > 365, 365, S16/T16), INDEX('OES Summary'!C:C, MATCH(B16, 'OES Summary'!A:A, 0))) -> 250 | S16: =_xlfn.MAXIFS('2020 Point Sources'!CY:CY,'2020 Point Sources'!A:A, A16) -> 8760 | T16: =_xlfn.MAXIFS('2020 Point Sources'!CZ:CZ,'2020 Point Sources'!A:A, A16) -> 0 | U16: =_xlfn.MAXIFS('2020 Point Sources'!DA:DA,'2020 Point Sources'!A:A, A16) -> 0 | V16: =_xlfn.MAXIFS('2020 Point Sources'!DB:DB,'2020 Point Sources'!A:A, A16) -> 0 | W16: =COUNTIF('2020 Point Sources'!A:A, A16) -> 3 | X16: =COUNTIFS('2020 Point Sources'!AY:AY, 1,'2020 Point Sources'!A:A, A16)+COUNTIFS('2020 Point Sources'!AY:AY, 7,'2020 Point Sources'!A:A, A16)+COUNTIFS('2020 Point Sources'!AY:AY, 9,'2020 Point Sources'!A:A, A16) -> 0 | Y16: =COUNTIFS('2020 Point Sources'!AY:AY, 2,'2020 Point Sources'!A:A, A16)+COUNTIFS('2020 Point Sources'!AY:AY, 3,'2020 Point Sources'!A:A, A16)+COUNTIFS('2020 Point Sources'!AY:AY, 4,'2020 Point Sources'!A:A, A16)+COUNTIFS('2020 Point Sources'!AY:AY, 5,'2020 Point Sources'!A:A, A16)+COUNTIFS('2020 Point Sources'!AY:AY, 6,'2020 Point Sources'!A:A, A16)+COUNTIFS('2020 Point Sources'!AY:AY, 8,'2020 Point Sources'!A:A, A16)+COUNTIFS('2020 Point Sources'!AY:AY, 99,'2020 Point Sources'!A:A, A16) -> 3
A17: 5244111 | B17: =VLOOKUP($A17, '2020 Point Sources'!$I:$AO, 32, FALSE) -> Use of Paints and Coatings | C17: =VLOOKUP($A17,'2020 Point Sources'!$I:$J, 2, FALSE) -> WHITEMAN AIR FORCE BASE | D17: =VLOOKUP($A17,'2020 Point Sources'!$I:$CD, 73, FALSE) -> WHITEMAN AFB | E17: =VLOOKUP($A17,'2020 Point Sources'!$A:$E, 5, FALSE) -> MO | F17: =VLOOKUP($A17,'2020 Point Sources'!$A:$F, 6, FALSE) -> Johnson | G17: =VLOOKUP($A17,'2020 Point Sources'!$I:$CD, 74, FALSE) -> 65305 | H17: =VLOOKUP($A17,'2020 Point Sources'!$I:$T, 12, FALSE) -> National Security | I17: =VLOOKUP($A17,'2020 Point Sources'!$I:$T, 11, FALSE) -> 928110 | J17: =VLOOKUP($A17,'2020 Point Sources'!$I:$AM, 25, FALSE) -> 40200101 | K17: =VLOOKUP($A17,'2020 Point Sources'!$I:$AM, 26, FALSE) -> Chemical Evaporation Surface Coating Operations Surface Coating Application - General Paint: Solvent-base | L17: =VLOOKUP($A17,'2020 Point Sources'!$I:$AM, 31, FALSE) -> Solvent - Industrial Surface Coating & Solvent Use | M17: =IF(X17>0, CONVERT((SUMIFS('2020 Point Sources'!BH:BH, '2020 Point Sources'!I:I, A17, '2020 Point Sources'!AY:AY, 1)+SUMIFS('2020 Point Sources'!BH:BH, '2020 Point Sources'!I:I, A17, '2020 Point Sources'!AY:AY, 7)+SUMIFS('2020 Point Sources'!BH:BH, '2020 Point Sources'!I:I, A17, '2020 Point Sources'!AY:AY, 9)), "ton", "g")/1000, "n/a") -> n/a | N17: n/a | O17: =IF(Y17>0, CONVERT((SUMIFS('2020 Point Sources'!BH:BH, '2020 Point Sources'!I:I, A17, '2020 Point Sources'!AY:AY, 2)+SUMIFS('2020 Point Sources'!BH:BH, '2020 Point Sources'!I:I, A17, '2020 Point Sources'!AY:AY, 3)+SUMIFS('2020 Point Sources'!BH:BH, '2020 Point Sources'!I:I, A17, '2020 Point Sources'!AY:AY, 4)+SUMIFS('2020 Point Sources'!BH:BH, '2020 Point Sources'!I:I, A17, '2020 Point Sources'!AY:AY, 5)+SUMIFS('2020 Point Sources'!BH:BH, '2020 Point Sources'!I:I, A17, '2020 Point Sources'!AY:AY, 6)++SUMIFS('2020 Point Sources'!BH:BH, '2020 Point Sources'!I:I, A17, '2020 Point Sources'!AY:AY, 8)++SUMIFS('2020 Point Sources'!BH:BH, '2020 Point Sources'!I:I, A17, '2020 Point Sources'!AY:AY, 99)), "ton", "g")/1000, "n/a") -> 1.72E+01 | P17: 6.895E-02 | Q17: 24 | R17: =IF(AND(S17>0, T17>0), IF(S17/T17 > 365, 365, S17/T17), INDEX('OES Summary'!C:C, MATCH(B17, 'OES Summary'!A:A, 0))) -> 250 | S17: =_xlfn.MAXIFS('2020 Point Sources'!CY:CY,'2020 Point Sources'!A:A, A17) -> 0 | T17: =_xlfn.MAXIFS('2020 Point Sources'!CZ:CZ,'2020 Point Sources'!A:A, A17) -> 0 | U17: =_xlfn.MAXIFS('2020 Point Sources'!DA:DA,'2020 Point Sources'!A:A, A17) -> 0 | V17: =_xlfn.MAXIFS('2020 Point Sources'!DB:DB,'2020 Point Sources'!A:A, A17) -> 0 | W17: =COUNTIF('2020 Point Sources'!A:A, A17) -> 1 | X17: =COUNTIFS('2020 Point Sources'!AY:AY, 1,'2020 Point Sources'!A:A, A17)+COUNTIFS('2020 Point Sources'!AY:AY, 7,'2020 Point Sources'!A:A, A17)+COUNTIFS('2020 Point Sources'!AY:AY, 9,'2020 Point Sources'!A:A, A17) -> 0 | Y17: =COUNTIFS('2020 Point Sources'!AY:AY, 2,'2020 Point Sources'!A:A, A17)+COUNTIFS('2020 Point Sources'!AY:AY, 3,'2020 Point Sources'!A:A, A17)+COUNTIFS('2020 Point Sources'!AY:AY, 4,'2020 Point Sources'!A:A, A17)+COUNTIFS('2020 Point Sources'!AY:AY, 5,'2020 Point Sources'!A:A, A17)+COUNTIFS('2020 Point Sources'!AY:AY, 6,'2020 Point Sources'!A:A, A17)+COUNTIFS('2020 Point Sources'!AY:AY, 8,'2020 Point Sources'!A:A, A17)+COUNTIFS('2020 Point Sources'!AY:AY, 99,'2020 Point Sources'!A:A, A17) -> 1
A18: 18973511 | B18: =VLOOKUP($A18, '2020 Point Sources'!$I:$AO, 32, FALSE) -> Manufacturing | C18: =VLOOKUP($A18,'2020 Point Sources'!$I:$J, 2, FALSE) -> CHOCOLATE BAYOU | D18: =VLOOKUP($A18,'2020 Point Sources'!$I:$CD, 73, FALSE) -> ALVIN | E18: =VLOOKUP($A18,'2020 Point Sources'!$A:$E, 5, FALSE) -> TX | F18: =VLOOKUP($A18,'2020 Point Sources'!$A:$F, 6, FALSE) -> Brazoria | G18: =VLOOKUP($A18,'2020 Point Sources'!$I:$CD, 74, FALSE) -> 77511 | H18: =VLOOKUP($A18,'2020 Point Sources'!$I:$T, 12, FALSE) -> Petrochemical Manufacturing | I18: =VLOOKUP($A18,'2020 Point Sources'!$I:$T, 11, FALSE) -> 325110 | J18: =VLOOKUP($A18,'2020 Point Sources'!$I:$AM, 25, FALSE) -> 38500101 | K18: =VLOOKUP($A18,'2020 Point Sources'!$I:$AM, 26, FALSE) -> Industrial Processes Cooling Tower Process Cooling Mechanical Draft | L18: =VLOOKUP($A18,'2020 Point Sources'!$I:$AM, 31, FALSE) -> Industrial Processes - NEC | M18: =IF(X18>0, CONVERT((SUMIFS('2020 Point Sources'!BH:BH, '2020 Point Sources'!I:I, A18, '2020 Point Sources'!AY:AY, 1)+SUMIFS('2020 Point Sources'!BH:BH, '2020 Point Sources'!I:I, A18, '2020 Point Sources'!AY:AY, 7)+SUMIFS('2020 Point Sources'!BH:BH, '2020 Point Sources'!I:I, A18, '2020 Point Sources'!AY:AY, 9)), "ton", "g")/1000, "n/a") -> n/a | N18: n/a | O18: =IF(Y18>0, CONVERT((SUMIFS('2020 Point Sources'!BH:BH, '2020 Point Sources'!I:I, A18, '2020 Point Sources'!AY:AY, 2)+SUMIFS('2020 Point Sources'!BH:BH, '2020 Point Sources'!I:I, A18, '2020 Point Sources'!AY:AY, 3)+SUMIFS('2020 Point Sources'!BH:BH, '2020 Point Sources'!I:I, A18, '2020 Point Sources'!AY:AY, 4)+SUMIFS('2020 Point Sources'!BH:BH, '2020 Point Sources'!I:I, A18, '2020 Point Sources'!AY:AY, 5)+SUMIFS('2020 Point Sources'!BH:BH, '2020 Point Sources'!I:I, A18, '2020 Point Sources'!AY:AY, 6)++SUMIFS('2020 Point Sources'!BH:BH, '2020 Point Sources'!I:I, A18, '2020 Point Sources'!AY:AY, 8)++SUMIFS('2020 Point Sources'!BH:BH, '2020 Point Sources'!I:I, A18, '2020 Point Sources'!AY:AY, 99)), "ton", "g")/1000, "n/a") -> 6.53E+01 | P18: 1.790E-01 | Q18: 24 | R18: =IF(AND(S18>0, T18>0), IF(S18/T18 > 365, 365, S18/T18), INDEX('OES Summary'!C:C, MATCH(B18, 'OES Summary'!A:A, 0))) -> 365 | S18: =_xlfn.MAXIFS('2020 Point Sources'!CY:CY,'2020 Point Sources'!A:A, A18) -> 8760 | T18: =_xlfn.MAXIFS('2020 Point Sources'!CZ:CZ,'2020 Point Sources'!A:A, A18) -> 24 | U18: =_xlfn.MAXIFS('2020 Point Sources'!DA:DA,'2020 Point Sources'!A:A, A18) -> 7 | V18: =_xlfn.MAXIFS('2020 Point Sources'!DB:DB,'2020 Point Sources'!A:A, A18) -> 52 | W18: =COUNTIF('2020 Point Sources'!A:A, A18) -> 1 | X18: =COUNTIFS('2020 Point Sources'!AY:AY, 1,'2020 Point Sources'!A:A, A18)+COUNTIFS('2020 Point Sources'!AY:AY, 7,'2020 Point Sources'!A:A, A18)+COUNTIFS('2020 Point Sources'!AY:AY, 9,'2020 Point Sources'!A:A, A18) -> 0 | Y18: =COUNTIFS('2020 Point Sources'!AY:AY, 2,'2020 Point Sources'!A:A, A18)+COUNTIFS('2020 Point Sources'!AY:AY, 3,'2020 Point Sources'!A:A, A18)+COUNTIFS('2020 Point Sources'!AY:AY, 4,'2020 Point Sources'!A:A, A18)+COUNTIFS('2020 Point Sources'!AY:AY, 5,'2020 Point Sources'!A:A, A18)+COUNTIFS('2020 Point Sources'!AY:AY, 6,'2020 Point Sources'!A:A, A18)+COUNTIFS('2020 Point Sources'!AY:AY, 8,'2020 Point Sources'!A:A, A18)+COUNTIFS('2020 Point Sources'!AY:AY, 99,'2020 Point Sources'!A:A, A18) -> 1
A19: 5632411 | B19: =VLOOKUP($A19, '2020 Point Sources'!$I:$AO, 32, FALSE) -> Manufacturing | C19: =VLOOKUP($A19,'2020 Point Sources'!$I:$J, 2, FALSE) -> CHOCOLATE BAYOU PLANT | D19: =VLOOKUP($A19,'2020 Point Sources'!$I:$CD, 73, FALSE) -> ALVIN | E19: =VLOOKUP($A19,'2020 Point Sources'!$A:$E, 5, FALSE) -> TX | F19: =VLOOKUP($A19,'2020 Point Sources'!$A:$F, 6, FALSE) -> Brazoria | G19: =VLOOKUP($A19,'2020 Point Sources'!$I:$CD, 74, FALSE) -> 77512 | H19: =VLOOKUP($A19,'2020 Point Sources'!$I:$T, 12, FALSE) -> Petrochemical Manufacturing | I19: =VLOOKUP($A19,'2020 Point Sources'!$I:$T, 11, FALSE) -> 325110 | J19: =VLOOKUP($A19,'2020 Point Sources'!$I:$AM, 25, FALSE) -> 38500101 | K19: =VLOOKUP($A19,'2020 Point Sources'!$I:$AM, 26, FALSE) -> Industrial Processes Cooling Tower Process Cooling Mechanical Draft | L19: =VLOOKUP($A19,'2020 Point Sources'!$I:$AM, 31, FALSE) -> Industrial Processes - NEC | M19: =IF(X19>0, CONVERT((SUMIFS('2020 Point Sources'!BH:BH, '2020 Point Sources'!I:I, A19, '2020 Point Sources'!AY:AY, 1)+SUMIFS('2020 Point Sources'!BH:BH, '2020 Point Sources'!I:I, A19, '2020 Point Sources'!AY:AY, 7)+SUMIFS('2020 Point Sources'!BH:BH, '2020 Point Sources'!I:I, A19, '2020 Point Sources'!AY:AY, 9)), "ton", "g")/1000, "n/a") -> 6.74E+03 | N19: 1.85E+01 | O19: =IF(Y19>0, CONVERT((SUMIFS('2020 Point Sources'!BH:BH, '2020 Point Sources'!I:I, A19, '2020 Point Sources'!AY:AY, 2)+SUMIFS('2020 Point Sources'!BH:BH, '2020 Point Sources'!I:I, A19, '2020 Point Sources'!AY:AY, 3)+SUMIFS('2020 Point Sources'!BH:BH, '2020 Point Sources'!I:I, A19, '2020 Point Sources'!AY:AY, 4)+SUMIFS('2020 Point Sources'!BH:BH, '2020 Point Sources'!I:I, A19, '2020 Point Sources'!AY:AY, 5)+SUMIFS('2020 Point Sources'!BH:BH, '2020 Point Sources'!I:I, A19, '2020 Point Sources'!AY:AY, 6)++SUMIFS('2020 Point Sources'!BH:BH, '2020 Point Sources'!I:I, A19, '2020 Point Sources'!AY:AY, 8)++SUMIFS('2020 Point Sources'!BH:BH, '2020 Point Sources'!I:I, A19, '2020 Point Sources'!AY:AY, 99)), "ton", "g")/1000, "n/a") -> 2.06E+04 | P19: 5.639E+01 | Q19: 24 | R19: =IF(AND(S19>0, T19>0), IF(S19/T19 > 365, 365, S19/T19), INDEX('OES Summary'!C:C, MATCH(B19, 'OES Summary'!A:A, 0))) -> 365 | S19: =_xlfn.MAXIFS('2020 Point Sources'!CY:CY,'2020 Point Sources'!A:A, A19) -> 8760 | T19: =_xlfn.MAXIFS('2020 Point Sources'!CZ:CZ,'2020 Point Sources'!A:A, A19) -> 24 | U19: =_xlfn.MAXIFS('2020 Point Sources'!DA:DA,'2020 Point Sources'!A:A, A19) -> 7 | V19: =_xlfn.MAXIFS('2020 Point Sources'!DB:DB,'2020 Point Sources'!A:A, A19) -> 52 | W19: =COUNTIF('2020 Point Sources'!A:A, A19) -> 14 | X19: =COUNTIFS('2020 Point Sources'!AY:AY, 1,'2020 Point Sources'!A:A, A19)+COUNTIFS('2020 Point Sources'!AY:AY, 7,'2020 Point Sources'!A:A, A19)+COUNTIFS('2020 Point Sources'!AY:AY, 9,'2020 Point Sources'!A:A, A19) -> 3 | Y19: =COUNTIFS('2020 Point Sources'!AY:AY, 2,'2020 Point Sources'!A:A, A19)+COUNTIFS('2020 Point Sources'!AY:AY, 3,'2020 Point Sources'!A:A, A19)+COUNTIFS('2020 Point Sources'!AY:AY, 4,'2020 Point Sources'!A:A, A19)+COUNTIFS('2020 Point Sources'!AY:AY, 5,'2020 Point Sources'!A:A, A19)+COUNTIFS('2020 Point Sources'!AY:AY, 6,'2020 Point Sources'!A:A, A19)+COUNTIFS('2020 Point Sources'!AY:AY, 8,'2020 Point Sources'!A:A, A19)+COUNTIFS('2020 Point Sources'!AY:AY, 99,'2020 Point Sources'!A:A, A19) -> 11
A20: 4021611 | B20: =VLOOKUP($A20, '2020 Point Sources'!$I:$AO, 32, FALSE) -> Manufacturing | C20: =VLOOKUP($A20,'2020 Point Sources'!$I:$J, 2, FALSE) -> DEER PARK PLANT | D20: =VLOOKUP($A20,'2020 Point Sources'!$I:$CD, 73, FALSE) -> DEER PARK | E20: =VLOOKUP($A20,'2020 Point Sources'!$A:$E, 5, FALSE) -> TX | F20: =VLOOKUP($A20,'2020 Point Sources'!$A:$F, 6, FALSE) -> Harris | G20: =VLOOKUP($A20,'2020 Point Sources'!$I:$CD, 74, FALSE) -> 77536 | H20: =VLOOKUP($A20,'2020 Point Sources'!$I:$T, 12, FALSE) -> Petrochemical Manufacturing | I20: =VLOOKUP($A20,'2020 Point Sources'!$I:$T, 11, FALSE) -> 325110 | J20: =VLOOKUP($A20,'2020 Point Sources'!$I:$AM, 25, FALSE) -> 38500101 | K20: =VLOOKUP($A20,'2020 Point Sources'!$I:$AM, 26, FALSE) -> Industrial Processes Cooling Tower Process Cooling Mechanical Draft | L20: =VLOOKUP($A20,'2020 Point Sources'!$I:$AM, 31, FALSE) -> Industrial Processes - NEC | M20: =IF(X20>0, CONVERT((SUMIFS('2020 Point Sources'!BH:BH, '2020 Point Sources'!I:I, A20, '2020 Point Sources'!AY:AY, 1)+SUMIFS('2020 Point Sources'!BH:BH, '2020 Point Sources'!I:I, A20, '2020 Point Sources'!AY:AY, 7)+SUMIFS('2020 Point Sources'!BH:BH, '2020 Point Sources'!I:I, A20, '2020 Point Sources'!AY:AY, 9)), "ton", "g")/1000, "n/a") -> 5.51E+02 | N20: 1.51E+00 | O20: =IF(Y20>0, CONVERT((SUMIFS('2020 Point Sources'!BH:BH, '2020 Point Sources'!I:I, A20, '2020 Point Sources'!AY:AY, 2)+SUMIFS('2020 Point Sources'!BH:BH, '2020 Point Sources'!I:I, A20, '2020 Point Sources'!AY:AY, 3)+SUMIFS('2020 Point Sources'!BH:BH, '2020 Point Sources'!I:I, A20, '2020 Point Sources'!AY:AY, 4)+SUMIFS('2020 Point Sources'!BH:BH, '2020 Point Sources'!I:I, A20, '2020 Point Sources'!AY:AY, 5)+SUMIFS('2020 Point Sources'!BH:BH, '2020 Point Sources'!I:I, A20, '2020 Point Sources'!AY:AY, 6)++SUMIFS('2020 Point Sources'!BH:BH, '2020 Point Sources'!I:I, A20, '2020 Point Sources'!AY:AY, 8)++SUMIFS('2020 Point Sources'!BH:BH, '2020 Point Sources'!I:I, A20, '2020 Point Sources'!AY:AY, 99)), "ton", "g")/1000, "n/a") -> 3.42E+02 | P20: 9.365E-01 | Q20: 24 | R20: =IF(AND(S20>0, T20>0), IF(S20/T20 > 365, 365, S20/T20), INDEX('OES Summary'!C:C, MATCH(B20, 'OES Summary'!A:A, 0))) -> 365 | S20: =_xlfn.MAXIFS('2020 Point Sources'!CY:CY,'2020 Point Sources'!A:A, A20) -> 8760 | T20: =_xlfn.MAXIFS('2020 Point Sources'!CZ:CZ,'2020 Point Sources'!A:A, A20) -> 24 | U20: =_xlfn.MAXIFS('2020 Point Sources'!DA:DA,'2020 Point Sources'!A:A, A20) -> 7 | V20: =_xlfn.MAXIFS('2020 Point Sources'!DB:DB,'2020 Point Sources'!A:A, A20) -> 52 | W20: =COUNTIF('2020 Point Sources'!A:A, A20) -> 19 | X20: =COUNTIFS('2020 Point Sources'!AY:AY, 1,'2020 Point Sources'!A:A, A20)+COUNTIFS('2020 Point Sources'!AY:AY, 7,'2020 Point Sources'!A:A, A20)+COUNTIFS('2020 Point Sources'!AY:AY, 9,'2020 Point Sources'!A:A, A20) -> 4 | Y20: =COUNTIFS('2020 Point Sources'!AY:AY, 2,'2020 Point Sources'!A:A, A20)+COUNTIFS('2020 Point Sources'!AY:AY, 3,'2020 Point Sources'!A:A, A20)+COUNTIFS('2020 Point Sources'!AY:AY, 4,'2020 Point Sources'!A:A, A20)+COUNTIFS('2020 Point Sources'!AY:AY, 5,'2020 Point Sources'!A:A, A20)+COUNTIFS('2020 Point Sources'!AY:AY, 6,'2020 Point Sources'!A:A, A20)+COUNTIFS('2020 Point Sources'!AY:AY, 8,'2020 Point Sources'!A:A, A20)+COUNTIFS('2020 Point Sources'!AY:AY, 99,'2020 Point Sources'!A:A, A20) -> 15
A21: 6422011 | B21: =VLOOKUP($A21, '2020 Point Sources'!$I:$AO, 32, FALSE) -> Manufacturing | C21: =VLOOKUP($A21,'2020 Point Sources'!$I:$J, 2, FALSE) -> DEER PARK TERMINAL | D21: =VLOOKUP($A21,'2020 Point Sources'!$I:$CD, 73, FALSE) -> DEER PARK | E21: =VLOOKUP($A21,'2020 Point Sources'!$A:$E, 5, FALSE) -> TX | F21: =VLOOKUP($A21,'2020 Point Sources'!$A:$F, 6, FALSE) -> Harris | G21: =VLOOKUP($A21,'2020 Point Sources'!$I:$CD, 74, FALSE) -> 77536 | H21: =VLOOKUP($A21,'2020 Point Sources'!$I:$T, 12, FALSE) -> General Warehousing and Storage | I21: =VLOOKUP($A21,'2020 Point Sources'!$I:$T, 11, FALSE) -> 493110 | J21: =VLOOKUP($A21,'2020 Point Sources'!$I:$AM, 25, FALSE) -> 40388801 | K21: =VLOOKUP($A21,'2020 Point Sources'!$I:$AM, 26, FALSE) -> Chemical Evaporation Petroleum Product Storage at Refineries Fugitive Emissions All Not Elsewhere Classified | L21: =VLOOKUP($A21,'2020 Point Sources'!$I:$AM, 31, FALSE) -> Industrial Processes - Storage and Transfer | M21: =IF(X21>0, CONVERT((SUMIFS('2020 Point Sources'!BH:BH, '2020 Point Sources'!I:I, A21, '2020 Point Sources'!AY:AY, 1)+SUMIFS('2020 Point Sources'!BH:BH, '2020 Point Sources'!I:I, A21, '2020 Point Sources'!AY:AY, 7)+SUMIFS('2020 Point Sources'!BH:BH, '2020 Point Sources'!I:I, A21, '2020 Point Sources'!AY:AY, 9)), "ton", "g")/1000, "n/a") -> 1.47E+03 | N21: 4.04E+00 | O21: =IF(Y21>0, CONVERT((SUMIFS('2020 Point Sources'!BH:BH, '2020 Point Sources'!I:I, A21, '2020 Point Sources'!AY:AY, 2)+SUMIFS('2020 Point Sources'!BH:BH, '2020 Point Sources'!I:I, A21, '2020 Point Sources'!AY:AY, 3)+SUMIFS('2020 Point Sources'!BH:BH, '2020 Point Sources'!I:I, A21, '2020 Point Sources'!AY:AY, 4)+SUMIFS('2020 Point Sources'!BH:BH, '2020 Point Sources'!I:I, A21, '2020 Point Sources'!AY:AY, 5)+SUMIFS('2020 Point Sources'!BH:BH, '2020 Point Sources'!I:I, A21, '2020 Point Sources'!AY:AY, 6)++SUMIFS('2020 Point Sources'!BH:BH, '2020 Point Sources'!I:I, A21, '2020 Point Sources'!AY:AY, 8)++SUMIFS('2020 Point Sources'!BH:BH, '2020 Point Sources'!I:I, A21, '2020 Point Sources'!AY:AY, 99)), "ton", "g")/1000, "n/a") -> 5.38E+02 | P21: 1.475E+00 | Q21: 24 | R21: =IF(AND(S21>0, T21>0), IF(S21/T21 > 365, 365, S21/T21), INDEX('OES Summary'!C:C, MATCH(B21, 'OES Summary'!A:A, 0))) -> 365 | S21: =_xlfn.MAXIFS('2020 Point Sources'!CY:CY,'2020 Point Sources'!A:A, A21) -> 8760 | T21: =_xlfn.MAXIFS('2020 Point Sources'!CZ:CZ,'2020 Point Sources'!A:A, A21) -> 24 | U21: =_xlfn.MAXIFS('2020 Point Sources'!DA:DA,'2020 Point Sources'!A:A, A21) -> 7 | V21: =_xlfn.MAXIFS('2020 Point Sources'!DB:DB,'2020 Point Sources'!A:A, A21) -> 52 | W21: =COUNTIF('2020 Point Sources'!A:A, A21) -> 5 | X21: =COUNTIFS('2020 Point Sources'!AY:AY, 1,'2020 Point Sources'!A:A, A21)+COUNTIFS('2020 Point Sources'!AY:AY, 7,'2020 Point Sources'!A:A, A21)+COUNTIFS('2020 Point Sources'!AY:AY, 9,'2020 Point Sources'!A:A, A21) -> 2 | Y21: =COUNTIFS('2020 Point Sources'!AY:AY, 2,'2020 Point Sources'!A:A, A21)+COUNTIFS('2020 Point Sources'!AY:AY, 3,'2020 Point Sources'!A:A, A21)+COUNTIFS('2020 Point Sources'!AY:AY, 4,'2020 Point Sources'!A:A, A21)+COUNTIFS('2020 Point Sources'!AY:AY, 5,'2020 Point Sources'!A:A, A21)+COUNTIFS('2020 Point Sources'!AY:AY, 6,'2020 Point Sources'!A:A, A21)+COUNTIFS('2020 Point Sources'!AY:AY, 8,'2020 Point Sources'!A:A, A21)+COUNTIFS('2020 Point Sources'!AY:AY, 99,'2020 Point Sources'!A:A, A21) -> 3
A22: 16911111 | B22: =VLOOKUP($A22, '2020 Point Sources'!$I:$AO, 32, FALSE) -> Manufacturing | C22: =VLOOKUP($A22,'2020 Point Sources'!$I:$J, 2, FALSE) -> Deer Park9 | D22: =VLOOKUP($A22,'2020 Point Sources'!$I:$CD, 73, FALSE) -> Deer Park | E22: =VLOOKUP($A22,'2020 Point Sources'!$A:$E, 5, FALSE) -> TX | F22: =VLOOKUP($A22,'2020 Point Sources'!$A:$F, 6, FALSE) -> Harris | G22: =VLOOKUP($A22,'2020 Point Sources'!$I:$CD, 74, FALSE) -> 77536 | H22: =VLOOKUP($A22,'2020 Point Sources'!$I:$T, 12, FALSE) -> Support Activities for Rail Transportation | I22: =VLOOKUP($A22,'2020 Point Sources'!$I:$T, 11, FALSE) -> 488210 | J22: =VLOOKUP($A22,'2020 Point Sources'!$I:$AM, 25, FALSE) -> 28500201 | K22: =VLOOKUP($A22,'2020 Point Sources'!$I:$AM, 26, FALSE) -> Internal Combustion Engines Railroad Equipment Diesel Yard Locomotives | L22: =VLOOKUP($A22,'2020 Point Sources'!$I:$AM, 31, FALSE) -> Mobile - Locomotives | M22: =IF(X22>0, CONVERT((SUMIFS('2020 Point Sources'!BH:BH, '2020 Point Sources'!I:I, A22, '2020 Point Sources'!AY:AY, 1)+SUMIFS('2020 Point Sources'!BH:BH, '2020 Point Sources'!I:I, A22, '2020 Point Sources'!AY:AY, 7)+SUMIFS('2020 Point Sources'!BH:BH, '2020 Point Sources'!I:I, A22, '2020 Point Sources'!AY:AY, 9)), "ton", "g")/1000, "n/a") -> 1.25E-02 | N22: 3.56E-05 | O22: =IF(Y22>0, CONVERT((SUMIFS('2020 Point Sources'!BH:BH, '2020 Point Sources'!I:I, A22, '2020 Point Sources'!AY:AY, 2)+SUMIFS('2020 Point Sources'!BH:BH, '2020 Point Sources'!I:I, A22, '2020 Point Sources'!AY:AY, 3)+SUMIFS('2020 Point Sources'!BH:BH, '2020 Point Sources'!I:I, A22, '2020 Point Sources'!AY:AY, 4)+SUMIFS('2020 Point Sources'!BH:BH, '2020 Point Sources'!I:I, A22, '2020 Point Sources'!AY:AY, 5)+SUMIFS('2020 Point Sources'!BH:BH, '2020 Point Sources'!I:I, A22, '2020 Point Sources'!AY:AY, 6)++SUMIFS('2020 Point Sources'!BH:BH, '2020 Point Sources'!I:I, A22, '2020 Point Sources'!AY:AY, 8)++SUMIFS('2020 Point Sources'!BH:BH, '2020 Point Sources'!I:I, A22, '2020 Point Sources'!AY:AY, 99)), "ton", "g")/1000, "n/a") -> n/a | P22: n/a | Q22: 24 | R22: =IF(AND(S22>0, T22>0), IF(S22/T22 > 365, 365, S22/T22), INDEX('OES Summary'!C:C, MATCH(B22, 'OES Summary'!A:A, 0))) -> 350 | S22: =_xlfn.MAXIFS('2020 Point Sources'!CY:CY,'2020 Point Sources'!A:A, A22) -> 0 | T22: =_xlfn.MAXIFS('2020 Point Sources'!CZ:CZ,'2020 Point Sources'!A:A, A22) -> 0 | U22: =_xlfn.MAXIFS('2020 Point Sources'!DA:DA,'2020 Point Sources'!A:A, A22) -> 0 | V22: =_xlfn.MAXIFS('2020 Point Sources'!DB:DB,'2020 Point Sources'!A:A, A22) -> 0 | W22: =COUNTIF('2020 Point Sources'!A:A, A22) -> 1 | X22: =COUNTIFS('2020 Point Sources'!AY:AY, 1,'2020 Point Sources'!A:A, A22)+COUNTIFS('2020 Point Sources'!AY:AY, 7,'2020 Point Sources'!A:A, A22)+COUNTIFS('2020 Point Sources'!AY:AY, 9,'2020 Point Sources'!A:A, A22) -> 1 | Y22: =COUNTIFS('2020 Point Sources'!AY:AY, 2,'2020 Point Sources'!A:A, A22)+COUNTIFS('2020 Point Sources'!AY:AY, 3,'2020 Point Sources'!A:A, A22)+COUNTIFS('2020 Point Sources'!AY:AY, 4,'2020 Point Sources'!A:A, A22)+COUNTIFS('2020 Point Sources'!AY:AY, 5,'2020 Point Sources'!A:A, A22)+COUNTIFS('2020 Point Sources'!AY:AY, 6,'2020 Point Sources'!A:A, A22)+COUNTIFS('2020 Point Sources'!AY:AY, 8,'2020 Point Sources'!A:A, A22)+COUNTIFS('2020 Point Sources'!AY:AY, 99,'2020 Point Sources'!A:A, A22) -> 0
A23: 6421611 | B23: =VLOOKUP($A23, '2020 Point Sources'!$I:$AO, 32, FALSE) -> Manufacturing | C23: =VLOOKUP($A23,'2020 Point Sources'!$I:$J, 2, FALSE) -> PASADENA PLANT | D23: =VLOOKUP($A23,'2020 Point Sources'!$I:$CD, 73, FALSE) -> PASADENA | E23: =VLOOKUP($A23,'2020 Point Sources'!$A:$E, 5, FALSE) -> TX | F23: =VLOOKUP($A23,'2020 Point Sources'!$A:$F, 6, FALSE) -> Harris | G23: =VLOOKUP($A23,'2020 Point Sources'!$I:$CD, 74, FALSE) -> 77503 | H23: =VLOOKUP($A23,'2020 Point Sources'!$I:$T, 12, FALSE) -> Petrochemical Manufacturing | I23: =VLOOKUP($A23,'2020 Point Sources'!$I:$T, 11, FALSE) -> 325110 | J23: =VLOOKUP($A23,'2020 Point Sources'!$I:$AM, 25, FALSE) -> 30119799 | K23: =VLOOKUP($A23,'2020 Point Sources'!$I:$AM, 26, FALSE) -> Industrial Processes Chemical Manufacturing Butylene, Ethylene, Propylene, Olefin Production Other Not Classified | L23: =VLOOKUP($A23,'2020 Point Sources'!$I:$AM, 31, FALSE) -> Industrial Processes - Chemical Manuf | M23: =IF(X23>0, CONVERT((SUMIFS('2020 Point Sources'!BH:BH, '2020 Point Sources'!I:I, A23, '2020 Point Sources'!AY:AY, 1)+SUMIFS('2020 Point Sources'!BH:BH, '2020 Point Sources'!I:I, A23, '2020 Point Sources'!AY:AY, 7)+SUMIFS('2020 Point Sources'!BH:BH, '2020 Point Sources'!I:I, A23, '2020 Point Sources'!AY:AY, 9)), "ton", "g")/1000, "n/a") -> n/a | N23: n/a | O23: =IF(Y23>0, CONVERT((SUMIFS('2020 Point Sources'!BH:BH, '2020 Point Sources'!I:I, A23, '2020 Point Sources'!AY:AY, 2)+SUMIFS('2020 Point Sources'!BH:BH, '2020 Point Sources'!I:I, A23, '2020 Point Sources'!AY:AY, 3)+SUMIFS('2020 Point Sources'!BH:BH, '2020 Point Sources'!I:I, A23, '2020 Point Sources'!AY:AY, 4)+SUMIFS('2020 Point Sources'!BH:BH, '2020 Point Sources'!I:I, A23, '2020 Point Sources'!AY:AY, 5)+SUMIFS('2020 Point Sources'!BH:BH, '2020 Point Sources'!I:I, A23, '2020 Point Sources'!AY:AY, 6)++SUMIFS('2020 Point Sources'!BH:BH, '2020 Point Sources'!I:I, A23, '2020 Point Sources'!AY:AY, 8)++SUMIFS('2020 Point Sources'!BH:BH, '2020 Point Sources'!I:I, A23, '2020 Point Sources'!AY:AY, 99)), "ton", "g")/1000, "n/a") -> 9.48E+01 | P23: 2.597E-01 | Q23: 24 | R23: =IF(AND(S23>0, T23>0), IF(S23/T23 > 365, 365, S23/T23), INDEX('OES Summary'!C:C, MATCH(B23, 'OES Summary'!A:A, 0))) -> 365 | S23: =_xlfn.MAXIFS('2020 Point Sources'!CY:CY,'2020 Point Sources'!A:A, A23) -> 8760 | T23: =_xlfn.MAXIFS('2020 Point Sources'!CZ:CZ,'2020 Point Sources'!A:A, A23) -> 24 | U23: =_xlfn.MAXIFS('2020 Point Sources'!DA:DA,'2020 Point Sources'!A:A, A23) -> 7 | V23: =_xlfn.MAXIFS('2020 Point Sources'!DB:DB,'2020 Point Sources'!A:A, A23) -> 52 | W23: =COUNTIF('2020 Point Sources'!A:A, A23) -> 2 | X23: =COUNTIFS('2020 Point Sources'!AY:AY, 1,'2020 Point Sources'!A:A, A23)+COUNTIFS('2020 Point Sources'!AY:AY, 7,'2020 Point Sources'!A:A, A23)+COUNTIFS('2020 Point Sources'!AY:AY, 9,'2020 Point Sources'!A:A, A23) -> 0 | Y23: =COUNTIFS('2020 Point Sources'!AY:AY, 2,'2020 Point Sources'!A:A, A23)+COUNTIFS('2020 Point Sources'!AY:AY, 3,'2020 Point Sources'!A:A, A23)+COUNTIFS('2020 Point Sources'!AY:AY, 4,'2020 Point Sources'!A:A, A23)+COUNTIFS('2020 Point Sources'!AY:AY, 5,'2020 Point Sources'!A:A, A23)+COUNTIFS('2020 Point Sources'!AY:AY, 6,'2020 Point Sources'!A:A, A23)+COUNTIFS('2020 Point Sources'!AY:AY, 8,'2020 Point Sources'!A:A, A23)+COUNTIFS('2020 Point Sources'!AY:AY, 99,'2020 Point Sources'!A:A, A23) -> 2
A24: 6445411 | B24: =VLOOKUP($A24, '2020 Point Sources'!$I:$AO, 32, FALSE) -> Manufacturing | C24: =VLOOKUP($A24,'2020 Point Sources'!$I:$J, 2, FALSE) -> BASF TOTAL NAFTA REGION OLEFINS COMPLEX | D24: =VLOOKUP($A24,'2020 Point Sources'!$I:$CD, 73, FALSE) -> PORT ARTHUR | E24: =VLOOKUP($A24,'2020 Point Sources'!$A:$E, 5, FALSE) -> TX | F24: =VLOOKUP($A24,'2020 Point Sources'!$A:$F, 6, FALSE) -> Jefferson | G24: =VLOOKUP($A24,'2020 Point Sources'!$I:$CD, 74, FALSE) -> 77640 | H24: =VLOOKUP($A24,'2020 Point Sources'!$I:$T, 12, FALSE) -> Petrochemical Manufacturing | I24: =VLOOKUP($A24,'2020 Point Sources'!$I:$T, 11, FALSE) -> 325110 | J24: =VLOOKUP($A24,'2020 Point Sources'!$I:$AM, 25, FALSE) -> 30190023 | K24: =VLOOKUP($A24,'2020 Point Sources'!$I:$AM, 26, FALSE) -> Industrial Processes Chemical Manufacturing Fuel Fired Equipment Flare: Natural Gas | L24: =VLOOKUP($A24,'2020 Point Sources'!$I:$AM, 31, FALSE) -> Industrial Processes - Chemical Manuf | M24: =IF(X24>0, CONVERT((SUMIFS('2020 Point Sources'!BH:BH, '2020 Point Sources'!I:I, A24, '2020 Point Sources'!AY:AY, 1)+SUMIFS('2020 Point Sources'!BH:BH, '2020 Point Sources'!I:I, A24, '2020 Point Sources'!AY:AY, 7)+SUMIFS('2020 Point Sources'!BH:BH, '2020 Point Sources'!I:I, A24, '2020 Point Sources'!AY:AY, 9)), "ton", "g")/1000, "n/a") -> 2.74E+03 | N24: 7.50E+00 | O24: =IF(Y24>0, CONVERT((SUMIFS('2020 Point Sources'!BH:BH, '2020 Point Sources'!I:I, A24, '2020 Point Sources'!AY:AY, 2)+SUMIFS('2020 Point Sources'!BH:BH, '2020 Point Sources'!I:I, A24, '2020 Point Sources'!AY:AY, 3)+SUMIFS('2020 Point Sources'!BH:BH, '2020 Point Sources'!I:I, A24, '2020 Point Sources'!AY:AY, 4)+SUMIFS('2020 Point Sources'!BH:BH, '2020 Point Sources'!I:I, A24, '2020 Point Sources'!AY:AY, 5)+SUMIFS('2020 Point Sources'!BH:BH, '2020 Point Sources'!I:I, A24, '2020 Point Sources'!AY:AY, 6)++SUMIFS('2020 Point Sources'!BH:BH, '2020 Point Sources'!I:I, A24, '2020 Point Sources'!AY:AY, 8)++SUMIFS('2020 Point Sources'!BH:BH, '2020 Point Sources'!I:I, A24, '2020 Point Sources'!AY:AY, 99)), "ton", "g")/1000, "n/a") -> 4.70E+03 | P24: 1.287E+01 | Q24: 24 | R24: =IF(AND(S24>0, T24>0), IF(S24/T24 > 365, 365, S24/T24), INDEX('OES Summary'!C:C, MATCH(B24, 'OES Summary'!A:A, 0))) -> 365 | S24: =_xlfn.MAXIFS('2020 Point Sources'!CY:CY,'2020 Point Sources'!A:A, A24) -> 8760 | T24: =_xlfn.MAXIFS('2020 Point Sources'!CZ:CZ,'2020 Point Sources'!A:A, A24) -> 24 | U24: =_xlfn.MAXIFS('2020 Point Sources'!DA:DA,'2020 Point Sources'!A:A, A24) -> 7 | V24: =_xlfn.MAXIFS('2020 Point Sources'!DB:DB,'2020 Point Sources'!A:A, A24) -> 52 | W24: =COUNTIF('2020 Point Sources'!A:A, A24) -> 13 | X24: =COUNTIFS('2020 Point Sources'!AY:AY, 1,'2020 Point Sources'!A:A, A24)+COUNTIFS('2020 Point Sources'!AY:AY, 7,'2020 Point Sources'!A:A, A24)+COUNTIFS('2020 Point Sources'!AY:AY, 9,'2020 Point Sources'!A:A, A24) -> 5 | Y24: =COUNTIFS('2020 Point Sources'!AY:AY, 2,'2020 Point Sources'!A:A, A24)+COUNTIFS('2020 Point Sources'!AY:AY, 3,'2020 Point Sources'!A:A, A24)+COUNTIFS('2020 Point Sources'!AY:AY, 4,'2020 Point Sources'!A:A, A24)+COUNTIFS('2020 Point Sources'!AY:AY, 5,'2020 Point Sources'!A:A, A24)+COUNTIFS('2020 Point Sources'!AY:AY, 6,'2020 Point Sources'!A:A, A24)+COUNTIFS('2020 Point Sources'!AY:AY, 8,'2020 Point Sources'!A:A, A24)+COUNTIFS('2020 Point Sources'!AY:AY, 99,'2020 Point Sources'!A:A, A24) -> 8
A25: 4056511 | B25: =VLOOKUP($A25, '2020 Point Sources'!$I:$AO, 32, FALSE) -> Manufacturing | C25: =VLOOKUP($A25,'2020 Point Sources'!$I:$J, 2, FALSE) -> BAYTOWN OLEFINS PLANT | D25: =VLOOKUP($A25,'2020 Point Sources'!$I:$CD, 73, FALSE) -> BAYTOWN | E25: =VLOOKUP($A25,'2020 Point Sources'!$A:$E, 5, FALSE) -> TX | F25: =VLOOKUP($A25,'2020 Point Sources'!$A:$F, 6, FALSE) -> Harris | G25: =VLOOKUP($A25,'2020 Point Sources'!$I:$CD, 74, FALSE) -> 77520 | H25: =VLOOKUP($A25,'2020 Point Sources'!$I:$T, 12, FALSE) -> Petrochemical Manufacturing | I25: =VLOOKUP($A25,'2020 Point Sources'!$I:$T, 11, FALSE) -> 325110 | J25: =VLOOKUP($A25,'2020 Point Sources'!$I:$AM, 25, FALSE) -> 40301198 | K25: =VLOOKUP($A25,'2020 Point Sources'!$I:$AM, 26, FALSE) -> Chemical Evaporation Petroleum Product Storage at Refineries Floating Roof Tanks (Varying Sizes) Other Product: Breathing Loss: 67000 Bbl. Size | L25: =VLOOKUP($A25,'2020 Point Sources'!$I:$AM, 31, FALSE) -> Industrial Processes - Storage and Transfer | M25: =IF(X25>0, CONVERT((SUMIFS('2020 Point Sources'!BH:BH, '2020 Point Sources'!I:I, A25, '2020 Point Sources'!AY:AY, 1)+SUMIFS('2020 Point Sources'!BH:BH, '2020 Point Sources'!I:I, A25, '2020 Point Sources'!AY:AY, 7)+SUMIFS('2020 Point Sources'!BH:BH, '2020 Point Sources'!I:I, A25, '2020 Point Sources'!AY:AY, 9)), "ton", "g")/1000, "n/a") -> 5.45E+03 | N25: 1.49E+01 | O25: =IF(Y25>0, CONVERT((SUMIFS('2020 Point Sources'!BH:BH, '2020 Point Sources'!I:I, A25, '2020 Point Sources'!AY:AY, 2)+SUMIFS('2020 Point Sources'!BH:BH, '2020 Point Sources'!I:I, A25, '2020 Point Sources'!AY:AY, 3)+SUMIFS('2020 Point Sources'!BH:BH, '2020 Point Sources'!I:I, A25, '2020 Point Sources'!AY:AY, 4)+SUMIFS('2020 Point Sources'!BH:BH, '2020 Point Sources'!I:I, A25, '2020 Point Sources'!AY:AY, 5)+SUMIFS('2020 Point Sources'!BH:BH, '2020 Point Sources'!I:I, A25, '2020 Point Sources'!AY:AY, 6)++SUMIFS('2020 Point Sources'!BH:BH, '2020 Point Sources'!I:I, A25, '2020 Point Sources'!AY:AY, 8)++SUMIFS('2020 Point Sources'!BH:BH, '2020 Point Sources'!I:I, A25, '2020 Point Sources'!AY:AY, 99)), "ton", "g")/1000, "n/a") -> 1.47E+04 | P25: 4.022E+01 | Q25: 24 | R25: =IF(AND(S25>0, T25>0), IF(S25/T25 > 365, 365, S25/T25), INDEX('OES Summary'!C:C, MATCH(B25, 'OES Summary'!A:A, 0))) -> 365 | S25: =_xlfn.MAXIFS('2020 Point Sources'!CY:CY,'2020 Point Sources'!A:A, A25) -> 8760 | T25: =_xlfn.MAXIFS('2020 Point Sources'!CZ:CZ,'2020 Point Sources'!A:A, A25) -> 24 | U25: =_xlfn.MAXIFS('2020 Point Sources'!DA:DA,'2020 Point Sources'!A:A, A25) -> 7 | V25: =_xlfn.MAXIFS('2020 Point Sources'!DB:DB,'2020 Point Sources'!A:A, A25) -> 52 | W25: =COUNTIF('2020 Point Sources'!A:A, A25) -> 51 | X25: =COUNTIFS('2020 Point Sources'!AY:AY, 1,'2020 Point Sources'!A:A, A25)+COUNTIFS('2020 Point Sources'!AY:AY, 7,'2020 Point Sources'!A:A, A25)+COUNTIFS('2020 Point Sources'!AY:AY, 9,'2020 Point Sources'!A:A, A25) -> 4 | Y25: =COUNTIFS('2020 Point Sources'!AY:AY, 2,'2020 Point Sources'!A:A, A25)+COUNTIFS('2020 Point Sources'!AY:AY, 3,'2020 Point Sources'!A:A, A25)+COUNTIFS('2020 Point Sources'!AY:AY, 4,'2020 Point Sources'!A:A, A25)+COUNTIFS('2020 Point Sources'!AY:AY, 5,'2020 Point Sources'!A:A, A25)+COUNTIFS('2020 Point Sources'!AY:AY, 6,'2020 Point Sources'!A:A, A25)+COUNTIFS('2020 Point Sources'!AY:AY, 8,'2020 Point Sources'!A:A, A25)+COUNTIFS('2020 Point Sources'!AY:AY, 99,'2020 Point Sources'!A:A, A25) -> 47
A26: 7247711 | B26: =VLOOKUP($A26, '2020 Point Sources'!$I:$AO, 32, FALSE) -> Manufacturing | C26: =VLOOKUP($A26,'2020 Point Sources'!$I:$J, 2, FALSE) -> BP Products North America Inc Whiting R | D26: =VLOOKUP($A26,'2020 Point Sources'!$I:$CD, 73, FALSE) -> Whiting | E26: =VLOOKUP($A26,'2020 Point Sources'!$A:$E, 5, FALSE) -> IN | F26: =VLOOKUP($A26,'2020 Point Sources'!$A:$F, 6, FALSE) -> Lake | G26: =VLOOKUP($A26,'2020 Point Sources'!$I:$CD, 74, FALSE) -> 46394 | H26: =VLOOKUP($A26,'2020 Point Sources'!$I:$T, 12, FALSE) -> Petroleum RefineriesT | I26: =VLOOKUP($A26,'2020 Point Sources'!$I:$T, 11, FALSE) -> 32411 | J26: =VLOOKUP($A26,'2020 Point Sources'!$I:$AM, 25, FALSE) -> 30600701 | K26: =VLOOKUP($A26,'2020 Point Sources'!$I:$AM, 26, FALSE) -> Industrial Processes Petroleum Industry Cooling Towers All Not Elsewhere Classified | L26: =VLOOKUP($A26,'2020 Point Sources'!$I:$AM, 31, FALSE) -> Industrial Processes - Petroleum Refineries | M26: =IF(X26>0, CONVERT((SUMIFS('2020 Point Sources'!BH:BH, '2020 Point Sources'!I:I, A26, '2020 Point Sources'!AY:AY, 1)+SUMIFS('2020 Point Sources'!BH:BH, '2020 Point Sources'!I:I, A26, '2020 Point Sources'!AY:AY, 7)+SUMIFS('2020 Point Sources'!BH:BH, '2020 Point Sources'!I:I, A26, '2020 Point Sources'!AY:AY, 9)), "ton", "g")/1000, "n/a") -> 6.35E+01 | N26: 1.81E-01 | O26: =IF(Y26>0, CONVERT((SUMIFS('2020 Point Sources'!BH:BH, '2020 Point Sources'!I:I, A26, '2020 Point Sources'!AY:AY, 2)+SUMIFS('2020 Point Sources'!BH:BH, '2020 Point Sources'!I:I, A26, '2020 Point Sources'!AY:AY, 3)+SUMIFS('2020 Point Sources'!BH:BH, '2020 Point Sources'!I:I, A26, '2020 Point Sources'!AY:AY, 4)+SUMIFS('2020 Point Sources'!BH:BH, '2020 Point Sources'!I:I, A26, '2020 Point Sources'!AY:AY, 5)+SUMIFS('2020 Point Sources'!BH:BH, '2020 Point Sources'!I:I, A26, '2020 Point Sources'!AY:AY, 6)++SUMIFS('2020 Point Sources'!BH:BH, '2020 Point Sources'!I:I, A26, '2020 Point Sources'!AY:AY, 8)++SUMIFS('2020 Point Sources'!BH:BH, '2020 Point Sources'!I:I, A26, '2020 Point Sources'!AY:AY, 99)), "ton", "g")/1000, "n/a") -> 1.18E+02 | P26: 3.370E-01 | Q26: 24 | R26: =IF(AND(S26>0, T26>0), IF(S26/T26 > 365, 365, S26/T26), INDEX('OES Summary'!C:C, MATCH(B26, 'OES Summary'!A:A, 0))) -> 350 | S26: =_xlfn.MAXIFS('2020 Point Sources'!CY:CY,'2020 Point Sources'!A:A, A26) -> 0 | T26: =_xlfn.MAXIFS('2020 Point Sources'!CZ:CZ,'2020 Point Sources'!A:A, A26) -> 0 | U26: =_xlfn.MAXIFS('2020 Point Sources'!DA:DA,'2020 Point Sources'!A:A, A26) -> 0 | V26: =_xlfn.MAXIFS('2020 Point Sources'!DB:DB,'2020 Point Sources'!A:A, A26) -> 0 | W26: =COUNTIF('2020 Point Sources'!A:A, A26) -> 2 | X26: =COUNTIFS('2020 Point Sources'!AY:AY, 1,'2020 Point Sources'!A:A, A26)+COUNTIFS('2020 Point Sources'!AY:AY, 7,'2020 Point Sources'!A:A, A26)+COUNTIFS('2020 Point Sources'!AY:AY, 9,'2020 Point Sources'!A:A, A26) -> 1 | Y26: =COUNTIFS('2020 Point Sources'!AY:AY, 2,'2020 Point Sources'!A:A, A26)+COUNTIFS('2020 Point Sources'!AY:AY, 3,'2020 Point Sources'!A:A, A26)+COUNTIFS('2020 Point Sources'!AY:AY, 4,'2020 Point Sources'!A:A, A26)+COUNTIFS('2020 Point Sources'!AY:AY, 5,'2020 Point Sources'!A:A, A26)+COUNTIFS('2020 Point Sources'!AY:AY, 6,'2020 Point Sources'!A:A, A26)+COUNTIFS('2020 Point Sources'!AY:AY, 8,'2020 Point Sources'!A:A, A26)+COUNTIFS('2020 Point Sources'!AY:AY, 99,'2020 Point Sources'!A:A, A26) -> 1
A27: 8418011 | B27: =VLOOKUP($A27, '2020 Point Sources'!$I:$AO, 32, FALSE) -> Manufacturing | C27: =VLOOKUP($A27,'2020 Point Sources'!$I:$J, 2, FALSE) -> BP-Husky Refining LLC (0448020007) | D27: =VLOOKUP($A27,'2020 Point Sources'!$I:$CD, 73, FALSE) -> Oregon | E27: =VLOOKUP($A27,'2020 Point Sources'!$A:$E, 5, FALSE) -> OH | F27: =VLOOKUP($A27,'2020 Point Sources'!$A:$F, 6, FALSE) -> Lucas | G27: =VLOOKUP($A27,'2020 Point Sources'!$I:$CD, 74, FALSE) -> 43697 | H27: =VLOOKUP($A27,'2020 Point Sources'!$I:$T, 12, FALSE) -> Petroleum Refineries | I27: =VLOOKUP($A27,'2020 Point Sources'!$I:$T, 11, FALSE) -> 324110 | J27: =VLOOKUP($A27,'2020 Point Sources'!$I:$AM, 25, FALSE) -> 30600505 | K27: =VLOOKUP($A27,'2020 Point Sources'!$I:$AM, 26, FALSE) -> Industrial Processes Petroleum Industry Wastewater Treatment Wastewater Treatment without Separator | L27: =VLOOKUP($A27,'2020 Point Sources'!$I:$AM, 31, FALSE) -> Industrial Processes - Petroleum Refineries | M27: =IF(X27>0, CONVERT((SUMIFS('2020 Point Sources'!BH:BH, '2020 Point Sources'!I:I, A27, '2020 Point Sources'!AY:AY, 1)+SUMIFS('2020 Point Sources'!BH:BH, '2020 Point Sources'!I:I, A27, '2020 Point Sources'!AY:AY, 7)+SUMIFS('2020 Point Sources'!BH:BH, '2020 Point Sources'!I:I, A27, '2020 Point Sources'!AY:AY, 9)), "ton", "g")/1000, "n/a") -> 1.22E+01 | N27: 3.50E-02 | O27: =IF(Y27>0, CONVERT((SUMIFS('2020 Point Sources'!BH:BH, '2020 Point Sources'!I:I, A27, '2020 Point Sources'!AY:AY, 2)+SUMIFS('2020 Point Sources'!BH:BH, '2020 Point Sources'!I:I, A27, '2020 Point Sources'!AY:AY, 3)+SUMIFS('2020 Point Sources'!BH:BH, '2020 Point Sources'!I:I, A27, '2020 Point Sources'!AY:AY, 4)+SUMIFS('2020 Point Sources'!BH:BH, '2020 Point Sources'!I:I, A27, '2020 Point Sources'!AY:AY, 5)+SUMIFS('2020 Point Sources'!BH:BH, '2020 Point Sources'!I:I, A27, '2020 Point Sources'!AY:AY, 6)++SUMIFS('2020 Point Sources'!BH:BH, '2020 Point Sources'!I:I, A27, '2020 Point Sources'!AY:AY, 8)++SUMIFS('2020 Point Sources'!BH:BH, '2020 Point Sources'!I:I, A27, '2020 Point Sources'!AY:AY, 99)), "ton", "g")/1000, "n/a") -> 2.36E+02 | P27: 6.739E-01 | Q27: 24 | R27: =IF(AND(S27>0, T27>0), IF(S27/T27 > 365, 365, S27/T27), INDEX('OES Summary'!C:C, MATCH(B27, 'OES Summary'!A:A, 0))) -> 350 | S27: =_xlfn.MAXIFS('2020 Point Sources'!CY:CY,'2020 Point Sources'!A:A, A27) -> 0 | T27: =_xlfn.MAXIFS('2020 Point Sources'!CZ:CZ,'2020 Point Sources'!A:A, A27) -> 0 | U27: =_xlfn.MAXIFS('2020 Point Sources'!DA:DA,'2020 Point Sources'!A:A, A27) -> 0 | V27: =_xlfn.MAXIFS('2020 Point Sources'!DB:DB,'2020 Point Sources'!A:A, A27) -> 0 | W27: =COUNTIF('2020 Point Sources'!A:A, A27) -> 2 | X27: =COUNTIFS('2020 Point Sources'!AY:AY, 1,'2020 Point Sources'!A:A, A27)+COUNTIFS('2020 Point Sources'!AY:AY, 7,'2020 Point Sources'!A:A, A27)+COUNTIFS('2020 Point Sources'!AY:AY, 9,'2020 Point Sources'!A:A, A27) -> 1 | Y27: =COUNTIFS('2020 Point Sources'!AY:AY, 2,'2020 Point Sources'!A:A, A27)+COUNTIFS('2020 Point Sources'!AY:AY, 3,'2020 Point Sources'!A:A, A27)+COUNTIFS('2020 Point Sources'!AY:AY, 4,'2020 Point Sources'!A:A, A27)+COUNTIFS('2020 Point Sources'!AY:AY, 5,'2020 Point Sources'!A:A, A27)+COUNTIFS('2020 Point Sources'!AY:AY, 6,'2020 Point Sources'!A:A, A27)+COUNTIFS('2020 Point Sources'!AY:AY, 8,'2020 Point Sources'!A:A, A27)+COUNTIFS('2020 Point Sources'!AY:AY, 99,'2020 Point Sources'!A:A, A27) -> 1
A28: 4086111 | B28: =VLOOKUP($A28, '2020 Point Sources'!$I:$AO, 32, FALSE) -> Manufacturing | C28: =VLOOKUP($A28,'2020 Point Sources'!$I:$J, 2, FALSE) -> CHEVRON PRODUCTS CO. | D28: =VLOOKUP($A28,'2020 Point Sources'!$I:$CD, 73, FALSE) -> EL SEGUNDO | E28: =VLOOKUP($A28,'2020 Point Sources'!$A:$E, 5, FALSE) -> CA | F28: =VLOOKUP($A28,'2020 Point Sources'!$A:$F, 6, FALSE) -> Los Angeles | G28: =VLOOKUP($A28,'2020 Point Sources'!$I:$CD, 74, FALSE) -> 90245 | H28: =VLOOKUP($A28,'2020 Point Sources'!$I:$T, 12, FALSE) -> Petroleum Refineries | I28: =VLOOKUP($A28,'2020 Point Sources'!$I:$T, 11, FALSE) -> 324110 | J28: =VLOOKUP($A28,'2020 Point Sources'!$I:$AM, 25, FALSE) -> 20200201 | K28: =VLOOKUP($A28,'2020 Point Sources'!$I:$AM, 26, FALSE) -> Internal Combustion Engines Industrial Natural Gas Turbine | L28: =VLOOKUP($A28,'2020 Point Sources'!$I:$AM, 31, FALSE) -> Fuel Comb - Industrial Boilers, ICEs - Natural Gas | M28: =IF(X28>0, CONVERT((SUMIFS('2020 Point Sources'!BH:BH, '2020 Point Sources'!I:I, A28, '2020 Point Sources'!AY:AY, 1)+SUMIFS('2020 Point Sources'!BH:BH, '2020 Point Sources'!I:I, A28, '2020 Point Sources'!AY:AY, 7)+SUMIFS('2020 Point Sources'!BH:BH, '2020 Point Sources'!I:I, A28, '2020 Point Sources'!AY:AY, 9)), "ton", "g")/1000, "n/a") -> 7.03E+00 | N28: 1.93E-02 | O28: =IF(Y28>0, CONVERT((SUMIFS('2020 Point Sources'!BH:BH, '2020 Point Sources'!I:I, A28, '2020 Point Sources'!AY:AY, 2)+SUMIFS('2020 Point Sources'!BH:BH, '2020 Point Sources'!I:I, A28, '2020 Point Sources'!AY:AY, 3)+SUMIFS('2020 Point Sources'!BH:BH, '2020 Point Sources'!I:I, A28, '2020 Point Sources'!AY:AY, 4)+SUMIFS('2020 Point Sources'!BH:BH, '2020 Point Sources'!I:I, A28, '2020 Point Sources'!AY:AY, 5)+SUMIFS('2020 Point Sources'!BH:BH, '2020 Point Sources'!I:I, A28, '2020 Point Sources'!AY:AY, 6)++SUMIFS('2020 Point Sources'!BH:BH, '2020 Point Sources'!I:I, A28, '2020 Point Sources'!AY:AY, 8)++SUMIFS('2020 Point Sources'!BH:BH, '2020 Point Sources'!I:I, A28, '2020 Point Sources'!AY:AY, 99)), "ton", "g")/1000, "n/a") -> n/a | P28: n/a | Q28: 24 | R28: =IF(AND(S28>0, T28>0), IF(S28/T28 > 365, 365, S28/T28), INDEX('OES Summary'!C:C, MATCH(B28, 'OES Summary'!A:A, 0))) -> 364 | S28: =_xlfn.MAXIFS('2020 Point Sources'!CY:CY,'2020 Point Sources'!A:A, A28) -> 8736 | T28: =_xlfn.MAXIFS('2020 Point Sources'!CZ:CZ,'2020 Point Sources'!A:A, A28) -> 24 | U28: =_xlfn.MAXIFS('2020 Point Sources'!DA:DA,'2020 Point Sources'!A:A, A28) -> 7 | V28: =_xlfn.MAXIFS('2020 Point Sources'!DB:DB,'2020 Point Sources'!A:A, A28) -> 52 | W28: =COUNTIF('2020 Point Sources'!A:A, A28) -> 171 | X28: =COUNTIFS('2020 Point Sources'!AY:AY, 1,'2020 Point Sources'!A:A, A28)+COUNTIFS('2020 Point Sources'!AY:AY, 7,'2020 Point Sources'!A:A, A28)+COUNTIFS('2020 Point Sources'!AY:AY, 9,'2020 Point Sources'!A:A, A28) -> 171 | Y28: =COUNTIFS('2020 Point Sources'!AY:AY, 2,'2020 Point Sources'!A:A, A28)+COUNTIFS('2020 Point Sources'!AY:AY, 3,'2020 Point Sources'!A:A, A28)+COUNTIFS('2020 Point Sources'!AY:AY, 4,'2020 Point Sources'!A:A, A28)+COUNTIFS('2020 Point Sources'!AY:AY, 5,'2020 Point Sources'!A:A, A28)+COUNTIFS('2020 Point Sources'!AY:AY, 6,'2020 Point Sources'!A:A, A28)+COUNTIFS('2020 Point Sources'!AY:AY, 8,'2020 Point Sources'!A:A, A28)+COUNTIFS('2020 Point Sources'!AY:AY, 99,'2020 Point Sources'!A:A, A28) -> 0
A29: 8384311 | B29: =VLOOKUP($A29, '2020 Point Sources'!$I:$AO, 32, FALSE) -> Manufacturing | C29: =VLOOKUP($A29,'2020 Point Sources'!$I:$J, 2, FALSE) -> CHEVRON TEXACO PRODUCTS COMPANY, PASCAGO | D29: =VLOOKUP($A29,'2020 Point Sources'!$I:$CD, 73, FALSE) -> PASCAGOULA | E29: =VLOOKUP($A29,'2020 Point Sources'!$A:$E, 5, FALSE) -> MS | F29: =VLOOKUP($A29,'2020 Point Sources'!$A:$F, 6, FALSE) -> Jackson | G29: =VLOOKUP($A29,'2020 Point Sources'!$I:$CD, 74, FALSE) -> 39581 | H29: =VLOOKUP($A29,'2020 Point Sources'!$I:$T, 12, FALSE) -> Petroleum RefineriesT | I29: =VLOOKUP($A29,'2020 Point Sources'!$I:$T, 11, FALSE) -> 32411 | J29: =VLOOKUP($A29,'2020 Point Sources'!$I:$AM, 25, FALSE) -> 30688801 | K29: =VLOOKUP($A29,'2020 Point Sources'!$I:$AM, 26, FALSE) -> Industrial Processes Petroleum Industry Fugitive Emissions Other Not Elsewhere Classified | L29: =VLOOKUP($A29,'2020 Point Sources'!$I:$AM, 31, FALSE) -> Industrial Processes - Petroleum Refineries | M29: =IF(X29>0, CONVERT((SUMIFS('2020 Point Sources'!BH:BH, '2020 Point Sources'!I:I, A29, '2020 Point Sources'!AY:AY, 1)+SUMIFS('2020 Point Sources'!BH:BH, '2020 Point Sources'!I:I, A29, '2020 Point Sources'!AY:AY, 7)+SUMIFS('2020 Point Sources'!BH:BH, '2020 Point Sources'!I:I, A29, '2020 Point Sources'!AY:AY, 9)), "ton", "g")/1000, "n/a") -> 6.49E+02 | N29: 1.86E+00 | O29: =IF(Y29>0, CONVERT((SUMIFS('2020 Point Sources'!BH:BH, '2020 Point Sources'!I:I, A29, '2020 Point Sources'!AY:AY, 2)+SUMIFS('2020 Point Sources'!BH:BH, '2020 Point Sources'!I:I, A29, '2020 Point Sources'!AY:AY, 3)+SUMIFS('2020 Point Sources'!BH:BH, '2020 Point Sources'!I:I, A29, '2020 Point Sources'!AY:AY, 4)+SUMIFS('2020 Point Sources'!BH:BH, '2020 Point Sources'!I:I, A29, '2020 Point Sources'!AY:AY, 5)+SUMIFS('2020 Point Sources'!BH:BH, '2020 Point Sources'!I:I, A29, '2020 Point Sources'!AY:AY, 6)++SUMIFS('2020 Point Sources'!BH:BH, '2020 Point Sources'!I:I, A29, '2020 Point Sources'!AY:AY, 8)++SUMIFS('2020 Point Sources'!BH:BH, '2020 Point Sources'!I:I, A29, '2020 Point Sources'!AY:AY, 99)), "ton", "g")/1000, "n/a") -> 1.63E+01 | P29: 4.666E-02 | Q29: 24 | R29: =IF(AND(S29>0, T29>0), IF(S29/T29 > 365, 365, S29/T29), INDEX('OES Summary'!C:C, MATCH(B29, 'OES Summary'!A:A, 0))) -> 350 | S29: =_xlfn.MAXIFS('2020 Point Sources'!CY:CY,'2020 Point Sources'!A:A, A29) -> 8784 | T29: =_xlfn.MAXIFS('2020 Point Sources'!CZ:CZ,'2020 Point Sources'!A:A, A29) -> 0 | U29: =_xlfn.MAXIFS('2020 Point Sources'!DA:DA,'2020 Point Sources'!A:A, A29) -> 0 | V29: =_xlfn.MAXIFS('2020 Point Sources'!DB:DB,'2020 Point Sources'!A:A, A29) -> 0 | W29: =COUNTIF('2020 Point Sources'!A:A, A29) -> 26 | X29: =COUNTIFS('2020 Point Sources'!AY:AY, 1,'2020 Point Sources'!A:A, A29)+COUNTIFS('2020 Point Sources'!AY:AY, 7,'2020 Point Sources'!A:A, A29)+COUNTIFS('2020 Point Sources'!AY:AY, 9,'2020 Point Sources'!A:A, A29) -> 18 | Y29: =COUNTIFS('2020 Point Sources'!AY:AY, 2,'2020 Point Sources'!A:A, A29)+COUNTIFS('2020 Point Sources'!AY:AY, 3,'2020 Point Sources'!A:A, A29)+COUNTIFS('2020 Point Sources'!AY:AY, 4,'2020 Point Sources'!A:A, A29)+COUNTIFS('2020 Point Sources'!AY:AY, 5,'2020 Point Sources'!A:A, A29)+COUNTIFS('2020 Point Sources'!AY:AY, 6,'2020 Point Sources'!A:A, A29)+COUNTIFS('2020 Point Sources'!AY:AY, 8,'2020 Point Sources'!A:A, A29)+COUNTIFS('2020 Point Sources'!AY:AY, 99,'2020 Point Sources'!A:A, A29) -> 8
A30: 4168511 | B30: =VLOOKUP($A30, '2020 Point Sources'!$I:$AO, 32, FALSE) -> Manufacturing | C30: =VLOOKUP($A30,'2020 Point Sources'!$I:$J, 2, FALSE) -> DEER PARK CHEMICALS | D30: =VLOOKUP($A30,'2020 Point Sources'!$I:$CD, 73, FALSE) -> DEER PARK | E30: =VLOOKUP($A30,'2020 Point Sources'!$A:$E, 5, FALSE) -> TX | F30: =VLOOKUP($A30,'2020 Point Sources'!$A:$F, 6, FALSE) -> Harris | G30: =VLOOKUP($A30,'2020 Point Sources'!$I:$CD, 74, FALSE) -> 77536 | H30: =VLOOKUP($A30,'2020 Point Sources'!$I:$T, 12, FALSE) -> Petroleum Refineries | I30: =VLOOKUP($A30,'2020 Point Sources'!$I:$T, 11, FALSE) -> 324110 | J30: =VLOOKUP($A30,'2020 Point Sources'!$I:$AM, 25, FALSE) -> 38500101 | K30: =VLOOKUP($A30,'2020 Point Sources'!$I:$AM, 26, FALSE) -> Industrial Processes Cooling Tower Process Cooling Mechanical Draft | L30: =VLOOKUP($A30,'2020 Point Sources'!$I:$AM, 31, FALSE) -> Industrial Processes - NEC | M30: =IF(X30>0, CONVERT((SUMIFS('2020 Point Sources'!BH:BH, '2020 Point Sources'!I:I, A30, '2020 Point Sources'!AY:AY, 1)+SUMIFS('2020 Point Sources'!BH:BH, '2020 Point Sources'!I:I, A30, '2020 Point Sources'!AY:AY, 7)+SUMIFS('2020 Point Sources'!BH:BH, '2020 Point Sources'!I:I, A30, '2020 Point Sources'!AY:AY, 9)), "ton", "g")/1000, "n/a") -> 1.95E+03 | N30: 5.34E+00 | O30: =IF(Y30>0, CONVERT((SUMIFS('2020 Point Sources'!BH:BH, '2020 Point Sources'!I:I, A30, '2020 Point Sources'!AY:AY, 2)+SUMIFS('2020 Point Sources'!BH:BH, '2020 Point Sources'!I:I, A30, '2020 Point Sources'!AY:AY, 3)+SUMIFS('2020 Point Sources'!BH:BH, '2020 Point Sources'!I:I, A30, '2020 Point Sources'!AY:AY, 4)+SUMIFS('2020 Point Sources'!BH:BH, '2020 Point Sources'!I:I, A30, '2020 Point Sources'!AY:AY, 5)+SUMIFS('2020 Point Sources'!BH:BH, '2020 Point Sources'!I:I, A30, '2020 Point Sources'!AY:AY, 6)++SUMIFS('2020 Point Sources'!BH:BH, '2020 Point Sources'!I:I, A30, '2020 Point Sources'!AY:AY, 8)++SUMIFS('2020 Point Sources'!BH:BH, '2020 Point Sources'!I:I, A30, '2020 Point Sources'!AY:AY, 99)), "ton", "g")/1000, "n/a") -> 1.33E+04 | P30: 3.635E+01 | Q30: 24 | R30: =IF(AND(S30>0, T30>0), IF(S30/T30 > 365, 365, S30/T30), INDEX('OES Summary'!C:C, MATCH(B30, 'OES Summary'!A:A, 0))) -> 365 | S30: =_xlfn.MAXIFS('2020 Point Sources'!CY:CY,'2020 Point Sources'!A:A, A30) -> 8760 | T30: =_xlfn.MAXIFS('2020 Point Sources'!CZ:CZ,'2020 Point Sources'!A:A, A30) -> 24 | U30: =_xlfn.MAXIFS('2020 Point Sources'!DA:DA,'2020 Point Sources'!A:A, A30) -> 7 | V30: =_xlfn.MAXIFS('2020 Point Sources'!DB:DB,'2020 Point Sources'!A:A, A30) -> 52 | W30: =COUNTIF('2020 Point Sources'!A:A, A30) -> 98 | X30: =COUNTIFS('2020 Point Sources'!AY:AY, 1,'2020 Point Sources'!A:A, A30)+COUNTIFS('2020 Point Sources'!AY:AY, 7,'2020 Point Sources'!A:A, A30)+COUNTIFS('2020 Point Sources'!AY:AY, 9,'2020 Point Sources'!A:A, A30) -> 27 | Y30: =COUNTIFS('2020 Point Sources'!AY:AY, 2,'2020 Point Sources'!A:A, A30)+COUNTIFS('2020 Point Sources'!AY:AY, 3,'2020 Point Sources'!A:A, A30)+COUNTIFS('2020 Point Sources'!AY:AY, 4,'2020 Point Sources'!A:A, A30)+COUNTIFS('2020 Point Sources'!AY:AY, 5,'2020 Point Sources'!A:A, A30)+COUNTIFS('2020 Point Sources'!AY:AY, 6,'2020 Point Sources'!A:A, A30)+COUNTIFS('2020 Point Sources'!AY:AY, 8,'2020 Point Sources'!A:A, A30)+COUNTIFS('2020 Point Sources'!AY:AY, 99,'2020 Point Sources'!A:A, A30) -> 71
A31: 16932311 | B31: =VLOOKUP($A31, '2020 Point Sources'!$I:$AO, 32, FALSE) -> Manufacturing | C31: =VLOOKUP($A31,'2020 Point Sources'!$I:$J, 2, FALSE) -> Deer Park3 | D31: =VLOOKUP($A31,'2020 Point Sources'!$I:$CD, 73, FALSE) -> Deer Park | E31: =VLOOKUP($A31,'2020 Point Sources'!$A:$E, 5, FALSE) -> TX | F31: =VLOOKUP($A31,'2020 Point Sources'!$A:$F, 6, FALSE) -> Harris | G31: =VLOOKUP($A31,'2020 Point Sources'!$I:$CD, 74, FALSE) -> 77536 | H31: =VLOOKUP($A31,'2020 Point Sources'!$I:$T, 12, FALSE) -> Support Activities for Rail Transportation | I31: =VLOOKUP($A31,'2020 Point Sources'!$I:$T, 11, FALSE) -> 488210 | J31: =VLOOKUP($A31,'2020 Point Sources'!$I:$AM, 25, FALSE) -> 28500201 | K31: =VLOOKUP($A31,'2020 Point Sources'!$I:$AM, 26, FALSE) -> Internal Combustion Engines Railroad Equipment Diesel Yard Locomotives | L31: =VLOOKUP($A31,'2020 Point Sources'!$I:$AM, 31, FALSE) -> Mobile - Locomotives | M31: =IF(X31>0, CONVERT((SUMIFS('2020 Point Sources'!BH:BH, '2020 Point Sources'!I:I, A31, '2020 Point Sources'!AY:AY, 1)+SUMIFS('2020 Point Sources'!BH:BH, '2020 Point Sources'!I:I, A31, '2020 Point Sources'!AY:AY, 7)+SUMIFS('2020 Point Sources'!BH:BH, '2020 Point Sources'!I:I, A31, '2020 Point Sources'!AY:AY, 9)), "ton", "g")/1000, "n/a") -> 1.25E-02 | N31: 3.56E-05 | O31: =IF(Y31>0, CONVERT((SUMIFS('2020 Point Sources'!BH:BH, '2020 Point Sources'!I:I, A31, '2020 Point Sources'!AY:AY, 2)+SUMIFS('2020 Point Sources'!BH:BH, '2020 Point Sources'!I:I, A31, '2020 Point Sources'!AY:AY, 3)+SUMIFS('2020 Point Sources'!BH:BH, '2020 Point Sources'!I:I, A31, '2020 Point Sources'!AY:AY, 4)+SUMIFS('2020 Point Sources'!BH:BH, '2020 Point Sources'!I:I, A31, '2020 Point Sources'!AY:AY, 5)+SUMIFS('2020 Point Sources'!BH:BH, '2020 Point Sources'!I:I, A31, '2020 Point Sources'!AY:AY, 6)++SUMIFS('2020 Point Sources'!BH:BH, '2020 Point Sources'!I:I, A31, '2020 Point Sources'!AY:AY, 8)++SUMIFS('2020 Point Sources'!BH:BH, '2020 Point Sources'!I:I, A31, '2020 Point Sources'!AY:AY, 99)), "ton", "g")/1000, "n/a") -> n/a | P31: n/a | Q31: 24 | R31: =IF(AND(S31>0, T31>0), IF(S31/T31 > 365, 365, S31/T31), INDEX('OES Summary'!C:C, MATCH(B31, 'OES Summary'!A:A, 0))) -> 350 | S31: =_xlfn.MAXIFS('2020 Point Sources'!CY:CY,'2020 Point Sources'!A:A, A31) -> 0 | T31: =_xlfn.MAXIFS('2020 Point Sources'!CZ:CZ,'2020 Point Sources'!A:A, A31) -> 0 | U31: =_xlfn.MAXIFS('2020 Point Sources'!DA:DA,'2020 Point Sources'!A:A, A31) -> 0 | V31: =_xlfn.MAXIFS('2020 Point Sources'!DB:DB,'2020 Point Sources'!A:A, A31) -> 0 | W31: =COUNTIF('2020 Point Sources'!A:A, A31) -> 1 | X31: =COUNTIFS('2020 Point Sources'!AY:AY, 1,'2020 Point Sources'!A:A, A31)+COUNTIFS('2020 Point Sources'!AY:AY, 7,'2020 Point Sources'!A:A, A31)+COUNTIFS('2020 Point Sources'!AY:AY, 9,'2020 Point Sources'!A:A, A31) -> 1 | Y31: =COUNTIFS('2020 Point Sources'!AY:AY, 2,'2020 Point Sources'!A:A, A31)+COUNTIFS('2020 Point Sources'!AY:AY, 3,'2020 Point Sources'!A:A, A31)+COUNTIFS('2020 Point Sources'!AY:AY, 4,'2020 Point Sources'!A:A, A31)+COUNTIFS('2020 Point Sources'!AY:AY, 5,'2020 Point Sources'!A:A, A31)+COUNTIFS('2020 Point Sources'!AY:AY, 6,'2020 Point Sources'!A:A, A31)+COUNTIFS('2020 Point Sources'!AY:AY, 8,'2020 Point Sources'!A:A, A31)+COUNTIFS('2020 Point Sources'!AY:AY, 99,'2020 Point Sources'!A:A, A31) -> 0
A32: 16932511 | B32: =VLOOKUP($A32, '2020 Point Sources'!$I:$AO, 32, FALSE) -> Manufacturing | C32: =VLOOKUP($A32,'2020 Point Sources'!$I:$J, 2, FALSE) -> Deer Park4 | D32: =VLOOKUP($A32,'2020 Point Sources'!$I:$CD, 73, FALSE) -> Deer Park | E32: =VLOOKUP($A32,'2020 Point Sources'!$A:$E, 5, FALSE) -> TX | F32: =VLOOKUP($A32,'2020 Point Sources'!$A:$F, 6, FALSE) -> Harris | G32: =VLOOKUP($A32,'2020 Point Sources'!$I:$CD, 74, FALSE) -> 77536 | H32: =VLOOKUP($A32,'2020 Point Sources'!$I:$T, 12, FALSE) -> Support Activities for Rail Transportation | I32: =VLOOKUP($A32,'2020 Point Sources'!$I:$T, 11, FALSE) -> 488210 | J32: =VLOOKUP($A32,'2020 Point Sources'!$I:$AM, 25, FALSE) -> 28500201 | K32: =VLOOKUP($A32,'2020 Point Sources'!$I:$AM, 26, FALSE) -> Internal Combustion Engines Railroad Equipment Diesel Yard Locomotives | L32: =VLOOKUP($A32,'2020 Point Sources'!$I:$AM, 31, FALSE) -> Mobile - Locomotives | M32: =IF(X32>0, CONVERT((SUMIFS('2020 Point Sources'!BH:BH, '2020 Point Sources'!I:I, A32, '2020 Point Sources'!AY:AY, 1)+SUMIFS('2020 Point Sources'!BH:BH, '2020 Point Sources'!I:I, A32, '2020 Point Sources'!AY:AY, 7)+SUMIFS('2020 Point Sources'!BH:BH, '2020 Point Sources'!I:I, A32, '2020 Point Sources'!AY:AY, 9)), "ton", "g")/1000, "n/a") -> 1.25E-02 | N32: 3.56E-05 | O32: =IF(Y32>0, CONVERT((SUMIFS('2020 Point Sources'!BH:BH, '2020 Point Sources'!I:I, A32, '2020 Point Sources'!AY:AY, 2)+SUMIFS('2020 Point Sources'!BH:BH, '2020 Point Sources'!I:I, A32, '2020 Point Sources'!AY:AY, 3)+SUMIFS('2020 Point Sources'!BH:BH, '2020 Point Sources'!I:I, A32, '2020 Point Sources'!AY:AY, 4)+SUMIFS('2020 Point Sources'!BH:BH, '2020 Point Sources'!I:I, A32, '2020 Point Sources'!AY:AY, 5)+SUMIFS('2020 Point Sources'!BH:BH, '2020 Point Sources'!I:I, A32, '2020 Point Sources'!AY:AY, 6)++SUMIFS('2020 Point Sources'!BH:BH, '2020 Point Sources'!I:I, A32, '2020 Point Sources'!AY:AY, 8)++SUMIFS('2020 Point Sources'!BH:BH, '2020 Point Sources'!I:I, A32, '2020 Point Sources'!AY:AY, 99)), "ton", "g")/1000, "n/a") -> n/a | P32: n/a | Q32: 24 | R32: =IF(AND(S32>0, T32>0), IF(S32/T32 > 365, 365, S32/T32), INDEX('OES Summary'!C:C, MATCH(B32, 'OES Summary'!A:A, 0))) -> 350 | S32: =_xlfn.MAXIFS('2020 Point Sources'!CY:CY,'2020 Point Sources'!A:A, A32) -> 0 | T32: =_xlfn.MAXIFS('2020 Point Sources'!CZ:CZ,'2020 Point Sources'!A:A, A32) -> 0 | U32: =_xlfn.MAXIFS('2020 Point Sources'!DA:DA,'2020 Point Sources'!A:A, A32) -> 0 | V32: =_xlfn.MAXIFS('2020 Point Sources'!DB:DB,'2020 Point Sources'!A:A, A32) -> 0 | W32: =COUNTIF('2020 Point Sources'!A:A, A32) -> 1 | X32: =COUNTIFS('2020 Point Sources'!AY:AY, 1,'2020 Point Sources'!A:A, A32)+COUNTIFS('2020 Point Sources'!AY:AY, 7,'2020 Point Sources'!A:A, A32)+COUNTIFS('2020 Point Sources'!AY:AY, 9,'2020 Point Sources'!A:A, A32) -> 1 | Y32: =COUNTIFS('2020 Point Sources'!AY:AY, 2,'2020 Point Sources'!A:A, A32)+COUNTIFS('2020 Point Sources'!AY:AY, 3,'2020 Point Sources'!A:A, A32)+COUNTIFS('2020 Point Sources'!AY:AY, 4,'2020 Point Sources'!A:A, A32)+COUNTIFS('2020 Point Sources'!AY:AY, 5,'2020 Point Sources'!A:A, A32)+COUNTIFS('2020 Point Sources'!AY:AY, 6,'2020 Point Sources'!A:A, A32)+COUNTIFS('2020 Point Sources'!AY:AY, 8,'2020 Point Sources'!A:A, A32)+COUNTIFS('2020 Point Sources'!AY:AY, 99,'2020 Point Sources'!A:A, A32) -> 0
A33: 16932611 | B33: =VLOOKUP($A33, '2020 Point Sources'!$I:$AO, 32, FALSE) -> Manufacturing | C33: =VLOOKUP($A33,'2020 Point Sources'!$I:$J, 2, FALSE) -> Deer Park5 | D33: =VLOOKUP($A33,'2020 Point Sources'!$I:$CD, 73, FALSE) -> Deer Park | E33: =VLOOKUP($A33,'2020 Point Sources'!$A:$E, 5, FALSE) -> TX | F33: =VLOOKUP($A33,'2020 Point Sources'!$A:$F, 6, FALSE) -> Harris | G33: =VLOOKUP($A33,'2020 Point Sources'!$I:$CD, 74, FALSE) -> 77536 | H33: =VLOOKUP($A33,'2020 Point Sources'!$I:$T, 12, FALSE) -> Support Activities for Rail Transportation | I33: =VLOOKUP($A33,'2020 Point Sources'!$I:$T, 11, FALSE) -> 488210 | J33: =VLOOKUP($A33,'2020 Point Sources'!$I:$AM, 25, FALSE) -> 28500201 | K33: =VLOOKUP($A33,'2020 Point Sources'!$I:$AM, 26, FALSE) -> Internal Combustion Engines Railroad Equipment Diesel Yard Locomotives | L33: =VLOOKUP($A33,'2020 Point Sources'!$I:$AM, 31, FALSE) -> Mobile - Locomotives | M33: =IF(X33>0, CONVERT((SUMIFS('2020 Point Sources'!BH:BH, '2020 Point Sources'!I:I, A33, '2020 Point Sources'!AY:AY, 1)+SUMIFS('2020 Point Sources'!BH:BH, '2020 Point Sources'!I:I, A33, '2020 Point Sources'!AY:AY, 7)+SUMIFS('2020 Point Sources'!BH:BH, '2020 Point Sources'!I:I, A33, '2020 Point Sources'!AY:AY, 9)), "ton", "g")/1000, "n/a") -> 1.25E-02 | N33: 3.56E-05 | O33: =IF(Y33>0, CONVERT((SUMIFS('2020 Point Sources'!BH:BH, '2020 Point Sources'!I:I, A33, '2020 Point Sources'!AY:AY, 2)+SUMIFS('2020 Point Sources'!BH:BH, '2020 Point Sources'!I:I, A33, '2020 Point Sources'!AY:AY, 3)+SUMIFS('2020 Point Sources'!BH:BH, '2020 Point Sources'!I:I, A33, '2020 Point Sources'!AY:AY, 4)+SUMIFS('2020 Point Sources'!BH:BH, '2020 Point Sources'!I:I, A33, '2020 Point Sources'!AY:AY, 5)+SUMIFS('2020 Point Sources'!BH:BH, '2020 Point Sources'!I:I, A33, '2020 Point Sources'!AY:AY, 6)++SUMIFS('2020 Point Sources'!BH:BH, '2020 Point Sources'!I:I, A33, '2020 Point Sources'!AY:AY, 8)++SUMIFS('2020 Point Sources'!BH:BH, '2020 Point Sources'!I:I, A33, '2020 Point Sources'!AY:AY, 99)), "ton", "g")/1000, "n/a") -> n/a | P33: n/a | Q33: 24 | R33: =IF(AND(S33>0, T33>0), IF(S33/T33 > 365, 365, S33/T33), INDEX('OES Summary'!C:C, MATCH(B33, 'OES Summary'!A:A, 0))) -> 350 | S33: =_xlfn.MAXIFS('2020 Point Sources'!CY:CY,'2020 Point Sources'!A:A, A33) -> 0 | T33: =_xlfn.MAXIFS('2020 Point Sources'!CZ:CZ,'2020 Point Sources'!A:A, A33) -> 0 | U33: =_xlfn.MAXIFS('2020 Point Sources'!DA:DA,'2020 Point Sources'!A:A, A33) -> 0 | V33: =_xlfn.MAXIFS('2020 Point Sources'!DB:DB,'2020 Point Sources'!A:A, A33) -> 0 | W33: =COUNTIF('2020 Point Sources'!A:A, A33) -> 1 | X33: =COUNTIFS('2020 Point Sources'!AY:AY, 1,'2020 Point Sources'!A:A, A33)+COUNTIFS('2020 Point Sources'!AY:AY, 7,'2020 Point Sources'!A:A, A33)+COUNTIFS('2020 Point Sources'!AY:AY, 9,'2020 Point Sources'!A:A, A33) -> 1 | Y33: =COUNTIFS('2020 Point Sources'!AY:AY, 2,'2020 Point Sources'!A:A, A33)+COUNTIFS('2020 Point Sources'!AY:AY, 3,'2020 Point Sources'!A:A, A33)+COUNTIFS('2020 Point Sources'!AY:AY, 4,'2020 Point Sources'!A:A, A33)+COUNTIFS('2020 Point Sources'!AY:AY, 5,'2020 Point Sources'!A:A, A33)+COUNTIFS('2020 Point Sources'!AY:AY, 6,'2020 Point Sources'!A:A, A33)+COUNTIFS('2020 Point Sources'!AY:AY, 8,'2020 Point Sources'!A:A, A33)+COUNTIFS('2020 Point Sources'!AY:AY, 99,'2020 Point Sources'!A:A, A33) -> 0
A34: 16932711 | B34: =VLOOKUP($A34, '2020 Point Sources'!$I:$AO, 32, FALSE) -> Manufacturing | C34: =VLOOKUP($A34,'2020 Point Sources'!$I:$J, 2, FALSE) -> Deer Park6 | D34: =VLOOKUP($A34,'2020 Point Sources'!$I:$CD, 73, FALSE) -> Deer Park | E34: =VLOOKUP($A34,'2020 Point Sources'!$A:$E, 5, FALSE) -> TX | F34: =VLOOKUP($A34,'2020 Point Sources'!$A:$F, 6, FALSE) -> Harris | G34: =VLOOKUP($A34,'2020 Point Sources'!$I:$CD, 74, FALSE) -> 77571 | H34: =VLOOKUP($A34,'2020 Point Sources'!$I:$T, 12, FALSE) -> Support Activities for Rail Transportation | I34: =VLOOKUP($A34,'2020 Point Sources'!$I:$T, 11, FALSE) -> 488210 | J34: =VLOOKUP($A34,'2020 Point Sources'!$I:$AM, 25, FALSE) -> 28500201 | K34: =VLOOKUP($A34,'2020 Point Sources'!$I:$AM, 26, FALSE) -> Internal Combustion Engines Railroad Equipment Diesel Yard Locomotives | L34: =VLOOKUP($A34,'2020 Point Sources'!$I:$AM, 31, FALSE) -> Mobile - Locomotives | M34: =IF(X34>0, CONVERT((SUMIFS('2020 Point Sources'!BH:BH, '2020 Point Sources'!I:I, A34, '2020 Point Sources'!AY:AY, 1)+SUMIFS('2020 Point Sources'!BH:BH, '2020 Point Sources'!I:I, A34, '2020 Point Sources'!AY:AY, 7)+SUMIFS('2020 Point Sources'!BH:BH, '2020 Point Sources'!I:I, A34, '2020 Point Sources'!AY:AY, 9)), "ton", "g")/1000, "n/a") -> 1.25E-02 | N34: 3.56E-05 | O34: =IF(Y34>0, CONVERT((SUMIFS('2020 Point Sources'!BH:BH, '2020 Point Sources'!I:I, A34, '2020 Point Sources'!AY:AY, 2)+SUMIFS('2020 Point Sources'!BH:BH, '2020 Point Sources'!I:I, A34, '2020 Point Sources'!AY:AY, 3)+SUMIFS('2020 Point Sources'!BH:BH, '2020 Point Sources'!I:I, A34, '2020 Point Sources'!AY:AY, 4)+SUMIFS('2020 Point Sources'!BH:BH, '2020 Point Sources'!I:I, A34, '2020 Point Sources'!AY:AY, 5)+SUMIFS('2020 Point Sources'!BH:BH, '2020 Point Sources'!I:I, A34, '2020 Point Sources'!AY:AY, 6)++SUMIFS('2020 Point Sources'!BH:BH, '2020 Point Sources'!I:I, A34, '2020 Point Sources'!AY:AY, 8)++SUMIFS('2020 Point Sources'!BH:BH, '2020 Point Sources'!I:I, A34, '2020 Point Sources'!AY:AY, 99)), "ton", "g")/1000, "n/a") -> n/a | P34: n/a | Q34: 24 | R34: =IF(AND(S34>0, T34>0), IF(S34/T34 > 365, 365, S34/T34), INDEX('OES Summary'!C:C, MATCH(B34, 'OES Summary'!A:A, 0))) -> 350 | S34: =_xlfn.MAXIFS('2020 Point Sources'!CY:CY,'2020 Point Sources'!A:A, A34) -> 0 | T34: =_xlfn.MAXIFS('2020 Point Sources'!CZ:CZ,'2020 Point Sources'!A:A, A34) -> 0 | U34: =_xlfn.MAXIFS('2020 Point Sources'!DA:DA,'2020 Point Sources'!A:A, A34) -> 0 | V34: =_xlfn.MAXIFS('2020 Point Sources'!DB:DB,'2020 Point Sources'!A:A, A34) -> 0 | W34: =COUNTIF('2020 Point Sources'!A:A, A34) -> 1 | X34: =COUNTIFS('2020 Point Sources'!AY:AY, 1,'2020 Point Sources'!A:A, A34)+COUNTIFS('2020 Point Sources'!AY:AY, 7,'2020 Point Sources'!A:A, A34)+COUNTIFS('2020 Point Sources'!AY:AY, 9,'2020 Point Sources'!A:A, A34) -> 1 | Y34: =COUNTIFS('2020 Point Sources'!AY:AY, 2,'2020 Point Sources'!A:A, A34)+COUNTIFS('2020 Point Sources'!AY:AY, 3,'2020 Point Sources'!A:A, A34)+COUNTIFS('2020 Point Sources'!AY:AY, 4,'2020 Point Sources'!A:A, A34)+COUNTIFS('2020 Point Sources'!AY:AY, 5,'2020 Point Sources'!A:A, A34)+COUNTIFS('2020 Point Sources'!AY:AY, 6,'2020 Point Sources'!A:A, A34)+COUNTIFS('2020 Point Sources'!AY:AY, 8,'2020 Point Sources'!A:A, A34)+COUNTIFS('2020 Point Sources'!AY:AY, 99,'2020 Point Sources'!A:A, A34) -> 0
A35: 16911211 | B35: =VLOOKUP($A35, '2020 Point Sources'!$I:$AO, 32, FALSE) -> Manufacturing | C35: =VLOOKUP($A35,'2020 Point Sources'!$I:$J, 2, FALSE) -> Deer Park7 | D35: =VLOOKUP($A35,'2020 Point Sources'!$I:$CD, 73, FALSE) -> Deer Park | E35: =VLOOKUP($A35,'2020 Point Sources'!$A:$E, 5, FALSE) -> TX | F35: =VLOOKUP($A35,'2020 Point Sources'!$A:$F, 6, FALSE) -> Harris | G35: =VLOOKUP($A35,'2020 Point Sources'!$I:$CD, 74, FALSE) -> 77571 | H35: =VLOOKUP($A35,'2020 Point Sources'!$I:$T, 12, FALSE) -> Support Activities for Rail Transportation | I35: =VLOOKUP($A35,'2020 Point Sources'!$I:$T, 11, FALSE) -> 488210 | J35: =VLOOKUP($A35,'2020 Point Sources'!$I:$AM, 25, FALSE) -> 28500201 | K35: =VLOOKUP($A35,'2020 Point Sources'!$I:$AM, 26, FALSE) -> Internal Combustion Engines Railroad Equipment Diesel Yard Locomotives | L35: =VLOOKUP($A35,'2020 Point Sources'!$I:$AM, 31, FALSE) -> Mobile - Locomotives | M35: =IF(X35>0, CONVERT((SUMIFS('2020 Point Sources'!BH:BH, '2020 Point Sources'!I:I, A35, '2020 Point Sources'!AY:AY, 1)+SUMIFS('2020 Point Sources'!BH:BH, '2020 Point Sources'!I:I, A35, '2020 Point Sources'!AY:AY, 7)+SUMIFS('2020 Point Sources'!BH:BH, '2020 Point Sources'!I:I, A35, '2020 Point Sources'!AY:AY, 9)), "ton", "g")/1000, "n/a") -> 1.25E-02 | N35: 3.56E-05 | O35: =IF(Y35>0, CONVERT((SUMIFS('2020 Point Sources'!BH:BH, '2020 Point Sources'!I:I, A35, '2020 Point Sources'!AY:AY, 2)+SUMIFS('2020 Point Sources'!BH:BH, '2020 Point Sources'!I:I, A35, '2020 Point Sources'!AY:AY, 3)+SUMIFS('2020 Point Sources'!BH:BH, '2020 Point Sources'!I:I, A35, '2020 Point Sources'!AY:AY, 4)+SUMIFS('2020 Point Sources'!BH:BH, '2020 Point Sources'!I:I, A35, '2020 Point Sources'!AY:AY, 5)+SUMIFS('2020 Point Sources'!BH:BH, '2020 Point Sources'!I:I, A35, '2020 Point Sources'!AY:AY, 6)++SUMIFS('2020 Point Sources'!BH:BH, '2020 Point Sources'!I:I, A35, '2020 Point Sources'!AY:AY, 8)++SUMIFS('2020 Point Sources'!BH:BH, '2020 Point Sources'!I:I, A35, '2020 Point Sources'!AY:AY, 99)), "ton", "g")/1000, "n/a") -> n/a | P35: n/a | Q35: 24 | R35: =IF(AND(S35>0, T35>0), IF(S35/T35 > 365, 365, S35/T35), INDEX('OES Summary'!C:C, MATCH(B35, 'OES Summary'!A:A, 0))) -> 350 | S35: =_xlfn.MAXIFS('2020 Point Sources'!CY:CY,'2020 Point Sources'!A:A, A35) -> 0 | T35: =_xlfn.MAXIFS('2020 Point Sources'!CZ:CZ,'2020 Point Sources'!A:A, A35) -> 0 | U35: =_xlfn.MAXIFS('2020 Point Sources'!DA:DA,'2020 Point Sources'!A:A, A35) -> 0 | V35: =_xlfn.MAXIFS('2020 Point Sources'!DB:DB,'2020 Point Sources'!A:A, A35) -> 0 | W35: =COUNTIF('2020 Point Sources'!A:A, A35) -> 1 | X35: =COUNTIFS('2020 Point Sources'!AY:AY, 1,'2020 Point Sources'!A:A, A35)+COUNTIFS('2020 Point Sources'!AY:AY, 7,'2020 Point Sources'!A:A, A35)+COUNTIFS('2020 Point Sources'!AY:AY, 9,'2020 Point Sources'!A:A, A35) -> 1 | Y35: =COUNTIFS('2020 Point Sources'!AY:AY, 2,'2020 Point Sources'!A:A, A35)+COUNTIFS('2020 Point Sources'!AY:AY, 3,'2020 Point Sources'!A:A, A35)+COUNTIFS('2020 Point Sources'!AY:AY, 4,'2020 Point Sources'!A:A, A35)+COUNTIFS('2020 Point Sources'!AY:AY, 5,'2020 Point Sources'!A:A, A35)+COUNTIFS('2020 Point Sources'!AY:AY, 6,'2020 Point Sources'!A:A, A35)+COUNTIFS('2020 Point Sources'!AY:AY, 8,'2020 Point Sources'!A:A, A35)+COUNTIFS('2020 Point Sources'!AY:AY, 99,'2020 Point Sources'!A:A, A35) -> 0
A36: 6599811 | B36: =VLOOKUP($A36, '2020 Point Sources'!$I:$AO, 32, FALSE) -> Manufacturing | C36: =VLOOKUP($A36,'2020 Point Sources'!$I:$J, 2, FALSE) -> EAST STORAGE/SPLITTER III FACILITY | D36: =VLOOKUP($A36,'2020 Point Sources'!$I:$CD, 73, FALSE) -> MONT BELVIEU | E36: =VLOOKUP($A36,'2020 Point Sources'!$A:$E, 5, FALSE) -> TX | F36: =VLOOKUP($A36,'2020 Point Sources'!$A:$F, 6, FALSE) -> Chambers | G36: =VLOOKUP($A36,'2020 Point Sources'!$I:$CD, 74, FALSE) -> 77580 | H36: =VLOOKUP($A36,'2020 Point Sources'!$I:$T, 12, FALSE) -> Petrochemical Manufacturing | I36: =VLOOKUP($A36,'2020 Point Sources'!$I:$T, 11, FALSE) -> 325110 | J36: =VLOOKUP($A36,'2020 Point Sources'!$I:$AM, 25, FALSE) -> 30119709 | K36: =VLOOKUP($A36,'2020 Point Sources'!$I:$AM, 26, FALSE) -> Industrial Processes Chemical Manufacturing Butylene, Ethylene, Propylene, Olefin Production Propylene: Fugitive Emissions | L36: =VLOOKUP($A36,'2020 Point Sources'!$I:$AM, 31, FALSE) -> Industrial Processes - Chemical Manuf | M36: =IF(X36>0, CONVERT((SUMIFS('2020 Point Sources'!BH:BH, '2020 Point Sources'!I:I, A36, '2020 Point Sources'!AY:AY, 1)+SUMIFS('2020 Point Sources'!BH:BH, '2020 Point Sources'!I:I, A36, '2020 Point Sources'!AY:AY, 7)+SUMIFS('2020 Point Sources'!BH:BH, '2020 Point Sources'!I:I, A36, '2020 Point Sources'!AY:AY, 9)), "ton", "g")/1000, "n/a") -> n/a | N36: n/a | O36: =IF(Y36>0, CONVERT((SUMIFS('2020 Point Sources'!BH:BH, '2020 Point Sources'!I:I, A36, '2020 Point Sources'!AY:AY, 2)+SUMIFS('2020 Point Sources'!BH:BH, '2020 Point Sources'!I:I, A36, '2020 Point Sources'!AY:AY, 3)+SUMIFS('2020 Point Sources'!BH:BH, '2020 Point Sources'!I:I, A36, '2020 Point Sources'!AY:AY, 4)+SUMIFS('2020 Point Sources'!BH:BH, '2020 Point Sources'!I:I, A36, '2020 Point Sources'!AY:AY, 5)+SUMIFS('2020 Point Sources'!BH:BH, '2020 Point Sources'!I:I, A36, '2020 Point Sources'!AY:AY, 6)++SUMIFS('2020 Point Sources'!BH:BH, '2020 Point Sources'!I:I, A36, '2020 Point Sources'!AY:AY, 8)++SUMIFS('2020 Point Sources'!BH:BH, '2020 Point Sources'!I:I, A36, '2020 Point Sources'!AY:AY, 99)), "ton", "g")/1000, "n/a") -> 3.63E-01 | P36: 9.942E-04 | Q36: 24 | R36: =IF(AND(S36>0, T36>0), IF(S36/T36 > 365, 365, S36/T36), INDEX('OES Summary'!C:C, MATCH(B36, 'OES Summary'!A:A, 0))) -> 365 | S36: =_xlfn.MAXIFS('2020 Point Sources'!CY:CY,'2020 Point Sources'!A:A, A36) -> 8760 | T36: =_xlfn.MAXIFS('2020 Point Sources'!CZ:CZ,'2020 Point Sources'!A:A, A36) -> 24 | U36: =_xlfn.MAXIFS('2020 Point Sources'!DA:DA,'2020 Point Sources'!A:A, A36) -> 7 | V36: =_xlfn.MAXIFS('2020 Point Sources'!DB:DB,'2020 Point Sources'!A:A, A36) -> 52 | W36: =COUNTIF('2020 Point Sources'!A:A, A36) -> 2 | X36: =COUNTIFS('2020 Point Sources'!AY:AY, 1,'2020 Point Sources'!A:A, A36)+COUNTIFS('2020 Point Sources'!AY:AY, 7,'2020 Point Sources'!A:A, A36)+COUNTIFS('2020 Point Sources'!AY:AY, 9,'2020 Point Sources'!A:A, A36) -> 0 | Y36: =COUNTIFS('2020 Point Sources'!AY:AY, 2,'2020 Point Sources'!A:A, A36)+COUNTIFS('2020 Point Sources'!AY:AY, 3,'2020 Point Sources'!A:A, A36)+COUNTIFS('2020 Point Sources'!AY:AY, 4,'2020 Point Sources'!A:A, A36)+COUNTIFS('2020 Point Sources'!AY:AY, 5,'2020 Point Sources'!A:A, A36)+COUNTIFS('2020 Point Sources'!AY:AY, 6,'2020 Point Sources'!A:A, A36)+COUNTIFS('2020 Point Sources'!AY:AY, 8,'2020 Point Sources'!A:A, A36)+COUNTIFS('2020 Point Sources'!AY:AY, 99,'2020 Point Sources'!A:A, A36) -> 2
A37: 7226611 | B37: =VLOOKUP($A37, '2020 Point Sources'!$I:$AO, 32, FALSE) -> Manufacturing | C37: =VLOOKUP($A37,'2020 Point Sources'!$I:$J, 2, FALSE) -> ExxonMobil Baton Rouge Chemical Plant | D37: =VLOOKUP($A37,'2020 Point Sources'!$I:$CD, 73, FALSE) -> Baton Rouge | E37: =VLOOKUP($A37,'2020 Point Sources'!$A:$E, 5, FALSE) -> LA | F37: =VLOOKUP($A37,'2020 Point Sources'!$A:$F, 6, FALSE) -> East Baton Rouge | G37: =VLOOKUP($A37,'2020 Point Sources'!$I:$CD, 74, FALSE) -> 70805 | H37: =VLOOKUP($A37,'2020 Point Sources'!$I:$T, 12, FALSE) -> Plastics Material and Resin Manufacturing | I37: =VLOOKUP($A37,'2020 Point Sources'!$I:$T, 11, FALSE) -> 325211 | J37: =VLOOKUP($A37,'2020 Point Sources'!$I:$AM, 25, FALSE) -> 30600701 | K37: =VLOOKUP($A37,'2020 Point Sources'!$I:$AM, 26, FALSE) -> Industrial Processes Petroleum Industry Cooling Towers All Not Elsewhere Classified | L37: =VLOOKUP($A37,'2020 Point Sources'!$I:$AM, 31, FALSE) -> Industrial Processes - Petroleum Refineries | M37: =IF(X37>0, CONVERT((SUMIFS('2020 Point Sources'!BH:BH, '2020 Point Sources'!I:I, A37, '2020 Point Sources'!AY:AY, 1)+SUMIFS('2020 Point Sources'!BH:BH, '2020 Point Sources'!I:I, A37, '2020 Point Sources'!AY:AY, 7)+SUMIFS('2020 Point Sources'!BH:BH, '2020 Point Sources'!I:I, A37, '2020 Point Sources'!AY:AY, 9)), "ton", "g")/1000, "n/a") -> 1.87E+03 | N37: 5.14E+00 | O37: =IF(Y37>0, CONVERT((SUMIFS('2020 Point Sources'!BH:BH, '2020 Point Sources'!I:I, A37, '2020 Point Sources'!AY:AY, 2)+SUMIFS('2020 Point Sources'!BH:BH, '2020 Point Sources'!I:I, A37, '2020 Point Sources'!AY:AY, 3)+SUMIFS('2020 Point Sources'!BH:BH, '2020 Point Sources'!I:I, A37, '2020 Point Sources'!AY:AY, 4)+SUMIFS('2020 Point Sources'!BH:BH, '2020 Point Sources'!I:I, A37, '2020 Point Sources'!AY:AY, 5)+SUMIFS('2020 Point Sources'!BH:BH, '2020 Point Sources'!I:I, A37, '2020 Point Sources'!AY:AY, 6)++SUMIFS('2020 Point Sources'!BH:BH, '2020 Point Sources'!I:I, A37, '2020 Point Sources'!AY:AY, 8)++SUMIFS('2020 Point Sources'!BH:BH, '2020 Point Sources'!I:I, A37, '2020 Point Sources'!AY:AY, 99)), "ton", "g")/1000, "n/a") -> 1.70E+03 | P37: 4.668E+00 | Q37: 24 | R37: =IF(AND(S37>0, T37>0), IF(S37/T37 > 365, 365, S37/T37), INDEX('OES Summary'!C:C, MATCH(B37, 'OES Summary'!A:A, 0))) -> 364 | S37: =_xlfn.MAXIFS('2020 Point Sources'!CY:CY,'2020 Point Sources'!A:A, A37) -> 8736 | T37: =_xlfn.MAXIFS('2020 Point Sources'!CZ:CZ,'2020 Point Sources'!A:A, A37) -> 24 | U37: =_xlfn.MAXIFS('2020 Point Sources'!DA:DA,'2020 Point Sources'!A:A, A37) -> 7 | V37: =_xlfn.MAXIFS('2020 Point Sources'!DB:DB,'2020 Point Sources'!A:A, A37) -> 52 | W37: =COUNTIF('2020 Point Sources'!A:A, A37) -> 37 | X37: =COUNTIFS('2020 Point Sources'!AY:AY, 1,'2020 Point Sources'!A:A, A37)+COUNTIFS('2020 Point Sources'!AY:AY, 7,'2020 Point Sources'!A:A, A37)+COUNTIFS('2020 Point Sources'!AY:AY, 9,'2020 Point Sources'!A:A, A37) -> 27 | Y37: =COUNTIFS('2020 Point Sources'!AY:AY, 2,'2020 Point Sources'!A:A, A37)+COUNTIFS('2020 Point Sources'!AY:AY, 3,'2020 Point Sources'!A:A, A37)+COUNTIFS('2020 Point Sources'!AY:AY, 4,'2020 Point Sources'!A:A, A37)+COUNTIFS('2020 Point Sources'!AY:AY, 5,'2020 Point Sources'!A:A, A37)+COUNTIFS('2020 Point Sources'!AY:AY, 6,'2020 Point Sources'!A:A, A37)+COUNTIFS('2020 Point Sources'!AY:AY, 8,'2020 Point Sources'!A:A, A37)+COUNTIFS('2020 Point Sources'!AY:AY, 99,'2020 Point Sources'!A:A, A37) -> 10
A38: 8467211 | B38: =VLOOKUP($A38, '2020 Point Sources'!$I:$AO, 32, FALSE) -> Manufacturing | C38: =VLOOKUP($A38,'2020 Point Sources'!$I:$J, 2, FALSE) -> ExxonMobil Fuels & Lubricants Co - Baton Rouge Refinery | D38: =VLOOKUP($A38,'2020 Point Sources'!$I:$CD, 73, FALSE) -> Baton Rouge | E38: =VLOOKUP($A38,'2020 Point Sources'!$A:$E, 5, FALSE) -> LA | F38: =VLOOKUP($A38,'2020 Point Sources'!$A:$F, 6, FALSE) -> East Baton Rouge | G38: =VLOOKUP($A38,'2020 Point Sources'!$I:$CD, 74, FALSE) -> 70805 | H38: =VLOOKUP($A38,'2020 Point Sources'!$I:$T, 12, FALSE) -> Petroleum Refineries | I38: =VLOOKUP($A38,'2020 Point Sources'!$I:$T, 11, FALSE) -> 324110 | J38: =VLOOKUP($A38,'2020 Point Sources'!$I:$AM, 25, FALSE) -> 30600701 | K38: =VLOOKUP($A38,'2020 Point Sources'!$I:$AM, 26, FALSE) -> Industrial Processes Petroleum Industry Cooling Towers All Not Elsewhere Classified | L38: =VLOOKUP($A38,'2020 Point Sources'!$I:$AM, 31, FALSE) -> Industrial Processes - Petroleum Refineries | M38: =IF(X38>0, CONVERT((SUMIFS('2020 Point Sources'!BH:BH, '2020 Point Sources'!I:I, A38, '2020 Point Sources'!AY:AY, 1)+SUMIFS('2020 Point Sources'!BH:BH, '2020 Point Sources'!I:I, A38, '2020 Point Sources'!AY:AY, 7)+SUMIFS('2020 Point Sources'!BH:BH, '2020 Point Sources'!I:I, A38, '2020 Point Sources'!AY:AY, 9)), "ton", "g")/1000, "n/a") -> 1.34E+02 | N38: 3.68E-01 | O38: =IF(Y38>0, CONVERT((SUMIFS('2020 Point Sources'!BH:BH, '2020 Point Sources'!I:I, A38, '2020 Point Sources'!AY:AY, 2)+SUMIFS('2020 Point Sources'!BH:BH, '2020 Point Sources'!I:I, A38, '2020 Point Sources'!AY:AY, 3)+SUMIFS('2020 Point Sources'!BH:BH, '2020 Point Sources'!I:I, A38, '2020 Point Sources'!AY:AY, 4)+SUMIFS('2020 Point Sources'!BH:BH, '2020 Point Sources'!I:I, A38, '2020 Point Sources'!AY:AY, 5)+SUMIFS('2020 Point Sources'!BH:BH, '2020 Point Sources'!I:I, A38, '2020 Point Sources'!AY:AY, 6)++SUMIFS('2020 Point Sources'!BH:BH, '2020 Point Sources'!I:I, A38, '2020 Point Sources'!AY:AY, 8)++SUMIFS('2020 Point Sources'!BH:BH, '2020 Point Sources'!I:I, A38, '2020 Point Sources'!AY:AY, 99)), "ton", "g")/1000, "n/a") -> 1.34E+01 | P38: 3.670E-02 | Q38: 24 | R38: =IF(AND(S38>0, T38>0), IF(S38/T38 > 365, 365, S38/T38), INDEX('OES Summary'!C:C, MATCH(B38, 'OES Summary'!A:A, 0))) -> 364 | S38: =_xlfn.MAXIFS('2020 Point Sources'!CY:CY,'2020 Point Sources'!A:A, A38) -> 8736 | T38: =_xlfn.MAXIFS('2020 Point Sources'!CZ:CZ,'2020 Point Sources'!A:A, A38) -> 24 | U38: =_xlfn.MAXIFS('2020 Point Sources'!DA:DA,'2020 Point Sources'!A:A, A38) -> 7 | V38: =_xlfn.MAXIFS('2020 Point Sources'!DB:DB,'2020 Point Sources'!A:A, A38) -> 52 | W38: =COUNTIF('2020 Point Sources'!A:A, A38) -> 20 | X38: =COUNTIFS('2020 Point Sources'!AY:AY, 1,'2020 Point Sources'!A:A, A38)+COUNTIFS('2020 Point Sources'!AY:AY, 7,'2020 Point Sources'!A:A, A38)+COUNTIFS('2020 Point Sources'!AY:AY, 9,'2020 Point Sources'!A:A, A38) -> 17 | Y38: =COUNTIFS('2020 Point Sources'!AY:AY, 2,'2020 Point Sources'!A:A, A38)+COUNTIFS('2020 Point Sources'!AY:AY, 3,'2020 Point Sources'!A:A, A38)+COUNTIFS('2020 Point Sources'!AY:AY, 4,'2020 Point Sources'!A:A, A38)+COUNTIFS('2020 Point Sources'!AY:AY, 5,'2020 Point Sources'!A:A, A38)+COUNTIFS('2020 Point Sources'!AY:AY, 6,'2020 Point Sources'!A:A, A38)+COUNTIFS('2020 Point Sources'!AY:AY, 8,'2020 Point Sources'!A:A, A38)+COUNTIFS('2020 Point Sources'!AY:AY, 99,'2020 Point Sources'!A:A, A38) -> 3
A39: 5746611 | B39: =VLOOKUP($A39, '2020 Point Sources'!$I:$AO, 32, FALSE) -> Manufacturing | C39: =VLOOKUP($A39,'2020 Point Sources'!$I:$J, 2, FALSE) -> INGLESIDE PLANT | D39: =VLOOKUP($A39,'2020 Point Sources'!$I:$CD, 73, FALSE) -> INGLESIDE | E39: =VLOOKUP($A39,'2020 Point Sources'!$A:$E, 5, FALSE) -> TX | F39: =VLOOKUP($A39,'2020 Point Sources'!$A:$F, 6, FALSE) -> San Patricio | G39: =VLOOKUP($A39,'2020 Point Sources'!$I:$CD, 74, FALSE) -> 78362 | H39: =VLOOKUP($A39,'2020 Point Sources'!$I:$T, 12, FALSE) -> Petrochemical Manufacturing | I39: =VLOOKUP($A39,'2020 Point Sources'!$I:$T, 11, FALSE) -> 325110 | J39: =VLOOKUP($A39,'2020 Point Sources'!$I:$AM, 25, FALSE) -> 30119749 | K39: =VLOOKUP($A39,'2020 Point Sources'!$I:$AM, 26, FALSE) -> Industrial Processes Chemical Manufacturing Butylene, Ethylene, Propylene, Olefin Production Ethylene: Fugitive Emissions | L39: =VLOOKUP($A39,'2020 Point Sources'!$I:$AM, 31, FALSE) -> Industrial Processes - Chemical Manuf | M39: =IF(X39>0, CONVERT((SUMIFS('2020 Point Sources'!BH:BH, '2020 Point Sources'!I:I, A39, '2020 Point Sources'!AY:AY, 1)+SUMIFS('2020 Point Sources'!BH:BH, '2020 Point Sources'!I:I, A39, '2020 Point Sources'!AY:AY, 7)+SUMIFS('2020 Point Sources'!BH:BH, '2020 Point Sources'!I:I, A39, '2020 Point Sources'!AY:AY, 9)), "ton", "g")/1000, "n/a") -> 1.08E+02 | N39: 2.96E-01 | O39: =IF(Y39>0, CONVERT((SUMIFS('2020 Point Sources'!BH:BH, '2020 Point Sources'!I:I, A39, '2020 Point Sources'!AY:AY, 2)+SUMIFS('2020 Point Sources'!BH:BH, '2020 Point Sources'!I:I, A39, '2020 Point Sources'!AY:AY, 3)+SUMIFS('2020 Point Sources'!BH:BH, '2020 Point Sources'!I:I, A39, '2020 Point Sources'!AY:AY, 4)+SUMIFS('2020 Point Sources'!BH:BH, '2020 Point Sources'!I:I, A39, '2020 Point Sources'!AY:AY, 5)+SUMIFS('2020 Point Sources'!BH:BH, '2020 Point Sources'!I:I, A39, '2020 Point Sources'!AY:AY, 6)++SUMIFS('2020 Point Sources'!BH:BH, '2020 Point Sources'!I:I, A39, '2020 Point Sources'!AY:AY, 8)++SUMIFS('2020 Point Sources'!BH:BH, '2020 Point Sources'!I:I, A39, '2020 Point Sources'!AY:AY, 99)), "ton", "g")/1000, "n/a") -> 3.63E+01 | P39: 9.942E-02 | Q39: 24 | R39: =IF(AND(S39>0, T39>0), IF(S39/T39 > 365, 365, S39/T39), INDEX('OES Summary'!C:C, MATCH(B39, 'OES Summary'!A:A, 0))) -> 365 | S39: =_xlfn.MAXIFS('2020 Point Sources'!CY:CY,'2020 Point Sources'!A:A, A39) -> 8760 | T39: =_xlfn.MAXIFS('2020 Point Sources'!CZ:CZ,'2020 Point Sources'!A:A, A39) -> 24 | U39: =_xlfn.MAXIFS('2020 Point Sources'!DA:DA,'2020 Point Sources'!A:A, A39) -> 7 | V39: =_xlfn.MAXIFS('2020 Point Sources'!DB:DB,'2020 Point Sources'!A:A, A39) -> 52 | W39: =COUNTIF('2020 Point Sources'!A:A, A39) -> 2 | X39: =COUNTIFS('2020 Point Sources'!AY:AY, 1,'2020 Point Sources'!A:A, A39)+COUNTIFS('2020 Point Sources'!AY:AY, 7,'2020 Point Sources'!A:A, A39)+COUNTIFS('2020 Point Sources'!AY:AY, 9,'2020 Point Sources'!A:A, A39) -> 1 | Y39: =COUNTIFS('2020 Point Sources'!AY:AY, 2,'2020 Point Sources'!A:A, A39)+COUNTIFS('2020 Point Sources'!AY:AY, 3,'2020 Point Sources'!A:A, A39)+COUNTIFS('2020 Point Sources'!AY:AY, 4,'2020 Point Sources'!A:A, A39)+COUNTIFS('2020 Point Sources'!AY:AY, 5,'2020 Point Sources'!A:A, A39)+COUNTIFS('2020 Point Sources'!AY:AY, 6,'2020 Point Sources'!A:A, A39)+COUNTIFS('2020 Point Sources'!AY:AY, 8,'2020 Point Sources'!A:A, A39)+COUNTIFS('2020 Point Sources'!AY:AY, 99,'2020 Point Sources'!A:A, A39) -> 1
A40: 4182311 | B40: =VLOOKUP($A40, '2020 Point Sources'!$I:$AO, 32, FALSE) -> Manufacturing | C40: =VLOOKUP($A40,'2020 Point Sources'!$I:$J, 2, FALSE) -> LA PORTE COMPLEX | D40: =VLOOKUP($A40,'2020 Point Sources'!$I:$CD, 73, FALSE) -> DEER PARK | E40: =VLOOKUP($A40,'2020 Point Sources'!$A:$E, 5, FALSE) -> TX | F40: =VLOOKUP($A40,'2020 Point Sources'!$A:$F, 6, FALSE) -> Harris | G40: =VLOOKUP($A40,'2020 Point Sources'!$I:$CD, 74, FALSE) -> 77536 | H40: =VLOOKUP($A40,'2020 Point Sources'!$I:$T, 12, FALSE) -> Petrochemical Manufacturing | I40: =VLOOKUP($A40,'2020 Point Sources'!$I:$T, 11, FALSE) -> 325110 | J40: =VLOOKUP($A40,'2020 Point Sources'!$I:$AM, 25, FALSE) -> 40301150 | K40: =VLOOKUP($A40,'2020 Point Sources'!$I:$AM, 26, FALSE) -> Chemical Evaporation Petroleum Product Storage at Refineries Floating Roof Tanks (Varying Sizes) Other Product: Breathing Loss: Internal | L40: =VLOOKUP($A40,'2020 Point Sources'!$I:$AM, 31, FALSE) -> Industrial Processes - Storage and Transfer | M40: =IF(X40>0, CONVERT((SUMIFS('2020 Point Sources'!BH:BH, '2020 Point Sources'!I:I, A40, '2020 Point Sources'!AY:AY, 1)+SUMIFS('2020 Point Sources'!BH:BH, '2020 Point Sources'!I:I, A40, '2020 Point Sources'!AY:AY, 7)+SUMIFS('2020 Point Sources'!BH:BH, '2020 Point Sources'!I:I, A40, '2020 Point Sources'!AY:AY, 9)), "ton", "g")/1000, "n/a") -> 6.27E+02 | N40: 1.72E+00 | O40: =IF(Y40>0, CONVERT((SUMIFS('2020 Point Sources'!BH:BH, '2020 Point Sources'!I:I, A40, '2020 Point Sources'!AY:AY, 2)+SUMIFS('2020 Point Sources'!BH:BH, '2020 Point Sources'!I:I, A40, '2020 Point Sources'!AY:AY, 3)+SUMIFS('2020 Point Sources'!BH:BH, '2020 Point Sources'!I:I, A40, '2020 Point Sources'!AY:AY, 4)+SUMIFS('2020 Point Sources'!BH:BH, '2020 Point Sources'!I:I, A40, '2020 Point Sources'!AY:AY, 5)+SUMIFS('2020 Point Sources'!BH:BH, '2020 Point Sources'!I:I, A40, '2020 Point Sources'!AY:AY, 6)++SUMIFS('2020 Point Sources'!BH:BH, '2020 Point Sources'!I:I, A40, '2020 Point Sources'!AY:AY, 8)++SUMIFS('2020 Point Sources'!BH:BH, '2020 Point Sources'!I:I, A40, '2020 Point Sources'!AY:AY, 99)), "ton", "g")/1000, "n/a") -> 1.09E+03 | P40: 2.985E+00 | Q40: 24 | R40: =IF(AND(S40>0, T40>0), IF(S40/T40 > 365, 365, S40/T40), INDEX('OES Summary'!C:C, MATCH(B40, 'OES Summary'!A:A, 0))) -> 365 | S40: =_xlfn.MAXIFS('2020 Point Sources'!CY:CY,'2020 Point Sources'!A:A, A40) -> 8760 | T40: =_xlfn.MAXIFS('2020 Point Sources'!CZ:CZ,'2020 Point Sources'!A:A, A40) -> 24 | U40: =_xlfn.MAXIFS('2020 Point Sources'!DA:DA,'2020 Point Sources'!A:A, A40) -> 7 | V40: =_xlfn.MAXIFS('2020 Point Sources'!DB:DB,'2020 Point Sources'!A:A, A40) -> 52 | W40: =COUNTIF('2020 Point Sources'!A:A, A40) -> 6 | X40: =COUNTIFS('2020 Point Sources'!AY:AY, 1,'2020 Point Sources'!A:A, A40)+COUNTIFS('2020 Point Sources'!AY:AY, 7,'2020 Point Sources'!A:A, A40)+COUNTIFS('2020 Point Sources'!AY:AY, 9,'2020 Point Sources'!A:A, A40) -> 2 | Y40: =COUNTIFS('2020 Point Sources'!AY:AY, 2,'2020 Point Sources'!A:A, A40)+COUNTIFS('2020 Point Sources'!AY:AY, 3,'2020 Point Sources'!A:A, A40)+COUNTIFS('2020 Point Sources'!AY:AY, 4,'2020 Point Sources'!A:A, A40)+COUNTIFS('2020 Point Sources'!AY:AY, 5,'2020 Point Sources'!A:A, A40)+COUNTIFS('2020 Point Sources'!AY:AY, 6,'2020 Point Sources'!A:A, A40)+COUNTIFS('2020 Point Sources'!AY:AY, 8,'2020 Point Sources'!A:A, A40)+COUNTIFS('2020 Point Sources'!AY:AY, 99,'2020 Point Sources'!A:A, A40) -> 4
A41: 7445911 | B41: =VLOOKUP($A41, '2020 Point Sources'!$I:$AO, 32, FALSE) -> Manufacturing | C41: =VLOOKUP($A41,'2020 Point Sources'!$I:$J, 2, FALSE) -> NOVA Chemicals Olefins LLC - Geismar Ethylene Plant | D41: =VLOOKUP($A41,'2020 Point Sources'!$I:$CD, 73, FALSE) -> Geismar | E41: =VLOOKUP($A41,'2020 Point Sources'!$A:$E, 5, FALSE) -> LA | F41: =VLOOKUP($A41,'2020 Point Sources'!$A:$F, 6, FALSE) -> Ascension | G41: =VLOOKUP($A41,'2020 Point Sources'!$I:$CD, 74, FALSE) -> 70734 | H41: =VLOOKUP($A41,'2020 Point Sources'!$I:$T, 12, FALSE) -> Petrochemical Manufacturing | I41: =VLOOKUP($A41,'2020 Point Sources'!$I:$T, 11, FALSE) -> 325110 | J41: =VLOOKUP($A41,'2020 Point Sources'!$I:$AM, 25, FALSE) -> 30119701 | K41: =VLOOKUP($A41,'2020 Point Sources'!$I:$AM, 26, FALSE) -> Industrial Processes Chemical Manufacturing Butylene, Ethylene, Propylene, Olefin Production Ethylene: General | L41: =VLOOKUP($A41,'2020 Point Sources'!$I:$AM, 31, FALSE) -> Industrial Processes - Chemical Manuf | M41: =IF(X41>0, CONVERT((SUMIFS('2020 Point Sources'!BH:BH, '2020 Point Sources'!I:I, A41, '2020 Point Sources'!AY:AY, 1)+SUMIFS('2020 Point Sources'!BH:BH, '2020 Point Sources'!I:I, A41, '2020 Point Sources'!AY:AY, 7)+SUMIFS('2020 Point Sources'!BH:BH, '2020 Point Sources'!I:I, A41, '2020 Point Sources'!AY:AY, 9)), "ton", "g")/1000, "n/a") -> 3.07E+03 | N41: 8.76E+00 | O41: =IF(Y41>0, CONVERT((SUMIFS('2020 Point Sources'!BH:BH, '2020 Point Sources'!I:I, A41, '2020 Point Sources'!AY:AY, 2)+SUMIFS('2020 Point Sources'!BH:BH, '2020 Point Sources'!I:I, A41, '2020 Point Sources'!AY:AY, 3)+SUMIFS('2020 Point Sources'!BH:BH, '2020 Point Sources'!I:I, A41, '2020 Point Sources'!AY:AY, 4)+SUMIFS('2020 Point Sources'!BH:BH, '2020 Point Sources'!I:I, A41, '2020 Point Sources'!AY:AY, 5)+SUMIFS('2020 Point Sources'!BH:BH, '2020 Point Sources'!I:I, A41, '2020 Point Sources'!AY:AY, 6)++SUMIFS('2020 Point Sources'!BH:BH, '2020 Point Sources'!I:I, A41, '2020 Point Sources'!AY:AY, 8)++SUMIFS('2020 Point Sources'!BH:BH, '2020 Point Sources'!I:I, A41, '2020 Point Sources'!AY:AY, 99)), "ton", "g")/1000, "n/a") -> 2.02E+03 | P41: 5.759E+00 | Q41: 24 | R41: =IF(AND(S41>0, T41>0), IF(S41/T41 > 365, 365, S41/T41), INDEX('OES Summary'!C:C, MATCH(B41, 'OES Summary'!A:A, 0))) -> 350 | S41: =_xlfn.MAXIFS('2020 Point Sources'!CY:CY,'2020 Point Sources'!A:A, A41) -> 0 | T41: =_xlfn.MAXIFS('2020 Point Sources'!CZ:CZ,'2020 Point Sources'!A:A, A41) -> 0 | U41: =_xlfn.MAXIFS('2020 Point Sources'!DA:DA,'2020 Point Sources'!A:A, A41) -> 0 | V41: =_xlfn.MAXIFS('2020 Point Sources'!DB:DB,'2020 Point Sources'!A:A, A41) -> 0 | W41: =COUNTIF('2020 Point Sources'!A:A, A41) -> 2 | X41: =COUNTIFS('2020 Point Sources'!AY:AY, 1,'2020 Point Sources'!A:A, A41)+COUNTIFS('2020 Point Sources'!AY:AY, 7,'2020 Point Sources'!A:A, A41)+COUNTIFS('2020 Point Sources'!AY:AY, 9,'2020 Point Sources'!A:A, A41) -> 1 | Y41: =COUNTIFS('2020 Point Sources'!AY:AY, 2,'2020 Point Sources'!A:A, A41)+COUNTIFS('2020 Point Sources'!AY:AY, 3,'2020 Point Sources'!A:A, A41)+COUNTIFS('2020 Point Sources'!AY:AY, 4,'2020 Point Sources'!A:A, A41)+COUNTIFS('2020 Point Sources'!AY:AY, 5,'2020 Point Sources'!A:A, A41)+COUNTIFS('2020 Point Sources'!AY:AY, 6,'2020 Point Sources'!A:A, A41)+COUNTIFS('2020 Point Sources'!AY:AY, 8,'2020 Point Sources'!A:A, A41)+COUNTIFS('2020 Point Sources'!AY:AY, 99,'2020 Point Sources'!A:A, A41) -> 1
A42: 7206411 | B42: =VLOOKUP($A42, '2020 Point Sources'!$I:$AO, 32, FALSE) -> Manufacturing | C42: =VLOOKUP($A42,'2020 Point Sources'!$I:$J, 2, FALSE) -> Placid Refining Co LLC - Placid Refining Co | D42: =VLOOKUP($A42,'2020 Point Sources'!$I:$CD, 73, FALSE) -> Port Allen | E42: =VLOOKUP($A42,'2020 Point Sources'!$A:$E, 5, FALSE) -> LA | F42: =VLOOKUP($A42,'2020 Point Sources'!$A:$F, 6, FALSE) -> West Baton Rouge | G42: =VLOOKUP($A42,'2020 Point Sources'!$I:$CD, 74, FALSE) -> 70767 | H42: =VLOOKUP($A42,'2020 Point Sources'!$I:$T, 12, FALSE) -> Petroleum Refineries | I42: =VLOOKUP($A42,'2020 Point Sources'!$I:$T, 11, FALSE) -> 324110 | J42: =VLOOKUP($A42,'2020 Point Sources'!$I:$AM, 25, FALSE) -> 40688801 | K42: =VLOOKUP($A42,'2020 Point Sources'!$I:$AM, 26, FALSE) -> Chemical Evaporation Transportation and Marketing of Petroleum Products Fugitive Emissions All Not Elsewhere Classified | L42: =VLOOKUP($A42,'2020 Point Sources'!$I:$AM, 31, FALSE) -> Industrial Processes - Storage and Transfer | M42: =IF(X42>0, CONVERT((SUMIFS('2020 Point Sources'!BH:BH, '2020 Point Sources'!I:I, A42, '2020 Point Sources'!AY:AY, 1)+SUMIFS('2020 Point Sources'!BH:BH, '2020 Point Sources'!I:I, A42, '2020 Point Sources'!AY:AY, 7)+SUMIFS('2020 Point Sources'!BH:BH, '2020 Point Sources'!I:I, A42, '2020 Point Sources'!AY:AY, 9)), "ton", "g")/1000, "n/a") -> 1.65E+00 | N42: 4.54E-03 | O42: =IF(Y42>0, CONVERT((SUMIFS('2020 Point Sources'!BH:BH, '2020 Point Sources'!I:I, A42, '2020 Point Sources'!AY:AY, 2)+SUMIFS('2020 Point Sources'!BH:BH, '2020 Point Sources'!I:I, A42, '2020 Point Sources'!AY:AY, 3)+SUMIFS('2020 Point Sources'!BH:BH, '2020 Point Sources'!I:I, A42, '2020 Point Sources'!AY:AY, 4)+SUMIFS('2020 Point Sources'!BH:BH, '2020 Point Sources'!I:I, A42, '2020 Point Sources'!AY:AY, 5)+SUMIFS('2020 Point Sources'!BH:BH, '2020 Point Sources'!I:I, A42, '2020 Point Sources'!AY:AY, 6)++SUMIFS('2020 Point Sources'!BH:BH, '2020 Point Sources'!I:I, A42, '2020 Point Sources'!AY:AY, 8)++SUMIFS('2020 Point Sources'!BH:BH, '2020 Point Sources'!I:I, A42, '2020 Point Sources'!AY:AY, 99)), "ton", "g")/1000, "n/a") -> 1.45E+02 | P42: 3.988E-01 | Q42: 24 | R42: =IF(AND(S42>0, T42>0), IF(S42/T42 > 365, 365, S42/T42), INDEX('OES Summary'!C:C, MATCH(B42, 'OES Summary'!A:A, 0))) -> 364 | S42: =_xlfn.MAXIFS('2020 Point Sources'!CY:CY,'2020 Point Sources'!A:A, A42) -> 8736 | T42: =_xlfn.MAXIFS('2020 Point Sources'!CZ:CZ,'2020 Point Sources'!A:A, A42) -> 24 | U42: =_xlfn.MAXIFS('2020 Point Sources'!DA:DA,'2020 Point Sources'!A:A, A42) -> 7 | V42: =_xlfn.MAXIFS('2020 Point Sources'!DB:DB,'2020 Point Sources'!A:A, A42) -> 52 | W42: =COUNTIF('2020 Point Sources'!A:A, A42) -> 2 | X42: =COUNTIFS('2020 Point Sources'!AY:AY, 1,'2020 Point Sources'!A:A, A42)+COUNTIFS('2020 Point Sources'!AY:AY, 7,'2020 Point Sources'!A:A, A42)+COUNTIFS('2020 Point Sources'!AY:AY, 9,'2020 Point Sources'!A:A, A42) -> 1 | Y42: =COUNTIFS('2020 Point Sources'!AY:AY, 2,'2020 Point Sources'!A:A, A42)+COUNTIFS('2020 Point Sources'!AY:AY, 3,'2020 Point Sources'!A:A, A42)+COUNTIFS('2020 Point Sources'!AY:AY, 4,'2020 Point Sources'!A:A, A42)+COUNTIFS('2020 Point Sources'!AY:AY, 5,'2020 Point Sources'!A:A, A42)+COUNTIFS('2020 Point Sources'!AY:AY, 6,'2020 Point Sources'!A:A, A42)+COUNTIFS('2020 Point Sources'!AY:AY, 8,'2020 Point Sources'!A:A, A42)+COUNTIFS('2020 Point Sources'!AY:AY, 99,'2020 Point Sources'!A:A, A42) -> 1
A43: 13407911 | B43: =VLOOKUP($A43, '2020 Point Sources'!$I:$AO, 32, FALSE) -> Manufacturing | C43: =VLOOKUP($A43,'2020 Point Sources'!$I:$J, 2, FALSE) -> PORT NECHES OPERATIONS C4 PLANT | D43: =VLOOKUP($A43,'2020 Point Sources'!$I:$CD, 73, FALSE) -> PORT NECHES | E43: =VLOOKUP($A43,'2020 Point Sources'!$A:$E, 5, FALSE) -> TX | F43: =VLOOKUP($A43,'2020 Point Sources'!$A:$F, 6, FALSE) -> Jefferson | G43: =VLOOKUP($A43,'2020 Point Sources'!$I:$CD, 74, FALSE) -> 77651 | H43: =VLOOKUP($A43,'2020 Point Sources'!$I:$T, 12, FALSE) -> Petrochemical Manufacturing | I43: =VLOOKUP($A43,'2020 Point Sources'!$I:$T, 11, FALSE) -> 325110 | J43: =VLOOKUP($A43,'2020 Point Sources'!$I:$AM, 25, FALSE) -> 30115380 | K43: =VLOOKUP($A43,'2020 Point Sources'!$I:$AM, 26, FALSE) -> Industrial Processes Chemical Manufacturing Butadiene Fugitive Emissions | L43: =VLOOKUP($A43,'2020 Point Sources'!$I:$AM, 31, FALSE) -> Industrial Processes - Chemical Manuf | M43: =IF(X43>0, CONVERT((SUMIFS('2020 Point Sources'!BH:BH, '2020 Point Sources'!I:I, A43, '2020 Point Sources'!AY:AY, 1)+SUMIFS('2020 Point Sources'!BH:BH, '2020 Point Sources'!I:I, A43, '2020 Point Sources'!AY:AY, 7)+SUMIFS('2020 Point Sources'!BH:BH, '2020 Point Sources'!I:I, A43, '2020 Point Sources'!AY:AY, 9)), "ton", "g")/1000, "n/a") -> 8.19E+03 | N43: 2.24E+01 | O43: =IF(Y43>0, CONVERT((SUMIFS('2020 Point Sources'!BH:BH, '2020 Point Sources'!I:I, A43, '2020 Point Sources'!AY:AY, 2)+SUMIFS('2020 Point Sources'!BH:BH, '2020 Point Sources'!I:I, A43, '2020 Point Sources'!AY:AY, 3)+SUMIFS('2020 Point Sources'!BH:BH, '2020 Point Sources'!I:I, A43, '2020 Point Sources'!AY:AY, 4)+SUMIFS('2020 Point Sources'!BH:BH, '2020 Point Sources'!I:I, A43, '2020 Point Sources'!AY:AY, 5)+SUMIFS('2020 Point Sources'!BH:BH, '2020 Point Sources'!I:I, A43, '2020 Point Sources'!AY:AY, 6)++SUMIFS('2020 Point Sources'!BH:BH, '2020 Point Sources'!I:I, A43, '2020 Point Sources'!AY:AY, 8)++SUMIFS('2020 Point Sources'!BH:BH, '2020 Point Sources'!I:I, A43, '2020 Point Sources'!AY:AY, 99)), "ton", "g")/1000, "n/a") -> 9.50E+02 | P43: 2.602E+00 | Q43: 24 | R43: =IF(AND(S43>0, T43>0), IF(S43/T43 > 365, 365, S43/T43), INDEX('OES Summary'!C:C, MATCH(B43, 'OES Summary'!A:A, 0))) -> 365 | S43: =_xlfn.MAXIFS('2020 Point Sources'!CY:CY,'2020 Point Sources'!A:A, A43) -> 8760 | T43: =_xlfn.MAXIFS('2020 Point Sources'!CZ:CZ,'2020 Point Sources'!A:A, A43) -> 24 | U43: =_xlfn.MAXIFS('2020 Point Sources'!DA:DA,'2020 Point Sources'!A:A, A43) -> 7 | V43: =_xlfn.MAXIFS('2020 Point Sources'!DB:DB,'2020 Point Sources'!A:A, A43) -> 52 | W43: =COUNTIF('2020 Point Sources'!A:A, A43) -> 3 | X43: =COUNTIFS('2020 Point Sources'!AY:AY, 1,'2020 Point Sources'!A:A, A43)+COUNTIFS('2020 Point Sources'!AY:AY, 7,'2020 Point Sources'!A:A, A43)+COUNTIFS('2020 Point Sources'!AY:AY, 9,'2020 Point Sources'!A:A, A43) -> 1 | Y43: =COUNTIFS('2020 Point Sources'!AY:AY, 2,'2020 Point Sources'!A:A, A43)+COUNTIFS('2020 Point Sources'!AY:AY, 3,'2020 Point Sources'!A:A, A43)+COUNTIFS('2020 Point Sources'!AY:AY, 4,'2020 Point Sources'!A:A, A43)+COUNTIFS('2020 Point Sources'!AY:AY, 5,'2020 Point Sources'!A:A, A43)+COUNTIFS('2020 Point Sources'!AY:AY, 6,'2020 Point Sources'!A:A, A43)+COUNTIFS('2020 Point Sources'!AY:AY, 8,'2020 Point Sources'!A:A, A43)+COUNTIFS('2020 Point Sources'!AY:AY, 99,'2020 Point Sources'!A:A, A43) -> 2
A44: 4190211 | B44: =VLOOKUP($A44, '2020 Point Sources'!$I:$AO, 32, FALSE) -> Manufacturing | C44: =VLOOKUP($A44,'2020 Point Sources'!$I:$J, 2, FALSE) -> SABINE RIVER OPERATIONS | D44: =VLOOKUP($A44,'2020 Point Sources'!$I:$CD, 73, FALSE) -> ORANGE | E44: =VLOOKUP($A44,'2020 Point Sources'!$A:$E, 5, FALSE) -> TX | F44: =VLOOKUP($A44,'2020 Point Sources'!$A:$F, 6, FALSE) -> Orange | G44: =VLOOKUP($A44,'2020 Point Sources'!$I:$CD, 74, FALSE) -> 77630 | H44: =VLOOKUP($A44,'2020 Point Sources'!$I:$T, 12, FALSE) -> Petrochemical Manufacturing | I44: =VLOOKUP($A44,'2020 Point Sources'!$I:$T, 11, FALSE) -> 325110 | J44: =VLOOKUP($A44,'2020 Point Sources'!$I:$AM, 25, FALSE) -> 30119701 | K44: =VLOOKUP($A44,'2020 Point Sources'!$I:$AM, 26, FALSE) -> Industrial Processes Chemical Manufacturing Butylene, Ethylene, Propylene, Olefin Production Ethylene: General | L44: =VLOOKUP($A44,'2020 Point Sources'!$I:$AM, 31, FALSE) -> Industrial Processes - Chemical Manuf | M44: =IF(X44>0, CONVERT((SUMIFS('2020 Point Sources'!BH:BH, '2020 Point Sources'!I:I, A44, '2020 Point Sources'!AY:AY, 1)+SUMIFS('2020 Point Sources'!BH:BH, '2020 Point Sources'!I:I, A44, '2020 Point Sources'!AY:AY, 7)+SUMIFS('2020 Point Sources'!BH:BH, '2020 Point Sources'!I:I, A44, '2020 Point Sources'!AY:AY, 9)), "ton", "g")/1000, "n/a") -> 2.04E+02 | N44: 5.59E-01 | O44: =IF(Y44>0, CONVERT((SUMIFS('2020 Point Sources'!BH:BH, '2020 Point Sources'!I:I, A44, '2020 Point Sources'!AY:AY, 2)+SUMIFS('2020 Point Sources'!BH:BH, '2020 Point Sources'!I:I, A44, '2020 Point Sources'!AY:AY, 3)+SUMIFS('2020 Point Sources'!BH:BH, '2020 Point Sources'!I:I, A44, '2020 Point Sources'!AY:AY, 4)+SUMIFS('2020 Point Sources'!BH:BH, '2020 Point Sources'!I:I, A44, '2020 Point Sources'!AY:AY, 5)+SUMIFS('2020 Point Sources'!BH:BH, '2020 Point Sources'!I:I, A44, '2020 Point Sources'!AY:AY, 6)++SUMIFS('2020 Point Sources'!BH:BH, '2020 Point Sources'!I:I, A44, '2020 Point Sources'!AY:AY, 8)++SUMIFS('2020 Point Sources'!BH:BH, '2020 Point Sources'!I:I, A44, '2020 Point Sources'!AY:AY, 99)), "ton", "g")/1000, "n/a") -> 2.39E+03 | P44: 6.545E+00 | Q44: 24 | R44: =IF(AND(S44>0, T44>0), IF(S44/T44 > 365, 365, S44/T44), INDEX('OES Summary'!C:C, MATCH(B44, 'OES Summary'!A:A, 0))) -> 365 | S44: =_xlfn.MAXIFS('2020 Point Sources'!CY:CY,'2020 Point Sources'!A:A, A44) -> 8760 | T44: =_xlfn.MAXIFS('2020 Point Sources'!CZ:CZ,'2020 Point Sources'!A:A, A44) -> 24 | U44: =_xlfn.MAXIFS('2020 Point Sources'!DA:DA,'2020 Point Sources'!A:A, A44) -> 7 | V44: =_xlfn.MAXIFS('2020 Point Sources'!DB:DB,'2020 Point Sources'!A:A, A44) -> 52 | W44: =COUNTIF('2020 Point Sources'!A:A, A44) -> 3 | X44: =COUNTIFS('2020 Point Sources'!AY:AY, 1,'2020 Point Sources'!A:A, A44)+COUNTIFS('2020 Point Sources'!AY:AY, 7,'2020 Point Sources'!A:A, A44)+COUNTIFS('2020 Point Sources'!AY:AY, 9,'2020 Point Sources'!A:A, A44) -> 2 | Y44: =COUNTIFS('2020 Point Sources'!AY:AY, 2,'2020 Point Sources'!A:A, A44)+COUNTIFS('2020 Point Sources'!AY:AY, 3,'2020 Point Sources'!A:A, A44)+COUNTIFS('2020 Point Sources'!AY:AY, 4,'2020 Point Sources'!A:A, A44)+COUNTIFS('2020 Point Sources'!AY:AY, 5,'2020 Point Sources'!A:A, A44)+COUNTIFS('2020 Point Sources'!AY:AY, 6,'2020 Point Sources'!A:A, A44)+COUNTIFS('2020 Point Sources'!AY:AY, 8,'2020 Point Sources'!A:A, A44)+COUNTIFS('2020 Point Sources'!AY:AY, 99,'2020 Point Sources'!A:A, A44) -> 1
A45: 8468011 | B45: =VLOOKUP($A45, '2020 Point Sources'!$I:$AO, 32, FALSE) -> Manufacturing | C45: =VLOOKUP($A45,'2020 Point Sources'!$I:$J, 2, FALSE) -> Sasol Chemicals (USA) LLC - Lake Charles Chemical Complex | D45: =VLOOKUP($A45,'2020 Point Sources'!$I:$CD, 73, FALSE) -> Westlake | E45: =VLOOKUP($A45,'2020 Point Sources'!$A:$E, 5, FALSE) -> LA | F45: =VLOOKUP($A45,'2020 Point Sources'!$A:$F, 6, FALSE) -> Calcasieu | G45: =VLOOKUP($A45,'2020 Point Sources'!$I:$CD, 74, FALSE) -> 70669 | H45: =VLOOKUP($A45,'2020 Point Sources'!$I:$T, 12, FALSE) -> Petrochemical Manufacturing | I45: =VLOOKUP($A45,'2020 Point Sources'!$I:$T, 11, FALSE) -> 325110 | J45: =VLOOKUP($A45,'2020 Point Sources'!$I:$AM, 25, FALSE) -> 38500101 | K45: =VLOOKUP($A45,'2020 Point Sources'!$I:$AM, 26, FALSE) -> Industrial Processes Cooling Tower Process Cooling Mechanical Draft | L45: =VLOOKUP($A45,'2020 Point Sources'!$I:$AM, 31, FALSE) -> Industrial Processes - NEC | M45: =IF(X45>0, CONVERT((SUMIFS('2020 Point Sources'!BH:BH, '2020 Point Sources'!I:I, A45, '2020 Point Sources'!AY:AY, 1)+SUMIFS('2020 Point Sources'!BH:BH, '2020 Point Sources'!I:I, A45, '2020 Point Sources'!AY:AY, 7)+SUMIFS('2020 Point Sources'!BH:BH, '2020 Point Sources'!I:I, A45, '2020 Point Sources'!AY:AY, 9)), "ton", "g")/1000, "n/a") -> 2.62E+03 | N45: 7.20E+00 | O45: =IF(Y45>0, CONVERT((SUMIFS('2020 Point Sources'!BH:BH, '2020 Point Sources'!I:I, A45, '2020 Point Sources'!AY:AY, 2)+SUMIFS('2020 Point Sources'!BH:BH, '2020 Point Sources'!I:I, A45, '2020 Point Sources'!AY:AY, 3)+SUMIFS('2020 Point Sources'!BH:BH, '2020 Point Sources'!I:I, A45, '2020 Point Sources'!AY:AY, 4)+SUMIFS('2020 Point Sources'!BH:BH, '2020 Point Sources'!I:I, A45, '2020 Point Sources'!AY:AY, 5)+SUMIFS('2020 Point Sources'!BH:BH, '2020 Point Sources'!I:I, A45, '2020 Point Sources'!AY:AY, 6)++SUMIFS('2020 Point Sources'!BH:BH, '2020 Point Sources'!I:I, A45, '2020 Point Sources'!AY:AY, 8)++SUMIFS('2020 Point Sources'!BH:BH, '2020 Point Sources'!I:I, A45, '2020 Point Sources'!AY:AY, 99)), "ton", "g")/1000, "n/a") -> 3.41E+03 | P45: 9.369E+00 | Q45: 24 | R45: =IF(AND(S45>0, T45>0), IF(S45/T45 > 365, 365, S45/T45), INDEX('OES Summary'!C:C, MATCH(B45, 'OES Summary'!A:A, 0))) -> 364 | S45: =_xlfn.MAXIFS('2020 Point Sources'!CY:CY,'2020 Point Sources'!A:A, A45) -> 8736 | T45: =_xlfn.MAXIFS('2020 Point Sources'!CZ:CZ,'2020 Point Sources'!A:A, A45) -> 24 | U45: =_xlfn.MAXIFS('2020 Point Sources'!DA:DA,'2020 Point Sources'!A:A, A45) -> 7 | V45: =_xlfn.MAXIFS('2020 Point Sources'!DB:DB,'2020 Point Sources'!A:A, A45) -> 52 | W45: =COUNTIF('2020 Point Sources'!A:A, A45) -> 18 | X45: =COUNTIFS('2020 Point Sources'!AY:AY, 1,'2020 Point Sources'!A:A, A45)+COUNTIFS('2020 Point Sources'!AY:AY, 7,'2020 Point Sources'!A:A, A45)+COUNTIFS('2020 Point Sources'!AY:AY, 9,'2020 Point Sources'!A:A, A45) -> 8 | Y45: =COUNTIFS('2020 Point Sources'!AY:AY, 2,'2020 Point Sources'!A:A, A45)+COUNTIFS('2020 Point Sources'!AY:AY, 3,'2020 Point Sources'!A:A, A45)+COUNTIFS('2020 Point Sources'!AY:AY, 4,'2020 Point Sources'!A:A, A45)+COUNTIFS('2020 Point Sources'!AY:AY, 5,'2020 Point Sources'!A:A, A45)+COUNTIFS('2020 Point Sources'!AY:AY, 6,'2020 Point Sources'!A:A, A45)+COUNTIFS('2020 Point Sources'!AY:AY, 8,'2020 Point Sources'!A:A, A45)+COUNTIFS('2020 Point Sources'!AY:AY, 99,'2020 Point Sources'!A:A, A45) -> 10
A46: 8239511 | B46: =VLOOKUP($A46, '2020 Point Sources'!$I:$AO, 32, FALSE) -> Manufacturing | C46: =VLOOKUP($A46,'2020 Point Sources'!$I:$J, 2, FALSE) -> Shell Chemical LP - Norco Chemical Plant East Site | D46: =VLOOKUP($A46,'2020 Point Sources'!$I:$CD, 73, FALSE) -> Norco | E46: =VLOOKUP($A46,'2020 Point Sources'!$A:$E, 5, FALSE) -> LA | F46: =VLOOKUP($A46,'2020 Point Sources'!$A:$F, 6, FALSE) -> St. Charles | G46: =VLOOKUP($A46,'2020 Point Sources'!$I:$CD, 74, FALSE) -> 70079 | H46: =VLOOKUP($A46,'2020 Point Sources'!$I:$T, 12, FALSE) -> Petroleum Refineries | I46: =VLOOKUP($A46,'2020 Point Sources'!$I:$T, 11, FALSE) -> 324110 | J46: =VLOOKUP($A46,'2020 Point Sources'!$I:$AM, 25, FALSE) -> 30115380 | K46: =VLOOKUP($A46,'2020 Point Sources'!$I:$AM, 26, FALSE) -> Industrial Processes Chemical Manufacturing Butadiene Fugitive Emissions | L46: =VLOOKUP($A46,'2020 Point Sources'!$I:$AM, 31, FALSE) -> Industrial Processes - Chemical Manuf | M46: =IF(X46>0, CONVERT((SUMIFS('2020 Point Sources'!BH:BH, '2020 Point Sources'!I:I, A46, '2020 Point Sources'!AY:AY, 1)+SUMIFS('2020 Point Sources'!BH:BH, '2020 Point Sources'!I:I, A46, '2020 Point Sources'!AY:AY, 7)+SUMIFS('2020 Point Sources'!BH:BH, '2020 Point Sources'!I:I, A46, '2020 Point Sources'!AY:AY, 9)), "ton", "g")/1000, "n/a") -> 2.23E+03 | N46: 6.14E+00 | O46: =IF(Y46>0, CONVERT((SUMIFS('2020 Point Sources'!BH:BH, '2020 Point Sources'!I:I, A46, '2020 Point Sources'!AY:AY, 2)+SUMIFS('2020 Point Sources'!BH:BH, '2020 Point Sources'!I:I, A46, '2020 Point Sources'!AY:AY, 3)+SUMIFS('2020 Point Sources'!BH:BH, '2020 Point Sources'!I:I, A46, '2020 Point Sources'!AY:AY, 4)+SUMIFS('2020 Point Sources'!BH:BH, '2020 Point Sources'!I:I, A46, '2020 Point Sources'!AY:AY, 5)+SUMIFS('2020 Point Sources'!BH:BH, '2020 Point Sources'!I:I, A46, '2020 Point Sources'!AY:AY, 6)++SUMIFS('2020 Point Sources'!BH:BH, '2020 Point Sources'!I:I, A46, '2020 Point Sources'!AY:AY, 8)++SUMIFS('2020 Point Sources'!BH:BH, '2020 Point Sources'!I:I, A46, '2020 Point Sources'!AY:AY, 99)), "ton", "g")/1000, "n/a") -> 2.06E+03 | P46: 5.666E+00 | Q46: 24 | R46: =IF(AND(S46>0, T46>0), IF(S46/T46 > 365, 365, S46/T46), INDEX('OES Summary'!C:C, MATCH(B46, 'OES Summary'!A:A, 0))) -> 364 | S46: =_xlfn.MAXIFS('2020 Point Sources'!CY:CY,'2020 Point Sources'!A:A, A46) -> 8736 | T46: =_xlfn.MAXIFS('2020 Point Sources'!CZ:CZ,'2020 Point Sources'!A:A, A46) -> 24 | U46: =_xlfn.MAXIFS('2020 Point Sources'!DA:DA,'2020 Point Sources'!A:A, A46) -> 7 | V46: =_xlfn.MAXIFS('2020 Point Sources'!DB:DB,'2020 Point Sources'!A:A, A46) -> 52 | W46: =COUNTIF('2020 Point Sources'!A:A, A46) -> 30 | X46: =COUNTIFS('2020 Point Sources'!AY:AY, 1,'2020 Point Sources'!A:A, A46)+COUNTIFS('2020 Point Sources'!AY:AY, 7,'2020 Point Sources'!A:A, A46)+COUNTIFS('2020 Point Sources'!AY:AY, 9,'2020 Point Sources'!A:A, A46) -> 20 | Y46: =COUNTIFS('2020 Point Sources'!AY:AY, 2,'2020 Point Sources'!A:A, A46)+COUNTIFS('2020 Point Sources'!AY:AY, 3,'2020 Point Sources'!A:A, A46)+COUNTIFS('2020 Point Sources'!AY:AY, 4,'2020 Point Sources'!A:A, A46)+COUNTIFS('2020 Point Sources'!AY:AY, 5,'2020 Point Sources'!A:A, A46)+COUNTIFS('2020 Point Sources'!AY:AY, 6,'2020 Point Sources'!A:A, A46)+COUNTIFS('2020 Point Sources'!AY:AY, 8,'2020 Point Sources'!A:A, A46)+COUNTIFS('2020 Point Sources'!AY:AY, 99,'2020 Point Sources'!A:A, A46) -> 10
A47: 6512311 | B47: =VLOOKUP($A47, '2020 Point Sources'!$I:$AO, 32, FALSE) -> Manufacturing | C47: =VLOOKUP($A47,'2020 Point Sources'!$I:$J, 2, FALSE) -> Sinclair Refinery | D47: =VLOOKUP($A47,'2020 Point Sources'!$I:$CD, 73, FALSE) -> Carbon | E47: =VLOOKUP($A47,'2020 Point Sources'!$A:$E, 5, FALSE) -> WY | F47: =VLOOKUP($A47,'2020 Point Sources'!$A:$F, 6, FALSE) -> Carbon | G47: =VLOOKUP($A47,'2020 Point Sources'!$I:$CD, 74, FALSE) -> 82301 | H47: =VLOOKUP($A47,'2020 Point Sources'!$I:$T, 12, FALSE) -> Petroleum Refineries | I47: =VLOOKUP($A47,'2020 Point Sources'!$I:$T, 11, FALSE) -> 324110 | J47: =VLOOKUP($A47,'2020 Point Sources'!$I:$AM, 25, FALSE) -> 20200102 | K47: =VLOOKUP($A47,'2020 Point Sources'!$I:$AM, 26, FALSE) -> Internal Combustion Engines Industrial Distillate Oil (Diesel) Reciprocating | L47: =VLOOKUP($A47,'2020 Point Sources'!$I:$AM, 31, FALSE) -> Fuel Comb - Industrial Boilers, ICEs - Oil | M47: =IF(X47>0, CONVERT((SUMIFS('2020 Point Sources'!BH:BH, '2020 Point Sources'!I:I, A47, '2020 Point Sources'!AY:AY, 1)+SUMIFS('2020 Point Sources'!BH:BH, '2020 Point Sources'!I:I, A47, '2020 Point Sources'!AY:AY, 7)+SUMIFS('2020 Point Sources'!BH:BH, '2020 Point Sources'!I:I, A47, '2020 Point Sources'!AY:AY, 9)), "ton", "g")/1000, "n/a") -> n/a | N47: n/a | O47: =IF(Y47>0, CONVERT((SUMIFS('2020 Point Sources'!BH:BH, '2020 Point Sources'!I:I, A47, '2020 Point Sources'!AY:AY, 2)+SUMIFS('2020 Point Sources'!BH:BH, '2020 Point Sources'!I:I, A47, '2020 Point Sources'!AY:AY, 3)+SUMIFS('2020 Point Sources'!BH:BH, '2020 Point Sources'!I:I, A47, '2020 Point Sources'!AY:AY, 4)+SUMIFS('2020 Point Sources'!BH:BH, '2020 Point Sources'!I:I, A47, '2020 Point Sources'!AY:AY, 5)+SUMIFS('2020 Point Sources'!BH:BH, '2020 Point Sources'!I:I, A47, '2020 Point Sources'!AY:AY, 6)++SUMIFS('2020 Point Sources'!BH:BH, '2020 Point Sources'!I:I, A47, '2020 Point Sources'!AY:AY, 8)++SUMIFS('2020 Point Sources'!BH:BH, '2020 Point Sources'!I:I, A47, '2020 Point Sources'!AY:AY, 99)), "ton", "g")/1000, "n/a") -> 1.96E+01 | P47: 5.592E-02 | Q47: 24 | R47: =IF(AND(S47>0, T47>0), IF(S47/T47 > 365, 365, S47/T47), INDEX('OES Summary'!C:C, MATCH(B47, 'OES Summary'!A:A, 0))) -> 350 | S47: =_xlfn.MAXIFS('2020 Point Sources'!CY:CY,'2020 Point Sources'!A:A, A47) -> 4615 | T47: =_xlfn.MAXIFS('2020 Point Sources'!CZ:CZ,'2020 Point Sources'!A:A, A47) -> 0 | U47: =_xlfn.MAXIFS('2020 Point Sources'!DA:DA,'2020 Point Sources'!A:A, A47) -> 0 | V47: =_xlfn.MAXIFS('2020 Point Sources'!DB:DB,'2020 Point Sources'!A:A, A47) -> 0 | W47: =COUNTIF('2020 Point Sources'!A:A, A47) -> 16 | X47: =COUNTIFS('2020 Point Sources'!AY:AY, 1,'2020 Point Sources'!A:A, A47)+COUNTIFS('2020 Point Sources'!AY:AY, 7,'2020 Point Sources'!A:A, A47)+COUNTIFS('2020 Point Sources'!AY:AY, 9,'2020 Point Sources'!A:A, A47) -> 0 | Y47: =COUNTIFS('2020 Point Sources'!AY:AY, 2,'2020 Point Sources'!A:A, A47)+COUNTIFS('2020 Point Sources'!AY:AY, 3,'2020 Point Sources'!A:A, A47)+COUNTIFS('2020 Point Sources'!AY:AY, 4,'2020 Point Sources'!A:A, A47)+COUNTIFS('2020 Point Sources'!AY:AY, 5,'2020 Point Sources'!A:A, A47)+COUNTIFS('2020 Point Sources'!AY:AY, 6,'2020 Point Sources'!A:A, A47)+COUNTIFS('2020 Point Sources'!AY:AY, 8,'2020 Point Sources'!A:A, A47)+COUNTIFS('2020 Point Sources'!AY:AY, 99,'2020 Point Sources'!A:A, A47) -> 16
A48: 5019011 | B48: =VLOOKUP($A48, '2020 Point Sources'!$I:$AO, 32, FALSE) -> Manufacturing | C48: =VLOOKUP($A48,'2020 Point Sources'!$I:$J, 2, FALSE) -> SWEENY OLD OCEAN FACILITIES | D48: =VLOOKUP($A48,'2020 Point Sources'!$I:$CD, 73, FALSE) -> OLD OCEAN | E48: =VLOOKUP($A48,'2020 Point Sources'!$A:$E, 5, FALSE) -> TX | F48: =VLOOKUP($A48,'2020 Point Sources'!$A:$F, 6, FALSE) -> Brazoria | G48: =VLOOKUP($A48,'2020 Point Sources'!$I:$CD, 74, FALSE) -> 77463 | H48: =VLOOKUP($A48,'2020 Point Sources'!$I:$T, 12, FALSE) -> Petrochemical Manufacturing | I48: =VLOOKUP($A48,'2020 Point Sources'!$I:$T, 11, FALSE) -> 325110 | J48: =VLOOKUP($A48,'2020 Point Sources'!$I:$AM, 25, FALSE) -> 30119799 | K48: =VLOOKUP($A48,'2020 Point Sources'!$I:$AM, 26, FALSE) -> Industrial Processes Chemical Manufacturing Butylene, Ethylene, Propylene, Olefin Production Other Not Classified | L48: =VLOOKUP($A48,'2020 Point Sources'!$I:$AM, 31, FALSE) -> Industrial Processes - Chemical Manuf | M48: =IF(X48>0, CONVERT((SUMIFS('2020 Point Sources'!BH:BH, '2020 Point Sources'!I:I, A48, '2020 Point Sources'!AY:AY, 1)+SUMIFS('2020 Point Sources'!BH:BH, '2020 Point Sources'!I:I, A48, '2020 Point Sources'!AY:AY, 7)+SUMIFS('2020 Point Sources'!BH:BH, '2020 Point Sources'!I:I, A48, '2020 Point Sources'!AY:AY, 9)), "ton", "g")/1000, "n/a") -> 1.29E+03 | N48: 3.52E+00 | O48: =IF(Y48>0, CONVERT((SUMIFS('2020 Point Sources'!BH:BH, '2020 Point Sources'!I:I, A48, '2020 Point Sources'!AY:AY, 2)+SUMIFS('2020 Point Sources'!BH:BH, '2020 Point Sources'!I:I, A48, '2020 Point Sources'!AY:AY, 3)+SUMIFS('2020 Point Sources'!BH:BH, '2020 Point Sources'!I:I, A48, '2020 Point Sources'!AY:AY, 4)+SUMIFS('2020 Point Sources'!BH:BH, '2020 Point Sources'!I:I, A48, '2020 Point Sources'!AY:AY, 5)+SUMIFS('2020 Point Sources'!BH:BH, '2020 Point Sources'!I:I, A48, '2020 Point Sources'!AY:AY, 6)++SUMIFS('2020 Point Sources'!BH:BH, '2020 Point Sources'!I:I, A48, '2020 Point Sources'!AY:AY, 8)++SUMIFS('2020 Point Sources'!BH:BH, '2020 Point Sources'!I:I, A48, '2020 Point Sources'!AY:AY, 99)), "ton", "g")/1000, "n/a") -> 2.14E+03 | P48: 5.865E+00 | Q48: 24 | R48: =IF(AND(S48>0, T48>0), IF(S48/T48 > 365, 365, S48/T48), INDEX('OES Summary'!C:C, MATCH(B48, 'OES Summary'!A:A, 0))) -> 365 | S48: =_xlfn.MAXIFS('2020 Point Sources'!CY:CY,'2020 Point Sources'!A:A, A48) -> 8760 | T48: =_xlfn.MAXIFS('2020 Point Sources'!CZ:CZ,'2020 Point Sources'!A:A, A48) -> 24 | U48: =_xlfn.MAXIFS('2020 Point Sources'!DA:DA,'2020 Point Sources'!A:A, A48) -> 7 | V48: =_xlfn.MAXIFS('2020 Point Sources'!DB:DB,'2020 Point Sources'!A:A, A48) -> 52 | W48: =COUNTIF('2020 Point Sources'!A:A, A48) -> 36 | X48: =COUNTIFS('2020 Point Sources'!AY:AY, 1,'2020 Point Sources'!A:A, A48)+COUNTIFS('2020 Point Sources'!AY:AY, 7,'2020 Point Sources'!A:A, A48)+COUNTIFS('2020 Point Sources'!AY:AY, 9,'2020 Point Sources'!A:A, A48) -> 11 | Y48: =COUNTIFS('2020 Point Sources'!AY:AY, 2,'2020 Point Sources'!A:A, A48)+COUNTIFS('2020 Point Sources'!AY:AY, 3,'2020 Point Sources'!A:A, A48)+COUNTIFS('2020 Point Sources'!AY:AY, 4,'2020 Point Sources'!A:A, A48)+COUNTIFS('2020 Point Sources'!AY:AY, 5,'2020 Point Sources'!A:A, A48)+COUNTIFS('2020 Point Sources'!AY:AY, 6,'2020 Point Sources'!A:A, A48)+COUNTIFS('2020 Point Sources'!AY:AY, 8,'2020 Point Sources'!A:A, A48)+COUNTIFS('2020 Point Sources'!AY:AY, 99,'2020 Point Sources'!A:A, A48) -> 25
A49: 7558611 | B49: =VLOOKUP($A49, '2020 Point Sources'!$I:$AO, 32, FALSE) -> Manufacturing | C49: =VLOOKUP($A49,'2020 Point Sources'!$I:$J, 2, FALSE) -> Tesoro Refining & Marketing Company LLC - Salt Lake City Refinery | D49: =VLOOKUP($A49,'2020 Point Sources'!$I:$CD, 73, FALSE) -> Salt Lake City | E49: =VLOOKUP($A49,'2020 Point Sources'!$A:$E, 5, FALSE) -> UT | F49: =VLOOKUP($A49,'2020 Point Sources'!$A:$F, 6, FALSE) -> Salt Lake | G49: =VLOOKUP($A49,'2020 Point Sources'!$I:$CD, 74, FALSE) -> 84103 | H49: =VLOOKUP($A49,'2020 Point Sources'!$I:$T, 12, FALSE) -> Petroleum Refineries | I49: =VLOOKUP($A49,'2020 Point Sources'!$I:$T, 11, FALSE) -> 324110 | J49: =VLOOKUP($A49,'2020 Point Sources'!$I:$AM, 25, FALSE) -> 30600106 | K49: =VLOOKUP($A49,'2020 Point Sources'!$I:$AM, 26, FALSE) -> Industrial Processes Petroleum Industry Process Heaters Process Gas | L49: =VLOOKUP($A49,'2020 Point Sources'!$I:$AM, 31, FALSE) -> Industrial Processes - Petroleum Refineries | M49: =IF(X49>0, CONVERT((SUMIFS('2020 Point Sources'!BH:BH, '2020 Point Sources'!I:I, A49, '2020 Point Sources'!AY:AY, 1)+SUMIFS('2020 Point Sources'!BH:BH, '2020 Point Sources'!I:I, A49, '2020 Point Sources'!AY:AY, 7)+SUMIFS('2020 Point Sources'!BH:BH, '2020 Point Sources'!I:I, A49, '2020 Point Sources'!AY:AY, 9)), "ton", "g")/1000, "n/a") -> 5.90E+00 | N49: 1.68E-02 | O49: =IF(Y49>0, CONVERT((SUMIFS('2020 Point Sources'!BH:BH, '2020 Point Sources'!I:I, A49, '2020 Point Sources'!AY:AY, 2)+SUMIFS('2020 Point Sources'!BH:BH, '2020 Point Sources'!I:I, A49, '2020 Point Sources'!AY:AY, 3)+SUMIFS('2020 Point Sources'!BH:BH, '2020 Point Sources'!I:I, A49, '2020 Point Sources'!AY:AY, 4)+SUMIFS('2020 Point Sources'!BH:BH, '2020 Point Sources'!I:I, A49, '2020 Point Sources'!AY:AY, 5)+SUMIFS('2020 Point Sources'!BH:BH, '2020 Point Sources'!I:I, A49, '2020 Point Sources'!AY:AY, 6)++SUMIFS('2020 Point Sources'!BH:BH, '2020 Point Sources'!I:I, A49, '2020 Point Sources'!AY:AY, 8)++SUMIFS('2020 Point Sources'!BH:BH, '2020 Point Sources'!I:I, A49, '2020 Point Sources'!AY:AY, 99)), "ton", "g")/1000, "n/a") -> 1.77E+01 | P49: 5.054E-02 | Q49: 24 | R49: =IF(AND(S49>0, T49>0), IF(S49/T49 > 365, 365, S49/T49), INDEX('OES Summary'!C:C, MATCH(B49, 'OES Summary'!A:A, 0))) -> 350 | S49: =_xlfn.MAXIFS('2020 Point Sources'!CY:CY,'2020 Point Sources'!A:A, A49) -> 0 | T49: =_xlfn.MAXIFS('2020 Point Sources'!CZ:CZ,'2020 Point Sources'!A:A, A49) -> 0 | U49: =_xlfn.MAXIFS('2020 Point Sources'!DA:DA,'2020 Point Sources'!A:A, A49) -> 0 | V49: =_xlfn.MAXIFS('2020 Point Sources'!DB:DB,'2020 Point Sources'!A:A, A49) -> 0 | W49: =COUNTIF('2020 Point Sources'!A:A, A49) -> 2 | X49: =COUNTIFS('2020 Point Sources'!AY:AY, 1,'2020 Point Sources'!A:A, A49)+COUNTIFS('2020 Point Sources'!AY:AY, 7,'2020 Point Sources'!A:A, A49)+COUNTIFS('2020 Point Sources'!AY:AY, 9,'2020 Point Sources'!A:A, A49) -> 1 | Y49: =COUNTIFS('2020 Point Sources'!AY:AY, 2,'2020 Point Sources'!A:A, A49)+COUNTIFS('2020 Point Sources'!AY:AY, 3,'2020 Point Sources'!A:A, A49)+COUNTIFS('2020 Point Sources'!AY:AY, 4,'2020 Point Sources'!A:A, A49)+COUNTIFS('2020 Point Sources'!AY:AY, 5,'2020 Point Sources'!A:A, A49)+COUNTIFS('2020 Point Sources'!AY:AY, 6,'2020 Point Sources'!A:A, A49)+COUNTIFS('2020 Point Sources'!AY:AY, 8,'2020 Point Sources'!A:A, A49)+COUNTIFS('2020 Point Sources'!AY:AY, 99,'2020 Point Sources'!A:A, A49) -> 1
A50: 4941511 | B50: =VLOOKUP($A50, '2020 Point Sources'!$I:$AO, 32, FALSE) -> Manufacturing | C50: =VLOOKUP($A50,'2020 Point Sources'!$I:$J, 2, FALSE) -> TEXAS OPERATIONS | D50: =VLOOKUP($A50,'2020 Point Sources'!$I:$CD, 73, FALSE) -> LONGVIEW | E50: =VLOOKUP($A50,'2020 Point Sources'!$A:$E, 5, FALSE) -> TX | F50: =VLOOKUP($A50,'2020 Point Sources'!$A:$F, 6, FALSE) -> Harrison | G50: =VLOOKUP($A50,'2020 Point Sources'!$I:$CD, 74, FALSE) -> 75607 | H50: =VLOOKUP($A50,'2020 Point Sources'!$I:$T, 12, FALSE) -> Petrochemical Manufacturing | I50: =VLOOKUP($A50,'2020 Point Sources'!$I:$T, 11, FALSE) -> 325110 | J50: =VLOOKUP($A50,'2020 Point Sources'!$I:$AM, 25, FALSE) -> 38500101 | K50: =VLOOKUP($A50,'2020 Point Sources'!$I:$AM, 26, FALSE) -> Industrial Processes Cooling Tower Process Cooling Mechanical Draft | L50: =VLOOKUP($A50,'2020 Point Sources'!$I:$AM, 31, FALSE) -> Industrial Processes - NEC | M50: =IF(X50>0, CONVERT((SUMIFS('2020 Point Sources'!BH:BH, '2020 Point Sources'!I:I, A50, '2020 Point Sources'!AY:AY, 1)+SUMIFS('2020 Point Sources'!BH:BH, '2020 Point Sources'!I:I, A50, '2020 Point Sources'!AY:AY, 7)+SUMIFS('2020 Point Sources'!BH:BH, '2020 Point Sources'!I:I, A50, '2020 Point Sources'!AY:AY, 9)), "ton", "g")/1000, "n/a") -> 8.50E+02 | N50: 2.33E+00 | O50: =IF(Y50>0, CONVERT((SUMIFS('2020 Point Sources'!BH:BH, '2020 Point Sources'!I:I, A50, '2020 Point Sources'!AY:AY, 2)+SUMIFS('2020 Point Sources'!BH:BH, '2020 Point Sources'!I:I, A50, '2020 Point Sources'!AY:AY, 3)+SUMIFS('2020 Point Sources'!BH:BH, '2020 Point Sources'!I:I, A50, '2020 Point Sources'!AY:AY, 4)+SUMIFS('2020 Point Sources'!BH:BH, '2020 Point Sources'!I:I, A50, '2020 Point Sources'!AY:AY, 5)+SUMIFS('2020 Point Sources'!BH:BH, '2020 Point Sources'!I:I, A50, '2020 Point Sources'!AY:AY, 6)++SUMIFS('2020 Point Sources'!BH:BH, '2020 Point Sources'!I:I, A50, '2020 Point Sources'!AY:AY, 8)++SUMIFS('2020 Point Sources'!BH:BH, '2020 Point Sources'!I:I, A50, '2020 Point Sources'!AY:AY, 99)), "ton", "g")/1000, "n/a") -> 3.67E+03 | P50: 1.005E+01 | Q50: 24 | R50: =IF(AND(S50>0, T50>0), IF(S50/T50 > 365, 365, S50/T50), INDEX('OES Summary'!C:C, MATCH(B50, 'OES Summary'!A:A, 0))) -> 365 | S50: =_xlfn.MAXIFS('2020 Point Sources'!CY:CY,'2020 Point Sources'!A:A, A50) -> 8760 | T50: =_xlfn.MAXIFS('2020 Point Sources'!CZ:CZ,'2020 Point Sources'!A:A, A50) -> 24 | U50: =_xlfn.MAXIFS('2020 Point Sources'!DA:DA,'2020 Point Sources'!A:A, A50) -> 7 | V50: =_xlfn.MAXIFS('2020 Point Sources'!DB:DB,'2020 Point Sources'!A:A, A50) -> 52 | W50: =COUNTIF('2020 Point Sources'!A:A, A50) -> 34 | X50: =COUNTIFS('2020 Point Sources'!AY:AY, 1,'2020 Point Sources'!A:A, A50)+COUNTIFS('2020 Point Sources'!AY:AY, 7,'2020 Point Sources'!A:A, A50)+COUNTIFS('2020 Point Sources'!AY:AY, 9,'2020 Point Sources'!A:A, A50) -> 9 | Y50: =COUNTIFS('2020 Point Sources'!AY:AY, 2,'2020 Point Sources'!A:A, A50)+COUNTIFS('2020 Point Sources'!AY:AY, 3,'2020 Point Sources'!A:A, A50)+COUNTIFS('2020 Point Sources'!AY:AY, 4,'2020 Point Sources'!A:A, A50)+COUNTIFS('2020 Point Sources'!AY:AY, 5,'2020 Point Sources'!A:A, A50)+COUNTIFS('2020 Point Sources'!AY:AY, 6,'2020 Point Sources'!A:A, A50)+COUNTIFS('2020 Point Sources'!AY:AY, 8,'2020 Point Sources'!A:A, A50)+COUNTIFS('2020 Point Sources'!AY:AY, 99,'2020 Point Sources'!A:A, A50) -> 25
A51: 8467311 | B51: =VLOOKUP($A51, '2020 Point Sources'!$I:$AO, 32, FALSE) -> Manufacturing | C51: =VLOOKUP($A51,'2020 Point Sources'!$I:$J, 2, FALSE) -> The Dow Chemical Company - Louisiana Operations | D51: =VLOOKUP($A51,'2020 Point Sources'!$I:$CD, 73, FALSE) -> Plaquemine | E51: =VLOOKUP($A51,'2020 Point Sources'!$A:$E, 5, FALSE) -> LA | F51: =VLOOKUP($A51,'2020 Point Sources'!$A:$F, 6, FALSE) -> Iberville | G51: =VLOOKUP($A51,'2020 Point Sources'!$I:$CD, 74, FALSE) -> 70765 | H51: =VLOOKUP($A51,'2020 Point Sources'!$I:$T, 12, FALSE) -> All Other Basic Organic Chemical Manufacturing | I51: =VLOOKUP($A51,'2020 Point Sources'!$I:$T, 11, FALSE) -> 325199 | J51: =VLOOKUP($A51,'2020 Point Sources'!$I:$AM, 25, FALSE) -> 40718098 | K51: =VLOOKUP($A51,'2020 Point Sources'!$I:$AM, 26, FALSE) -> Chemical Evaporation Organic Chemical Storage Floating Roof Tanks - Alkenes Alkenes: Working Loss | L51: =VLOOKUP($A51,'2020 Point Sources'!$I:$AM, 31, FALSE) -> Industrial Processes - Storage and Transfer | M51: =IF(X51>0, CONVERT((SUMIFS('2020 Point Sources'!BH:BH, '2020 Point Sources'!I:I, A51, '2020 Point Sources'!AY:AY, 1)+SUMIFS('2020 Point Sources'!BH:BH, '2020 Point Sources'!I:I, A51, '2020 Point Sources'!AY:AY, 7)+SUMIFS('2020 Point Sources'!BH:BH, '2020 Point Sources'!I:I, A51, '2020 Point Sources'!AY:AY, 9)), "ton", "g")/1000, "n/a") -> 2.12E+03 | N51: 5.83E+00 | O51: =IF(Y51>0, CONVERT((SUMIFS('2020 Point Sources'!BH:BH, '2020 Point Sources'!I:I, A51, '2020 Point Sources'!AY:AY, 2)+SUMIFS('2020 Point Sources'!BH:BH, '2020 Point Sources'!I:I, A51, '2020 Point Sources'!AY:AY, 3)+SUMIFS('2020 Point Sources'!BH:BH, '2020 Point Sources'!I:I, A51, '2020 Point Sources'!AY:AY, 4)+SUMIFS('2020 Point Sources'!BH:BH, '2020 Point Sources'!I:I, A51, '2020 Point Sources'!AY:AY, 5)+SUMIFS('2020 Point Sources'!BH:BH, '2020 Point Sources'!I:I, A51, '2020 Point Sources'!AY:AY, 6)++SUMIFS('2020 Point Sources'!BH:BH, '2020 Point Sources'!I:I, A51, '2020 Point Sources'!AY:AY, 8)++SUMIFS('2020 Point Sources'!BH:BH, '2020 Point Sources'!I:I, A51, '2020 Point Sources'!AY:AY, 99)), "ton", "g")/1000, "n/a") -> 7.11E+02 | P51: 1.952E+00 | Q51: 24 | R51: =IF(AND(S51>0, T51>0), IF(S51/T51 > 365, 365, S51/T51), INDEX('OES Summary'!C:C, MATCH(B51, 'OES Summary'!A:A, 0))) -> 364 | S51: =_xlfn.MAXIFS('2020 Point Sources'!CY:CY,'2020 Point Sources'!A:A, A51) -> 8736 | T51: =_xlfn.MAXIFS('2020 Point Sources'!CZ:CZ,'2020 Point Sources'!A:A, A51) -> 24 | U51: =_xlfn.MAXIFS('2020 Point Sources'!DA:DA,'2020 Point Sources'!A:A, A51) -> 7 | V51: =_xlfn.MAXIFS('2020 Point Sources'!DB:DB,'2020 Point Sources'!A:A, A51) -> 52 | W51: =COUNTIF('2020 Point Sources'!A:A, A51) -> 25 | X51: =COUNTIFS('2020 Point Sources'!AY:AY, 1,'2020 Point Sources'!A:A, A51)+COUNTIFS('2020 Point Sources'!AY:AY, 7,'2020 Point Sources'!A:A, A51)+COUNTIFS('2020 Point Sources'!AY:AY, 9,'2020 Point Sources'!A:A, A51) -> 13 | Y51: =COUNTIFS('2020 Point Sources'!AY:AY, 2,'2020 Point Sources'!A:A, A51)+COUNTIFS('2020 Point Sources'!AY:AY, 3,'2020 Point Sources'!A:A, A51)+COUNTIFS('2020 Point Sources'!AY:AY, 4,'2020 Point Sources'!A:A, A51)+COUNTIFS('2020 Point Sources'!AY:AY, 5,'2020 Point Sources'!A:A, A51)+COUNTIFS('2020 Point Sources'!AY:AY, 6,'2020 Point Sources'!A:A, A51)+COUNTIFS('2020 Point Sources'!AY:AY, 8,'2020 Point Sources'!A:A, A51)+COUNTIFS('2020 Point Sources'!AY:AY, 99,'2020 Point Sources'!A:A, A51) -> 12
A52: 17922111 | B52: =VLOOKUP($A52, '2020 Point Sources'!$I:$AO, 32, FALSE) -> Manufacturing | C52: =VLOOKUP($A52,'2020 Point Sources'!$I:$J, 2, FALSE) -> TORRANCE REFINING COMPANY LLC | D52: =VLOOKUP($A52,'2020 Point Sources'!$I:$CD, 73, FALSE) -> TORRANCE | E52: =VLOOKUP($A52,'2020 Point Sources'!$A:$E, 5, FALSE) -> CA | F52: =VLOOKUP($A52,'2020 Point Sources'!$A:$F, 6, FALSE) -> Los Angeles | G52: =VLOOKUP($A52,'2020 Point Sources'!$I:$CD, 74, FALSE) -> 90504 | H52: =VLOOKUP($A52,'2020 Point Sources'!$I:$T, 12, FALSE) -> Petroleum Refineries | I52: =VLOOKUP($A52,'2020 Point Sources'!$I:$T, 11, FALSE) -> 324110 | J52: =VLOOKUP($A52,'2020 Point Sources'!$I:$AM, 25, FALSE) -> 30600817 | K52: =VLOOKUP($A52,'2020 Point Sources'!$I:$AM, 26, FALSE) -> Industrial Processes Petroleum Industry Fugitive Emissions Pump Seals: Light Liquid/Gas Streams | L52: =VLOOKUP($A52,'2020 Point Sources'!$I:$AM, 31, FALSE) -> Industrial Processes - Petroleum Refineries | M52: =IF(X52>0, CONVERT((SUMIFS('2020 Point Sources'!BH:BH, '2020 Point Sources'!I:I, A52, '2020 Point Sources'!AY:AY, 1)+SUMIFS('2020 Point Sources'!BH:BH, '2020 Point Sources'!I:I, A52, '2020 Point Sources'!AY:AY, 7)+SUMIFS('2020 Point Sources'!BH:BH, '2020 Point Sources'!I:I, A52, '2020 Point Sources'!AY:AY, 9)), "ton", "g")/1000, "n/a") -> 3.53E+01 | N52: 9.69E-02 | O52: =IF(Y52>0, CONVERT((SUMIFS('2020 Point Sources'!BH:BH, '2020 Point Sources'!I:I, A52, '2020 Point Sources'!AY:AY, 2)+SUMIFS('2020 Point Sources'!BH:BH, '2020 Point Sources'!I:I, A52, '2020 Point Sources'!AY:AY, 3)+SUMIFS('2020 Point Sources'!BH:BH, '2020 Point Sources'!I:I, A52, '2020 Point Sources'!AY:AY, 4)+SUMIFS('2020 Point Sources'!BH:BH, '2020 Point Sources'!I:I, A52, '2020 Point Sources'!AY:AY, 5)+SUMIFS('2020 Point Sources'!BH:BH, '2020 Point Sources'!I:I, A52, '2020 Point Sources'!AY:AY, 6)++SUMIFS('2020 Point Sources'!BH:BH, '2020 Point Sources'!I:I, A52, '2020 Point Sources'!AY:AY, 8)++SUMIFS('2020 Point Sources'!BH:BH, '2020 Point Sources'!I:I, A52, '2020 Point Sources'!AY:AY, 99)), "ton", "g")/1000, "n/a") -> n/a | P52: n/a | Q52: 24 | R52: =IF(AND(S52>0, T52>0), IF(S52/T52 > 365, 365, S52/T52), INDEX('OES Summary'!C:C, MATCH(B52, 'OES Summary'!A:A, 0))) -> 364 | S52: =_xlfn.MAXIFS('2020 Point Sources'!CY:CY,'2020 Point Sources'!A:A, A52) -> 8736 | T52: =_xlfn.MAXIFS('2020 Point Sources'!CZ:CZ,'2020 Point Sources'!A:A, A52) -> 24 | U52: =_xlfn.MAXIFS('2020 Point Sources'!DA:DA,'2020 Point Sources'!A:A, A52) -> 7 | V52: =_xlfn.MAXIFS('2020 Point Sources'!DB:DB,'2020 Point Sources'!A:A, A52) -> 52 | W52: =COUNTIF('2020 Point Sources'!A:A, A52) -> 205 | X52: =COUNTIFS('2020 Point Sources'!AY:AY, 1,'2020 Point Sources'!A:A, A52)+COUNTIFS('2020 Point Sources'!AY:AY, 7,'2020 Point Sources'!A:A, A52)+COUNTIFS('2020 Point Sources'!AY:AY, 9,'2020 Point Sources'!A:A, A52) -> 205 | Y52: =COUNTIFS('2020 Point Sources'!AY:AY, 2,'2020 Point Sources'!A:A, A52)+COUNTIFS('2020 Point Sources'!AY:AY, 3,'2020 Point Sources'!A:A, A52)+COUNTIFS('2020 Point Sources'!AY:AY, 4,'2020 Point Sources'!A:A, A52)+COUNTIFS('2020 Point Sources'!AY:AY, 5,'2020 Point Sources'!A:A, A52)+COUNTIFS('2020 Point Sources'!AY:AY, 6,'2020 Point Sources'!A:A, A52)+COUNTIFS('2020 Point Sources'!AY:AY, 8,'2020 Point Sources'!A:A, A52)+COUNTIFS('2020 Point Sources'!AY:AY, 99,'2020 Point Sources'!A:A, A52) -> 0
A53: 7202911 | B53: =VLOOKUP($A53, '2020 Point Sources'!$I:$AO, 32, FALSE) -> Manufacturing | C53: =VLOOKUP($A53,'2020 Point Sources'!$I:$J, 2, FALSE) -> Union Carbide Corp - St Charles Plant | D53: =VLOOKUP($A53,'2020 Point Sources'!$I:$CD, 73, FALSE) -> Hahnville | E53: =VLOOKUP($A53,'2020 Point Sources'!$A:$E, 5, FALSE) -> LA | F53: =VLOOKUP($A53,'2020 Point Sources'!$A:$F, 6, FALSE) -> St. Charles | G53: =VLOOKUP($A53,'2020 Point Sources'!$I:$CD, 74, FALSE) -> 70057 | H53: =VLOOKUP($A53,'2020 Point Sources'!$I:$T, 12, FALSE) -> All Other Basic Organic Chemical Manufacturing | I53: =VLOOKUP($A53,'2020 Point Sources'!$I:$T, 11, FALSE) -> 325199 | J53: =VLOOKUP($A53,'2020 Point Sources'!$I:$AM, 25, FALSE) -> 40301099 | K53: =VLOOKUP($A53,'2020 Point Sources'!$I:$AM, 26, FALSE) -> Chemical Evaporation Petroleum Product Storage at Refineries Fixed Roof Tanks (Varying Sizes) Other Product: Working Loss | L53: =VLOOKUP($A53,'2020 Point Sources'!$I:$AM, 31, FALSE) -> Industrial Processes - Storage and Transfer | M53: =IF(X53>0, CONVERT((SUMIFS('2020 Point Sources'!BH:BH, '2020 Point Sources'!I:I, A53, '2020 Point Sources'!AY:AY, 1)+SUMIFS('2020 Point Sources'!BH:BH, '2020 Point Sources'!I:I, A53, '2020 Point Sources'!AY:AY, 7)+SUMIFS('2020 Point Sources'!BH:BH, '2020 Point Sources'!I:I, A53, '2020 Point Sources'!AY:AY, 9)), "ton", "g")/1000, "n/a") -> 1.14E+03 | N53: 3.12E+00 | O53: =IF(Y53>0, CONVERT((SUMIFS('2020 Point Sources'!BH:BH, '2020 Point Sources'!I:I, A53, '2020 Point Sources'!AY:AY, 2)+SUMIFS('2020 Point Sources'!BH:BH, '2020 Point Sources'!I:I, A53, '2020 Point Sources'!AY:AY, 3)+SUMIFS('2020 Point Sources'!BH:BH, '2020 Point Sources'!I:I, A53, '2020 Point Sources'!AY:AY, 4)+SUMIFS('2020 Point Sources'!BH:BH, '2020 Point Sources'!I:I, A53, '2020 Point Sources'!AY:AY, 5)+SUMIFS('2020 Point Sources'!BH:BH, '2020 Point Sources'!I:I, A53, '2020 Point Sources'!AY:AY, 6)++SUMIFS('2020 Point Sources'!BH:BH, '2020 Point Sources'!I:I, A53, '2020 Point Sources'!AY:AY, 8)++SUMIFS('2020 Point Sources'!BH:BH, '2020 Point Sources'!I:I, A53, '2020 Point Sources'!AY:AY, 99)), "ton", "g")/1000, "n/a") -> 6.23E+03 | P53: 1.712E+01 | Q53: 24 | R53: =IF(AND(S53>0, T53>0), IF(S53/T53 > 365, 365, S53/T53), INDEX('OES Summary'!C:C, MATCH(B53, 'OES Summary'!A:A, 0))) -> 364 | S53: =_xlfn.MAXIFS('2020 Point Sources'!CY:CY,'2020 Point Sources'!A:A, A53) -> 8736 | T53: =_xlfn.MAXIFS('2020 Point Sources'!CZ:CZ,'2020 Point Sources'!A:A, A53) -> 24 | U53: =_xlfn.MAXIFS('2020 Point Sources'!DA:DA,'2020 Point Sources'!A:A, A53) -> 7 | V53: =_xlfn.MAXIFS('2020 Point Sources'!DB:DB,'2020 Point Sources'!A:A, A53) -> 52 | W53: =COUNTIF('2020 Point Sources'!A:A, A53) -> 13 | X53: =COUNTIFS('2020 Point Sources'!AY:AY, 1,'2020 Point Sources'!A:A, A53)+COUNTIFS('2020 Point Sources'!AY:AY, 7,'2020 Point Sources'!A:A, A53)+COUNTIFS('2020 Point Sources'!AY:AY, 9,'2020 Point Sources'!A:A, A53) -> 7 | Y53: =COUNTIFS('2020 Point Sources'!AY:AY, 2,'2020 Point Sources'!A:A, A53)+COUNTIFS('2020 Point Sources'!AY:AY, 3,'2020 Point Sources'!A:A, A53)+COUNTIFS('2020 Point Sources'!AY:AY, 4,'2020 Point Sources'!A:A, A53)+COUNTIFS('2020 Point Sources'!AY:AY, 5,'2020 Point Sources'!A:A, A53)+COUNTIFS('2020 Point Sources'!AY:AY, 6,'2020 Point Sources'!A:A, A53)+COUNTIFS('2020 Point Sources'!AY:AY, 8,'2020 Point Sources'!A:A, A53)+COUNTIFS('2020 Point Sources'!AY:AY, 99,'2020 Point Sources'!A:A, A53) -> 6
A54: 8105511 | B54: =VLOOKUP($A54, '2020 Point Sources'!$I:$AO, 32, FALSE) -> Manufacturing | C54: =VLOOKUP($A54,'2020 Point Sources'!$I:$J, 2, FALSE) -> Western Refining - Gallup Refinery | D54: =VLOOKUP($A54,'2020 Point Sources'!$I:$CD, 73, FALSE) -> Gallup | E54: =VLOOKUP($A54,'2020 Point Sources'!$A:$E, 5, FALSE) -> NM | F54: =VLOOKUP($A54,'2020 Point Sources'!$A:$F, 6, FALSE) -> McKinley | G54: =VLOOKUP($A54,'2020 Point Sources'!$I:$CD, 74, FALSE) -> 87301 | H54: =VLOOKUP($A54,'2020 Point Sources'!$I:$T, 12, FALSE) -> Petroleum RefineriesT | I54: =VLOOKUP($A54,'2020 Point Sources'!$I:$T, 11, FALSE) -> 32411 | J54: =VLOOKUP($A54,'2020 Point Sources'!$I:$AM, 25, FALSE) -> 30600106 | K54: =VLOOKUP($A54,'2020 Point Sources'!$I:$AM, 26, FALSE) -> Industrial Processes Petroleum Industry Process Heaters Process Gas | L54: =VLOOKUP($A54,'2020 Point Sources'!$I:$AM, 31, FALSE) -> Industrial Processes - Petroleum Refineries | M54: =IF(X54>0, CONVERT((SUMIFS('2020 Point Sources'!BH:BH, '2020 Point Sources'!I:I, A54, '2020 Point Sources'!AY:AY, 1)+SUMIFS('2020 Point Sources'!BH:BH, '2020 Point Sources'!I:I, A54, '2020 Point Sources'!AY:AY, 7)+SUMIFS('2020 Point Sources'!BH:BH, '2020 Point Sources'!I:I, A54, '2020 Point Sources'!AY:AY, 9)), "ton", "g")/1000, "n/a") -> n/a | N54: n/a | O54: =IF(Y54>0, CONVERT((SUMIFS('2020 Point Sources'!BH:BH, '2020 Point Sources'!I:I, A54, '2020 Point Sources'!AY:AY, 2)+SUMIFS('2020 Point Sources'!BH:BH, '2020 Point Sources'!I:I, A54, '2020 Point Sources'!AY:AY, 3)+SUMIFS('2020 Point Sources'!BH:BH, '2020 Point Sources'!I:I, A54, '2020 Point Sources'!AY:AY, 4)+SUMIFS('2020 Point Sources'!BH:BH, '2020 Point Sources'!I:I, A54, '2020 Point Sources'!AY:AY, 5)+SUMIFS('2020 Point Sources'!BH:BH, '2020 Point Sources'!I:I, A54, '2020 Point Sources'!AY:AY, 6)++SUMIFS('2020 Point Sources'!BH:BH, '2020 Point Sources'!I:I, A54, '2020 Point Sources'!AY:AY, 8)++SUMIFS('2020 Point Sources'!BH:BH, '2020 Point Sources'!I:I, A54, '2020 Point Sources'!AY:AY, 99)), "ton", "g")/1000, "n/a") -> 1.56E+02 | P54: 4.458E-01 | Q54: 24 | R54: =IF(AND(S54>0, T54>0), IF(S54/T54 > 365, 365, S54/T54), INDEX('OES Summary'!C:C, MATCH(B54, 'OES Summary'!A:A, 0))) -> 350 | S54: =_xlfn.MAXIFS('2020 Point Sources'!CY:CY,'2020 Point Sources'!A:A, A54) -> 0 | T54: =_xlfn.MAXIFS('2020 Point Sources'!CZ:CZ,'2020 Point Sources'!A:A, A54) -> 0 | U54: =_xlfn.MAXIFS('2020 Point Sources'!DA:DA,'2020 Point Sources'!A:A, A54) -> 0 | V54: =_xlfn.MAXIFS('2020 Point Sources'!DB:DB,'2020 Point Sources'!A:A, A54) -> 0 | W54: =COUNTIF('2020 Point Sources'!A:A, A54) -> 1 | X54: =COUNTIFS('2020 Point Sources'!AY:AY, 1,'2020 Point Sources'!A:A, A54)+COUNTIFS('2020 Point Sources'!AY:AY, 7,'2020 Point Sources'!A:A, A54)+COUNTIFS('2020 Point Sources'!AY:AY, 9,'2020 Point Sources'!A:A, A54) -> 0 | Y54: =COUNTIFS('2020 Point Sources'!AY:AY, 2,'2020 Point Sources'!A:A, A54)+COUNTIFS('2020 Point Sources'!AY:AY, 3,'2020 Point Sources'!A:A, A54)+COUNTIFS('2020 Point Sources'!AY:AY, 4,'2020 Point Sources'!A:A, A54)+COUNTIFS('2020 Point Sources'!AY:AY, 5,'2020 Point Sources'!A:A, A54)+COUNTIFS('2020 Point Sources'!AY:AY, 6,'2020 Point Sources'!A:A, A54)+COUNTIFS('2020 Point Sources'!AY:AY, 8,'2020 Point Sources'!A:A, A54)+COUNTIFS('2020 Point Sources'!AY:AY, 99,'2020 Point Sources'!A:A, A54) -> 1
A55: 7929111 | B55: =VLOOKUP($A55, '2020 Point Sources'!$I:$AO, 32, FALSE) -> Manufacturing | C55: =VLOOKUP($A55,'2020 Point Sources'!$I:$J, 2, FALSE) -> Westlake Chemical OpCo LP - Westlake Petrochemical Complex | D55: =VLOOKUP($A55,'2020 Point Sources'!$I:$CD, 73, FALSE) -> Sulphur | E55: =VLOOKUP($A55,'2020 Point Sources'!$A:$E, 5, FALSE) -> LA | F55: =VLOOKUP($A55,'2020 Point Sources'!$A:$F, 6, FALSE) -> Calcasieu | G55: =VLOOKUP($A55,'2020 Point Sources'!$I:$CD, 74, FALSE) -> 70665 | H55: =VLOOKUP($A55,'2020 Point Sources'!$I:$T, 12, FALSE) -> Petrochemical Manufacturing | I55: =VLOOKUP($A55,'2020 Point Sources'!$I:$T, 11, FALSE) -> 325110 | J55: =VLOOKUP($A55,'2020 Point Sources'!$I:$AM, 25, FALSE) -> 30190023 | K55: =VLOOKUP($A55,'2020 Point Sources'!$I:$AM, 26, FALSE) -> Industrial Processes Chemical Manufacturing Fuel Fired Equipment Flare: Natural Gas | L55: =VLOOKUP($A55,'2020 Point Sources'!$I:$AM, 31, FALSE) -> Industrial Processes - Chemical Manuf | M55: =IF(X55>0, CONVERT((SUMIFS('2020 Point Sources'!BH:BH, '2020 Point Sources'!I:I, A55, '2020 Point Sources'!AY:AY, 1)+SUMIFS('2020 Point Sources'!BH:BH, '2020 Point Sources'!I:I, A55, '2020 Point Sources'!AY:AY, 7)+SUMIFS('2020 Point Sources'!BH:BH, '2020 Point Sources'!I:I, A55, '2020 Point Sources'!AY:AY, 9)), "ton", "g")/1000, "n/a") -> 1.48E+03 | N55: 4.08E+00 | O55: =IF(Y55>0, CONVERT((SUMIFS('2020 Point Sources'!BH:BH, '2020 Point Sources'!I:I, A55, '2020 Point Sources'!AY:AY, 2)+SUMIFS('2020 Point Sources'!BH:BH, '2020 Point Sources'!I:I, A55, '2020 Point Sources'!AY:AY, 3)+SUMIFS('2020 Point Sources'!BH:BH, '2020 Point Sources'!I:I, A55, '2020 Point Sources'!AY:AY, 4)+SUMIFS('2020 Point Sources'!BH:BH, '2020 Point Sources'!I:I, A55, '2020 Point Sources'!AY:AY, 5)+SUMIFS('2020 Point Sources'!BH:BH, '2020 Point Sources'!I:I, A55, '2020 Point Sources'!AY:AY, 6)++SUMIFS('2020 Point Sources'!BH:BH, '2020 Point Sources'!I:I, A55, '2020 Point Sources'!AY:AY, 8)++SUMIFS('2020 Point Sources'!BH:BH, '2020 Point Sources'!I:I, A55, '2020 Point Sources'!AY:AY, 99)), "ton", "g")/1000, "n/a") -> 2.05E+03 | P55: 5.631E+00 | Q55: 24 | R55: =IF(AND(S55>0, T55>0), IF(S55/T55 > 365, 365, S55/T55), INDEX('OES Summary'!C:C, MATCH(B55, 'OES Summary'!A:A, 0))) -> 364 | S55: =_xlfn.MAXIFS('2020 Point Sources'!CY:CY,'2020 Point Sources'!A:A, A55) -> 8736 | T55: =_xlfn.MAXIFS('2020 Point Sources'!CZ:CZ,'2020 Point Sources'!A:A, A55) -> 24 | U55: =_xlfn.MAXIFS('2020 Point Sources'!DA:DA,'2020 Point Sources'!A:A, A55) -> 7 | V55: =_xlfn.MAXIFS('2020 Point Sources'!DB:DB,'2020 Point Sources'!A:A, A55) -> 52 | W55: =COUNTIF('2020 Point Sources'!A:A, A55) -> 26 | X55: =COUNTIFS('2020 Point Sources'!AY:AY, 1,'2020 Point Sources'!A:A, A55)+COUNTIFS('2020 Point Sources'!AY:AY, 7,'2020 Point Sources'!A:A, A55)+COUNTIFS('2020 Point Sources'!AY:AY, 9,'2020 Point Sources'!A:A, A55) -> 3 | Y55: =COUNTIFS('2020 Point Sources'!AY:AY, 2,'2020 Point Sources'!A:A, A55)+COUNTIFS('2020 Point Sources'!AY:AY, 3,'2020 Point Sources'!A:A, A55)+COUNTIFS('2020 Point Sources'!AY:AY, 4,'2020 Point Sources'!A:A, A55)+COUNTIFS('2020 Point Sources'!AY:AY, 5,'2020 Point Sources'!A:A, A55)+COUNTIFS('2020 Point Sources'!AY:AY, 6,'2020 Point Sources'!A:A, A55)+COUNTIFS('2020 Point Sources'!AY:AY, 8,'2020 Point Sources'!A:A, A55)+COUNTIFS('2020 Point Sources'!AY:AY, 99,'2020 Point Sources'!A:A, A55) -> 23
A56: 5633211 | B56: =VLOOKUP($A56, '2020 Point Sources'!$I:$AO, 32, FALSE) -> Plastics and Rubber Compounding | C56: =VLOOKUP($A56,'2020 Point Sources'!$I:$J, 2, FALSE) -> CHOCOLATE BAYOU POLYMERS | D56: =VLOOKUP($A56,'2020 Point Sources'!$I:$CD, 73, FALSE) -> ALVIN | E56: =VLOOKUP($A56,'2020 Point Sources'!$A:$E, 5, FALSE) -> TX | F56: =VLOOKUP($A56,'2020 Point Sources'!$A:$F, 6, FALSE) -> Brazoria | G56: =VLOOKUP($A56,'2020 Point Sources'!$I:$CD, 74, FALSE) -> 77511 | H56: =VLOOKUP($A56,'2020 Point Sources'!$I:$T, 12, FALSE) -> Plastics Material and Resin Manufacturing | I56: =VLOOKUP($A56,'2020 Point Sources'!$I:$T, 11, FALSE) -> 325211 | J56: =VLOOKUP($A56,'2020 Point Sources'!$I:$AM, 25, FALSE) -> 30108105 | K56: =VLOOKUP($A56,'2020 Point Sources'!$I:$AM, 26, FALSE) -> Industrial Processes Chemical Manufacturing Polyethylene Production Low Density: Product Finishing | L56: =VLOOKUP($A56,'2020 Point Sources'!$I:$AM, 31, FALSE) -> Industrial Processes - Chemical Manuf | M56: =IF(X56>0, CONVERT((SUMIFS('2020 Point Sources'!BH:BH, '2020 Point Sources'!I:I, A56, '2020 Point Sources'!AY:AY, 1)+SUMIFS('2020 Point Sources'!BH:BH, '2020 Point Sources'!I:I, A56, '2020 Point Sources'!AY:AY, 7)+SUMIFS('2020 Point Sources'!BH:BH, '2020 Point Sources'!I:I, A56, '2020 Point Sources'!AY:AY, 9)), "ton", "g")/1000, "n/a") -> n/a | N56: n/a | O56: =IF(Y56>0, CONVERT((SUMIFS('2020 Point Sources'!BH:BH, '2020 Point Sources'!I:I, A56, '2020 Point Sources'!AY:AY, 2)+SUMIFS('2020 Point Sources'!BH:BH, '2020 Point Sources'!I:I, A56, '2020 Point Sources'!AY:AY, 3)+SUMIFS('2020 Point Sources'!BH:BH, '2020 Point Sources'!I:I, A56, '2020 Point Sources'!AY:AY, 4)+SUMIFS('2020 Point Sources'!BH:BH, '2020 Point Sources'!I:I, A56, '2020 Point Sources'!AY:AY, 5)+SUMIFS('2020 Point Sources'!BH:BH, '2020 Point Sources'!I:I, A56, '2020 Point Sources'!AY:AY, 6)++SUMIFS('2020 Point Sources'!BH:BH, '2020 Point Sources'!I:I, A56, '2020 Point Sources'!AY:AY, 8)++SUMIFS('2020 Point Sources'!BH:BH, '2020 Point Sources'!I:I, A56, '2020 Point Sources'!AY:AY, 99)), "ton", "g")/1000, "n/a") -> 1.70E+01 | P56: 6.291E-02 | Q56: 24 | R56: =IF(AND(S56>0, T56>0), IF(S56/T56 > 365, 365, S56/T56), INDEX('OES Summary'!C:C, MATCH(B56, 'OES Summary'!A:A, 0))) -> 270 | S56: =_xlfn.MAXIFS('2020 Point Sources'!CY:CY,'2020 Point Sources'!A:A, A56) -> 6472 | T56: =_xlfn.MAXIFS('2020 Point Sources'!CZ:CZ,'2020 Point Sources'!A:A, A56) -> 24 | U56: =_xlfn.MAXIFS('2020 Point Sources'!DA:DA,'2020 Point Sources'!A:A, A56) -> 7 | V56: =_xlfn.MAXIFS('2020 Point Sources'!DB:DB,'2020 Point Sources'!A:A, A56) -> 23 | W56: =COUNTIF('2020 Point Sources'!A:A, A56) -> 1 | X56: =COUNTIFS('2020 Point Sources'!AY:AY, 1,'2020 Point Sources'!A:A, A56)+COUNTIFS('2020 Point Sources'!AY:AY, 7,'2020 Point Sources'!A:A, A56)+COUNTIFS('2020 Point Sources'!AY:AY, 9,'2020 Point Sources'!A:A, A56) -> 0 | Y56: =COUNTIFS('2020 Point Sources'!AY:AY, 2,'2020 Point Sources'!A:A, A56)+COUNTIFS('2020 Point Sources'!AY:AY, 3,'2020 Point Sources'!A:A, A56)+COUNTIFS('2020 Point Sources'!AY:AY, 4,'2020 Point Sources'!A:A, A56)+COUNTIFS('2020 Point Sources'!AY:AY, 5,'2020 Point Sources'!A:A, A56)+COUNTIFS('2020 Point Sources'!AY:AY, 6,'2020 Point Sources'!A:A, A56)+COUNTIFS('2020 Point Sources'!AY:AY, 8,'2020 Point Sources'!A:A, A56)+COUNTIFS('2020 Point Sources'!AY:AY, 99,'2020 Point Sources'!A:A, A56) -> 1
A57: 5862111 | B57: =VLOOKUP($A57, '2020 Point Sources'!$I:$AO, 32, FALSE) -> Plastics and Rubber compounding | C57: =VLOOKUP($A57,'2020 Point Sources'!$I:$J, 2, FALSE) -> CORPUS CHRISTI PLANT | D57: =VLOOKUP($A57,'2020 Point Sources'!$I:$CD, 73, FALSE) -> CORPUS CHRISTI | E57: =VLOOKUP($A57,'2020 Point Sources'!$A:$E, 5, FALSE) -> TX | F57: =VLOOKUP($A57,'2020 Point Sources'!$A:$F, 6, FALSE) -> Nueces | G57: =VLOOKUP($A57,'2020 Point Sources'!$I:$CD, 74, FALSE) -> 78412 | H57: =VLOOKUP($A57,'2020 Point Sources'!$I:$T, 12, FALSE) -> Petrochemical Manufacturing | I57: =VLOOKUP($A57,'2020 Point Sources'!$I:$T, 11, FALSE) -> 325110 | J57: =VLOOKUP($A57,'2020 Point Sources'!$I:$AM, 25, FALSE) -> 38500101 | K57: =VLOOKUP($A57,'2020 Point Sources'!$I:$AM, 26, FALSE) -> Industrial Processes Cooling Tower Process Cooling Mechanical Draft | L57: =VLOOKUP($A57,'2020 Point Sources'!$I:$AM, 31, FALSE) -> Industrial Processes - NEC | M57: =IF(X57>0, CONVERT((SUMIFS('2020 Point Sources'!BH:BH, '2020 Point Sources'!I:I, A57, '2020 Point Sources'!AY:AY, 1)+SUMIFS('2020 Point Sources'!BH:BH, '2020 Point Sources'!I:I, A57, '2020 Point Sources'!AY:AY, 7)+SUMIFS('2020 Point Sources'!BH:BH, '2020 Point Sources'!I:I, A57, '2020 Point Sources'!AY:AY, 9)), "ton", "g")/1000, "n/a") -> 2.75E+03 | N57: 7.54E+00 | O57: =IF(Y57>0, CONVERT((SUMIFS('2020 Point Sources'!BH:BH, '2020 Point Sources'!I:I, A57, '2020 Point Sources'!AY:AY, 2)+SUMIFS('2020 Point Sources'!BH:BH, '2020 Point Sources'!I:I, A57, '2020 Point Sources'!AY:AY, 3)+SUMIFS('2020 Point Sources'!BH:BH, '2020 Point Sources'!I:I, A57, '2020 Point Sources'!AY:AY, 4)+SUMIFS('2020 Point Sources'!BH:BH, '2020 Point Sources'!I:I, A57, '2020 Point Sources'!AY:AY, 5)+SUMIFS('2020 Point Sources'!BH:BH, '2020 Point Sources'!I:I, A57, '2020 Point Sources'!AY:AY, 6)++SUMIFS('2020 Point Sources'!BH:BH, '2020 Point Sources'!I:I, A57, '2020 Point Sources'!AY:AY, 8)++SUMIFS('2020 Point Sources'!BH:BH, '2020 Point Sources'!I:I, A57, '2020 Point Sources'!AY:AY, 99)), "ton", "g")/1000, "n/a") -> 1.49E+03 | P57: 4.081E+00 | Q57: 24 | R57: =IF(AND(S57>0, T57>0), IF(S57/T57 > 365, 365, S57/T57), INDEX('OES Summary'!C:C, MATCH(B57, 'OES Summary'!A:A, 0))) -> 365 | S57: =_xlfn.MAXIFS('2020 Point Sources'!CY:CY,'2020 Point Sources'!A:A, A57) -> 8760 | T57: =_xlfn.MAXIFS('2020 Point Sources'!CZ:CZ,'2020 Point Sources'!A:A, A57) -> 24 | U57: =_xlfn.MAXIFS('2020 Point Sources'!DA:DA,'2020 Point Sources'!A:A, A57) -> 7 | V57: =_xlfn.MAXIFS('2020 Point Sources'!DB:DB,'2020 Point Sources'!A:A, A57) -> 52 | W57: =COUNTIF('2020 Point Sources'!A:A, A57) -> 6 | X57: =COUNTIFS('2020 Point Sources'!AY:AY, 1,'2020 Point Sources'!A:A, A57)+COUNTIFS('2020 Point Sources'!AY:AY, 7,'2020 Point Sources'!A:A, A57)+COUNTIFS('2020 Point Sources'!AY:AY, 9,'2020 Point Sources'!A:A, A57) -> 3 | Y57: =COUNTIFS('2020 Point Sources'!AY:AY, 2,'2020 Point Sources'!A:A, A57)+COUNTIFS('2020 Point Sources'!AY:AY, 3,'2020 Point Sources'!A:A, A57)+COUNTIFS('2020 Point Sources'!AY:AY, 4,'2020 Point Sources'!A:A, A57)+COUNTIFS('2020 Point Sources'!AY:AY, 5,'2020 Point Sources'!A:A, A57)+COUNTIFS('2020 Point Sources'!AY:AY, 6,'2020 Point Sources'!A:A, A57)+COUNTIFS('2020 Point Sources'!AY:AY, 8,'2020 Point Sources'!A:A, A57)+COUNTIFS('2020 Point Sources'!AY:AY, 99,'2020 Point Sources'!A:A, A57) -> 3
A58: 4930211 | B58: =VLOOKUP($A58, '2020 Point Sources'!$I:$AO, 32, FALSE) -> Plastics and rubber compounding | C58: =VLOOKUP($A58,'2020 Point Sources'!$I:$J, 2, FALSE) -> BEAUMONT CHEMICAL PLANT | D58: =VLOOKUP($A58,'2020 Point Sources'!$I:$CD, 73, FALSE) -> BEAUMONT | E58: =VLOOKUP($A58,'2020 Point Sources'!$A:$E, 5, FALSE) -> TX | F58: =VLOOKUP($A58,'2020 Point Sources'!$A:$F, 6, FALSE) -> Jefferson | G58: =VLOOKUP($A58,'2020 Point Sources'!$I:$CD, 74, FALSE) -> 77704 | H58: =VLOOKUP($A58,'2020 Point Sources'!$I:$T, 12, FALSE) -> Petrochemical Manufacturing | I58: =VLOOKUP($A58,'2020 Point Sources'!$I:$T, 11, FALSE) -> 325110 | J58: =VLOOKUP($A58,'2020 Point Sources'!$I:$AM, 25, FALSE) -> 40899997 | K58: =VLOOKUP($A58,'2020 Point Sources'!$I:$AM, 26, FALSE) -> Chemical Evaporation Organic Chemical Transportation Organic Chemicals Marine Vessels: Loading Rack | L58: =VLOOKUP($A58,'2020 Point Sources'!$I:$AM, 31, FALSE) -> Industrial Processes - Storage and Transfer | M58: =IF(X58>0, CONVERT((SUMIFS('2020 Point Sources'!BH:BH, '2020 Point Sources'!I:I, A58, '2020 Point Sources'!AY:AY, 1)+SUMIFS('2020 Point Sources'!BH:BH, '2020 Point Sources'!I:I, A58, '2020 Point Sources'!AY:AY, 7)+SUMIFS('2020 Point Sources'!BH:BH, '2020 Point Sources'!I:I, A58, '2020 Point Sources'!AY:AY, 9)), "ton", "g")/1000, "n/a") -> 6.09E+02 | N58: 1.67E+00 | O58: =IF(Y58>0, CONVERT((SUMIFS('2020 Point Sources'!BH:BH, '2020 Point Sources'!I:I, A58, '2020 Point Sources'!AY:AY, 2)+SUMIFS('2020 Point Sources'!BH:BH, '2020 Point Sources'!I:I, A58, '2020 Point Sources'!AY:AY, 3)+SUMIFS('2020 Point Sources'!BH:BH, '2020 Point Sources'!I:I, A58, '2020 Point Sources'!AY:AY, 4)+SUMIFS('2020 Point Sources'!BH:BH, '2020 Point Sources'!I:I, A58, '2020 Point Sources'!AY:AY, 5)+SUMIFS('2020 Point Sources'!BH:BH, '2020 Point Sources'!I:I, A58, '2020 Point Sources'!AY:AY, 6)++SUMIFS('2020 Point Sources'!BH:BH, '2020 Point Sources'!I:I, A58, '2020 Point Sources'!AY:AY, 8)++SUMIFS('2020 Point Sources'!BH:BH, '2020 Point Sources'!I:I, A58, '2020 Point Sources'!AY:AY, 99)), "ton", "g")/1000, "n/a") -> 9.65E+02 | P58: 2.644E+00 | Q58: 24 | R58: =IF(AND(S58>0, T58>0), IF(S58/T58 > 365, 365, S58/T58), INDEX('OES Summary'!C:C, MATCH(B58, 'OES Summary'!A:A, 0))) -> 365 | S58: =_xlfn.MAXIFS('2020 Point Sources'!CY:CY,'2020 Point Sources'!A:A, A58) -> 8760 | T58: =_xlfn.MAXIFS('2020 Point Sources'!CZ:CZ,'2020 Point Sources'!A:A, A58) -> 24 | U58: =_xlfn.MAXIFS('2020 Point Sources'!DA:DA,'2020 Point Sources'!A:A, A58) -> 7 | V58: =_xlfn.MAXIFS('2020 Point Sources'!DB:DB,'2020 Point Sources'!A:A, A58) -> 52 | W58: =COUNTIF('2020 Point Sources'!A:A, A58) -> 19 | X58: =COUNTIFS('2020 Point Sources'!AY:AY, 1,'2020 Point Sources'!A:A, A58)+COUNTIFS('2020 Point Sources'!AY:AY, 7,'2020 Point Sources'!A:A, A58)+COUNTIFS('2020 Point Sources'!AY:AY, 9,'2020 Point Sources'!A:A, A58) -> 16 | Y58: =COUNTIFS('2020 Point Sources'!AY:AY, 2,'2020 Point Sources'!A:A, A58)+COUNTIFS('2020 Point Sources'!AY:AY, 3,'2020 Point Sources'!A:A, A58)+COUNTIFS('2020 Point Sources'!AY:AY, 4,'2020 Point Sources'!A:A, A58)+COUNTIFS('2020 Point Sources'!AY:AY, 5,'2020 Point Sources'!A:A, A58)+COUNTIFS('2020 Point Sources'!AY:AY, 6,'2020 Point Sources'!A:A, A58)+COUNTIFS('2020 Point Sources'!AY:AY, 8,'2020 Point Sources'!A:A, A58)+COUNTIFS('2020 Point Sources'!AY:AY, 99,'2020 Point Sources'!A:A, A58) -> 3
A59: 976011 | B59: =VLOOKUP($A59, '2020 Point Sources'!$I:$AO, 32, FALSE) -> Plastics and rubber compounding | C59: =VLOOKUP($A59,'2020 Point Sources'!$I:$J, 2, FALSE) -> ALBEMARLE CORPORATION-SOUTH PLANT | D59: =VLOOKUP($A59,'2020 Point Sources'!$I:$CD, 73, FALSE) -> Magnolia | E59: =VLOOKUP($A59,'2020 Point Sources'!$A:$E, 5, FALSE) -> AR | F59: =VLOOKUP($A59,'2020 Point Sources'!$A:$F, 6, FALSE) -> Columbia | G59: =VLOOKUP($A59,'2020 Point Sources'!$I:$CD, 74, FALSE) -> 71753 | H59: =VLOOKUP($A59,'2020 Point Sources'!$I:$T, 12, FALSE) -> Other Chemical Product and Preparation ManufacturingT | I59: =VLOOKUP($A59,'2020 Point Sources'!$I:$T, 11, FALSE) -> 3259 | J59: =VLOOKUP($A59,'2020 Point Sources'!$I:$AM, 25, FALSE) -> 39999999 | K59: =VLOOKUP($A59,'2020 Point Sources'!$I:$AM, 26, FALSE) -> Industrial Processes Miscellaneous Manufacturing Industries Miscellaneous Industrial Processes Other Not Elsewhere Classified | L59: =VLOOKUP($A59,'2020 Point Sources'!$I:$AM, 31, FALSE) -> Industrial Processes - NEC | M59: =IF(X59>0, CONVERT((SUMIFS('2020 Point Sources'!BH:BH, '2020 Point Sources'!I:I, A59, '2020 Point Sources'!AY:AY, 1)+SUMIFS('2020 Point Sources'!BH:BH, '2020 Point Sources'!I:I, A59, '2020 Point Sources'!AY:AY, 7)+SUMIFS('2020 Point Sources'!BH:BH, '2020 Point Sources'!I:I, A59, '2020 Point Sources'!AY:AY, 9)), "ton", "g")/1000, "n/a") -> n/a | N59: n/a | O59: =IF(Y59>0, CONVERT((SUMIFS('2020 Point Sources'!BH:BH, '2020 Point Sources'!I:I, A59, '2020 Point Sources'!AY:AY, 2)+SUMIFS('2020 Point Sources'!BH:BH, '2020 Point Sources'!I:I, A59, '2020 Point Sources'!AY:AY, 3)+SUMIFS('2020 Point Sources'!BH:BH, '2020 Point Sources'!I:I, A59, '2020 Point Sources'!AY:AY, 4)+SUMIFS('2020 Point Sources'!BH:BH, '2020 Point Sources'!I:I, A59, '2020 Point Sources'!AY:AY, 5)+SUMIFS('2020 Point Sources'!BH:BH, '2020 Point Sources'!I:I, A59, '2020 Point Sources'!AY:AY, 6)++SUMIFS('2020 Point Sources'!BH:BH, '2020 Point Sources'!I:I, A59, '2020 Point Sources'!AY:AY, 8)++SUMIFS('2020 Point Sources'!BH:BH, '2020 Point Sources'!I:I, A59, '2020 Point Sources'!AY:AY, 99)), "ton", "g")/1000, "n/a") -> 1.61E-03 | P59: 5.352E-06 | Q59: 24 | R59: =IF(AND(S59>0, T59>0), IF(S59/T59 > 365, 365, S59/T59), INDEX('OES Summary'!C:C, MATCH(B59, 'OES Summary'!A:A, 0))) -> 300 | S59: =_xlfn.MAXIFS('2020 Point Sources'!CY:CY,'2020 Point Sources'!A:A, A59) -> 38 | T59: =_xlfn.MAXIFS('2020 Point Sources'!CZ:CZ,'2020 Point Sources'!A:A, A59) -> 0 | U59: =_xlfn.MAXIFS('2020 Point Sources'!DA:DA,'2020 Point Sources'!A:A, A59) -> 0 | V59: =_xlfn.MAXIFS('2020 Point Sources'!DB:DB,'2020 Point Sources'!A:A, A59) -> 0 | W59: =COUNTIF('2020 Point Sources'!A:A, A59) -> 1 | X59: =COUNTIFS('2020 Point Sources'!AY:AY, 1,'2020 Point Sources'!A:A, A59)+COUNTIFS('2020 Point Sources'!AY:AY, 7,'2020 Point Sources'!A:A, A59)+COUNTIFS('2020 Point Sources'!AY:AY, 9,'2020 Point Sources'!A:A, A59) -> 0 | Y59: =COUNTIFS('2020 Point Sources'!AY:AY, 2,'2020 Point Sources'!A:A, A59)+COUNTIFS('2020 Point Sources'!AY:AY, 3,'2020 Point Sources'!A:A, A59)+COUNTIFS('2020 Point Sources'!AY:AY, 4,'2020 Point Sources'!A:A, A59)+COUNTIFS('2020 Point Sources'!AY:AY, 5,'2020 Point Sources'!A:A, A59)+COUNTIFS('2020 Point Sources'!AY:AY, 6,'2020 Point Sources'!A:A, A59)+COUNTIFS('2020 Point Sources'!AY:AY, 8,'2020 Point Sources'!A:A, A59)+COUNTIFS('2020 Point Sources'!AY:AY, 99,'2020 Point Sources'!A:A, A59) -> 1
A60: 7367811 | B60: =VLOOKUP($A60, '2020 Point Sources'!$I:$AO, 32, FALSE) -> Plastics and Rubber Compounding | C60: =VLOOKUP($A60,'2020 Point Sources'!$I:$J, 2, FALSE) -> American Synthetic Rubber Company | D60: =VLOOKUP($A60,'2020 Point Sources'!$I:$CD, 73, FALSE) -> LOUISVILLE | E60: =VLOOKUP($A60,'2020 Point Sources'!$A:$E, 5, FALSE) -> KY | F60: =VLOOKUP($A60,'2020 Point Sources'!$A:$F, 6, FALSE) -> Jefferson | G60: =VLOOKUP($A60,'2020 Point Sources'!$I:$CD, 74, FALSE) -> 40216-4608 | H60: =VLOOKUP($A60,'2020 Point Sources'!$I:$T, 12, FALSE) -> Synthetic Rubber Manufacturing | I60: =VLOOKUP($A60,'2020 Point Sources'!$I:$T, 11, FALSE) -> 325212 | J60: =VLOOKUP($A60,'2020 Point Sources'!$I:$AM, 25, FALSE) -> 30102670 | K60: =VLOOKUP($A60,'2020 Point Sources'!$I:$AM, 26, FALSE) -> Industrial Processes Chemical Manufacturing Synthetic Rubber (Manufacturing Only) Continuous Reactors and Other Units up to and including the Stripper | L60: =VLOOKUP($A60,'2020 Point Sources'!$I:$AM, 31, FALSE) -> Industrial Processes - Chemical Manuf | M60: =IF(X60>0, CONVERT((SUMIFS('2020 Point Sources'!BH:BH, '2020 Point Sources'!I:I, A60, '2020 Point Sources'!AY:AY, 1)+SUMIFS('2020 Point Sources'!BH:BH, '2020 Point Sources'!I:I, A60, '2020 Point Sources'!AY:AY, 7)+SUMIFS('2020 Point Sources'!BH:BH, '2020 Point Sources'!I:I, A60, '2020 Point Sources'!AY:AY, 9)), "ton", "g")/1000, "n/a") -> 7.27E+02 | N60: 2.42E+00 | O60: =IF(Y60>0, CONVERT((SUMIFS('2020 Point Sources'!BH:BH, '2020 Point Sources'!I:I, A60, '2020 Point Sources'!AY:AY, 2)+SUMIFS('2020 Point Sources'!BH:BH, '2020 Point Sources'!I:I, A60, '2020 Point Sources'!AY:AY, 3)+SUMIFS('2020 Point Sources'!BH:BH, '2020 Point Sources'!I:I, A60, '2020 Point Sources'!AY:AY, 4)+SUMIFS('2020 Point Sources'!BH:BH, '2020 Point Sources'!I:I, A60, '2020 Point Sources'!AY:AY, 5)+SUMIFS('2020 Point Sources'!BH:BH, '2020 Point Sources'!I:I, A60, '2020 Point Sources'!AY:AY, 6)++SUMIFS('2020 Point Sources'!BH:BH, '2020 Point Sources'!I:I, A60, '2020 Point Sources'!AY:AY, 8)++SUMIFS('2020 Point Sources'!BH:BH, '2020 Point Sources'!I:I, A60, '2020 Point Sources'!AY:AY, 99)), "ton", "g")/1000, "n/a") -> 1.26E+02 | P60: 4.206E-01 | Q60: 24 | R60: =IF(AND(S60>0, T60>0), IF(S60/T60 > 365, 365, S60/T60), INDEX('OES Summary'!C:C, MATCH(B60, 'OES Summary'!A:A, 0))) -> 300 | S60: =_xlfn.MAXIFS('2020 Point Sources'!CY:CY,'2020 Point Sources'!A:A, A60) -> 8784 | T60: =_xlfn.MAXIFS('2020 Point Sources'!CZ:CZ,'2020 Point Sources'!A:A, A60) -> 0 | U60: =_xlfn.MAXIFS('2020 Point Sources'!DA:DA,'2020 Point Sources'!A:A, A60) -> 0 | V60: =_xlfn.MAXIFS('2020 Point Sources'!DB:DB,'2020 Point Sources'!A:A, A60) -> 0 | W60: =COUNTIF('2020 Point Sources'!A:A, A60) -> 5 | X60: =COUNTIFS('2020 Point Sources'!AY:AY, 1,'2020 Point Sources'!A:A, A60)+COUNTIFS('2020 Point Sources'!AY:AY, 7,'2020 Point Sources'!A:A, A60)+COUNTIFS('2020 Point Sources'!AY:AY, 9,'2020 Point Sources'!A:A, A60) -> 2 | Y60: =COUNTIFS('2020 Point Sources'!AY:AY, 2,'2020 Point Sources'!A:A, A60)+COUNTIFS('2020 Point Sources'!AY:AY, 3,'2020 Point Sources'!A:A, A60)+COUNTIFS('2020 Point Sources'!AY:AY, 4,'2020 Point Sources'!A:A, A60)+COUNTIFS('2020 Point Sources'!AY:AY, 5,'2020 Point Sources'!A:A, A60)+COUNTIFS('2020 Point Sources'!AY:AY, 6,'2020 Point Sources'!A:A, A60)+COUNTIFS('2020 Point Sources'!AY:AY, 8,'2020 Point Sources'!A:A, A60)+COUNTIFS('2020 Point Sources'!AY:AY, 99,'2020 Point Sources'!A:A, A60) -> 3
A61: 1062311 | B61: =VLOOKUP($A61, '2020 Point Sources'!$I:$AO, 32, FALSE) -> Plastics and rubber compounding | C61: =VLOOKUP($A61,'2020 Point Sources'!$I:$J, 2, FALSE) -> Arkema Inc | D61: =VLOOKUP($A61,'2020 Point Sources'!$I:$CD, 73, FALSE) -> Axis | E61: =VLOOKUP($A61,'2020 Point Sources'!$A:$E, 5, FALSE) -> AL | F61: =VLOOKUP($A61,'2020 Point Sources'!$A:$F, 6, FALSE) -> Mobile | G61: =VLOOKUP($A61,'2020 Point Sources'!$I:$CD, 74, FALSE) -> 36505 | H61: =VLOOKUP($A61,'2020 Point Sources'!$I:$T, 12, FALSE) -> All Other Basic Organic Chemical Manufacturing | I61: =VLOOKUP($A61,'2020 Point Sources'!$I:$T, 11, FALSE) -> 325199 | J61: =VLOOKUP($A61,'2020 Point Sources'!$I:$AM, 25, FALSE) -> 30119080 | K61: =VLOOKUP($A61,'2020 Point Sources'!$I:$AM, 26, FALSE) -> Industrial Processes Chemical Manufacturing Methyl Methacrylate Fugitive Emissions | L61: =VLOOKUP($A61,'2020 Point Sources'!$I:$AM, 31, FALSE) -> Industrial Processes - Chemical Manuf | M61: =IF(X61>0, CONVERT((SUMIFS('2020 Point Sources'!BH:BH, '2020 Point Sources'!I:I, A61, '2020 Point Sources'!AY:AY, 1)+SUMIFS('2020 Point Sources'!BH:BH, '2020 Point Sources'!I:I, A61, '2020 Point Sources'!AY:AY, 7)+SUMIFS('2020 Point Sources'!BH:BH, '2020 Point Sources'!I:I, A61, '2020 Point Sources'!AY:AY, 9)), "ton", "g")/1000, "n/a") -> 5.07E+02 | N61: 1.69E+00 | O61: =IF(Y61>0, CONVERT((SUMIFS('2020 Point Sources'!BH:BH, '2020 Point Sources'!I:I, A61, '2020 Point Sources'!AY:AY, 2)+SUMIFS('2020 Point Sources'!BH:BH, '2020 Point Sources'!I:I, A61, '2020 Point Sources'!AY:AY, 3)+SUMIFS('2020 Point Sources'!BH:BH, '2020 Point Sources'!I:I, A61, '2020 Point Sources'!AY:AY, 4)+SUMIFS('2020 Point Sources'!BH:BH, '2020 Point Sources'!I:I, A61, '2020 Point Sources'!AY:AY, 5)+SUMIFS('2020 Point Sources'!BH:BH, '2020 Point Sources'!I:I, A61, '2020 Point Sources'!AY:AY, 6)++SUMIFS('2020 Point Sources'!BH:BH, '2020 Point Sources'!I:I, A61, '2020 Point Sources'!AY:AY, 8)++SUMIFS('2020 Point Sources'!BH:BH, '2020 Point Sources'!I:I, A61, '2020 Point Sources'!AY:AY, 99)), "ton", "g")/1000, "n/a") -> 1.12E+02 | P61: 3.719E-01 | Q61: 24 | R61: =IF(AND(S61>0, T61>0), IF(S61/T61 > 365, 365, S61/T61), INDEX('OES Summary'!C:C, MATCH(B61, 'OES Summary'!A:A, 0))) -> 300 | S61: =_xlfn.MAXIFS('2020 Point Sources'!CY:CY,'2020 Point Sources'!A:A, A61) -> 0 | T61: =_xlfn.MAXIFS('2020 Point Sources'!CZ:CZ,'2020 Point Sources'!A:A, A61) -> 0 | U61: =_xlfn.MAXIFS('2020 Point Sources'!DA:DA,'2020 Point Sources'!A:A, A61) -> 0 | V61: =_xlfn.MAXIFS('2020 Point Sources'!DB:DB,'2020 Point Sources'!A:A, A61) -> 0 | W61: =COUNTIF('2020 Point Sources'!A:A, A61) -> 6 | X61: =COUNTIFS('2020 Point Sources'!AY:AY, 1,'2020 Point Sources'!A:A, A61)+COUNTIFS('2020 Point Sources'!AY:AY, 7,'2020 Point Sources'!A:A, A61)+COUNTIFS('2020 Point Sources'!AY:AY, 9,'2020 Point Sources'!A:A, A61) -> 4 | Y61: =COUNTIFS('2020 Point Sources'!AY:AY, 2,'2020 Point Sources'!A:A, A61)+COUNTIFS('2020 Point Sources'!AY:AY, 3,'2020 Point Sources'!A:A, A61)+COUNTIFS('2020 Point Sources'!AY:AY, 4,'2020 Point Sources'!A:A, A61)+COUNTIFS('2020 Point Sources'!AY:AY, 5,'2020 Point Sources'!A:A, A61)+COUNTIFS('2020 Point Sources'!AY:AY, 6,'2020 Point Sources'!A:A, A61)+COUNTIFS('2020 Point Sources'!AY:AY, 8,'2020 Point Sources'!A:A, A61)+COUNTIFS('2020 Point Sources'!AY:AY, 99,'2020 Point Sources'!A:A, A61) -> 2
A62: 7366811 | B62: =VLOOKUP($A62, '2020 Point Sources'!$I:$AO, 32, FALSE) -> Plastics and rubber compounding | C62: =VLOOKUP($A62,'2020 Point Sources'!$I:$J, 2, FALSE) -> Arkema Inc | D62: =VLOOKUP($A62,'2020 Point Sources'!$I:$CD, 73, FALSE) -> Calvert City | E62: =VLOOKUP($A62,'2020 Point Sources'!$A:$E, 5, FALSE) -> KY | F62: =VLOOKUP($A62,'2020 Point Sources'!$A:$F, 6, FALSE) -> Marshall | G62: =VLOOKUP($A62,'2020 Point Sources'!$I:$CD, 74, FALSE) -> 42029 | H62: =VLOOKUP($A62,'2020 Point Sources'!$I:$T, 12, FALSE) -> Plastics Material and Resin Manufacturing | I62: =VLOOKUP($A62,'2020 Point Sources'!$I:$T, 11, FALSE) -> 325211 | J62: =VLOOKUP($A62,'2020 Point Sources'!$I:$AM, 25, FALSE) -> 39999999 | K62: =VLOOKUP($A62,'2020 Point Sources'!$I:$AM, 26, FALSE) -> Industrial Processes Miscellaneous Manufacturing Industries Miscellaneous Industrial Processes Other Not Elsewhere Classified | L62: =VLOOKUP($A62,'2020 Point Sources'!$I:$AM, 31, FALSE) -> Industrial Processes - NEC | M62: =IF(X62>0, CONVERT((SUMIFS('2020 Point Sources'!BH:BH, '2020 Point Sources'!I:I, A62, '2020 Point Sources'!AY:AY, 1)+SUMIFS('2020 Point Sources'!BH:BH, '2020 Point Sources'!I:I, A62, '2020 Point Sources'!AY:AY, 7)+SUMIFS('2020 Point Sources'!BH:BH, '2020 Point Sources'!I:I, A62, '2020 Point Sources'!AY:AY, 9)), "ton", "g")/1000, "n/a") -> 9.34E-04 | N62: 3.11E-06 | O62: =IF(Y62>0, CONVERT((SUMIFS('2020 Point Sources'!BH:BH, '2020 Point Sources'!I:I, A62, '2020 Point Sources'!AY:AY, 2)+SUMIFS('2020 Point Sources'!BH:BH, '2020 Point Sources'!I:I, A62, '2020 Point Sources'!AY:AY, 3)+SUMIFS('2020 Point Sources'!BH:BH, '2020 Point Sources'!I:I, A62, '2020 Point Sources'!AY:AY, 4)+SUMIFS('2020 Point Sources'!BH:BH, '2020 Point Sources'!I:I, A62, '2020 Point Sources'!AY:AY, 5)+SUMIFS('2020 Point Sources'!BH:BH, '2020 Point Sources'!I:I, A62, '2020 Point Sources'!AY:AY, 6)++SUMIFS('2020 Point Sources'!BH:BH, '2020 Point Sources'!I:I, A62, '2020 Point Sources'!AY:AY, 8)++SUMIFS('2020 Point Sources'!BH:BH, '2020 Point Sources'!I:I, A62, '2020 Point Sources'!AY:AY, 99)), "ton", "g")/1000, "n/a") -> n/a | P62: n/a | Q62: 24 | R62: =IF(AND(S62>0, T62>0), IF(S62/T62 > 365, 365, S62/T62), INDEX('OES Summary'!C:C, MATCH(B62, 'OES Summary'!A:A, 0))) -> 300 | S62: =_xlfn.MAXIFS('2020 Point Sources'!CY:CY,'2020 Point Sources'!A:A, A62) -> 0 | T62: =_xlfn.MAXIFS('2020 Point Sources'!CZ:CZ,'2020 Point Sources'!A:A, A62) -> 0 | U62: =_xlfn.MAXIFS('2020 Point Sources'!DA:DA,'2020 Point Sources'!A:A, A62) -> 0 | V62: =_xlfn.MAXIFS('2020 Point Sources'!DB:DB,'2020 Point Sources'!A:A, A62) -> 0 | W62: =COUNTIF('2020 Point Sources'!A:A, A62) -> 1 | X62: =COUNTIFS('2020 Point Sources'!AY:AY, 1,'2020 Point Sources'!A:A, A62)+COUNTIFS('2020 Point Sources'!AY:AY, 7,'2020 Point Sources'!A:A, A62)+COUNTIFS('2020 Point Sources'!AY:AY, 9,'2020 Point Sources'!A:A, A62) -> 1 | Y62: =COUNTIFS('2020 Point Sources'!AY:AY, 2,'2020 Point Sources'!A:A, A62)+COUNTIFS('2020 Point Sources'!AY:AY, 3,'2020 Point Sources'!A:A, A62)+COUNTIFS('2020 Point Sources'!AY:AY, 4,'2020 Point Sources'!A:A, A62)+COUNTIFS('2020 Point Sources'!AY:AY, 5,'2020 Point Sources'!A:A, A62)+COUNTIFS('2020 Point Sources'!AY:AY, 6,'2020 Point Sources'!A:A, A62)+COUNTIFS('2020 Point Sources'!AY:AY, 8,'2020 Point Sources'!A:A, A62)+COUNTIFS('2020 Point Sources'!AY:AY, 99,'2020 Point Sources'!A:A, A62) -> 0
A63: 7227011 | B63: =VLOOKUP($A63, '2020 Point Sources'!$I:$AO, 32, FALSE) -> Plastics and Rubber Compounding | C63: =VLOOKUP($A63,'2020 Point Sources'!$I:$J, 2, FALSE) -> Axiall LLC - Plaquemine Facility | D63: =VLOOKUP($A63,'2020 Point Sources'!$I:$CD, 73, FALSE) -> Plaquemine | E63: =VLOOKUP($A63,'2020 Point Sources'!$A:$E, 5, FALSE) -> LA | F63: =VLOOKUP($A63,'2020 Point Sources'!$A:$F, 6, FALSE) -> Iberville | G63: =VLOOKUP($A63,'2020 Point Sources'!$I:$CD, 74, FALSE) -> 70764 | H63: =VLOOKUP($A63,'2020 Point Sources'!$I:$T, 12, FALSE) -> Plastics Material and Resin Manufacturing | I63: =VLOOKUP($A63,'2020 Point Sources'!$I:$T, 11, FALSE) -> 325211 | J63: =VLOOKUP($A63,'2020 Point Sources'!$I:$AM, 25, FALSE) -> 10200602 | K63: =VLOOKUP($A63,'2020 Point Sources'!$I:$AM, 26, FALSE) -> External Combustion Industrial: Boilers Natural Gas 10-100 Million BTU/hr | L63: =VLOOKUP($A63,'2020 Point Sources'!$I:$AM, 31, FALSE) -> Fuel Comb - Industrial Boilers, ICEs - Natural Gas | M63: =IF(X63>0, CONVERT((SUMIFS('2020 Point Sources'!BH:BH, '2020 Point Sources'!I:I, A63, '2020 Point Sources'!AY:AY, 1)+SUMIFS('2020 Point Sources'!BH:BH, '2020 Point Sources'!I:I, A63, '2020 Point Sources'!AY:AY, 7)+SUMIFS('2020 Point Sources'!BH:BH, '2020 Point Sources'!I:I, A63, '2020 Point Sources'!AY:AY, 9)), "ton", "g")/1000, "n/a") -> 1.68E+00 | N63: 4.62E-03 | O63: =IF(Y63>0, CONVERT((SUMIFS('2020 Point Sources'!BH:BH, '2020 Point Sources'!I:I, A63, '2020 Point Sources'!AY:AY, 2)+SUMIFS('2020 Point Sources'!BH:BH, '2020 Point Sources'!I:I, A63, '2020 Point Sources'!AY:AY, 3)+SUMIFS('2020 Point Sources'!BH:BH, '2020 Point Sources'!I:I, A63, '2020 Point Sources'!AY:AY, 4)+SUMIFS('2020 Point Sources'!BH:BH, '2020 Point Sources'!I:I, A63, '2020 Point Sources'!AY:AY, 5)+SUMIFS('2020 Point Sources'!BH:BH, '2020 Point Sources'!I:I, A63, '2020 Point Sources'!AY:AY, 6)++SUMIFS('2020 Point Sources'!BH:BH, '2020 Point Sources'!I:I, A63, '2020 Point Sources'!AY:AY, 8)++SUMIFS('2020 Point Sources'!BH:BH, '2020 Point Sources'!I:I, A63, '2020 Point Sources'!AY:AY, 99)), "ton", "g")/1000, "n/a") -> 1.20E+01 | P63: 3.297E-02 | Q63: 24 | R63: =IF(AND(S63>0, T63>0), IF(S63/T63 > 365, 365, S63/T63), INDEX('OES Summary'!C:C, MATCH(B63, 'OES Summary'!A:A, 0))) -> 364 | S63: =_xlfn.MAXIFS('2020 Point Sources'!CY:CY,'2020 Point Sources'!A:A, A63) -> 8736 | T63: =_xlfn.MAXIFS('2020 Point Sources'!CZ:CZ,'2020 Point Sources'!A:A, A63) -> 24 | U63: =_xlfn.MAXIFS('2020 Point Sources'!DA:DA,'2020 Point Sources'!A:A, A63) -> 7 | V63: =_xlfn.MAXIFS('2020 Point Sources'!DB:DB,'2020 Point Sources'!A:A, A63) -> 52 | W63: =COUNTIF('2020 Point Sources'!A:A, A63) -> 37 | X63: =COUNTIFS('2020 Point Sources'!AY:AY, 1,'2020 Point Sources'!A:A, A63)+COUNTIFS('2020 Point Sources'!AY:AY, 7,'2020 Point Sources'!A:A, A63)+COUNTIFS('2020 Point Sources'!AY:AY, 9,'2020 Point Sources'!A:A, A63) -> 5 | Y63: =COUNTIFS('2020 Point Sources'!AY:AY, 2,'2020 Point Sources'!A:A, A63)+COUNTIFS('2020 Point Sources'!AY:AY, 3,'2020 Point Sources'!A:A, A63)+COUNTIFS('2020 Point Sources'!AY:AY, 4,'2020 Point Sources'!A:A, A63)+COUNTIFS('2020 Point Sources'!AY:AY, 5,'2020 Point Sources'!A:A, A63)+COUNTIFS('2020 Point Sources'!AY:AY, 6,'2020 Point Sources'!A:A, A63)+COUNTIFS('2020 Point Sources'!AY:AY, 8,'2020 Point Sources'!A:A, A63)+COUNTIFS('2020 Point Sources'!AY:AY, 99,'2020 Point Sources'!A:A, A63) -> 32
A64: 4862611 | B64: =VLOOKUP($A64, '2020 Point Sources'!$I:$AO, 32, FALSE) -> Plastics and Rubber Compounding | C64: =VLOOKUP($A64,'2020 Point Sources'!$I:$J, 2, FALSE) -> BAYPORT FACILITY | D64: =VLOOKUP($A64,'2020 Point Sources'!$I:$CD, 73, FALSE) -> LA PORTE | E64: =VLOOKUP($A64,'2020 Point Sources'!$A:$E, 5, FALSE) -> TX | F64: =VLOOKUP($A64,'2020 Point Sources'!$A:$F, 6, FALSE) -> Harris | G64: =VLOOKUP($A64,'2020 Point Sources'!$I:$CD, 74, FALSE) -> 77571 | H64: =VLOOKUP($A64,'2020 Point Sources'!$I:$T, 12, FALSE) -> Petrochemical Manufacturing | I64: =VLOOKUP($A64,'2020 Point Sources'!$I:$T, 11, FALSE) -> 325110 | J64: =VLOOKUP($A64,'2020 Point Sources'!$I:$AM, 25, FALSE) -> 30101892 | K64: =VLOOKUP($A64,'2020 Point Sources'!$I:$AM, 26, FALSE) -> Industrial Processes Chemical Manufacturing Plastics Production Separation Processes | L64: =VLOOKUP($A64,'2020 Point Sources'!$I:$AM, 31, FALSE) -> Industrial Processes - Chemical Manuf | M64: =IF(X64>0, CONVERT((SUMIFS('2020 Point Sources'!BH:BH, '2020 Point Sources'!I:I, A64, '2020 Point Sources'!AY:AY, 1)+SUMIFS('2020 Point Sources'!BH:BH, '2020 Point Sources'!I:I, A64, '2020 Point Sources'!AY:AY, 7)+SUMIFS('2020 Point Sources'!BH:BH, '2020 Point Sources'!I:I, A64, '2020 Point Sources'!AY:AY, 9)), "ton", "g")/1000, "n/a") -> 5.00E+03 | N64: 1.37E+01 | O64: =IF(Y64>0, CONVERT((SUMIFS('2020 Point Sources'!BH:BH, '2020 Point Sources'!I:I, A64, '2020 Point Sources'!AY:AY, 2)+SUMIFS('2020 Point Sources'!BH:BH, '2020 Point Sources'!I:I, A64, '2020 Point Sources'!AY:AY, 3)+SUMIFS('2020 Point Sources'!BH:BH, '2020 Point Sources'!I:I, A64, '2020 Point Sources'!AY:AY, 4)+SUMIFS('2020 Point Sources'!BH:BH, '2020 Point Sources'!I:I, A64, '2020 Point Sources'!AY:AY, 5)+SUMIFS('2020 Point Sources'!BH:BH, '2020 Point Sources'!I:I, A64, '2020 Point Sources'!AY:AY, 6)++SUMIFS('2020 Point Sources'!BH:BH, '2020 Point Sources'!I:I, A64, '2020 Point Sources'!AY:AY, 8)++SUMIFS('2020 Point Sources'!BH:BH, '2020 Point Sources'!I:I, A64, '2020 Point Sources'!AY:AY, 99)), "ton", "g")/1000, "n/a") -> 2.36E+03 | P64: 6.455E+00 | Q64: 24 | R64: =IF(AND(S64>0, T64>0), IF(S64/T64 > 365, 365, S64/T64), INDEX('OES Summary'!C:C, MATCH(B64, 'OES Summary'!A:A, 0))) -> 365 | S64: =_xlfn.MAXIFS('2020 Point Sources'!CY:CY,'2020 Point Sources'!A:A, A64) -> 8760 | T64: =_xlfn.MAXIFS('2020 Point Sources'!CZ:CZ,'2020 Point Sources'!A:A, A64) -> 24 | U64: =_xlfn.MAXIFS('2020 Point Sources'!DA:DA,'2020 Point Sources'!A:A, A64) -> 7 | V64: =_xlfn.MAXIFS('2020 Point Sources'!DB:DB,'2020 Point Sources'!A:A, A64) -> 52 | W64: =COUNTIF('2020 Point Sources'!A:A, A64) -> 4 | X64: =COUNTIFS('2020 Point Sources'!AY:AY, 1,'2020 Point Sources'!A:A, A64)+COUNTIFS('2020 Point Sources'!AY:AY, 7,'2020 Point Sources'!A:A, A64)+COUNTIFS('2020 Point Sources'!AY:AY, 9,'2020 Point Sources'!A:A, A64) -> 2 | Y64: =COUNTIFS('2020 Point Sources'!AY:AY, 2,'2020 Point Sources'!A:A, A64)+COUNTIFS('2020 Point Sources'!AY:AY, 3,'2020 Point Sources'!A:A, A64)+COUNTIFS('2020 Point Sources'!AY:AY, 4,'2020 Point Sources'!A:A, A64)+COUNTIFS('2020 Point Sources'!AY:AY, 5,'2020 Point Sources'!A:A, A64)+COUNTIFS('2020 Point Sources'!AY:AY, 6,'2020 Point Sources'!A:A, A64)+COUNTIFS('2020 Point Sources'!AY:AY, 8,'2020 Point Sources'!A:A, A64)+COUNTIFS('2020 Point Sources'!AY:AY, 99,'2020 Point Sources'!A:A, A64) -> 2
A65: 6535111 | B65: =VLOOKUP($A65, '2020 Point Sources'!$I:$AO, 32, FALSE) -> Plastics and rubber compounding | C65: =VLOOKUP($A65,'2020 Point Sources'!$I:$J, 2, FALSE) -> BAYTOWN FACILITY | D65: =VLOOKUP($A65,'2020 Point Sources'!$I:$CD, 73, FALSE) -> BAYTOWN | E65: =VLOOKUP($A65,'2020 Point Sources'!$A:$E, 5, FALSE) -> TX | F65: =VLOOKUP($A65,'2020 Point Sources'!$A:$F, 6, FALSE) -> Harris | G65: =VLOOKUP($A65,'2020 Point Sources'!$I:$CD, 74, FALSE) -> 77521 | H65: =VLOOKUP($A65,'2020 Point Sources'!$I:$T, 12, FALSE) -> Synthetic Rubber Manufacturing | I65: =VLOOKUP($A65,'2020 Point Sources'!$I:$T, 11, FALSE) -> 325212 | J65: =VLOOKUP($A65,'2020 Point Sources'!$I:$AM, 25, FALSE) -> 38500101 | K65: =VLOOKUP($A65,'2020 Point Sources'!$I:$AM, 26, FALSE) -> Industrial Processes Cooling Tower Process Cooling Mechanical Draft | L65: =VLOOKUP($A65,'2020 Point Sources'!$I:$AM, 31, FALSE) -> Industrial Processes - NEC | M65: =IF(X65>0, CONVERT((SUMIFS('2020 Point Sources'!BH:BH, '2020 Point Sources'!I:I, A65, '2020 Point Sources'!AY:AY, 1)+SUMIFS('2020 Point Sources'!BH:BH, '2020 Point Sources'!I:I, A65, '2020 Point Sources'!AY:AY, 7)+SUMIFS('2020 Point Sources'!BH:BH, '2020 Point Sources'!I:I, A65, '2020 Point Sources'!AY:AY, 9)), "ton", "g")/1000, "n/a") -> 6.42E+02 | N65: 1.76E+00 | O65: =IF(Y65>0, CONVERT((SUMIFS('2020 Point Sources'!BH:BH, '2020 Point Sources'!I:I, A65, '2020 Point Sources'!AY:AY, 2)+SUMIFS('2020 Point Sources'!BH:BH, '2020 Point Sources'!I:I, A65, '2020 Point Sources'!AY:AY, 3)+SUMIFS('2020 Point Sources'!BH:BH, '2020 Point Sources'!I:I, A65, '2020 Point Sources'!AY:AY, 4)+SUMIFS('2020 Point Sources'!BH:BH, '2020 Point Sources'!I:I, A65, '2020 Point Sources'!AY:AY, 5)+SUMIFS('2020 Point Sources'!BH:BH, '2020 Point Sources'!I:I, A65, '2020 Point Sources'!AY:AY, 6)++SUMIFS('2020 Point Sources'!BH:BH, '2020 Point Sources'!I:I, A65, '2020 Point Sources'!AY:AY, 8)++SUMIFS('2020 Point Sources'!BH:BH, '2020 Point Sources'!I:I, A65, '2020 Point Sources'!AY:AY, 99)), "ton", "g")/1000, "n/a") -> 1.02E+03 | P65: 2.798E+00 | Q65: 24 | R65: =IF(AND(S65>0, T65>0), IF(S65/T65 > 365, 365, S65/T65), INDEX('OES Summary'!C:C, MATCH(B65, 'OES Summary'!A:A, 0))) -> 365 | S65: =_xlfn.MAXIFS('2020 Point Sources'!CY:CY,'2020 Point Sources'!A:A, A65) -> 8760 | T65: =_xlfn.MAXIFS('2020 Point Sources'!CZ:CZ,'2020 Point Sources'!A:A, A65) -> 24 | U65: =_xlfn.MAXIFS('2020 Point Sources'!DA:DA,'2020 Point Sources'!A:A, A65) -> 7 | V65: =_xlfn.MAXIFS('2020 Point Sources'!DB:DB,'2020 Point Sources'!A:A, A65) -> 52 | W65: =COUNTIF('2020 Point Sources'!A:A, A65) -> 6 | X65: =COUNTIFS('2020 Point Sources'!AY:AY, 1,'2020 Point Sources'!A:A, A65)+COUNTIFS('2020 Point Sources'!AY:AY, 7,'2020 Point Sources'!A:A, A65)+COUNTIFS('2020 Point Sources'!AY:AY, 9,'2020 Point Sources'!A:A, A65) -> 1 | Y65: =COUNTIFS('2020 Point Sources'!AY:AY, 2,'2020 Point Sources'!A:A, A65)+COUNTIFS('2020 Point Sources'!AY:AY, 3,'2020 Point Sources'!A:A, A65)+COUNTIFS('2020 Point Sources'!AY:AY, 4,'2020 Point Sources'!A:A, A65)+COUNTIFS('2020 Point Sources'!AY:AY, 5,'2020 Point Sources'!A:A, A65)+COUNTIFS('2020 Point Sources'!AY:AY, 6,'2020 Point Sources'!A:A, A65)+COUNTIFS('2020 Point Sources'!AY:AY, 8,'2020 Point Sources'!A:A, A65)+COUNTIFS('2020 Point Sources'!AY:AY, 99,'2020 Point Sources'!A:A, A65) -> 5
A66: 5653011 | B66: =VLOOKUP($A66, '2020 Point Sources'!$I:$AO, 32, FALSE) -> Plastics and rubber compounding | C66: =VLOOKUP($A66,'2020 Point Sources'!$I:$J, 2, FALSE) -> BEAUMONT CHEMICAL PLANT | D66: =VLOOKUP($A66,'2020 Point Sources'!$I:$CD, 73, FALSE) -> BEAUMONT | E66: =VLOOKUP($A66,'2020 Point Sources'!$A:$E, 5, FALSE) -> TX | F66: =VLOOKUP($A66,'2020 Point Sources'!$A:$F, 6, FALSE) -> Jefferson | G66: =VLOOKUP($A66,'2020 Point Sources'!$I:$CD, 74, FALSE) -> 77705 | H66: =VLOOKUP($A66,'2020 Point Sources'!$I:$T, 12, FALSE) -> Synthetic Rubber Manufacturing | I66: =VLOOKUP($A66,'2020 Point Sources'!$I:$T, 11, FALSE) -> 325212 | J66: =VLOOKUP($A66,'2020 Point Sources'!$I:$AM, 25, FALSE) -> 30102699 | K66: =VLOOKUP($A66,'2020 Point Sources'!$I:$AM, 26, FALSE) -> Industrial Processes Chemical Manufacturing Synthetic Rubber (Manufacturing Only) Other Not Classified | L66: =VLOOKUP($A66,'2020 Point Sources'!$I:$AM, 31, FALSE) -> Industrial Processes - Chemical Manuf | M66: =IF(X66>0, CONVERT((SUMIFS('2020 Point Sources'!BH:BH, '2020 Point Sources'!I:I, A66, '2020 Point Sources'!AY:AY, 1)+SUMIFS('2020 Point Sources'!BH:BH, '2020 Point Sources'!I:I, A66, '2020 Point Sources'!AY:AY, 7)+SUMIFS('2020 Point Sources'!BH:BH, '2020 Point Sources'!I:I, A66, '2020 Point Sources'!AY:AY, 9)), "ton", "g")/1000, "n/a") -> 7.32E+03 | N66: =IF(M66<>"n/a", M66/R66, "n/a") -> 2.01E+01 | O66: =IF(Y66>0, CONVERT((SUMIFS('2020 Point Sources'!BH:BH, '2020 Point Sources'!I:I, A66, '2020 Point Sources'!AY:AY, 2)+SUMIFS('2020 Point Sources'!BH:BH, '2020 Point Sources'!I:I, A66, '2020 Point Sources'!AY:AY, 3)+SUMIFS('2020 Point Sources'!BH:BH, '2020 Point Sources'!I:I, A66, '2020 Point Sources'!AY:AY, 4)+SUMIFS('2020 Point Sources'!BH:BH, '2020 Point Sources'!I:I, A66, '2020 Point Sources'!AY:AY, 5)+SUMIFS('2020 Point Sources'!BH:BH, '2020 Point Sources'!I:I, A66, '2020 Point Sources'!AY:AY, 6)++SUMIFS('2020 Point Sources'!BH:BH, '2020 Point Sources'!I:I, A66, '2020 Point Sources'!AY:AY, 8)++SUMIFS('2020 Point Sources'!BH:BH, '2020 Point Sources'!I:I, A66, '2020 Point Sources'!AY:AY, 99)), "ton", "g")/1000, "n/a") -> 2.64E+03 | P66: =IF(O66<>"n/a", O66/R66, "n/a") -> 7.231E+00 | Q66: =IF(T66=0, 24, T66) -> 24 | R66: =IF(AND(S66>0, T66>0), IF(S66/T66 > 365, 365, S66/T66), INDEX('OES Summary'!C:C, MATCH(B66, 'OES Summary'!A:A, 0))) -> 365 | S66: =_xlfn.MAXIFS('2020 Point Sources'!CY:CY,'2020 Point Sources'!A:A, A66) -> 8760 | T66: =_xlfn.MAXIFS('2020 Point Sources'!CZ:CZ,'2020 Point Sources'!A:A, A66) -> 24 | U66: =_xlfn.MAXIFS('2020 Point Sources'!DA:DA,'2020 Point Sources'!A:A, A66) -> 7 | V66: =_xlfn.MAXIFS('2020 Point Sources'!DB:DB,'2020 Point Sources'!A:A, A66) -> 52 | W66: =COUNTIF('2020 Point Sources'!A:A, A66) -> 11 | X66: =COUNTIFS('2020 Point Sources'!AY:AY, 1,'2020 Point Sources'!A:A, A66)+COUNTIFS('2020 Point Sources'!AY:AY, 7,'2020 Point Sources'!A:A, A66)+COUNTIFS('2020 Point Sources'!AY:AY, 9,'2020 Point Sources'!A:A, A66) -> 7 | Y66: =COUNTIFS('2020 Point Sources'!AY:AY, 2,'2020 Point Sources'!A:A, A66)+COUNTIFS('2020 Point Sources'!AY:AY, 3,'2020 Point Sources'!A:A, A66)+COUNTIFS('2020 Point Sources'!AY:AY, 4,'2020 Point Sources'!A:A, A66)+COUNTIFS('2020 Point Sources'!AY:AY, 5,'2020 Point Sources'!A:A, A66)+COUNTIFS('2020 Point Sources'!AY:AY, 6,'2020 Point Sources'!A:A, A66)+COUNTIFS('2020 Point Sources'!AY:AY, 8,'2020 Point Sources'!A:A, A66)+COUNTIFS('2020 Point Sources'!AY:AY, 99,'2020 Point Sources'!A:A, A66) -> 4
A67: 7030411 | B67: =VLOOKUP($A67, '2020 Point Sources'!$I:$AO, 32, FALSE) -> Plastics and rubber compounding | C67: =VLOOKUP($A67,'2020 Point Sources'!$I:$J, 2, FALSE) -> Cargill Inc | D67: =VLOOKUP($A67,'2020 Point Sources'!$I:$CD, 73, FALSE) -> Blooming Prairie | E67: =VLOOKUP($A67,'2020 Point Sources'!$A:$E, 5, FALSE) -> MN | F67: =VLOOKUP($A67,'2020 Point Sources'!$A:$F, 6, FALSE) -> Steele | G67: =VLOOKUP($A67,'2020 Point Sources'!$I:$CD, 74, FALSE) -> 55917 | H67: =VLOOKUP($A67,'2020 Point Sources'!$I:$T, 12, FALSE) -> All Other Basic Organic Chemical Manufacturing | I67: =VLOOKUP($A67,'2020 Point Sources'!$I:$T, 11, FALSE) -> 325199 | J67: =VLOOKUP($A67,'2020 Point Sources'!$I:$AM, 25, FALSE) -> 20200102 | K67: =VLOOKUP($A67,'2020 Point Sources'!$I:$AM, 26, FALSE) -> Internal Combustion Engines Industrial Distillate Oil (Diesel) Reciprocating | L67: =VLOOKUP($A67,'2020 Point Sources'!$I:$AM, 31, FALSE) -> Fuel Comb - Industrial Boilers, ICEs - Oil | M67: =IF(X67>0, CONVERT((SUMIFS('2020 Point Sources'!BH:BH, '2020 Point Sources'!I:I, A67, '2020 Point Sources'!AY:AY, 1)+SUMIFS('2020 Point Sources'!BH:BH, '2020 Point Sources'!I:I, A67, '2020 Point Sources'!AY:AY, 7)+SUMIFS('2020 Point Sources'!BH:BH, '2020 Point Sources'!I:I, A67, '2020 Point Sources'!AY:AY, 9)), "ton", "g")/1000, "n/a") -> n/a | N67: n/a | O67: =IF(Y67>0, CONVERT((SUMIFS('2020 Point Sources'!BH:BH, '2020 Point Sources'!I:I, A67, '2020 Point Sources'!AY:AY, 2)+SUMIFS('2020 Point Sources'!BH:BH, '2020 Point Sources'!I:I, A67, '2020 Point Sources'!AY:AY, 3)+SUMIFS('2020 Point Sources'!BH:BH, '2020 Point Sources'!I:I, A67, '2020 Point Sources'!AY:AY, 4)+SUMIFS('2020 Point Sources'!BH:BH, '2020 Point Sources'!I:I, A67, '2020 Point Sources'!AY:AY, 5)+SUMIFS('2020 Point Sources'!BH:BH, '2020 Point Sources'!I:I, A67, '2020 Point Sources'!AY:AY, 6)++SUMIFS('2020 Point Sources'!BH:BH, '2020 Point Sources'!I:I, A67, '2020 Point Sources'!AY:AY, 8)++SUMIFS('2020 Point Sources'!BH:BH, '2020 Point Sources'!I:I, A67, '2020 Point Sources'!AY:AY, 99)), "ton", "g")/1000, "n/a") -> 6.72E-04 | P67: 2.241E-06 | Q67: 24 | R67: =IF(AND(S67>0, T67>0), IF(S67/T67 > 365, 365, S67/T67), INDEX('OES Summary'!C:C, MATCH(B67, 'OES Summary'!A:A, 0))) -> 300 | S67: =_xlfn.MAXIFS('2020 Point Sources'!CY:CY,'2020 Point Sources'!A:A, A67) -> 0 | T67: =_xlfn.MAXIFS('2020 Point Sources'!CZ:CZ,'2020 Point Sources'!A:A, A67) -> 0 | U67: =_xlfn.MAXIFS('2020 Point Sources'!DA:DA,'2020 Point Sources'!A:A, A67) -> 0 | V67: =_xlfn.MAXIFS('2020 Point Sources'!DB:DB,'2020 Point Sources'!A:A, A67) -> 0 | W67: =COUNTIF('2020 Point Sources'!A:A, A67) -> 2 | X67: =COUNTIFS('2020 Point Sources'!AY:AY, 1,'2020 Point Sources'!A:A, A67)+COUNTIFS('2020 Point Sources'!AY:AY, 7,'2020 Point Sources'!A:A, A67)+COUNTIFS('2020 Point Sources'!AY:AY, 9,'2020 Point Sources'!A:A, A67) -> 0 | Y67: =COUNTIFS('2020 Point Sources'!AY:AY, 2,'2020 Point Sources'!A:A, A67)+COUNTIFS('2020 Point Sources'!AY:AY, 3,'2020 Point Sources'!A:A, A67)+COUNTIFS('2020 Point Sources'!AY:AY, 4,'2020 Point Sources'!A:A, A67)+COUNTIFS('2020 Point Sources'!AY:AY, 5,'2020 Point Sources'!A:A, A67)+COUNTIFS('2020 Point Sources'!AY:AY, 6,'2020 Point Sources'!A:A, A67)+COUNTIFS('2020 Point Sources'!AY:AY, 8,'2020 Point Sources'!A:A, A67)+COUNTIFS('2020 Point Sources'!AY:AY, 99,'2020 Point Sources'!A:A, A67) -> 2
A68: 8134511 | B68: =VLOOKUP($A68, '2020 Point Sources'!$I:$AO, 32, FALSE) -> Plastics and Rubber Compounding | C68: =VLOOKUP($A68,'2020 Point Sources'!$I:$J, 2, FALSE) -> DAK Americas, LLC - Cedar Creek Site | D68: =VLOOKUP($A68,'2020 Point Sources'!$I:$CD, 73, FALSE) -> Fayetteville | E68: =VLOOKUP($A68,'2020 Point Sources'!$A:$E, 5, FALSE) -> NC | F68: =VLOOKUP($A68,'2020 Point Sources'!$A:$F, 6, FALSE) -> Cumberland | G68: =VLOOKUP($A68,'2020 Point Sources'!$I:$CD, 74, FALSE) -> 28312 | H68: =VLOOKUP($A68,'2020 Point Sources'!$I:$T, 12, FALSE) -> Plastics Material and Resin Manufacturing | I68: =VLOOKUP($A68,'2020 Point Sources'!$I:$T, 11, FALSE) -> 325211 | J68: =VLOOKUP($A68,'2020 Point Sources'!$I:$AM, 25, FALSE) -> 30101837 | K68: =VLOOKUP($A68,'2020 Point Sources'!$I:$AM, 26, FALSE) -> Industrial Processes Chemical Manufacturing Plastics Production Polyester Resins | L68: =VLOOKUP($A68,'2020 Point Sources'!$I:$AM, 31, FALSE) -> Industrial Processes - Chemical Manuf | M68: =IF(X68>0, CONVERT((SUMIFS('2020 Point Sources'!BH:BH, '2020 Point Sources'!I:I, A68, '2020 Point Sources'!AY:AY, 1)+SUMIFS('2020 Point Sources'!BH:BH, '2020 Point Sources'!I:I, A68, '2020 Point Sources'!AY:AY, 7)+SUMIFS('2020 Point Sources'!BH:BH, '2020 Point Sources'!I:I, A68, '2020 Point Sources'!AY:AY, 9)), "ton", "g")/1000, "n/a") -> n/a | N68: n/a | O68: =IF(Y68>0, CONVERT((SUMIFS('2020 Point Sources'!BH:BH, '2020 Point Sources'!I:I, A68, '2020 Point Sources'!AY:AY, 2)+SUMIFS('2020 Point Sources'!BH:BH, '2020 Point Sources'!I:I, A68, '2020 Point Sources'!AY:AY, 3)+SUMIFS('2020 Point Sources'!BH:BH, '2020 Point Sources'!I:I, A68, '2020 Point Sources'!AY:AY, 4)+SUMIFS('2020 Point Sources'!BH:BH, '2020 Point Sources'!I:I, A68, '2020 Point Sources'!AY:AY, 5)+SUMIFS('2020 Point Sources'!BH:BH, '2020 Point Sources'!I:I, A68, '2020 Point Sources'!AY:AY, 6)++SUMIFS('2020 Point Sources'!BH:BH, '2020 Point Sources'!I:I, A68, '2020 Point Sources'!AY:AY, 8)++SUMIFS('2020 Point Sources'!BH:BH, '2020 Point Sources'!I:I, A68, '2020 Point Sources'!AY:AY, 99)), "ton", "g")/1000, "n/a") -> 1.08E+02 | P68: 2.968E-01 | Q68: 24 | R68: =IF(AND(S68>0, T68>0), IF(S68/T68 > 365, 365, S68/T68), INDEX('OES Summary'!C:C, MATCH(B68, 'OES Summary'!A:A, 0))) -> 364 | S68: =_xlfn.MAXIFS('2020 Point Sources'!CY:CY,'2020 Point Sources'!A:A, A68) -> 8736 | T68: =_xlfn.MAXIFS('2020 Point Sources'!CZ:CZ,'2020 Point Sources'!A:A, A68) -> 24 | U68: =_xlfn.MAXIFS('2020 Point Sources'!DA:DA,'2020 Point Sources'!A:A, A68) -> 7 | V68: =_xlfn.MAXIFS('2020 Point Sources'!DB:DB,'2020 Point Sources'!A:A, A68) -> 52 | W68: =COUNTIF('2020 Point Sources'!A:A, A68) -> 3 | X68: =COUNTIFS('2020 Point Sources'!AY:AY, 1,'2020 Point Sources'!A:A, A68)+COUNTIFS('2020 Point Sources'!AY:AY, 7,'2020 Point Sources'!A:A, A68)+COUNTIFS('2020 Point Sources'!AY:AY, 9,'2020 Point Sources'!A:A, A68) -> 0 | Y68: =COUNTIFS('2020 Point Sources'!AY:AY, 2,'2020 Point Sources'!A:A, A68)+COUNTIFS('2020 Point Sources'!AY:AY, 3,'2020 Point Sources'!A:A, A68)+COUNTIFS('2020 Point Sources'!AY:AY, 4,'2020 Point Sources'!A:A, A68)+COUNTIFS('2020 Point Sources'!AY:AY, 5,'2020 Point Sources'!A:A, A68)+COUNTIFS('2020 Point Sources'!AY:AY, 6,'2020 Point Sources'!A:A, A68)+COUNTIFS('2020 Point Sources'!AY:AY, 8,'2020 Point Sources'!A:A, A68)+COUNTIFS('2020 Point Sources'!AY:AY, 99,'2020 Point Sources'!A:A, A68) -> 3
A69: 17640111 | B69: =VLOOKUP($A69, '2020 Point Sources'!$I:$AO, 32, FALSE) -> Plastics and Rubber Compounding | C69: =VLOOKUP($A69,'2020 Point Sources'!$I:$J, 2, FALSE) -> Denka Performance Elastomer LLC | D69: =VLOOKUP($A69,'2020 Point Sources'!$I:$CD, 73, FALSE) -> Laplace | E69: =VLOOKUP($A69,'2020 Point Sources'!$A:$E, 5, FALSE) -> LA | F69: =VLOOKUP($A69,'2020 Point Sources'!$A:$F, 6, FALSE) -> St. John the Baptist | G69: =VLOOKUP($A69,'2020 Point Sources'!$I:$CD, 74, FALSE) -> 70068 | H69: =VLOOKUP($A69,'2020 Point Sources'!$I:$T, 12, FALSE) -> Synthetic Rubber Manufacturing | I69: =VLOOKUP($A69,'2020 Point Sources'!$I:$T, 11, FALSE) -> 325212 | J69: =VLOOKUP($A69,'2020 Point Sources'!$I:$AM, 25, FALSE) -> 30102699 | K69: =VLOOKUP($A69,'2020 Point Sources'!$I:$AM, 26, FALSE) -> Industrial Processes Chemical Manufacturing Synthetic Rubber (Manufacturing Only) Other Not Classified | L69: =VLOOKUP($A69,'2020 Point Sources'!$I:$AM, 31, FALSE) -> Industrial Processes - Chemical Manuf | M69: =IF(X69>0, CONVERT((SUMIFS('2020 Point Sources'!BH:BH, '2020 Point Sources'!I:I, A69, '2020 Point Sources'!AY:AY, 1)+SUMIFS('2020 Point Sources'!BH:BH, '2020 Point Sources'!I:I, A69, '2020 Point Sources'!AY:AY, 7)+SUMIFS('2020 Point Sources'!BH:BH, '2020 Point Sources'!I:I, A69, '2020 Point Sources'!AY:AY, 9)), "ton", "g")/1000, "n/a") -> n/a | N69: n/a | O69: =IF(Y69>0, CONVERT((SUMIFS('2020 Point Sources'!BH:BH, '2020 Point Sources'!I:I, A69, '2020 Point Sources'!AY:AY, 2)+SUMIFS('2020 Point Sources'!BH:BH, '2020 Point Sources'!I:I, A69, '2020 Point Sources'!AY:AY, 3)+SUMIFS('2020 Point Sources'!BH:BH, '2020 Point Sources'!I:I, A69, '2020 Point Sources'!AY:AY, 4)+SUMIFS('2020 Point Sources'!BH:BH, '2020 Point Sources'!I:I, A69, '2020 Point Sources'!AY:AY, 5)+SUMIFS('2020 Point Sources'!BH:BH, '2020 Point Sources'!I:I, A69, '2020 Point Sources'!AY:AY, 6)++SUMIFS('2020 Point Sources'!BH:BH, '2020 Point Sources'!I:I, A69, '2020 Point Sources'!AY:AY, 8)++SUMIFS('2020 Point Sources'!BH:BH, '2020 Point Sources'!I:I, A69, '2020 Point Sources'!AY:AY, 99)), "ton", "g")/1000, "n/a") -> 9.25E+02 | P69: 2.541E+00 | Q69: 24 | R69: =IF(AND(S69>0, T69>0), IF(S69/T69 > 365, 365, S69/T69), INDEX('OES Summary'!C:C, MATCH(B69, 'OES Summary'!A:A, 0))) -> 364 | S69: =_xlfn.MAXIFS('2020 Point Sources'!CY:CY,'2020 Point Sources'!A:A, A69) -> 8736 | T69: =_xlfn.MAXIFS('2020 Point Sources'!CZ:CZ,'2020 Point Sources'!A:A, A69) -> 24 | U69: =_xlfn.MAXIFS('2020 Point Sources'!DA:DA,'2020 Point Sources'!A:A, A69) -> 7 | V69: =_xlfn.MAXIFS('2020 Point Sources'!DB:DB,'2020 Point Sources'!A:A, A69) -> 52 | W69: =COUNTIF('2020 Point Sources'!A:A, A69) -> 19 | X69: =COUNTIFS('2020 Point Sources'!AY:AY, 1,'2020 Point Sources'!A:A, A69)+COUNTIFS('2020 Point Sources'!AY:AY, 7,'2020 Point Sources'!A:A, A69)+COUNTIFS('2020 Point Sources'!AY:AY, 9,'2020 Point Sources'!A:A, A69) -> 0 | Y69: =COUNTIFS('2020 Point Sources'!AY:AY, 2,'2020 Point Sources'!A:A, A69)+COUNTIFS('2020 Point Sources'!AY:AY, 3,'2020 Point Sources'!A:A, A69)+COUNTIFS('2020 Point Sources'!AY:AY, 4,'2020 Point Sources'!A:A, A69)+COUNTIFS('2020 Point Sources'!AY:AY, 5,'2020 Point Sources'!A:A, A69)+COUNTIFS('2020 Point Sources'!AY:AY, 6,'2020 Point Sources'!A:A, A69)+COUNTIFS('2020 Point Sources'!AY:AY, 8,'2020 Point Sources'!A:A, A69)+COUNTIFS('2020 Point Sources'!AY:AY, 99,'2020 Point Sources'!A:A, A69) -> 19
A70: 3982311 | B70: =VLOOKUP($A70, '2020 Point Sources'!$I:$AO, 32, FALSE) -> Plastics and Rubber Compounding | C70: =VLOOKUP($A70,'2020 Point Sources'!$I:$J, 2, FALSE) -> Eastman Chemical Company | D70: =VLOOKUP($A70,'2020 Point Sources'!$I:$CD, 73, FALSE) -> KINGSPORT | E70: =VLOOKUP($A70,'2020 Point Sources'!$A:$E, 5, FALSE) -> TN | F70: =VLOOKUP($A70,'2020 Point Sources'!$A:$F, 6, FALSE) -> Sullivan | G70: =VLOOKUP($A70,'2020 Point Sources'!$I:$CD, 74, FALSE) -> 37660 | H70: =VLOOKUP($A70,'2020 Point Sources'!$I:$T, 12, FALSE) -> All Other Basic Organic Chemical Manufacturing | I70: =VLOOKUP($A70,'2020 Point Sources'!$I:$T, 11, FALSE) -> 325199 | J70: =VLOOKUP($A70,'2020 Point Sources'!$I:$AM, 25, FALSE) -> 30188801 | K70: =VLOOKUP($A70,'2020 Point Sources'!$I:$AM, 26, FALSE) -> Industrial Processes Chemical Manufacturing Fugitive Emissions All Not Elsewhere Classified | L70: =VLOOKUP($A70,'2020 Point Sources'!$I:$AM, 31, FALSE) -> Industrial Processes - Chemical Manuf | M70: =IF(X70>0, CONVERT((SUMIFS('2020 Point Sources'!BH:BH, '2020 Point Sources'!I:I, A70, '2020 Point Sources'!AY:AY, 1)+SUMIFS('2020 Point Sources'!BH:BH, '2020 Point Sources'!I:I, A70, '2020 Point Sources'!AY:AY, 7)+SUMIFS('2020 Point Sources'!BH:BH, '2020 Point Sources'!I:I, A70, '2020 Point Sources'!AY:AY, 9)), "ton", "g")/1000, "n/a") -> 1.86E+01 | N70: 6.20E-02 | O70: =IF(Y70>0, CONVERT((SUMIFS('2020 Point Sources'!BH:BH, '2020 Point Sources'!I:I, A70, '2020 Point Sources'!AY:AY, 2)+SUMIFS('2020 Point Sources'!BH:BH, '2020 Point Sources'!I:I, A70, '2020 Point Sources'!AY:AY, 3)+SUMIFS('2020 Point Sources'!BH:BH, '2020 Point Sources'!I:I, A70, '2020 Point Sources'!AY:AY, 4)+SUMIFS('2020 Point Sources'!BH:BH, '2020 Point Sources'!I:I, A70, '2020 Point Sources'!AY:AY, 5)+SUMIFS('2020 Point Sources'!BH:BH, '2020 Point Sources'!I:I, A70, '2020 Point Sources'!AY:AY, 6)++SUMIFS('2020 Point Sources'!BH:BH, '2020 Point Sources'!I:I, A70, '2020 Point Sources'!AY:AY, 8)++SUMIFS('2020 Point Sources'!BH:BH, '2020 Point Sources'!I:I, A70, '2020 Point Sources'!AY:AY, 99)), "ton", "g")/1000, "n/a") -> 8.18E+02 | P70: 2.728E+00 | Q70: 24 | R70: =IF(AND(S70>0, T70>0), IF(S70/T70 > 365, 365, S70/T70), INDEX('OES Summary'!C:C, MATCH(B70, 'OES Summary'!A:A, 0))) -> 300 | S70: =_xlfn.MAXIFS('2020 Point Sources'!CY:CY,'2020 Point Sources'!A:A, A70) -> 0 | T70: =_xlfn.MAXIFS('2020 Point Sources'!CZ:CZ,'2020 Point Sources'!A:A, A70) -> 0 | U70: =_xlfn.MAXIFS('2020 Point Sources'!DA:DA,'2020 Point Sources'!A:A, A70) -> 0 | V70: =_xlfn.MAXIFS('2020 Point Sources'!DB:DB,'2020 Point Sources'!A:A, A70) -> 0 | W70: =COUNTIF('2020 Point Sources'!A:A, A70) -> 2 | X70: =COUNTIFS('2020 Point Sources'!AY:AY, 1,'2020 Point Sources'!A:A, A70)+COUNTIFS('2020 Point Sources'!AY:AY, 7,'2020 Point Sources'!A:A, A70)+COUNTIFS('2020 Point Sources'!AY:AY, 9,'2020 Point Sources'!A:A, A70) -> 1 | Y70: =COUNTIFS('2020 Point Sources'!AY:AY, 2,'2020 Point Sources'!A:A, A70)+COUNTIFS('2020 Point Sources'!AY:AY, 3,'2020 Point Sources'!A:A, A70)+COUNTIFS('2020 Point Sources'!AY:AY, 4,'2020 Point Sources'!A:A, A70)+COUNTIFS('2020 Point Sources'!AY:AY, 5,'2020 Point Sources'!A:A, A70)+COUNTIFS('2020 Point Sources'!AY:AY, 6,'2020 Point Sources'!A:A, A70)+COUNTIFS('2020 Point Sources'!AY:AY, 8,'2020 Point Sources'!A:A, A70)+COUNTIFS('2020 Point Sources'!AY:AY, 99,'2020 Point Sources'!A:A, A70) -> 1
A71: 8209311 | B71: =VLOOKUP($A71, '2020 Point Sources'!$I:$AO, 32, FALSE) -> Plastics and Rubber Compounding | C71: =VLOOKUP($A71,'2020 Point Sources'!$I:$J, 2, FALSE) -> Equistar Chemicals LP | D71: =VLOOKUP($A71,'2020 Point Sources'!$I:$CD, 73, FALSE) -> Morris | E71: =VLOOKUP($A71,'2020 Point Sources'!$A:$E, 5, FALSE) -> IL | F71: =VLOOKUP($A71,'2020 Point Sources'!$A:$F, 6, FALSE) -> Grundy | G71: =VLOOKUP($A71,'2020 Point Sources'!$I:$CD, 74, FALSE) -> 60450-9153 | H71: =VLOOKUP($A71,'2020 Point Sources'!$I:$T, 12, FALSE) -> All Other Miscellaneous Chemical Product and Preparation Manufacturing | I71: =VLOOKUP($A71,'2020 Point Sources'!$I:$T, 11, FALSE) -> 325998 | J71: =VLOOKUP($A71,'2020 Point Sources'!$I:$AM, 25, FALSE) -> 30199998 | K71: =VLOOKUP($A71,'2020 Point Sources'!$I:$AM, 26, FALSE) -> Industrial Processes Chemical Manufacturing Other Not Classified Other Not Elsewhere Classified | L71: =VLOOKUP($A71,'2020 Point Sources'!$I:$AM, 31, FALSE) -> Industrial Processes - Chemical Manuf | M71: =IF(X71>0, CONVERT((SUMIFS('2020 Point Sources'!BH:BH, '2020 Point Sources'!I:I, A71, '2020 Point Sources'!AY:AY, 1)+SUMIFS('2020 Point Sources'!BH:BH, '2020 Point Sources'!I:I, A71, '2020 Point Sources'!AY:AY, 7)+SUMIFS('2020 Point Sources'!BH:BH, '2020 Point Sources'!I:I, A71, '2020 Point Sources'!AY:AY, 9)), "ton", "g")/1000, "n/a") -> n/a | N71: n/a | O71: =IF(Y71>0, CONVERT((SUMIFS('2020 Point Sources'!BH:BH, '2020 Point Sources'!I:I, A71, '2020 Point Sources'!AY:AY, 2)+SUMIFS('2020 Point Sources'!BH:BH, '2020 Point Sources'!I:I, A71, '2020 Point Sources'!AY:AY, 3)+SUMIFS('2020 Point Sources'!BH:BH, '2020 Point Sources'!I:I, A71, '2020 Point Sources'!AY:AY, 4)+SUMIFS('2020 Point Sources'!BH:BH, '2020 Point Sources'!I:I, A71, '2020 Point Sources'!AY:AY, 5)+SUMIFS('2020 Point Sources'!BH:BH, '2020 Point Sources'!I:I, A71, '2020 Point Sources'!AY:AY, 6)++SUMIFS('2020 Point Sources'!BH:BH, '2020 Point Sources'!I:I, A71, '2020 Point Sources'!AY:AY, 8)++SUMIFS('2020 Point Sources'!BH:BH, '2020 Point Sources'!I:I, A71, '2020 Point Sources'!AY:AY, 99)), "ton", "g")/1000, "n/a") -> 3.93E+02 | P71: 1.311E+00 | Q71: 24 | R71: =IF(AND(S71>0, T71>0), IF(S71/T71 > 365, 365, S71/T71), INDEX('OES Summary'!C:C, MATCH(B71, 'OES Summary'!A:A, 0))) -> 300 | S71: =_xlfn.MAXIFS('2020 Point Sources'!CY:CY,'2020 Point Sources'!A:A, A71) -> 8760 | T71: =_xlfn.MAXIFS('2020 Point Sources'!CZ:CZ,'2020 Point Sources'!A:A, A71) -> 0 | U71: =_xlfn.MAXIFS('2020 Point Sources'!DA:DA,'2020 Point Sources'!A:A, A71) -> 0 | V71: =_xlfn.MAXIFS('2020 Point Sources'!DB:DB,'2020 Point Sources'!A:A, A71) -> 0 | W71: =COUNTIF('2020 Point Sources'!A:A, A71) -> 4 | X71: =COUNTIFS('2020 Point Sources'!AY:AY, 1,'2020 Point Sources'!A:A, A71)+COUNTIFS('2020 Point Sources'!AY:AY, 7,'2020 Point Sources'!A:A, A71)+COUNTIFS('2020 Point Sources'!AY:AY, 9,'2020 Point Sources'!A:A, A71) -> 0 | Y71: =COUNTIFS('2020 Point Sources'!AY:AY, 2,'2020 Point Sources'!A:A, A71)+COUNTIFS('2020 Point Sources'!AY:AY, 3,'2020 Point Sources'!A:A, A71)+COUNTIFS('2020 Point Sources'!AY:AY, 4,'2020 Point Sources'!A:A, A71)+COUNTIFS('2020 Point Sources'!AY:AY, 5,'2020 Point Sources'!A:A, A71)+COUNTIFS('2020 Point Sources'!AY:AY, 6,'2020 Point Sources'!A:A, A71)+COUNTIFS('2020 Point Sources'!AY:AY, 8,'2020 Point Sources'!A:A, A71)+COUNTIFS('2020 Point Sources'!AY:AY, 99,'2020 Point Sources'!A:A, A71) -> 4
A72: 8465811 | B72: =VLOOKUP($A72, '2020 Point Sources'!$I:$AO, 32, FALSE) -> Plastics and Rubber Compounding | C72: =VLOOKUP($A72,'2020 Point Sources'!$I:$J, 2, FALSE) -> Equistar Chemicals LP - Westlake Facility | D72: =VLOOKUP($A72,'2020 Point Sources'!$I:$CD, 73, FALSE) -> Westlake | E72: =VLOOKUP($A72,'2020 Point Sources'!$A:$E, 5, FALSE) -> LA | F72: =VLOOKUP($A72,'2020 Point Sources'!$A:$F, 6, FALSE) -> Calcasieu | G72: =VLOOKUP($A72,'2020 Point Sources'!$I:$CD, 74, FALSE) -> 70669 | H72: =VLOOKUP($A72,'2020 Point Sources'!$I:$T, 12, FALSE) -> Plastics Material and Resin Manufacturing | I72: =VLOOKUP($A72,'2020 Point Sources'!$I:$T, 11, FALSE) -> 325211 | J72: =VLOOKUP($A72,'2020 Point Sources'!$I:$AM, 25, FALSE) -> 20200204 | K72: =VLOOKUP($A72,'2020 Point Sources'!$I:$AM, 26, FALSE) -> Internal Combustion Engines Industrial Natural Gas Reciprocating: Cogeneration | L72: =VLOOKUP($A72,'2020 Point Sources'!$I:$AM, 31, FALSE) -> Fuel Comb - Industrial Boilers, ICEs - Natural Gas | M72: =IF(X72>0, CONVERT((SUMIFS('2020 Point Sources'!BH:BH, '2020 Point Sources'!I:I, A72, '2020 Point Sources'!AY:AY, 1)+SUMIFS('2020 Point Sources'!BH:BH, '2020 Point Sources'!I:I, A72, '2020 Point Sources'!AY:AY, 7)+SUMIFS('2020 Point Sources'!BH:BH, '2020 Point Sources'!I:I, A72, '2020 Point Sources'!AY:AY, 9)), "ton", "g")/1000, "n/a") -> n/a | N72: n/a | O72: =IF(Y72>0, CONVERT((SUMIFS('2020 Point Sources'!BH:BH, '2020 Point Sources'!I:I, A72, '2020 Point Sources'!AY:AY, 2)+SUMIFS('2020 Point Sources'!BH:BH, '2020 Point Sources'!I:I, A72, '2020 Point Sources'!AY:AY, 3)+SUMIFS('2020 Point Sources'!BH:BH, '2020 Point Sources'!I:I, A72, '2020 Point Sources'!AY:AY, 4)+SUMIFS('2020 Point Sources'!BH:BH, '2020 Point Sources'!I:I, A72, '2020 Point Sources'!AY:AY, 5)+SUMIFS('2020 Point Sources'!BH:BH, '2020 Point Sources'!I:I, A72, '2020 Point Sources'!AY:AY, 6)++SUMIFS('2020 Point Sources'!BH:BH, '2020 Point Sources'!I:I, A72, '2020 Point Sources'!AY:AY, 8)++SUMIFS('2020 Point Sources'!BH:BH, '2020 Point Sources'!I:I, A72, '2020 Point Sources'!AY:AY, 99)), "ton", "g")/1000, "n/a") -> 4.78E+00 | P72: 1.312E-02 | Q72: 24 | R72: =IF(AND(S72>0, T72>0), IF(S72/T72 > 365, 365, S72/T72), INDEX('OES Summary'!C:C, MATCH(B72, 'OES Summary'!A:A, 0))) -> 364 | S72: =_xlfn.MAXIFS('2020 Point Sources'!CY:CY,'2020 Point Sources'!A:A, A72) -> 8736 | T72: =_xlfn.MAXIFS('2020 Point Sources'!CZ:CZ,'2020 Point Sources'!A:A, A72) -> 24 | U72: =_xlfn.MAXIFS('2020 Point Sources'!DA:DA,'2020 Point Sources'!A:A, A72) -> 7 | V72: =_xlfn.MAXIFS('2020 Point Sources'!DB:DB,'2020 Point Sources'!A:A, A72) -> 52 | W72: =COUNTIF('2020 Point Sources'!A:A, A72) -> 3 | X72: =COUNTIFS('2020 Point Sources'!AY:AY, 1,'2020 Point Sources'!A:A, A72)+COUNTIFS('2020 Point Sources'!AY:AY, 7,'2020 Point Sources'!A:A, A72)+COUNTIFS('2020 Point Sources'!AY:AY, 9,'2020 Point Sources'!A:A, A72) -> 0 | Y72: =COUNTIFS('2020 Point Sources'!AY:AY, 2,'2020 Point Sources'!A:A, A72)+COUNTIFS('2020 Point Sources'!AY:AY, 3,'2020 Point Sources'!A:A, A72)+COUNTIFS('2020 Point Sources'!AY:AY, 4,'2020 Point Sources'!A:A, A72)+COUNTIFS('2020 Point Sources'!AY:AY, 5,'2020 Point Sources'!A:A, A72)+COUNTIFS('2020 Point Sources'!AY:AY, 6,'2020 Point Sources'!A:A, A72)+COUNTIFS('2020 Point Sources'!AY:AY, 8,'2020 Point Sources'!A:A, A72)+COUNTIFS('2020 Point Sources'!AY:AY, 99,'2020 Point Sources'!A:A, A72) -> 3
A73: 5509711 | B73: =VLOOKUP($A73, '2020 Point Sources'!$I:$AO, 32, FALSE) -> Plastics and Rubber Compounding | C73: =VLOOKUP($A73,'2020 Point Sources'!$I:$J, 2, FALSE) -> EQUISTAR CHEMICALS, LP | D73: =VLOOKUP($A73,'2020 Point Sources'!$I:$CD, 73, FALSE) -> CLINTON | E73: =VLOOKUP($A73,'2020 Point Sources'!$A:$E, 5, FALSE) -> IA | F73: =VLOOKUP($A73,'2020 Point Sources'!$A:$F, 6, FALSE) -> Clinton | G73: =VLOOKUP($A73,'2020 Point Sources'!$I:$CD, 74, FALSE) -> 52732 | H73: =VLOOKUP($A73,'2020 Point Sources'!$I:$T, 12, FALSE) -> Petrochemical Manufacturing | I73: =VLOOKUP($A73,'2020 Point Sources'!$I:$T, 11, FALSE) -> 325110 | J73: =VLOOKUP($A73,'2020 Point Sources'!$I:$AM, 25, FALSE) -> 30180014 | K73: =VLOOKUP($A73,'2020 Point Sources'!$I:$AM, 26, FALSE) -> Industrial Processes Chemical Manufacturing Equipment Leaks Pressure Relief Devices: Gas Stream | L73: =VLOOKUP($A73,'2020 Point Sources'!$I:$AM, 31, FALSE) -> Industrial Processes - Chemical Manuf | M73: =IF(X73>0, CONVERT((SUMIFS('2020 Point Sources'!BH:BH, '2020 Point Sources'!I:I, A73, '2020 Point Sources'!AY:AY, 1)+SUMIFS('2020 Point Sources'!BH:BH, '2020 Point Sources'!I:I, A73, '2020 Point Sources'!AY:AY, 7)+SUMIFS('2020 Point Sources'!BH:BH, '2020 Point Sources'!I:I, A73, '2020 Point Sources'!AY:AY, 9)), "ton", "g")/1000, "n/a") -> 4.72E+03 | N73: 1.29E+01 | O73: =IF(Y73>0, CONVERT((SUMIFS('2020 Point Sources'!BH:BH, '2020 Point Sources'!I:I, A73, '2020 Point Sources'!AY:AY, 2)+SUMIFS('2020 Point Sources'!BH:BH, '2020 Point Sources'!I:I, A73, '2020 Point Sources'!AY:AY, 3)+SUMIFS('2020 Point Sources'!BH:BH, '2020 Point Sources'!I:I, A73, '2020 Point Sources'!AY:AY, 4)+SUMIFS('2020 Point Sources'!BH:BH, '2020 Point Sources'!I:I, A73, '2020 Point Sources'!AY:AY, 5)+SUMIFS('2020 Point Sources'!BH:BH, '2020 Point Sources'!I:I, A73, '2020 Point Sources'!AY:AY, 6)++SUMIFS('2020 Point Sources'!BH:BH, '2020 Point Sources'!I:I, A73, '2020 Point Sources'!AY:AY, 8)++SUMIFS('2020 Point Sources'!BH:BH, '2020 Point Sources'!I:I, A73, '2020 Point Sources'!AY:AY, 99)), "ton", "g")/1000, "n/a") -> 1.44E+03 | P73: 3.950E+00 | Q73: 24 | R73: =IF(AND(S73>0, T73>0), IF(S73/T73 > 365, 365, S73/T73), INDEX('OES Summary'!C:C, MATCH(B73, 'OES Summary'!A:A, 0))) -> 365 | S73: =_xlfn.MAXIFS('2020 Point Sources'!CY:CY,'2020 Point Sources'!A:A, A73) -> 8760 | T73: =_xlfn.MAXIFS('2020 Point Sources'!CZ:CZ,'2020 Point Sources'!A:A, A73) -> 24 | U73: =_xlfn.MAXIFS('2020 Point Sources'!DA:DA,'2020 Point Sources'!A:A, A73) -> 7 | V73: =_xlfn.MAXIFS('2020 Point Sources'!DB:DB,'2020 Point Sources'!A:A, A73) -> 52 | W73: =COUNTIF('2020 Point Sources'!A:A, A73) -> 10 | X73: =COUNTIFS('2020 Point Sources'!AY:AY, 1,'2020 Point Sources'!A:A, A73)+COUNTIFS('2020 Point Sources'!AY:AY, 7,'2020 Point Sources'!A:A, A73)+COUNTIFS('2020 Point Sources'!AY:AY, 9,'2020 Point Sources'!A:A, A73) -> 7 | Y73: =COUNTIFS('2020 Point Sources'!AY:AY, 2,'2020 Point Sources'!A:A, A73)+COUNTIFS('2020 Point Sources'!AY:AY, 3,'2020 Point Sources'!A:A, A73)+COUNTIFS('2020 Point Sources'!AY:AY, 4,'2020 Point Sources'!A:A, A73)+COUNTIFS('2020 Point Sources'!AY:AY, 5,'2020 Point Sources'!A:A, A73)+COUNTIFS('2020 Point Sources'!AY:AY, 6,'2020 Point Sources'!A:A, A73)+COUNTIFS('2020 Point Sources'!AY:AY, 8,'2020 Point Sources'!A:A, A73)+COUNTIFS('2020 Point Sources'!AY:AY, 99,'2020 Point Sources'!A:A, A73) -> 3
A74: 4980911 | B74: =VLOOKUP($A74, '2020 Point Sources'!$I:$AO, 32, FALSE) -> Plastics and Rubber Compounding | C74: =VLOOKUP($A74,'2020 Point Sources'!$I:$J, 2, FALSE) -> EVAL BUSINESS UNIT | D74: =VLOOKUP($A74,'2020 Point Sources'!$I:$CD, 73, FALSE) -> PASADENA | E74: =VLOOKUP($A74,'2020 Point Sources'!$A:$E, 5, FALSE) -> TX | F74: =VLOOKUP($A74,'2020 Point Sources'!$A:$F, 6, FALSE) -> Harris | G74: =VLOOKUP($A74,'2020 Point Sources'!$I:$CD, 74, FALSE) -> 77501 | H74: =VLOOKUP($A74,'2020 Point Sources'!$I:$T, 12, FALSE) -> Plastics Material and Resin Manufacturing | I74: =VLOOKUP($A74,'2020 Point Sources'!$I:$T, 11, FALSE) -> 325211 | J74: =VLOOKUP($A74,'2020 Point Sources'!$I:$AM, 25, FALSE) -> 30101880 | K74: =VLOOKUP($A74,'2020 Point Sources'!$I:$AM, 26, FALSE) -> Industrial Processes Chemical Manufacturing Plastics Production Polyurethane: Reactor | L74: =VLOOKUP($A74,'2020 Point Sources'!$I:$AM, 31, FALSE) -> Industrial Processes - Chemical Manuf | M74: =IF(X74>0, CONVERT((SUMIFS('2020 Point Sources'!BH:BH, '2020 Point Sources'!I:I, A74, '2020 Point Sources'!AY:AY, 1)+SUMIFS('2020 Point Sources'!BH:BH, '2020 Point Sources'!I:I, A74, '2020 Point Sources'!AY:AY, 7)+SUMIFS('2020 Point Sources'!BH:BH, '2020 Point Sources'!I:I, A74, '2020 Point Sources'!AY:AY, 9)), "ton", "g")/1000, "n/a") -> 1.94E+02 | N74: 1.94E+01 | O74: =IF(Y74>0, CONVERT((SUMIFS('2020 Point Sources'!BH:BH, '2020 Point Sources'!I:I, A74, '2020 Point Sources'!AY:AY, 2)+SUMIFS('2020 Point Sources'!BH:BH, '2020 Point Sources'!I:I, A74, '2020 Point Sources'!AY:AY, 3)+SUMIFS('2020 Point Sources'!BH:BH, '2020 Point Sources'!I:I, A74, '2020 Point Sources'!AY:AY, 4)+SUMIFS('2020 Point Sources'!BH:BH, '2020 Point Sources'!I:I, A74, '2020 Point Sources'!AY:AY, 5)+SUMIFS('2020 Point Sources'!BH:BH, '2020 Point Sources'!I:I, A74, '2020 Point Sources'!AY:AY, 6)++SUMIFS('2020 Point Sources'!BH:BH, '2020 Point Sources'!I:I, A74, '2020 Point Sources'!AY:AY, 8)++SUMIFS('2020 Point Sources'!BH:BH, '2020 Point Sources'!I:I, A74, '2020 Point Sources'!AY:AY, 99)), "ton", "g")/1000, "n/a") -> 3.41E+02 | P74: 3.412E+01 | Q74: 0.1 | R74: =IF(AND(S74>0, T74>0), IF(S74/T74 > 365, 365, S74/T74), INDEX('OES Summary'!C:C, MATCH(B74, 'OES Summary'!A:A, 0))) -> 10 | S74: =_xlfn.MAXIFS('2020 Point Sources'!CY:CY,'2020 Point Sources'!A:A, A74) -> 1 | T74: =_xlfn.MAXIFS('2020 Point Sources'!CZ:CZ,'2020 Point Sources'!A:A, A74) -> 0.1 | U74: =_xlfn.MAXIFS('2020 Point Sources'!DA:DA,'2020 Point Sources'!A:A, A74) -> 0.1 | V74: =_xlfn.MAXIFS('2020 Point Sources'!DB:DB,'2020 Point Sources'!A:A, A74) -> 1 | W74: =COUNTIF('2020 Point Sources'!A:A, A74) -> 8 | X74: =COUNTIFS('2020 Point Sources'!AY:AY, 1,'2020 Point Sources'!A:A, A74)+COUNTIFS('2020 Point Sources'!AY:AY, 7,'2020 Point Sources'!A:A, A74)+COUNTIFS('2020 Point Sources'!AY:AY, 9,'2020 Point Sources'!A:A, A74) -> 1 | Y74: =COUNTIFS('2020 Point Sources'!AY:AY, 2,'2020 Point Sources'!A:A, A74)+COUNTIFS('2020 Point Sources'!AY:AY, 3,'2020 Point Sources'!A:A, A74)+COUNTIFS('2020 Point Sources'!AY:AY, 4,'2020 Point Sources'!A:A, A74)+COUNTIFS('2020 Point Sources'!AY:AY, 5,'2020 Point Sources'!A:A, A74)+COUNTIFS('2020 Point Sources'!AY:AY, 6,'2020 Point Sources'!A:A, A74)+COUNTIFS('2020 Point Sources'!AY:AY, 8,'2020 Point Sources'!A:A, A74)+COUNTIFS('2020 Point Sources'!AY:AY, 99,'2020 Point Sources'!A:A, A74) -> 7
A75: 6299111 | B75: =VLOOKUP($A75, '2020 Point Sources'!$I:$AO, 32, FALSE) -> Plastics and Rubber Compounding | C75: =VLOOKUP($A75,'2020 Point Sources'!$I:$J, 2, FALSE) -> Fiber-Tech Industries | D75: =VLOOKUP($A75,'2020 Point Sources'!$I:$CD, 73, FALSE) -> Spokane | E75: =VLOOKUP($A75,'2020 Point Sources'!$A:$E, 5, FALSE) -> WA | F75: =VLOOKUP($A75,'2020 Point Sources'!$A:$F, 6, FALSE) -> Spokane | G75: =VLOOKUP($A75,'2020 Point Sources'!$I:$CD, 74, FALSE) -> 99216 | H75: =VLOOKUP($A75,'2020 Point Sources'!$I:$T, 12, FALSE) -> Laminated Plastics Plate, Sheet (except Packaging), and Shape Manufacturing | I75: =VLOOKUP($A75,'2020 Point Sources'!$I:$T, 11, FALSE) -> 326130 | J75: =VLOOKUP($A75,'2020 Point Sources'!$I:$AM, 25, FALSE) -> 30800719 | K75: =VLOOKUP($A75,'2020 Point Sources'!$I:$AM, 26, FALSE) -> Industrial Processes Rubber and Miscellaneous Plastics Products Fiberglass Resin Products Gel Coat: Robotic Spray | L75: =VLOOKUP($A75,'2020 Point Sources'!$I:$AM, 31, FALSE) -> Industrial Processes - NEC | M75: =IF(X75>0, CONVERT((SUMIFS('2020 Point Sources'!BH:BH, '2020 Point Sources'!I:I, A75, '2020 Point Sources'!AY:AY, 1)+SUMIFS('2020 Point Sources'!BH:BH, '2020 Point Sources'!I:I, A75, '2020 Point Sources'!AY:AY, 7)+SUMIFS('2020 Point Sources'!BH:BH, '2020 Point Sources'!I:I, A75, '2020 Point Sources'!AY:AY, 9)), "ton", "g")/1000, "n/a") -> 4.54E-01 | N75: 1.74E-03 | O75: =IF(Y75>0, CONVERT((SUMIFS('2020 Point Sources'!BH:BH, '2020 Point Sources'!I:I, A75, '2020 Point Sources'!AY:AY, 2)+SUMIFS('2020 Point Sources'!BH:BH, '2020 Point Sources'!I:I, A75, '2020 Point Sources'!AY:AY, 3)+SUMIFS('2020 Point Sources'!BH:BH, '2020 Point Sources'!I:I, A75, '2020 Point Sources'!AY:AY, 4)+SUMIFS('2020 Point Sources'!BH:BH, '2020 Point Sources'!I:I, A75, '2020 Point Sources'!AY:AY, 5)+SUMIFS('2020 Point Sources'!BH:BH, '2020 Point Sources'!I:I, A75, '2020 Point Sources'!AY:AY, 6)++SUMIFS('2020 Point Sources'!BH:BH, '2020 Point Sources'!I:I, A75, '2020 Point Sources'!AY:AY, 8)++SUMIFS('2020 Point Sources'!BH:BH, '2020 Point Sources'!I:I, A75, '2020 Point Sources'!AY:AY, 99)), "ton", "g")/1000, "n/a") -> n/a | P75: n/a | Q75: 11.2 | R75: =IF(AND(S75>0, T75>0), IF(S75/T75 > 365, 365, S75/T75), INDEX('OES Summary'!C:C, MATCH(B75, 'OES Summary'!A:A, 0))) -> 261 | S75: =_xlfn.MAXIFS('2020 Point Sources'!CY:CY,'2020 Point Sources'!A:A, A75) -> 2920 | T75: =_xlfn.MAXIFS('2020 Point Sources'!CZ:CZ,'2020 Point Sources'!A:A, A75) -> 11.2 | U75: =_xlfn.MAXIFS('2020 Point Sources'!DA:DA,'2020 Point Sources'!A:A, A75) -> 5 | V75: =_xlfn.MAXIFS('2020 Point Sources'!DB:DB,'2020 Point Sources'!A:A, A75) -> 52 | W75: =COUNTIF('2020 Point Sources'!A:A, A75) -> 2 | X75: =COUNTIFS('2020 Point Sources'!AY:AY, 1,'2020 Point Sources'!A:A, A75)+COUNTIFS('2020 Point Sources'!AY:AY, 7,'2020 Point Sources'!A:A, A75)+COUNTIFS('2020 Point Sources'!AY:AY, 9,'2020 Point Sources'!A:A, A75) -> 2 | Y75: =COUNTIFS('2020 Point Sources'!AY:AY, 2,'2020 Point Sources'!A:A, A75)+COUNTIFS('2020 Point Sources'!AY:AY, 3,'2020 Point Sources'!A:A, A75)+COUNTIFS('2020 Point Sources'!AY:AY, 4,'2020 Point Sources'!A:A, A75)+COUNTIFS('2020 Point Sources'!AY:AY, 5,'2020 Point Sources'!A:A, A75)+COUNTIFS('2020 Point Sources'!AY:AY, 6,'2020 Point Sources'!A:A, A75)+COUNTIFS('2020 Point Sources'!AY:AY, 8,'2020 Point Sources'!A:A, A75)+COUNTIFS('2020 Point Sources'!AY:AY, 99,'2020 Point Sources'!A:A, A75) -> 0
A76: 7328511 | B76: =VLOOKUP($A76, '2020 Point Sources'!$I:$AO, 32, FALSE) -> Plastics and Rubber Compounding | C76: =VLOOKUP($A76,'2020 Point Sources'!$I:$J, 2, FALSE) -> Firestone Polymers (1677010000) | D76: =VLOOKUP($A76,'2020 Point Sources'!$I:$CD, 73, FALSE) -> AKRON | E76: =VLOOKUP($A76,'2020 Point Sources'!$A:$E, 5, FALSE) -> OH | F76: =VLOOKUP($A76,'2020 Point Sources'!$A:$F, 6, FALSE) -> Summit | G76: =VLOOKUP($A76,'2020 Point Sources'!$I:$CD, 74, FALSE) -> 44301 | H76: =VLOOKUP($A76,'2020 Point Sources'!$I:$T, 12, FALSE) -> Synthetic Rubber Manufacturing | I76: =VLOOKUP($A76,'2020 Point Sources'!$I:$T, 11, FALSE) -> 325212 | J76: =VLOOKUP($A76,'2020 Point Sources'!$I:$AM, 25, FALSE) -> 30102620 | K76: =VLOOKUP($A76,'2020 Point Sources'!$I:$AM, 26, FALSE) -> Industrial Processes Chemical Manufacturing Synthetic Rubber (Manufacturing Only) Monomer Inhibitor Removal | L76: =VLOOKUP($A76,'2020 Point Sources'!$I:$AM, 31, FALSE) -> Industrial Processes - Chemical Manuf | M76: =IF(X76>0, CONVERT((SUMIFS('2020 Point Sources'!BH:BH, '2020 Point Sources'!I:I, A76, '2020 Point Sources'!AY:AY, 1)+SUMIFS('2020 Point Sources'!BH:BH, '2020 Point Sources'!I:I, A76, '2020 Point Sources'!AY:AY, 7)+SUMIFS('2020 Point Sources'!BH:BH, '2020 Point Sources'!I:I, A76, '2020 Point Sources'!AY:AY, 9)), "ton", "g")/1000, "n/a") -> 2.59E+00 | N76: 7.08E-03 | O76: =IF(Y76>0, CONVERT((SUMIFS('2020 Point Sources'!BH:BH, '2020 Point Sources'!I:I, A76, '2020 Point Sources'!AY:AY, 2)+SUMIFS('2020 Point Sources'!BH:BH, '2020 Point Sources'!I:I, A76, '2020 Point Sources'!AY:AY, 3)+SUMIFS('2020 Point Sources'!BH:BH, '2020 Point Sources'!I:I, A76, '2020 Point Sources'!AY:AY, 4)+SUMIFS('2020 Point Sources'!BH:BH, '2020 Point Sources'!I:I, A76, '2020 Point Sources'!AY:AY, 5)+SUMIFS('2020 Point Sources'!BH:BH, '2020 Point Sources'!I:I, A76, '2020 Point Sources'!AY:AY, 6)++SUMIFS('2020 Point Sources'!BH:BH, '2020 Point Sources'!I:I, A76, '2020 Point Sources'!AY:AY, 8)++SUMIFS('2020 Point Sources'!BH:BH, '2020 Point Sources'!I:I, A76, '2020 Point Sources'!AY:AY, 99)), "ton", "g")/1000, "n/a") -> 1.95E+00 | P76: 5.344E-03 | Q76: 24 | R76: =IF(AND(S76>0, T76>0), IF(S76/T76 > 365, 365, S76/T76), INDEX('OES Summary'!C:C, MATCH(B76, 'OES Summary'!A:A, 0))) -> 365 | S76: =_xlfn.MAXIFS('2020 Point Sources'!CY:CY,'2020 Point Sources'!A:A, A76) -> 8760 | T76: =_xlfn.MAXIFS('2020 Point Sources'!CZ:CZ,'2020 Point Sources'!A:A, A76) -> 24 | U76: =_xlfn.MAXIFS('2020 Point Sources'!DA:DA,'2020 Point Sources'!A:A, A76) -> 4 | V76: =_xlfn.MAXIFS('2020 Point Sources'!DB:DB,'2020 Point Sources'!A:A, A76) -> 50 | W76: =COUNTIF('2020 Point Sources'!A:A, A76) -> 2 | X76: =COUNTIFS('2020 Point Sources'!AY:AY, 1,'2020 Point Sources'!A:A, A76)+COUNTIFS('2020 Point Sources'!AY:AY, 7,'2020 Point Sources'!A:A, A76)+COUNTIFS('2020 Point Sources'!AY:AY, 9,'2020 Point Sources'!A:A, A76) -> 1 | Y76: =COUNTIFS('2020 Point Sources'!AY:AY, 2,'2020 Point Sources'!A:A, A76)+COUNTIFS('2020 Point Sources'!AY:AY, 3,'2020 Point Sources'!A:A, A76)+COUNTIFS('2020 Point Sources'!AY:AY, 4,'2020 Point Sources'!A:A, A76)+COUNTIFS('2020 Point Sources'!AY:AY, 5,'2020 Point Sources'!A:A, A76)+COUNTIFS('2020 Point Sources'!AY:AY, 6,'2020 Point Sources'!A:A, A76)+COUNTIFS('2020 Point Sources'!AY:AY, 8,'2020 Point Sources'!A:A, A76)+COUNTIFS('2020 Point Sources'!AY:AY, 99,'2020 Point Sources'!A:A, A76) -> 1
A77: 8465911 | B77: =VLOOKUP($A77, '2020 Point Sources'!$I:$AO, 32, FALSE) -> Plastics and Rubber Compounding | C77: =VLOOKUP($A77,'2020 Point Sources'!$I:$J, 2, FALSE) -> Firestone Polymers LLC - Lake Charles Facility | D77: =VLOOKUP($A77,'2020 Point Sources'!$I:$CD, 73, FALSE) -> Sulphur | E77: =VLOOKUP($A77,'2020 Point Sources'!$A:$E, 5, FALSE) -> LA | F77: =VLOOKUP($A77,'2020 Point Sources'!$A:$F, 6, FALSE) -> Calcasieu | G77: =VLOOKUP($A77,'2020 Point Sources'!$I:$CD, 74, FALSE) -> 70665 | H77: =VLOOKUP($A77,'2020 Point Sources'!$I:$T, 12, FALSE) -> Synthetic Rubber Manufacturing | I77: =VLOOKUP($A77,'2020 Point Sources'!$I:$T, 11, FALSE) -> 325212 | J77: =VLOOKUP($A77,'2020 Point Sources'!$I:$AM, 25, FALSE) -> 30102601 | K77: =VLOOKUP($A77,'2020 Point Sources'!$I:$AM, 26, FALSE) -> Industrial Processes Chemical Manufacturing Synthetic Rubber (Manufacturing Only) General | L77: =VLOOKUP($A77,'2020 Point Sources'!$I:$AM, 31, FALSE) -> Industrial Processes - Chemical Manuf | M77: =IF(X77>0, CONVERT((SUMIFS('2020 Point Sources'!BH:BH, '2020 Point Sources'!I:I, A77, '2020 Point Sources'!AY:AY, 1)+SUMIFS('2020 Point Sources'!BH:BH, '2020 Point Sources'!I:I, A77, '2020 Point Sources'!AY:AY, 7)+SUMIFS('2020 Point Sources'!BH:BH, '2020 Point Sources'!I:I, A77, '2020 Point Sources'!AY:AY, 9)), "ton", "g")/1000, "n/a") -> 1.74E+03 | N77: 4.79E+00 | O77: =IF(Y77>0, CONVERT((SUMIFS('2020 Point Sources'!BH:BH, '2020 Point Sources'!I:I, A77, '2020 Point Sources'!AY:AY, 2)+SUMIFS('2020 Point Sources'!BH:BH, '2020 Point Sources'!I:I, A77, '2020 Point Sources'!AY:AY, 3)+SUMIFS('2020 Point Sources'!BH:BH, '2020 Point Sources'!I:I, A77, '2020 Point Sources'!AY:AY, 4)+SUMIFS('2020 Point Sources'!BH:BH, '2020 Point Sources'!I:I, A77, '2020 Point Sources'!AY:AY, 5)+SUMIFS('2020 Point Sources'!BH:BH, '2020 Point Sources'!I:I, A77, '2020 Point Sources'!AY:AY, 6)++SUMIFS('2020 Point Sources'!BH:BH, '2020 Point Sources'!I:I, A77, '2020 Point Sources'!AY:AY, 8)++SUMIFS('2020 Point Sources'!BH:BH, '2020 Point Sources'!I:I, A77, '2020 Point Sources'!AY:AY, 99)), "ton", "g")/1000, "n/a") -> 1.78E+03 | P77: 4.895E+00 | Q77: 24 | R77: =IF(AND(S77>0, T77>0), IF(S77/T77 > 365, 365, S77/T77), INDEX('OES Summary'!C:C, MATCH(B77, 'OES Summary'!A:A, 0))) -> 364 | S77: =_xlfn.MAXIFS('2020 Point Sources'!CY:CY,'2020 Point Sources'!A:A, A77) -> 8736 | T77: =_xlfn.MAXIFS('2020 Point Sources'!CZ:CZ,'2020 Point Sources'!A:A, A77) -> 24 | U77: =_xlfn.MAXIFS('2020 Point Sources'!DA:DA,'2020 Point Sources'!A:A, A77) -> 7 | V77: =_xlfn.MAXIFS('2020 Point Sources'!DB:DB,'2020 Point Sources'!A:A, A77) -> 52 | W77: =COUNTIF('2020 Point Sources'!A:A, A77) -> 7 | X77: =COUNTIFS('2020 Point Sources'!AY:AY, 1,'2020 Point Sources'!A:A, A77)+COUNTIFS('2020 Point Sources'!AY:AY, 7,'2020 Point Sources'!A:A, A77)+COUNTIFS('2020 Point Sources'!AY:AY, 9,'2020 Point Sources'!A:A, A77) -> 4 | Y77: =COUNTIFS('2020 Point Sources'!AY:AY, 2,'2020 Point Sources'!A:A, A77)+COUNTIFS('2020 Point Sources'!AY:AY, 3,'2020 Point Sources'!A:A, A77)+COUNTIFS('2020 Point Sources'!AY:AY, 4,'2020 Point Sources'!A:A, A77)+COUNTIFS('2020 Point Sources'!AY:AY, 5,'2020 Point Sources'!A:A, A77)+COUNTIFS('2020 Point Sources'!AY:AY, 6,'2020 Point Sources'!A:A, A77)+COUNTIFS('2020 Point Sources'!AY:AY, 8,'2020 Point Sources'!A:A, A77)+COUNTIFS('2020 Point Sources'!AY:AY, 99,'2020 Point Sources'!A:A, A77) -> 3
A78: 5633411 | B78: =VLOOKUP($A78, '2020 Point Sources'!$I:$AO, 32, FALSE) -> Plastics and Rubber Compounding | C78: =VLOOKUP($A78,'2020 Point Sources'!$I:$J, 2, FALSE) -> FORMOSA POINT COMFORT PLANT | D78: =VLOOKUP($A78,'2020 Point Sources'!$I:$CD, 73, FALSE) -> POINT COMFORT | E78: =VLOOKUP($A78,'2020 Point Sources'!$A:$E, 5, FALSE) -> TX | F78: =VLOOKUP($A78,'2020 Point Sources'!$A:$F, 6, FALSE) -> Calhoun | G78: =VLOOKUP($A78,'2020 Point Sources'!$I:$CD, 74, FALSE) -> 77978 | H78: =VLOOKUP($A78,'2020 Point Sources'!$I:$T, 12, FALSE) -> Plastics Material and Resin Manufacturing | I78: =VLOOKUP($A78,'2020 Point Sources'!$I:$T, 11, FALSE) -> 325211 | J78: =VLOOKUP($A78,'2020 Point Sources'!$I:$AM, 25, FALSE) -> 40301199 | K78: =VLOOKUP($A78,'2020 Point Sources'!$I:$AM, 26, FALSE) -> Chemical Evaporation Petroleum Product Storage at Refineries Floating Roof Tanks (Varying Sizes) Other Product: Breathing Loss: 250000 Bbl. Size | L78: =VLOOKUP($A78,'2020 Point Sources'!$I:$AM, 31, FALSE) -> Industrial Processes - Storage and Transfer | M78: =IF(X78>0, CONVERT((SUMIFS('2020 Point Sources'!BH:BH, '2020 Point Sources'!I:I, A78, '2020 Point Sources'!AY:AY, 1)+SUMIFS('2020 Point Sources'!BH:BH, '2020 Point Sources'!I:I, A78, '2020 Point Sources'!AY:AY, 7)+SUMIFS('2020 Point Sources'!BH:BH, '2020 Point Sources'!I:I, A78, '2020 Point Sources'!AY:AY, 9)), "ton", "g")/1000, "n/a") -> 7.08E+02 | N78: 1.94E+00 | O78: =IF(Y78>0, CONVERT((SUMIFS('2020 Point Sources'!BH:BH, '2020 Point Sources'!I:I, A78, '2020 Point Sources'!AY:AY, 2)+SUMIFS('2020 Point Sources'!BH:BH, '2020 Point Sources'!I:I, A78, '2020 Point Sources'!AY:AY, 3)+SUMIFS('2020 Point Sources'!BH:BH, '2020 Point Sources'!I:I, A78, '2020 Point Sources'!AY:AY, 4)+SUMIFS('2020 Point Sources'!BH:BH, '2020 Point Sources'!I:I, A78, '2020 Point Sources'!AY:AY, 5)+SUMIFS('2020 Point Sources'!BH:BH, '2020 Point Sources'!I:I, A78, '2020 Point Sources'!AY:AY, 6)++SUMIFS('2020 Point Sources'!BH:BH, '2020 Point Sources'!I:I, A78, '2020 Point Sources'!AY:AY, 8)++SUMIFS('2020 Point Sources'!BH:BH, '2020 Point Sources'!I:I, A78, '2020 Point Sources'!AY:AY, 99)), "ton", "g")/1000, "n/a") -> 1.27E+03 | P78: 3.492E+00 | Q78: 24 | R78: =IF(AND(S78>0, T78>0), IF(S78/T78 > 365, 365, S78/T78), INDEX('OES Summary'!C:C, MATCH(B78, 'OES Summary'!A:A, 0))) -> 365 | S78: =_xlfn.MAXIFS('2020 Point Sources'!CY:CY,'2020 Point Sources'!A:A, A78) -> 8760 | T78: =_xlfn.MAXIFS('2020 Point Sources'!CZ:CZ,'2020 Point Sources'!A:A, A78) -> 24 | U78: =_xlfn.MAXIFS('2020 Point Sources'!DA:DA,'2020 Point Sources'!A:A, A78) -> 7 | V78: =_xlfn.MAXIFS('2020 Point Sources'!DB:DB,'2020 Point Sources'!A:A, A78) -> 52 | W78: =COUNTIF('2020 Point Sources'!A:A, A78) -> 18 | X78: =COUNTIFS('2020 Point Sources'!AY:AY, 1,'2020 Point Sources'!A:A, A78)+COUNTIFS('2020 Point Sources'!AY:AY, 7,'2020 Point Sources'!A:A, A78)+COUNTIFS('2020 Point Sources'!AY:AY, 9,'2020 Point Sources'!A:A, A78) -> 6 | Y78: =COUNTIFS('2020 Point Sources'!AY:AY, 2,'2020 Point Sources'!A:A, A78)+COUNTIFS('2020 Point Sources'!AY:AY, 3,'2020 Point Sources'!A:A, A78)+COUNTIFS('2020 Point Sources'!AY:AY, 4,'2020 Point Sources'!A:A, A78)+COUNTIFS('2020 Point Sources'!AY:AY, 5,'2020 Point Sources'!A:A, A78)+COUNTIFS('2020 Point Sources'!AY:AY, 6,'2020 Point Sources'!A:A, A78)+COUNTIFS('2020 Point Sources'!AY:AY, 8,'2020 Point Sources'!A:A, A78)+COUNTIFS('2020 Point Sources'!AY:AY, 99,'2020 Point Sources'!A:A, A78) -> 12
A79: 7964111 | B79: =VLOOKUP($A79, '2020 Point Sources'!$I:$AO, 32, FALSE) -> Plastics and Rubber Compounding | C79: =VLOOKUP($A79,'2020 Point Sources'!$I:$J, 2, FALSE) -> Fulflex Inc | D79: =VLOOKUP($A79,'2020 Point Sources'!$I:$CD, 73, FALSE) -> Brattleboro | E79: =VLOOKUP($A79,'2020 Point Sources'!$A:$E, 5, FALSE) -> VT | F79: =VLOOKUP($A79,'2020 Point Sources'!$A:$F, 6, FALSE) -> Windham | G79: =VLOOKUP($A79,'2020 Point Sources'!$I:$CD, 74, FALSE) -> 05301 | H79: =VLOOKUP($A79,'2020 Point Sources'!$I:$T, 12, FALSE) -> Resin and Synthetic Rubber ManufacturingT | I79: =VLOOKUP($A79,'2020 Point Sources'!$I:$T, 11, FALSE) -> 32521 | J79: =VLOOKUP($A79,'2020 Point Sources'!$I:$AM, 25, FALSE) -> 39999999 | K79: =VLOOKUP($A79,'2020 Point Sources'!$I:$AM, 26, FALSE) -> Industrial Processes Miscellaneous Manufacturing Industries Miscellaneous Industrial Processes Other Not Elsewhere Classified | L79: =VLOOKUP($A79,'2020 Point Sources'!$I:$AM, 31, FALSE) -> Industrial Processes - NEC | M79: =IF(X79>0, CONVERT((SUMIFS('2020 Point Sources'!BH:BH, '2020 Point Sources'!I:I, A79, '2020 Point Sources'!AY:AY, 1)+SUMIFS('2020 Point Sources'!BH:BH, '2020 Point Sources'!I:I, A79, '2020 Point Sources'!AY:AY, 7)+SUMIFS('2020 Point Sources'!BH:BH, '2020 Point Sources'!I:I, A79, '2020 Point Sources'!AY:AY, 9)), "ton", "g")/1000, "n/a") -> 3.67E-01 | N79: 1.22E-03 | O79: =IF(Y79>0, CONVERT((SUMIFS('2020 Point Sources'!BH:BH, '2020 Point Sources'!I:I, A79, '2020 Point Sources'!AY:AY, 2)+SUMIFS('2020 Point Sources'!BH:BH, '2020 Point Sources'!I:I, A79, '2020 Point Sources'!AY:AY, 3)+SUMIFS('2020 Point Sources'!BH:BH, '2020 Point Sources'!I:I, A79, '2020 Point Sources'!AY:AY, 4)+SUMIFS('2020 Point Sources'!BH:BH, '2020 Point Sources'!I:I, A79, '2020 Point Sources'!AY:AY, 5)+SUMIFS('2020 Point Sources'!BH:BH, '2020 Point Sources'!I:I, A79, '2020 Point Sources'!AY:AY, 6)++SUMIFS('2020 Point Sources'!BH:BH, '2020 Point Sources'!I:I, A79, '2020 Point Sources'!AY:AY, 8)++SUMIFS('2020 Point Sources'!BH:BH, '2020 Point Sources'!I:I, A79, '2020 Point Sources'!AY:AY, 99)), "ton", "g")/1000, "n/a") -> n/a | P79: n/a | Q79: 24 | R79: =IF(AND(S79>0, T79>0), IF(S79/T79 > 365, 365, S79/T79), INDEX('OES Summary'!C:C, MATCH(B79, 'OES Summary'!A:A, 0))) -> 300 | S79: =_xlfn.MAXIFS('2020 Point Sources'!CY:CY,'2020 Point Sources'!A:A, A79) -> 0 | T79: =_xlfn.MAXIFS('2020 Point Sources'!CZ:CZ,'2020 Point Sources'!A:A, A79) -> 0 | U79: =_xlfn.MAXIFS('2020 Point Sources'!DA:DA,'2020 Point Sources'!A:A, A79) -> 0 | V79: =_xlfn.MAXIFS('2020 Point Sources'!DB:DB,'2020 Point Sources'!A:A, A79) -> 0 | W79: =COUNTIF('2020 Point Sources'!A:A, A79) -> 1 | X79: =COUNTIFS('2020 Point Sources'!AY:AY, 1,'2020 Point Sources'!A:A, A79)+COUNTIFS('2020 Point Sources'!AY:AY, 7,'2020 Point Sources'!A:A, A79)+COUNTIFS('2020 Point Sources'!AY:AY, 9,'2020 Point Sources'!A:A, A79) -> 1 | Y79: =COUNTIFS('2020 Point Sources'!AY:AY, 2,'2020 Point Sources'!A:A, A79)+COUNTIFS('2020 Point Sources'!AY:AY, 3,'2020 Point Sources'!A:A, A79)+COUNTIFS('2020 Point Sources'!AY:AY, 4,'2020 Point Sources'!A:A, A79)+COUNTIFS('2020 Point Sources'!AY:AY, 5,'2020 Point Sources'!A:A, A79)+COUNTIFS('2020 Point Sources'!AY:AY, 6,'2020 Point Sources'!A:A, A79)+COUNTIFS('2020 Point Sources'!AY:AY, 8,'2020 Point Sources'!A:A, A79)+COUNTIFS('2020 Point Sources'!AY:AY, 99,'2020 Point Sources'!A:A, A79) -> 0
A80: 8503711 | B80: =VLOOKUP($A80, '2020 Point Sources'!$I:$AO, 32, FALSE) -> Plastics and Rubber Compounding | C80: =VLOOKUP($A80,'2020 Point Sources'!$I:$J, 2, FALSE) -> GOODYEAR DUNLOP TIRES NORTH AMERICA LTD | D80: =VLOOKUP($A80,'2020 Point Sources'!$I:$CD, 73, FALSE) -> TONAWANDA | E80: =VLOOKUP($A80,'2020 Point Sources'!$A:$E, 5, FALSE) -> NY | F80: =VLOOKUP($A80,'2020 Point Sources'!$A:$F, 6, FALSE) -> Erie | G80: =VLOOKUP($A80,'2020 Point Sources'!$I:$CD, 74, FALSE) -> 14150 | H80: =VLOOKUP($A80,'2020 Point Sources'!$I:$T, 12, FALSE) -> Tire Manufacturing (except Retreading) | I80: =VLOOKUP($A80,'2020 Point Sources'!$I:$T, 11, FALSE) -> 326211 | J80: =VLOOKUP($A80,'2020 Point Sources'!$I:$AM, 25, FALSE) -> 20200102 | K80: =VLOOKUP($A80,'2020 Point Sources'!$I:$AM, 26, FALSE) -> Internal Combustion Engines Industrial Distillate Oil (Diesel) Reciprocating | L80: =VLOOKUP($A80,'2020 Point Sources'!$I:$AM, 31, FALSE) -> Fuel Comb - Industrial Boilers, ICEs - Oil | M80: =IF(X80>0, CONVERT((SUMIFS('2020 Point Sources'!BH:BH, '2020 Point Sources'!I:I, A80, '2020 Point Sources'!AY:AY, 1)+SUMIFS('2020 Point Sources'!BH:BH, '2020 Point Sources'!I:I, A80, '2020 Point Sources'!AY:AY, 7)+SUMIFS('2020 Point Sources'!BH:BH, '2020 Point Sources'!I:I, A80, '2020 Point Sources'!AY:AY, 9)), "ton", "g")/1000, "n/a") -> 1.89E-02 | N80: 6.31E-05 | O80: =IF(Y80>0, CONVERT((SUMIFS('2020 Point Sources'!BH:BH, '2020 Point Sources'!I:I, A80, '2020 Point Sources'!AY:AY, 2)+SUMIFS('2020 Point Sources'!BH:BH, '2020 Point Sources'!I:I, A80, '2020 Point Sources'!AY:AY, 3)+SUMIFS('2020 Point Sources'!BH:BH, '2020 Point Sources'!I:I, A80, '2020 Point Sources'!AY:AY, 4)+SUMIFS('2020 Point Sources'!BH:BH, '2020 Point Sources'!I:I, A80, '2020 Point Sources'!AY:AY, 5)+SUMIFS('2020 Point Sources'!BH:BH, '2020 Point Sources'!I:I, A80, '2020 Point Sources'!AY:AY, 6)++SUMIFS('2020 Point Sources'!BH:BH, '2020 Point Sources'!I:I, A80, '2020 Point Sources'!AY:AY, 8)++SUMIFS('2020 Point Sources'!BH:BH, '2020 Point Sources'!I:I, A80, '2020 Point Sources'!AY:AY, 99)), "ton", "g")/1000, "n/a") -> 6.59E+00 | P80: 2.198E-02 | Q80: 24 | R80: =IF(AND(S80>0, T80>0), IF(S80/T80 > 365, 365, S80/T80), INDEX('OES Summary'!C:C, MATCH(B80, 'OES Summary'!A:A, 0))) -> 300 | S80: =_xlfn.MAXIFS('2020 Point Sources'!CY:CY,'2020 Point Sources'!A:A, A80) -> 0 | T80: =_xlfn.MAXIFS('2020 Point Sources'!CZ:CZ,'2020 Point Sources'!A:A, A80) -> 0 | U80: =_xlfn.MAXIFS('2020 Point Sources'!DA:DA,'2020 Point Sources'!A:A, A80) -> 0 | V80: =_xlfn.MAXIFS('2020 Point Sources'!DB:DB,'2020 Point Sources'!A:A, A80) -> 0 | W80: =COUNTIF('2020 Point Sources'!A:A, A80) -> 10 | X80: =COUNTIFS('2020 Point Sources'!AY:AY, 1,'2020 Point Sources'!A:A, A80)+COUNTIFS('2020 Point Sources'!AY:AY, 7,'2020 Point Sources'!A:A, A80)+COUNTIFS('2020 Point Sources'!AY:AY, 9,'2020 Point Sources'!A:A, A80) -> 1 | Y80: =COUNTIFS('2020 Point Sources'!AY:AY, 2,'2020 Point Sources'!A:A, A80)+COUNTIFS('2020 Point Sources'!AY:AY, 3,'2020 Point Sources'!A:A, A80)+COUNTIFS('2020 Point Sources'!AY:AY, 4,'2020 Point Sources'!A:A, A80)+COUNTIFS('2020 Point Sources'!AY:AY, 5,'2020 Point Sources'!A:A, A80)+COUNTIFS('2020 Point Sources'!AY:AY, 6,'2020 Point Sources'!A:A, A80)+COUNTIFS('2020 Point Sources'!AY:AY, 8,'2020 Point Sources'!A:A, A80)+COUNTIFS('2020 Point Sources'!AY:AY, 99,'2020 Point Sources'!A:A, A80) -> 9
A81: 7320311 | B81: =VLOOKUP($A81, '2020 Point Sources'!$I:$AO, 32, FALSE) -> Plastics and Rubber Compounding | C81: =VLOOKUP($A81,'2020 Point Sources'!$I:$J, 2, FALSE) -> GOODYEAR LAWTON | D81: =VLOOKUP($A81,'2020 Point Sources'!$I:$CD, 73, FALSE) -> LAWTON | E81: =VLOOKUP($A81,'2020 Point Sources'!$A:$E, 5, FALSE) -> OK | F81: =VLOOKUP($A81,'2020 Point Sources'!$A:$F, 6, FALSE) -> Comanche | G81: =VLOOKUP($A81,'2020 Point Sources'!$I:$CD, 74, FALSE) -> 73505-9799 | H81: =VLOOKUP($A81,'2020 Point Sources'!$I:$T, 12, FALSE) -> Tire Manufacturing (except Retreading) | I81: =VLOOKUP($A81,'2020 Point Sources'!$I:$T, 11, FALSE) -> 326211 | J81: =VLOOKUP($A81,'2020 Point Sources'!$I:$AM, 25, FALSE) -> 30800199 | K81: =VLOOKUP($A81,'2020 Point Sources'!$I:$AM, 26, FALSE) -> Industrial Processes Rubber and Miscellaneous Plastics Products Tire Manufacture Other Not Classified | L81: =VLOOKUP($A81,'2020 Point Sources'!$I:$AM, 31, FALSE) -> Industrial Processes - NEC | M81: =IF(X81>0, CONVERT((SUMIFS('2020 Point Sources'!BH:BH, '2020 Point Sources'!I:I, A81, '2020 Point Sources'!AY:AY, 1)+SUMIFS('2020 Point Sources'!BH:BH, '2020 Point Sources'!I:I, A81, '2020 Point Sources'!AY:AY, 7)+SUMIFS('2020 Point Sources'!BH:BH, '2020 Point Sources'!I:I, A81, '2020 Point Sources'!AY:AY, 9)), "ton", "g")/1000, "n/a") -> 6.26E+01 | N81: 1.86E-01 | O81: =IF(Y81>0, CONVERT((SUMIFS('2020 Point Sources'!BH:BH, '2020 Point Sources'!I:I, A81, '2020 Point Sources'!AY:AY, 2)+SUMIFS('2020 Point Sources'!BH:BH, '2020 Point Sources'!I:I, A81, '2020 Point Sources'!AY:AY, 3)+SUMIFS('2020 Point Sources'!BH:BH, '2020 Point Sources'!I:I, A81, '2020 Point Sources'!AY:AY, 4)+SUMIFS('2020 Point Sources'!BH:BH, '2020 Point Sources'!I:I, A81, '2020 Point Sources'!AY:AY, 5)+SUMIFS('2020 Point Sources'!BH:BH, '2020 Point Sources'!I:I, A81, '2020 Point Sources'!AY:AY, 6)++SUMIFS('2020 Point Sources'!BH:BH, '2020 Point Sources'!I:I, A81, '2020 Point Sources'!AY:AY, 8)++SUMIFS('2020 Point Sources'!BH:BH, '2020 Point Sources'!I:I, A81, '2020 Point Sources'!AY:AY, 99)), "ton", "g")/1000, "n/a") -> 1.93E+01 | P81: 5.751E-02 | Q81: 24 | R81: =IF(AND(S81>0, T81>0), IF(S81/T81 > 365, 365, S81/T81), INDEX('OES Summary'!C:C, MATCH(B81, 'OES Summary'!A:A, 0))) -> 336 | S81: =_xlfn.MAXIFS('2020 Point Sources'!CY:CY,'2020 Point Sources'!A:A, A81) -> 8064 | T81: =_xlfn.MAXIFS('2020 Point Sources'!CZ:CZ,'2020 Point Sources'!A:A, A81) -> 24 | U81: =_xlfn.MAXIFS('2020 Point Sources'!DA:DA,'2020 Point Sources'!A:A, A81) -> 7 | V81: =_xlfn.MAXIFS('2020 Point Sources'!DB:DB,'2020 Point Sources'!A:A, A81) -> 48 | W81: =COUNTIF('2020 Point Sources'!A:A, A81) -> 5 | X81: =COUNTIFS('2020 Point Sources'!AY:AY, 1,'2020 Point Sources'!A:A, A81)+COUNTIFS('2020 Point Sources'!AY:AY, 7,'2020 Point Sources'!A:A, A81)+COUNTIFS('2020 Point Sources'!AY:AY, 9,'2020 Point Sources'!A:A, A81) -> 2 | Y81: =COUNTIFS('2020 Point Sources'!AY:AY, 2,'2020 Point Sources'!A:A, A81)+COUNTIFS('2020 Point Sources'!AY:AY, 3,'2020 Point Sources'!A:A, A81)+COUNTIFS('2020 Point Sources'!AY:AY, 4,'2020 Point Sources'!A:A, A81)+COUNTIFS('2020 Point Sources'!AY:AY, 5,'2020 Point Sources'!A:A, A81)+COUNTIFS('2020 Point Sources'!AY:AY, 6,'2020 Point Sources'!A:A, A81)+COUNTIFS('2020 Point Sources'!AY:AY, 8,'2020 Point Sources'!A:A, A81)+COUNTIFS('2020 Point Sources'!AY:AY, 99,'2020 Point Sources'!A:A, A81) -> 3
A82: 8065911 | B82: =VLOOKUP($A82, '2020 Point Sources'!$I:$AO, 32, FALSE) -> Plastics and Rubber Compounding | C82: =VLOOKUP($A82,'2020 Point Sources'!$I:$J, 2, FALSE) -> Goodyear Tire & Rubber | D82: =VLOOKUP($A82,'2020 Point Sources'!$I:$CD, 73, FALSE) -> Topeka | E82: =VLOOKUP($A82,'2020 Point Sources'!$A:$E, 5, FALSE) -> KS | F82: =VLOOKUP($A82,'2020 Point Sources'!$A:$F, 6, FALSE) -> Shawnee | G82: =VLOOKUP($A82,'2020 Point Sources'!$I:$CD, 74, FALSE) -> 66618 | H82: =VLOOKUP($A82,'2020 Point Sources'!$I:$T, 12, FALSE) -> Tire Manufacturing (except Retreading) | I82: =VLOOKUP($A82,'2020 Point Sources'!$I:$T, 11, FALSE) -> 326211 | J82: =VLOOKUP($A82,'2020 Point Sources'!$I:$AM, 25, FALSE) -> 20301001 | K82: =VLOOKUP($A82,'2020 Point Sources'!$I:$AM, 26, FALSE) -> Internal Combustion Engines Commercial/Institutional Liquified Petroleum Gas (LPG) Propane: Reciprocating | L82: =VLOOKUP($A82,'2020 Point Sources'!$I:$AM, 31, FALSE) -> Fuel Comb - Comm/Institutional - Other | M82: =IF(X82>0, CONVERT((SUMIFS('2020 Point Sources'!BH:BH, '2020 Point Sources'!I:I, A82, '2020 Point Sources'!AY:AY, 1)+SUMIFS('2020 Point Sources'!BH:BH, '2020 Point Sources'!I:I, A82, '2020 Point Sources'!AY:AY, 7)+SUMIFS('2020 Point Sources'!BH:BH, '2020 Point Sources'!I:I, A82, '2020 Point Sources'!AY:AY, 9)), "ton", "g")/1000, "n/a") -> 1.36E+01 | N82: 3.88E-02 | O82: =IF(Y82>0, CONVERT((SUMIFS('2020 Point Sources'!BH:BH, '2020 Point Sources'!I:I, A82, '2020 Point Sources'!AY:AY, 2)+SUMIFS('2020 Point Sources'!BH:BH, '2020 Point Sources'!I:I, A82, '2020 Point Sources'!AY:AY, 3)+SUMIFS('2020 Point Sources'!BH:BH, '2020 Point Sources'!I:I, A82, '2020 Point Sources'!AY:AY, 4)+SUMIFS('2020 Point Sources'!BH:BH, '2020 Point Sources'!I:I, A82, '2020 Point Sources'!AY:AY, 5)+SUMIFS('2020 Point Sources'!BH:BH, '2020 Point Sources'!I:I, A82, '2020 Point Sources'!AY:AY, 6)++SUMIFS('2020 Point Sources'!BH:BH, '2020 Point Sources'!I:I, A82, '2020 Point Sources'!AY:AY, 8)++SUMIFS('2020 Point Sources'!BH:BH, '2020 Point Sources'!I:I, A82, '2020 Point Sources'!AY:AY, 99)), "ton", "g")/1000, "n/a") -> 3.66E+00 | P82: 1.047E-02 | Q82: 24 | R82: =IF(AND(S82>0, T82>0), IF(S82/T82 > 365, 365, S82/T82), INDEX('OES Summary'!C:C, MATCH(B82, 'OES Summary'!A:A, 0))) -> 350 | S82: =_xlfn.MAXIFS('2020 Point Sources'!CY:CY,'2020 Point Sources'!A:A, A82) -> 8400 | T82: =_xlfn.MAXIFS('2020 Point Sources'!CZ:CZ,'2020 Point Sources'!A:A, A82) -> 24 | U82: =_xlfn.MAXIFS('2020 Point Sources'!DA:DA,'2020 Point Sources'!A:A, A82) -> 7 | V82: =_xlfn.MAXIFS('2020 Point Sources'!DB:DB,'2020 Point Sources'!A:A, A82) -> 50 | W82: =COUNTIF('2020 Point Sources'!A:A, A82) -> 13 | X82: =COUNTIFS('2020 Point Sources'!AY:AY, 1,'2020 Point Sources'!A:A, A82)+COUNTIFS('2020 Point Sources'!AY:AY, 7,'2020 Point Sources'!A:A, A82)+COUNTIFS('2020 Point Sources'!AY:AY, 9,'2020 Point Sources'!A:A, A82) -> 5 | Y82: =COUNTIFS('2020 Point Sources'!AY:AY, 2,'2020 Point Sources'!A:A, A82)+COUNTIFS('2020 Point Sources'!AY:AY, 3,'2020 Point Sources'!A:A, A82)+COUNTIFS('2020 Point Sources'!AY:AY, 4,'2020 Point Sources'!A:A, A82)+COUNTIFS('2020 Point Sources'!AY:AY, 5,'2020 Point Sources'!A:A, A82)+COUNTIFS('2020 Point Sources'!AY:AY, 6,'2020 Point Sources'!A:A, A82)+COUNTIFS('2020 Point Sources'!AY:AY, 8,'2020 Point Sources'!A:A, A82)+COUNTIFS('2020 Point Sources'!AY:AY, 99,'2020 Point Sources'!A:A, A82) -> 8
A83: 937711 | B83: =VLOOKUP($A83, '2020 Point Sources'!$I:$AO, 32, FALSE) -> Plastics and Rubber Compounding | C83: =VLOOKUP($A83,'2020 Point Sources'!$I:$J, 2, FALSE) -> Hexion Inc. | D83: =VLOOKUP($A83,'2020 Point Sources'!$I:$CD, 73, FALSE) -> La Grande | E83: =VLOOKUP($A83,'2020 Point Sources'!$A:$E, 5, FALSE) -> OR | F83: =VLOOKUP($A83,'2020 Point Sources'!$A:$F, 6, FALSE) -> Union | G83: =VLOOKUP($A83,'2020 Point Sources'!$I:$CD, 74, FALSE) -> 97850 | H83: =VLOOKUP($A83,'2020 Point Sources'!$I:$T, 12, FALSE) -> Plastics Material and Resin Manufacturing | I83: =VLOOKUP($A83,'2020 Point Sources'!$I:$T, 11, FALSE) -> 325211 | J83: =VLOOKUP($A83,'2020 Point Sources'!$I:$AM, 25, FALSE) -> 30112005 | K83: =VLOOKUP($A83,'2020 Point Sources'!$I:$AM, 26, FALSE) -> Industrial Processes Chemical Manufacturing Formaldahyde, Acrolein, Acetaldehyde, Butyraldehyde Formaldehyde: Absorber Vent | L83: =VLOOKUP($A83,'2020 Point Sources'!$I:$AM, 31, FALSE) -> Industrial Processes - Chemical Manuf | M83: =IF(X83>0, CONVERT((SUMIFS('2020 Point Sources'!BH:BH, '2020 Point Sources'!I:I, A83, '2020 Point Sources'!AY:AY, 1)+SUMIFS('2020 Point Sources'!BH:BH, '2020 Point Sources'!I:I, A83, '2020 Point Sources'!AY:AY, 7)+SUMIFS('2020 Point Sources'!BH:BH, '2020 Point Sources'!I:I, A83, '2020 Point Sources'!AY:AY, 9)), "ton", "g")/1000, "n/a") -> n/a | N83: n/a | O83: =IF(Y83>0, CONVERT((SUMIFS('2020 Point Sources'!BH:BH, '2020 Point Sources'!I:I, A83, '2020 Point Sources'!AY:AY, 2)+SUMIFS('2020 Point Sources'!BH:BH, '2020 Point Sources'!I:I, A83, '2020 Point Sources'!AY:AY, 3)+SUMIFS('2020 Point Sources'!BH:BH, '2020 Point Sources'!I:I, A83, '2020 Point Sources'!AY:AY, 4)+SUMIFS('2020 Point Sources'!BH:BH, '2020 Point Sources'!I:I, A83, '2020 Point Sources'!AY:AY, 5)+SUMIFS('2020 Point Sources'!BH:BH, '2020 Point Sources'!I:I, A83, '2020 Point Sources'!AY:AY, 6)++SUMIFS('2020 Point Sources'!BH:BH, '2020 Point Sources'!I:I, A83, '2020 Point Sources'!AY:AY, 8)++SUMIFS('2020 Point Sources'!BH:BH, '2020 Point Sources'!I:I, A83, '2020 Point Sources'!AY:AY, 99)), "ton", "g")/1000, "n/a") -> 0.00E+00 | P83: 0.000E+00 | Q83: 24 | R83: =IF(AND(S83>0, T83>0), IF(S83/T83 > 365, 365, S83/T83), INDEX('OES Summary'!C:C, MATCH(B83, 'OES Summary'!A:A, 0))) -> 300 | S83: =_xlfn.MAXIFS('2020 Point Sources'!CY:CY,'2020 Point Sources'!A:A, A83) -> 0 | T83: =_xlfn.MAXIFS('2020 Point Sources'!CZ:CZ,'2020 Point Sources'!A:A, A83) -> 0 | U83: =_xlfn.MAXIFS('2020 Point Sources'!DA:DA,'2020 Point Sources'!A:A, A83) -> 0 | V83: =_xlfn.MAXIFS('2020 Point Sources'!DB:DB,'2020 Point Sources'!A:A, A83) -> 0 | W83: =COUNTIF('2020 Point Sources'!A:A, A83) -> 1 | X83: =COUNTIFS('2020 Point Sources'!AY:AY, 1,'2020 Point Sources'!A:A, A83)+COUNTIFS('2020 Point Sources'!AY:AY, 7,'2020 Point Sources'!A:A, A83)+COUNTIFS('2020 Point Sources'!AY:AY, 9,'2020 Point Sources'!A:A, A83) -> 0 | Y83: =COUNTIFS('2020 Point Sources'!AY:AY, 2,'2020 Point Sources'!A:A, A83)+COUNTIFS('2020 Point Sources'!AY:AY, 3,'2020 Point Sources'!A:A, A83)+COUNTIFS('2020 Point Sources'!AY:AY, 4,'2020 Point Sources'!A:A, A83)+COUNTIFS('2020 Point Sources'!AY:AY, 5,'2020 Point Sources'!A:A, A83)+COUNTIFS('2020 Point Sources'!AY:AY, 6,'2020 Point Sources'!A:A, A83)+COUNTIFS('2020 Point Sources'!AY:AY, 8,'2020 Point Sources'!A:A, A83)+COUNTIFS('2020 Point Sources'!AY:AY, 99,'2020 Point Sources'!A:A, A83) -> 1
A84: 4941211 | B84: =VLOOKUP($A84, '2020 Point Sources'!$I:$AO, 32, FALSE) -> Plastics and rubber compounding | C84: =VLOOKUP($A84,'2020 Point Sources'!$I:$J, 2, FALSE) -> HOUSTON CHEMICAL PLANT | D84: =VLOOKUP($A84,'2020 Point Sources'!$I:$CD, 73, FALSE) -> HOUSTON | E84: =VLOOKUP($A84,'2020 Point Sources'!$A:$E, 5, FALSE) -> TX | F84: =VLOOKUP($A84,'2020 Point Sources'!$A:$F, 6, FALSE) -> Harris | G84: =VLOOKUP($A84,'2020 Point Sources'!$I:$CD, 74, FALSE) -> 77017 | H84: =VLOOKUP($A84,'2020 Point Sources'!$I:$T, 12, FALSE) -> Synthetic Rubber Manufacturing | I84: =VLOOKUP($A84,'2020 Point Sources'!$I:$T, 11, FALSE) -> 325212 | J84: =VLOOKUP($A84,'2020 Point Sources'!$I:$AM, 25, FALSE) -> 38500101 | K84: =VLOOKUP($A84,'2020 Point Sources'!$I:$AM, 26, FALSE) -> Industrial Processes Cooling Tower Process Cooling Mechanical Draft | L84: =VLOOKUP($A84,'2020 Point Sources'!$I:$AM, 31, FALSE) -> Industrial Processes - NEC | M84: =IF(X84>0, CONVERT((SUMIFS('2020 Point Sources'!BH:BH, '2020 Point Sources'!I:I, A84, '2020 Point Sources'!AY:AY, 1)+SUMIFS('2020 Point Sources'!BH:BH, '2020 Point Sources'!I:I, A84, '2020 Point Sources'!AY:AY, 7)+SUMIFS('2020 Point Sources'!BH:BH, '2020 Point Sources'!I:I, A84, '2020 Point Sources'!AY:AY, 9)), "ton", "g")/1000, "n/a") -> 1.29E+04 | N84: 3.54E+01 | O84: =IF(Y84>0, CONVERT((SUMIFS('2020 Point Sources'!BH:BH, '2020 Point Sources'!I:I, A84, '2020 Point Sources'!AY:AY, 2)+SUMIFS('2020 Point Sources'!BH:BH, '2020 Point Sources'!I:I, A84, '2020 Point Sources'!AY:AY, 3)+SUMIFS('2020 Point Sources'!BH:BH, '2020 Point Sources'!I:I, A84, '2020 Point Sources'!AY:AY, 4)+SUMIFS('2020 Point Sources'!BH:BH, '2020 Point Sources'!I:I, A84, '2020 Point Sources'!AY:AY, 5)+SUMIFS('2020 Point Sources'!BH:BH, '2020 Point Sources'!I:I, A84, '2020 Point Sources'!AY:AY, 6)++SUMIFS('2020 Point Sources'!BH:BH, '2020 Point Sources'!I:I, A84, '2020 Point Sources'!AY:AY, 8)++SUMIFS('2020 Point Sources'!BH:BH, '2020 Point Sources'!I:I, A84, '2020 Point Sources'!AY:AY, 99)), "ton", "g")/1000, "n/a") -> 1.74E+03 | P84: 4.767E+00 | Q84: 24 | R84: =IF(AND(S84>0, T84>0), IF(S84/T84 > 365, 365, S84/T84), INDEX('OES Summary'!C:C, MATCH(B84, 'OES Summary'!A:A, 0))) -> 365 | S84: =_xlfn.MAXIFS('2020 Point Sources'!CY:CY,'2020 Point Sources'!A:A, A84) -> 8760 | T84: =_xlfn.MAXIFS('2020 Point Sources'!CZ:CZ,'2020 Point Sources'!A:A, A84) -> 24 | U84: =_xlfn.MAXIFS('2020 Point Sources'!DA:DA,'2020 Point Sources'!A:A, A84) -> 7 | V84: =_xlfn.MAXIFS('2020 Point Sources'!DB:DB,'2020 Point Sources'!A:A, A84) -> 52 | W84: =COUNTIF('2020 Point Sources'!A:A, A84) -> 61 | X84: =COUNTIFS('2020 Point Sources'!AY:AY, 1,'2020 Point Sources'!A:A, A84)+COUNTIFS('2020 Point Sources'!AY:AY, 7,'2020 Point Sources'!A:A, A84)+COUNTIFS('2020 Point Sources'!AY:AY, 9,'2020 Point Sources'!A:A, A84) -> 34 | Y84: =COUNTIFS('2020 Point Sources'!AY:AY, 2,'2020 Point Sources'!A:A, A84)+COUNTIFS('2020 Point Sources'!AY:AY, 3,'2020 Point Sources'!A:A, A84)+COUNTIFS('2020 Point Sources'!AY:AY, 4,'2020 Point Sources'!A:A, A84)+COUNTIFS('2020 Point Sources'!AY:AY, 5,'2020 Point Sources'!A:A, A84)+COUNTIFS('2020 Point Sources'!AY:AY, 6,'2020 Point Sources'!A:A, A84)+COUNTIFS('2020 Point Sources'!AY:AY, 8,'2020 Point Sources'!A:A, A84)+COUNTIFS('2020 Point Sources'!AY:AY, 99,'2020 Point Sources'!A:A, A84) -> 27
A85: 8008211 | B85: =VLOOKUP($A85, '2020 Point Sources'!$I:$AO, 32, FALSE) -> Plastics and Rubber Compounding | C85: =VLOOKUP($A85,'2020 Point Sources'!$I:$J, 2, FALSE) -> INEOS ABS (USA) Corporation (1431010054) | D85: =VLOOKUP($A85,'2020 Point Sources'!$I:$CD, 73, FALSE) -> Addyston | E85: =VLOOKUP($A85,'2020 Point Sources'!$A:$E, 5, FALSE) -> OH | F85: =VLOOKUP($A85,'2020 Point Sources'!$A:$F, 6, FALSE) -> Hamilton | G85: =VLOOKUP($A85,'2020 Point Sources'!$I:$CD, 74, FALSE) -> 45001-0039 | H85: =VLOOKUP($A85,'2020 Point Sources'!$I:$T, 12, FALSE) -> Plastics Material and Resin Manufacturing | I85: =VLOOKUP($A85,'2020 Point Sources'!$I:$T, 11, FALSE) -> 325211 | J85: =VLOOKUP($A85,'2020 Point Sources'!$I:$AM, 25, FALSE) -> 30106201 | K85: =VLOOKUP($A85,'2020 Point Sources'!$I:$AM, 26, FALSE) -> Industrial Processes Chemical Manufacturing Acrylonitrile Butadiene Styrene Resin Production General | L85: =VLOOKUP($A85,'2020 Point Sources'!$I:$AM, 31, FALSE) -> Industrial Processes - Chemical Manuf | M85: =IF(X85>0, CONVERT((SUMIFS('2020 Point Sources'!BH:BH, '2020 Point Sources'!I:I, A85, '2020 Point Sources'!AY:AY, 1)+SUMIFS('2020 Point Sources'!BH:BH, '2020 Point Sources'!I:I, A85, '2020 Point Sources'!AY:AY, 7)+SUMIFS('2020 Point Sources'!BH:BH, '2020 Point Sources'!I:I, A85, '2020 Point Sources'!AY:AY, 9)), "ton", "g")/1000, "n/a") -> 5.44E+01 | N85: 1.81E-01 | O85: =IF(Y85>0, CONVERT((SUMIFS('2020 Point Sources'!BH:BH, '2020 Point Sources'!I:I, A85, '2020 Point Sources'!AY:AY, 2)+SUMIFS('2020 Point Sources'!BH:BH, '2020 Point Sources'!I:I, A85, '2020 Point Sources'!AY:AY, 3)+SUMIFS('2020 Point Sources'!BH:BH, '2020 Point Sources'!I:I, A85, '2020 Point Sources'!AY:AY, 4)+SUMIFS('2020 Point Sources'!BH:BH, '2020 Point Sources'!I:I, A85, '2020 Point Sources'!AY:AY, 5)+SUMIFS('2020 Point Sources'!BH:BH, '2020 Point Sources'!I:I, A85, '2020 Point Sources'!AY:AY, 6)++SUMIFS('2020 Point Sources'!BH:BH, '2020 Point Sources'!I:I, A85, '2020 Point Sources'!AY:AY, 8)++SUMIFS('2020 Point Sources'!BH:BH, '2020 Point Sources'!I:I, A85, '2020 Point Sources'!AY:AY, 99)), "ton", "g")/1000, "n/a") -> 9.63E+02 | P85: 3.209E+00 | Q85: 24 | R85: =IF(AND(S85>0, T85>0), IF(S85/T85 > 365, 365, S85/T85), INDEX('OES Summary'!C:C, MATCH(B85, 'OES Summary'!A:A, 0))) -> 300 | S85: =_xlfn.MAXIFS('2020 Point Sources'!CY:CY,'2020 Point Sources'!A:A, A85) -> 0 | T85: =_xlfn.MAXIFS('2020 Point Sources'!CZ:CZ,'2020 Point Sources'!A:A, A85) -> 0 | U85: =_xlfn.MAXIFS('2020 Point Sources'!DA:DA,'2020 Point Sources'!A:A, A85) -> 0 | V85: =_xlfn.MAXIFS('2020 Point Sources'!DB:DB,'2020 Point Sources'!A:A, A85) -> 0 | W85: =COUNTIF('2020 Point Sources'!A:A, A85) -> 20 | X85: =COUNTIFS('2020 Point Sources'!AY:AY, 1,'2020 Point Sources'!A:A, A85)+COUNTIFS('2020 Point Sources'!AY:AY, 7,'2020 Point Sources'!A:A, A85)+COUNTIFS('2020 Point Sources'!AY:AY, 9,'2020 Point Sources'!A:A, A85) -> 1 | Y85: =COUNTIFS('2020 Point Sources'!AY:AY, 2,'2020 Point Sources'!A:A, A85)+COUNTIFS('2020 Point Sources'!AY:AY, 3,'2020 Point Sources'!A:A, A85)+COUNTIFS('2020 Point Sources'!AY:AY, 4,'2020 Point Sources'!A:A, A85)+COUNTIFS('2020 Point Sources'!AY:AY, 5,'2020 Point Sources'!A:A, A85)+COUNTIFS('2020 Point Sources'!AY:AY, 6,'2020 Point Sources'!A:A, A85)+COUNTIFS('2020 Point Sources'!AY:AY, 8,'2020 Point Sources'!A:A, A85)+COUNTIFS('2020 Point Sources'!AY:AY, 99,'2020 Point Sources'!A:A, A85) -> 19
A86: 6534611 | B86: =VLOOKUP($A86, '2020 Point Sources'!$I:$AO, 32, FALSE) -> Plastics and Rubber Compounding | C86: =VLOOKUP($A86,'2020 Point Sources'!$I:$J, 2, FALSE) -> INEOS STYROLUTION AMERICA BAYPORT PLANT | D86: =VLOOKUP($A86,'2020 Point Sources'!$I:$CD, 73, FALSE) -> PASADENA | E86: =VLOOKUP($A86,'2020 Point Sources'!$A:$E, 5, FALSE) -> TX | F86: =VLOOKUP($A86,'2020 Point Sources'!$A:$F, 6, FALSE) -> Harris | G86: =VLOOKUP($A86,'2020 Point Sources'!$I:$CD, 74, FALSE) -> 77501 | H86: =VLOOKUP($A86,'2020 Point Sources'!$I:$T, 12, FALSE) -> Petrochemical Manufacturing | I86: =VLOOKUP($A86,'2020 Point Sources'!$I:$T, 11, FALSE) -> 325110 | J86: =VLOOKUP($A86,'2020 Point Sources'!$I:$AM, 25, FALSE) -> 38500101 | K86: =VLOOKUP($A86,'2020 Point Sources'!$I:$AM, 26, FALSE) -> Industrial Processes Cooling Tower Process Cooling Mechanical Draft | L86: =VLOOKUP($A86,'2020 Point Sources'!$I:$AM, 31, FALSE) -> Industrial Processes - NEC | M86: =IF(X86>0, CONVERT((SUMIFS('2020 Point Sources'!BH:BH, '2020 Point Sources'!I:I, A86, '2020 Point Sources'!AY:AY, 1)+SUMIFS('2020 Point Sources'!BH:BH, '2020 Point Sources'!I:I, A86, '2020 Point Sources'!AY:AY, 7)+SUMIFS('2020 Point Sources'!BH:BH, '2020 Point Sources'!I:I, A86, '2020 Point Sources'!AY:AY, 9)), "ton", "g")/1000, "n/a") -> n/a | N86: n/a | O86: =IF(Y86>0, CONVERT((SUMIFS('2020 Point Sources'!BH:BH, '2020 Point Sources'!I:I, A86, '2020 Point Sources'!AY:AY, 2)+SUMIFS('2020 Point Sources'!BH:BH, '2020 Point Sources'!I:I, A86, '2020 Point Sources'!AY:AY, 3)+SUMIFS('2020 Point Sources'!BH:BH, '2020 Point Sources'!I:I, A86, '2020 Point Sources'!AY:AY, 4)+SUMIFS('2020 Point Sources'!BH:BH, '2020 Point Sources'!I:I, A86, '2020 Point Sources'!AY:AY, 5)+SUMIFS('2020 Point Sources'!BH:BH, '2020 Point Sources'!I:I, A86, '2020 Point Sources'!AY:AY, 6)++SUMIFS('2020 Point Sources'!BH:BH, '2020 Point Sources'!I:I, A86, '2020 Point Sources'!AY:AY, 8)++SUMIFS('2020 Point Sources'!BH:BH, '2020 Point Sources'!I:I, A86, '2020 Point Sources'!AY:AY, 99)), "ton", "g")/1000, "n/a") -> 2.76E+02 | P86: 7.568E-01 | Q86: 24 | R86: =IF(AND(S86>0, T86>0), IF(S86/T86 > 365, 365, S86/T86), INDEX('OES Summary'!C:C, MATCH(B86, 'OES Summary'!A:A, 0))) -> 365 | S86: =_xlfn.MAXIFS('2020 Point Sources'!CY:CY,'2020 Point Sources'!A:A, A86) -> 8760 | T86: =_xlfn.MAXIFS('2020 Point Sources'!CZ:CZ,'2020 Point Sources'!A:A, A86) -> 24 | U86: =_xlfn.MAXIFS('2020 Point Sources'!DA:DA,'2020 Point Sources'!A:A, A86) -> 7 | V86: =_xlfn.MAXIFS('2020 Point Sources'!DB:DB,'2020 Point Sources'!A:A, A86) -> 52 | W86: =COUNTIF('2020 Point Sources'!A:A, A86) -> 4 | X86: =COUNTIFS('2020 Point Sources'!AY:AY, 1,'2020 Point Sources'!A:A, A86)+COUNTIFS('2020 Point Sources'!AY:AY, 7,'2020 Point Sources'!A:A, A86)+COUNTIFS('2020 Point Sources'!AY:AY, 9,'2020 Point Sources'!A:A, A86) -> 0 | Y86: =COUNTIFS('2020 Point Sources'!AY:AY, 2,'2020 Point Sources'!A:A, A86)+COUNTIFS('2020 Point Sources'!AY:AY, 3,'2020 Point Sources'!A:A, A86)+COUNTIFS('2020 Point Sources'!AY:AY, 4,'2020 Point Sources'!A:A, A86)+COUNTIFS('2020 Point Sources'!AY:AY, 5,'2020 Point Sources'!A:A, A86)+COUNTIFS('2020 Point Sources'!AY:AY, 6,'2020 Point Sources'!A:A, A86)+COUNTIFS('2020 Point Sources'!AY:AY, 8,'2020 Point Sources'!A:A, A86)+COUNTIFS('2020 Point Sources'!AY:AY, 99,'2020 Point Sources'!A:A, A86) -> 4
A87: 10722911 | B87: =VLOOKUP($A87, '2020 Point Sources'!$I:$AO, 32, FALSE) -> Plastics and Rubber Compounding | C87: =VLOOKUP($A87,'2020 Point Sources'!$I:$J, 2, FALSE) -> INEOS STYROLUTION TEXAS CITY PLANT | D87: =VLOOKUP($A87,'2020 Point Sources'!$I:$CD, 73, FALSE) -> TEXAS CITY | E87: =VLOOKUP($A87,'2020 Point Sources'!$A:$E, 5, FALSE) -> TX | F87: =VLOOKUP($A87,'2020 Point Sources'!$A:$F, 6, FALSE) -> Galveston | G87: =VLOOKUP($A87,'2020 Point Sources'!$I:$CD, 74, FALSE) -> 77592 | H87: =VLOOKUP($A87,'2020 Point Sources'!$I:$T, 12, FALSE) -> Petrochemical Manufacturing | I87: =VLOOKUP($A87,'2020 Point Sources'!$I:$T, 11, FALSE) -> 325110 | J87: =VLOOKUP($A87,'2020 Point Sources'!$I:$AM, 25, FALSE) -> 38500101 | K87: =VLOOKUP($A87,'2020 Point Sources'!$I:$AM, 26, FALSE) -> Industrial Processes Cooling Tower Process Cooling Mechanical Draft | L87: =VLOOKUP($A87,'2020 Point Sources'!$I:$AM, 31, FALSE) -> Industrial Processes - NEC | M87: =IF(X87>0, CONVERT((SUMIFS('2020 Point Sources'!BH:BH, '2020 Point Sources'!I:I, A87, '2020 Point Sources'!AY:AY, 1)+SUMIFS('2020 Point Sources'!BH:BH, '2020 Point Sources'!I:I, A87, '2020 Point Sources'!AY:AY, 7)+SUMIFS('2020 Point Sources'!BH:BH, '2020 Point Sources'!I:I, A87, '2020 Point Sources'!AY:AY, 9)), "ton", "g")/1000, "n/a") -> n/a | N87: n/a | O87: =IF(Y87>0, CONVERT((SUMIFS('2020 Point Sources'!BH:BH, '2020 Point Sources'!I:I, A87, '2020 Point Sources'!AY:AY, 2)+SUMIFS('2020 Point Sources'!BH:BH, '2020 Point Sources'!I:I, A87, '2020 Point Sources'!AY:AY, 3)+SUMIFS('2020 Point Sources'!BH:BH, '2020 Point Sources'!I:I, A87, '2020 Point Sources'!AY:AY, 4)+SUMIFS('2020 Point Sources'!BH:BH, '2020 Point Sources'!I:I, A87, '2020 Point Sources'!AY:AY, 5)+SUMIFS('2020 Point Sources'!BH:BH, '2020 Point Sources'!I:I, A87, '2020 Point Sources'!AY:AY, 6)++SUMIFS('2020 Point Sources'!BH:BH, '2020 Point Sources'!I:I, A87, '2020 Point Sources'!AY:AY, 8)++SUMIFS('2020 Point Sources'!BH:BH, '2020 Point Sources'!I:I, A87, '2020 Point Sources'!AY:AY, 99)), "ton", "g")/1000, "n/a") -> 2.00E+00 | P87: 7.618E-03 | Q87: 24 | R87: =IF(AND(S87>0, T87>0), IF(S87/T87 > 365, 365, S87/T87), INDEX('OES Summary'!C:C, MATCH(B87, 'OES Summary'!A:A, 0))) -> 262 | S87: =_xlfn.MAXIFS('2020 Point Sources'!CY:CY,'2020 Point Sources'!A:A, A87) -> 6288 | T87: =_xlfn.MAXIFS('2020 Point Sources'!CZ:CZ,'2020 Point Sources'!A:A, A87) -> 24 | U87: =_xlfn.MAXIFS('2020 Point Sources'!DA:DA,'2020 Point Sources'!A:A, A87) -> 7 | V87: =_xlfn.MAXIFS('2020 Point Sources'!DB:DB,'2020 Point Sources'!A:A, A87) -> 52 | W87: =COUNTIF('2020 Point Sources'!A:A, A87) -> 1 | X87: =COUNTIFS('2020 Point Sources'!AY:AY, 1,'2020 Point Sources'!A:A, A87)+COUNTIFS('2020 Point Sources'!AY:AY, 7,'2020 Point Sources'!A:A, A87)+COUNTIFS('2020 Point Sources'!AY:AY, 9,'2020 Point Sources'!A:A, A87) -> 0 | Y87: =COUNTIFS('2020 Point Sources'!AY:AY, 2,'2020 Point Sources'!A:A, A87)+COUNTIFS('2020 Point Sources'!AY:AY, 3,'2020 Point Sources'!A:A, A87)+COUNTIFS('2020 Point Sources'!AY:AY, 4,'2020 Point Sources'!A:A, A87)+COUNTIFS('2020 Point Sources'!AY:AY, 5,'2020 Point Sources'!A:A, A87)+COUNTIFS('2020 Point Sources'!AY:AY, 6,'2020 Point Sources'!A:A, A87)+COUNTIFS('2020 Point Sources'!AY:AY, 8,'2020 Point Sources'!A:A, A87)+COUNTIFS('2020 Point Sources'!AY:AY, 99,'2020 Point Sources'!A:A, A87) -> 1
